Workbook

Sheet Images_Map (hidden)
C1: OutMigrants | G1: InMigrants
A2: 1 | B2: CA | C2: 1705220 | D2: A | E2: 1 | F2: FL | G2: 1574851 | H2: A
A3: 2 | B3: FL | C3: 1315448 | D3: A | E3: 2 | F3: TX | G3: 1522876 | H3: A
A4: 3 | B4: TX | C4: 1220448 | D4: A | E4: 3 | F4: CA | G4: 1411708 | H4: A
A5: 4 | B5: NY | C5: 1156500 | D5: A | E5: 4 | F5: NY | G5: 846332 | H5: B
A6: 5 | B6: IL | C6: 827827 | D6: B | E6: 5 | F6: NC | G6: 806515 | H6: B
A7: 6 | B7: GA | C7: 746832 | D7: B | E7: 6 | F7: GA | G7: 802377 | H7: B
A8: 7 | B8: VA | C8: 701922 | D8: B | E8: 7 | F8: VA | G8: 770334 | H8: B
A9: 8 | B9: NC | C9: 671819 | D9: B | E9: 8 | F9: PA | G9: 702216 | H9: B
A10: 9 | B10: PA | C10: 667900 | D10: B | E10: 9 | F10: AZ | G10: 681320 | H10: B
A11: 10 | B11: NJ | C11: 634859 | D11: B | E11: 10 | F11: IL | G11: 635409 | H11: B
A12: 11 | B12: AZ | C12: 595997 | D12: B | E12: 11 | F12: WA | G12: 617893 | H12: B
A13: 12 | B13: OH | C13: 593661 | D13: B | E13: 12 | F13: CO | G13: 596044 | H13: B
A14: 13 | B14: MI | C14: 541057 | D14: B | E14: 13 | F14: OH | G14: 565952 | H14: B | K14: Key | S14: Key
A15: 14 | B15: WA | C15: 537309 | D15: B | E15: 14 | F15: TN | G15: 509645 | H15: B | K15: Over 1Mill. | S15: Under 100,000 | AB15: Key
A16: 15 | B16: MD | C16: 482808 | D16: C | E16: 15 | F16: MD | G16: 475131 | H16: C | K16: 500,000 - 1Mill. | S16: 100,000 - 300,000 | AB16: Under 100,000
A17: 16 | B17: CO | C17: 463161 | D17: C | E17: 16 | F17: SC | G17: 470295 | H17: C | K17: 300,000 - 500,000 | S17: 300,000 - 500,000 | AB17: 100,000 - 300,000
A18: 17 | B18: TN | C18: 461490 | D18: C | E18: 17 | F18: MO | G18: 459997 | H18: C | K18: 100,000 - 300,000 | S18: 500,000 - 1M | AB18: 300,000 - 500,000
A19: 18 | B19: MA | C19: 453851 | D19: C | E19: 18 | F19: MA | G19: 434123 | H19: C | K19: Under 100,000 | S19: Over 1Mill. | AB19: 500,000 - 1M
A20: 19 | B20: MO | C20: 429535 | D20: C | E20: 19 | F20: NJ | G20: 407404 | H20: C | AB20: Over 1Mill.
A21: 20 | B21: IN | C21: 419009 | D21: C | E21: 20 | F21: MI | G21: 392410 | H21: C
A22: 21 | B22: SC | C22: 366529 | D22: C | E22: 21 | F22: IN | G22: 390204 | H22: C
A23: 22 | B23: NV | C23: 324234 | D23: C | E23: 22 | F23: OR | G23: 364508 | H23: C
A24: 23 | B24: MN | C24: 324014 | D24: C | E24: 23 | F24: KY | G24: 341802 | H24: C | Z24: InMigrants
A25: 24 | B25: OR | C25: 318162 | D25: C | E25: 24 | F25: NV | G25: 338199 | H25: C
A26: 25 | B26: WI | C26: 316137 | D26: C | E26: 25 | F26: AL | G26: 332465 | H26: C
A27: 26 | B27: AL | C27: 315909 | D27: C | E27: 26 | F27: OK | G27: 324675 | H27: C
A28: 27 | B28: KY | C28: 295550 | D28: D | E28: 27 | F28: WI | G28: 303920 | H28: C
A29: 28 | B29: KS | C29: 278288 | D29: D | E29: 28 | F29: MN | G29: 292170 | H29: D
A30: 29 | B30: OK | C30: 274276 | D30: D | E30: 29 | F30: LA | G30: 289692 | H30: D
A31: 30 | B31: LA | C31: 270848 | D31: D | E31: 30 | F31: KS | G31: 267908 | H31: D
A32: 31 | B32: CT | C32: 270796 | D32: D | E32: 31 | F32: UT | G32: 251489 | H32: D
A33: 32 | B33: AK | C33: 268201 | D33: D | E33: 32 | F33: CT | G33: 236506 | H33: D
A34: 33 | B34: UT | C34: 231799 | D34: D | E34: 33 | F34: AR | G34: 226536 | H34: D | P34: Key
A35: 34 | B35: IA | C35: 214763 | D35: D | E35: 34 | F35: IA | G35: 219714 | H35: D | P35: Under 100,000
A36: 35 | B36: PR | C36: 210603 | D36: D | E36: 35 | F36: MS | G36: 215545 | H36: D | P36: 100,000 - 300,000
A37: 36 | B37: AR | C37: 206550 | D37: D | E37: 36 | F37: NM | G37: 191588 | H37: D | P37: 300,000 - 500,000
A38: 37 | B38: MS | C38: 204104 | D38: D | E38: 37 | F38: ID | G38: 175875 | H38: D | P38: 500,000 - 1M
A39: 38 | B39: NM | C39: 176233 | D39: D | E39: 38 | F39: HI | G39: 166842 | H39: D | P39: Over 1Mill.
A40: 39 | B40: HI | C40: 172777 | D40: D | E40: 39 | F40: DC | G40: 153140 | H40: D
A41: 40 | B41: ID | C41: 166157 | D41: D | E41: 40 | F41: NE | G41: 146626 | H41: D
A42: 41 | B42: DC | C42: 165509 | D42: D | E42: 41 | F42: WV | G42: 137743 | H42: D
A43: 42 | B43: NE | C43: 145156 | D43: D | E43: 42 | F43: NH | G43: 126982 | H43: D
A44: 43 | B44: WV | C44: 142893 | D44: D | E44: 43 | F44: MT | G44: 107237 | H44: D
A45: 44 | B45: NH | C45: 120372 | D45: D | E45: 44 | F45: AK | G45: 105913 | H45: D
A46: 45 | B46: ME | C46: 104512 | D46: D | E46: 45 | F46: DE | G46: 101446 | H46: D
A47: 46 | B47: MT | C47: 100906 | D47: D | E47: 46 | F47: ND | G47: 100899 | H47: D
A48: 47 | B48: WY | C48: 92405 | D48: E | E48: 47 | F48: RI | G48: 92959 | H48: E
A49: 48 | B49: RI | C49: 88309 | D49: E | E49: 48 | F49: WY | G49: 89862 | H49: E
A50: 49 | B50: DE | C50: 81848 | D50: E | E50: 49 | F50: ME | G50: 89406 | H50: E
A51: 50 | B51: SD | C51: 79945 | D51: E | E51: 50 | F51: SD | G51: 79468 | H51: E
A52: 51 | B52: ND | C52: 74972 | D52: E | E52: 51 | F52: PR | G52: 74425 | H52: E
A53: 52 | B53: VT | C53: 56608 | D53: E | E53: 52 | F53: VT | G53: 67442 | H53: E
A55: 1

Sheet Introduction
A2: Dear User,
A4: The following dashboard contains the state to state population migration data in the United States between 2010 - 2012
A5: The top portion shows the summarized information for the whole country. The heat map on the top right shows the inmigration or outmigration.
A6: Please toggle the dropdown to get the map of your choice (inmigration or outmigration)
A8: The bottom portion of the sheet allows you to drill down on a particular state.
A9: Choose the state of your choice and it shows the trends and movement patterns of people of that particular state.
A10: You can also toggle the radio buttons to get a pareto chart showing the contribution of each state to the selected state's migration
A12: The dashboard was constructed using MS Excel 2010 with macros enabled.
A13: The data used for this dashboard comes from the following sources
A15: Base - Migration Data
B16: As given by Chandoo.org for the competition
A17: Unemployment Data
B18: http://www.dlt.ri.gov/lmi/laus/us/annavg.htm
A19: Per Capital Income Data
B20: http://bber.unm.edu/econ/us-pci.htm
A21: Cost of Living Index Data (Not Used in Dashboard)
B22: https://www.census.gov/compendia/statab/cats/prices.html
A23: Fun Facts Data
B24: http://www.50states.com/facts/#.U1PV4_mSwlL
B25: http://www.factmonster.com/ipka/A0770175.html
B26: Wikipedia
A28: Please note, the unemployment and Per Capita Income data for Puerto Rico are fictional numbers due to unavailability of Data
A30: Submitted by
A31: Karthik Rajkumar | C31: karthikayan70@gmail.com
A32: Thiru Selvan Sathiamoorthy | D32: thiruselvancbe@gmail.com

Sheet Dashboard
A1: State Migration Data
C2: State to State Migration Data (2010 - 2012) | W2: 1
C4: Quick Facts | E4: 2010 | F4: 2011 | G4: 2012 | H4: Average | I4: Trend
C5: Total Population | E5: ='In_out migration'!R55 -> 309305100 | F5: ='In_out migration'!Q55 -> 311569514 | G5: ='In_out migration'!P55 -> 313841157 | H5: =AVERAGE(E5:G5) -> 311571923.7
C6: % Migrated | E6: =E7/E5 -> 0.02180122151 | F6: =F7/F5 -> 0.02242650736 | G6: 0.02252841873 | H6: 0.02225381303
C7: Number of Migrations | E7: ='2010'!J11 -> 6743229 | F7: ='2011'!K12 -> 6987416 | G7: ='2012'!J11 -> 7070345 | H7: =AVERAGE(E7:G7) -> 6933663.333
C8: Unemployment Index | E8: =Unemployement!G56 -> 8.775 | F8: =Unemployement!E56 -> 8.159615385 | G8: =Unemployement!C56 -> 7.365384615 | H8: =AVERAGE(E8:G8) -> 8.1
C9: Per Capita Income | E9: =Per_capita_income!G55 -> 39529.51923 | F9: =Per_capita_income!E55 -> 41414.53846 | G9: =Per_capita_income!C55 -> 42482.82692 | H9: 41142.29487
C26: Select a State | L26: Key Statistics compared to Selected State | AB26: Selected State | AF26: =VLOOKUP(G130,A130:C181,2,0) -> ALASKA
C28: Quick Facts | E28: 2010 | F28: 2011 | G28: 2012 | H28: Average | I28: Trend | P28: State | Q28: Unemployment | R28: Per Capita Income | X28: Unemployment | Y28: Per capita Income
C29: InMigration (people) | E29: =VLOOKUP(H130,'In_out migration'!A:G,2,0) -> 36326 | F29: =VLOOKUP(H130,'In_out migration'!A:G,4,0) -> 35084 | G29: =VLOOKUP(H130,'In_out migration'!A:G,6,0) -> 33415 | H29: =AVERAGE(E29:G29) -> 34941.66667 | L29: State Most Migrated From | P29: =VLOOKUP(Total!BF1,Dashboard!$A$130:$C$181,2,0) -> WASHINGTON | Q29: =X29-$H$32 -> 1.566666667 | R29: =H33-Y29 -> 1625.666667 | X29: =VLOOKUP(P29,Unemployement!A:I,9,0) -> 9.066666667 | Y29: =VLOOKUP(P29,'Per Income capita'!A:H,8,0) -> 43771.66667
C30: OutMigration (people) | E30: =VLOOKUP(H130,'In_out migration'!A:G,3,0) -> 94692 | F30: =VLOOKUP(H130,'In_out migration'!A:G,5,0) -> 88850 | G30: =VLOOKUP(H130,'In_out migration'!A:G,7,0) -> 84068 | H30: =AVERAGE(E30:G30) -> 89203.33333 | L30: State Most Migrated To | P30: =VLOOKUP(Total!BE1,Dashboard!$A$130:$C$181,2,0) -> TEXAS | Q30: =H32-X30 -> -0.1333333333 | R30: =Y30-H33 -> -5450.666667 | X30: =VLOOKUP(P30,Unemployement!A:I,9,0) -> 7.633333333 | Y30: =VLOOKUP(P30,'Per Income capita'!A:H,8,0) -> 39946.66667
C31: Net Migration | E31: =E29-E30 -> -58366 | F31: =F29-F30 -> -53766 | G31: -50653 | H31: =AVERAGE(E31:G31) -> -54261.66667
C32: Unemployment Index | E32: =VLOOKUP(H130,Unemployement!A:H,7,0) -> 8 | F32: =VLOOKUP(H130,Unemployement!A:H,5,0) -> 7.6 | G32: =VLOOKUP(H130,Unemployement!A:H,3,0) -> 6.9 | H32: =(E32+F32+G32)/3 -> 7.5 | Q32: T
C33: Per Capita Income | E33: =VLOOKUP(H130,'Per Income capita'!A:H,6,0) -> 43749 | F33: =VLOOKUP(H130,'Per Income capita'!A:H,4,0) -> 45665 | G33: =VLOOKUP(H130,'Per Income capita'!A:H,2,0) -> 46778 | H33: =(E33+F33+G33)/3 -> 45397.33333
C34: Pareto Chart Showing % of In/OutMigrants by State
S35: Selected State
S37: Most Migrated From
S39: Most Migrated To
S41: Most Migrated To & From
C44: =VLOOKUP(Dashboard!H130,Notes!A:B,2,0) -> Alaska has most inmigrants from the west coast states of Washington, California,Oregon & Texas while majority of the outmigrants of Alaska move to much warmer states like California, Texas & Florida
C45: Fun Fact: | D45: =VLOOKUP(H130,Notes!C:D,2,0) -> The longest coastline in the U.S., 6,640 miles, greater than that of all other states combined
C49: Roger A. Pielke Jr.1; Joel Gratz2; Christopher W. Landsea3; Douglas Collins4; Mark A. Saunders5; and Rade Musulin6
D80: 1
C126: InMigrants Heat Map | D126: 1
C127: OutMigrants Heat Map | F127: 10
F129: 2
A130: AK | B130: ALASKA | F130: 1 | G130: =OFFSET(A130,F130-1,0) -> AK | H130: =VLOOKUP(G130,$A$130:$B$181,2,0) -> ALASKA | J130: ALASKA | Q130: NORTH CAROLINA
A131: AL | B131: ALABAMA | F131: 35
A132: AR | B132: ARKANSAS
A133: AZ | B133: ARIZONA | F133: 10
A134: CA | B134: CALIFORNIA
A135: CO | B135: COLORADO
A136: CT | B136: CONNECTICUT
A137: DC | B137: DISTRICT OF COLUMBIA
A138: DE | B138: DELAWARE
A139: FL | B139: FLORIDA
A140: GA | B140: GEORGIA
A141: HI | B141: HAWAII
A142: IA | B142: IOWA
A143: ID | B143: IDAHO
A144: IL | B144: ILLINOIS
A145: IN | B145: INDIANA
A146: KS | B146: KANSAS
A147: KY | B147: KENTUCKY
A148: LA | B148: LOUISIANA
A149: MA | B149: MASSACHUSETTS
A150: MD | B150: MARYLAND
A151: ME | B151: MAINE
A152: MI | B152: MICHIGAN
A153: MN | B153: MINNESOTA
A154: MO | B154: MISSOURI
A155: MS | B155: MISSISSIPPI | F155: 2
A156: MT | B156: MONTANA
A157: NC | B157: NORTH CAROLINA
A158: ND | B158: NORTH DAKOTA
A159: NE | B159: NEBRASKA
A160: NH | B160: NEW HAMPSHIRE
A161: NJ | B161: NEW JERSEY
A162: NM | B162: NEW MEXICO
A163: NV | B163: NEVADA
A164: NY | B164: NEW YORK
A165: OH | B165: OHIO
A166: OK | B166: OKLAHOMA
A167: OR | B167: OREGON
A168: PA | B168: PENNSYLVANIA
A169: PR | B169: PUERTO RICO
A170: RI | B170: RHODE ISLAND
A171: SC | B171: SOUTH CAROLINA
A172: SD | B172: SOUTH DAKOTA
A173: TN | B173: TENNESSEE
A174: TX | B174: TEXAS
A175: UT | B175: UTAH
A176: VA | B176: VIRGINIA
A177: VT | B177: VERMONT
A178: WA | B178: WASHINGTON
A179: WI | B179: WISCONSIN
A180: WV | B180: WEST VIRGINIA
A181: WY | B181: WYOMING

Sheet Contest Rules
B1: Excel Datavis Contest - Chandoo.org - 2014
B3: Contest Rules
C5: Make a dashboard or set of charts.
C6: Help us understand state to state migration trends and interesting facts
C7: Use any standard Excel feature (no add-ins, no Power Pivot etc.)
C8: You can use Macros & VBA to add interaction to charts. (Code must be commented clearly and sources should be credited)
C9: You can add additional demographic or economic data as long as,
C10: You use publicly available data sources
C11: You provide links to the data sources and credit them
C12: Examples: Percaptia income, weather or living conditions
C13: You may ignore the Margin of Error data (provided in extreme right in the data tables).
C14: You may submit more than one entry. For voting & selecting winners only 1 entry from each individual is considered.
B16: Important Dates
C18: Contest start date | E18: 9th of April, 2014
C19: Last date for submission | E19: 20th of April, 2014 | G19: =DATE(2014,4,20)-TODAY() -> 0
B21: How to submit your entry?
C23: Email
C24: Send to: chandoo.d@gmail.com
C25: Subject: Datavis contest 2014
C26: Include: Your workbook, Your name, Email Address & Version of Excel used to make it
C28: Facebook
C29: Join chandoo.org fan page (Click here)
C30: Send your entry as a message (with workbook as attachment)
C31: Include: Your workbook, Your name, Email Address & Version of Excel used to make it
B33: What do you get?
C34: First prize
C35: iPad (Latest version) 16 GB
C37: Second prize
C38: iPad Mini (latest version) 16 GB
C40: Third prize (2 nos)
C41: Samsung Galaxy Tab 3
B43: How winners are selected
C44: Winners will be selected by voting and a panel of judges (to be revealed). If there is a tie, Judges' decision will be given more weightage.
B46: Fine Print
C47: Prizes will be delivered thru Amazon.com. If you are located in a country where shipping Amazon goods is not possible (or prohibitively expensive) you will be offered a choice of either getting money payment or purchase from a local website. You also agree that Chandoo.org reserves the right to showcase your files, share them, use them in courses & training programs or any other publication as deemed fit. You agree to share the copy-right of your workbook with Chandoo.org indefinetly for no compensation. Chandoo.org may get in touch with you if we need any clarifications or we are unable to use your file. Chandoo.org reserves the right to disqualify a contest entry based on sole discretion.
C48: For updates on rules, dates & policies, please click below link:
C49: http://chandoo.org/wp/2014/04/09/visualize-state-migration-contest/

Sheet 2012 (hidden)
B2: Table 1. State-to-State Migration Flows*: 2012
B3: Dataset: 2012 American Community Survey 1-Year Estimates
B4: Universe: Population 1 year and over | K4: 206691 | L4: =K4+SUM(K12:K63) -> 315909
B5: Source: http://www.census.gov/hhes/migration/files/acs/st-to-st/State_to_State_Migrations_Table_2012.xls
J6: ESTIMATES | BK6: Margin of Error
B7: Current residence in -- | C7: Population 1 year and over | E7: Same residence 1 year ago | G7: Different residence, same state 1 year ago | J7: 1 | K7: 2 | L7: 3 | M7: 4 | N7: 5 | O7: 6 | P7: 7 | Q7: 8 | R7: 9 | S7: 10 | T7: 11 | U7: 12 | V7: 13 | W7: 14 | X7: 15 | Y7: 16 | Z7: 17 | AA7: 18 | AB7: 19 | AC7: 20 | AD7: 21 | AE7: 22 | AF7: 23 | AG7: 24 | AH7: 25 | AI7: 26 | AJ7: 27 | AK7: 28 | AL7: 29 | AM7: 30 | AN7: 31 | AO7: 32 | AP7: 33 | AQ7: 34 | AR7: 35 | AS7: 36 | AT7: 37 | AU7: 38 | AV7: 39 | AW7: 40 | AX7: 41 | AY7: 42 | AZ7: 43 | BA7: 44 | BB7: 45 | BC7: 46 | BD7: 47 | BE7: 48 | BF7: 49 | BG7: 50 | BH7: 51 | BI7: 52 | BJ7: 53 | BK7: 1 | BL7: 2 | BM7: 3 | BN7: 4 | BO7: 5 | BP7: 6 | BQ7: 7 | BR7: 8 | BS7: 9 | BT7: 10 | BU7: 11 | BV7: 12 | BW7: 13 | BX7: 14 | BY7: 15 | BZ7: 16 | CA7: 17 | CB7: 18 | CC7: 19 | CD7: 20 | CE7: 21 | CF7: 22 | CG7: 23 | CH7: 24 | CI7: 25 | CJ7: 26 | CK7: 27 | CL7: 28 | CM7: 29 | CN7: 30 | CO7: 31 | CP7: 32 | CQ7: 33 | CR7: 34 | CS7: 35 | CT7: 36 | CU7: 37 | CV7: 38 | CW7: 39 | CX7: 40 | CY7: 41 | CZ7: 42 | DA7: 43 | DB7: 44 | DC7: 45 | DD7: 46 | DE7: 47 | DF7: 48 | DG7: 49 | DH7: 50 | DI7: 51 | DJ7: 52 | DK7: 53
J8: State of Residence Last year (Estimate) | BK8: State of Residence Last year (Margin of Error)
C9: Estimate | D9: MOE | E9: Estimate | F9: MOE | G9: Estimate | H9: MOE | J9: TOTAL | K9: Alabama | L9: Alaska | M9: Arizona | N9: Arkansas | O9: California | P9: Colorado | Q9: Connecticut | R9: Delaware | S9: District of Columbia | T9: Florida | U9: Georgia | V9: Hawaii | W9: Idaho | X9: Illinois | Y9: Indiana | Z9: Iowa | AA9: Kansas | AB9: Kentucky | AC9: Louisiana | AD9: Maine | AE9: Maryland | AF9: Massachusetts | AG9: Michigan | AH9: Minnesota | AI9: Mississippi | AJ9: Missouri | AK9: Montana | AL9: Nebraska | AM9: Nevada | AN9: New Hampshire | AO9: New Jersey | AP9: New Mexico | AQ9: New York | AR9: North Carolina | AS9: North Dakota | AT9: Ohio | AU9: Oklahoma | AV9: Oregon | AW9: Pennsylvania | AX9: Rhode Island | AY9: South Carolina | AZ9: South Dakota | BA9: Tennessee | BB9: Texas | BC9: Utah | BD9: Vermont | BE9: Virginia | BF9: Washington | BG9: West Virginia | BH9: Wisconsin | BI9: Wyoming | BJ9: Puerto Rico | BK9: TOTAL | BL9: Alabama | BM9: Alaska | BN9: Arizona | BO9: Arkansas | BP9: California | BQ9: Colorado | BR9: Connecticut | BS9: Delaware | BT9: District of Columbia | BU9: Florida | BV9: Georgia | BW9: Hawaii | BX9: Idaho | BY9: Illinois | BZ9: Indiana | CA9: Iowa | CB9: Kansas | CC9: Kentucky | CD9: Louisiana | CE9: Maine | CF9: Maryland | CG9: Massachusetts | CH9: Michigan | CI9: Minnesota | CJ9: Mississippi | CK9: Missouri | CL9: Montana | CM9: Nebraska | CN9: Nevada | CO9: New Hampshire | CP9: New Jersey | CQ9: New Mexico | CR9: New York | CS9: North Carolina | CT9: North Dakota | CU9: Ohio | CV9: Oklahoma | CW9: Oregon | CX9: Pennsylvania | CY9: Rhode Island | CZ9: South Carolina | DA9: South Dakota | DB9: Tennessee | DC9: Texas | DD9: Utah | DE9: Vermont | DF9: Virginia | DG9: Washington | DH9: West Virginia | DI9: Wisconsin | DJ9: Wyoming | DK9: Puerto Rico
K10: =K11/$J$11 -> 0.01544620524 | L10: =L11/$J$11 -> 0.01189022601 | M10: 0.02925486663 | N10: 0.009188660525 | O10: 0.08019212641 | P10: 0.02284612703 | Q10: 0.01230816884 | R10: 0.003556969285 | S10: 0.008417269596 | T10: 0.06058049501 | U10: 0.0356788813 | V10: 0.00869957548 | W10: 0.007805984008 | X10: 0.0393125088 | Y10: 0.02045119439 | Z10: 0.01037078106 | AA10: 0.0131724831 | AB10: 0.01456845458 | AC10: 0.01357161496 | AD10: 0.005455745087 | AE10: 0.02229933617 | AF10: 0.02236892259 | AG10: 0.02485493989 | AH10: 0.01639891688 | AI10: 0.009468703437 | AJ10: 0.02019052818 | AK10: 0.004785056458 | AL10: 0.006904330694 | AM10: 0.01398545616 | AN10: 0.005473000257 | AO10: 0.03100301329 | AP10: 0.009040718664 | AQ10: 0.05740370519 | AR10: 0.03375549567 | AS10: 0.003388660666 | AT10: 0.02817429701 | AU10: 0.01450735431 | AV10: 0.01530080923 | AW10: 0.03354235189 | AX10: 0.004313509454 | AY10: 0.01802146854 | AZ10: 0.003187114632 | BA10: 0.02317326807 | BB10: 0.05688364571 | BC10: 0.01162107365 | BD10: 0.002836636685 | BE10: 0.03373809906 | BF10: 0.02552378986 | BG10: 0.006707593477 | BH10: 0.01382167348 | BI10: 0.004558193412
B11: United States | C11: 310212755 | D11: 25814 | E11: 263612596 | F11: 229733 | G11: 37696597 | H11: 211307 | J11: =HLOOKUP(J$7,$J$67:$DK$121,ROWS($A$11:$A11)+2,FALSE) -> 7070345 | K11: =HLOOKUP(K$7,$J$67:$DK$121,ROWS($A$11:$A11)+2,FALSE) -> 109210 | L11: =HLOOKUP(L$7,$J$67:$DK$121,ROWS($A$11:$A11)+2,FALSE) -> 84068 | M11: =HLOOKUP(M$7,$J$67:$DK$121,ROWS($A$11:$A11)+2,FALSE) -> 206842 | N11: =HLOOKUP(N$7,$J$67:$DK$121,ROWS($A$11:$A11)+2,FALSE) -> 64967 | O11: =HLOOKUP(O$7,$J$67:$DK$121,ROWS($A$11:$A11)+2,FALSE) -> 566986 | P11: =HLOOKUP(P$7,$J$67:$DK$121,ROWS($A$11:$A11)+2,FALSE) -> 161530 | Q11: =HLOOKUP(Q$7,$J$67:$DK$121,ROWS($A$11:$A11)+2,FALSE) -> 87023 | R11: =HLOOKUP(R$7,$J$67:$DK$121,ROWS($A$11:$A11)+2,FALSE) -> 25149 | S11: =HLOOKUP(S$7,$J$67:$DK$121,ROWS($A$11:$A11)+2,FALSE) -> 59513 | T11: =HLOOKUP(T$7,$J$67:$DK$121,ROWS($A$11:$A11)+2,FALSE) -> 428325 | U11: =HLOOKUP(U$7,$J$67:$DK$121,ROWS($A$11:$A11)+2,FALSE) -> 252262 | V11: =HLOOKUP(V$7,$J$67:$DK$121,ROWS($A$11:$A11)+2,FALSE) -> 61509 | W11: =HLOOKUP(W$7,$J$67:$DK$121,ROWS($A$11:$A11)+2,FALSE) -> 55191 | X11: =HLOOKUP(X$7,$J$67:$DK$121,ROWS($A$11:$A11)+2,FALSE) -> 277953 | Y11: =HLOOKUP(Y$7,$J$67:$DK$121,ROWS($A$11:$A11)+2,FALSE) -> 144597 | Z11: =HLOOKUP(Z$7,$J$67:$DK$121,ROWS($A$11:$A11)+2,FALSE) -> 73325 | AA11: =HLOOKUP(AA$7,$J$67:$DK$121,ROWS($A$11:$A11)+2,FALSE) -> 93134 | AB11: =HLOOKUP(AB$7,$J$67:$DK$121,ROWS($A$11:$A11)+2,FALSE) -> 103004 | AC11: =HLOOKUP(AC$7,$J$67:$DK$121,ROWS($A$11:$A11)+2,FALSE) -> 95956 | AD11: =HLOOKUP(AD$7,$J$67:$DK$121,ROWS($A$11:$A11)+2,FALSE) -> 38574 | AE11: =HLOOKUP(AE$7,$J$67:$DK$121,ROWS($A$11:$A11)+2,FALSE) -> 157664 | AF11: =HLOOKUP(AF$7,$J$67:$DK$121,ROWS($A$11:$A11)+2,FALSE) -> 158156 | AG11: =HLOOKUP(AG$7,$J$67:$DK$121,ROWS($A$11:$A11)+2,FALSE) -> 175733 | AH11: =HLOOKUP(AH$7,$J$67:$DK$121,ROWS($A$11:$A11)+2,FALSE) -> 115946 | AI11: =HLOOKUP(AI$7,$J$67:$DK$121,ROWS($A$11:$A11)+2,FALSE) -> 66947 | AJ11: =HLOOKUP(AJ$7,$J$67:$DK$121,ROWS($A$11:$A11)+2,FALSE) -> 142754 | AK11: =HLOOKUP(AK$7,$J$67:$DK$121,ROWS($A$11:$A11)+2,FALSE) -> 33832 | AL11: =HLOOKUP(AL$7,$J$67:$DK$121,ROWS($A$11:$A11)+2,FALSE) -> 48816 | AM11: =HLOOKUP(AM$7,$J$67:$DK$121,ROWS($A$11:$A11)+2,FALSE) -> 98882 | AN11: =HLOOKUP(AN$7,$J$67:$DK$121,ROWS($A$11:$A11)+2,FALSE) -> 38696 | AO11: =HLOOKUP(AO$7,$J$67:$DK$121,ROWS($A$11:$A11)+2,FALSE) -> 219202 | AP11: =HLOOKUP(AP$7,$J$67:$DK$121,ROWS($A$11:$A11)+2,FALSE) -> 63921 | AQ11: =HLOOKUP(AQ$7,$J$67:$DK$121,ROWS($A$11:$A11)+2,FALSE) -> 405864 | AR11: =HLOOKUP(AR$7,$J$67:$DK$121,ROWS($A$11:$A11)+2,FALSE) -> 238663 | AS11: =HLOOKUP(AS$7,$J$67:$DK$121,ROWS($A$11:$A11)+2,FALSE) -> 23959 | AT11: =HLOOKUP(AT$7,$J$67:$DK$121,ROWS($A$11:$A11)+2,FALSE) -> 199202 | AU11: =HLOOKUP(AU$7,$J$67:$DK$121,ROWS($A$11:$A11)+2,FALSE) -> 102572 | AV11: =HLOOKUP(AV$7,$J$67:$DK$121,ROWS($A$11:$A11)+2,FALSE) -> 108182 | AW11: =HLOOKUP(AW$7,$J$67:$DK$121,ROWS($A$11:$A11)+2,FALSE) -> 237156 | AX11: =HLOOKUP(AX$7,$J$67:$DK$121,ROWS($A$11:$A11)+2,FALSE) -> 30498 | AY11: =HLOOKUP(AY$7,$J$67:$DK$121,ROWS($A$11:$A11)+2,FALSE) -> 127418 | AZ11: =HLOOKUP(AZ$7,$J$67:$DK$121,ROWS($A$11:$A11)+2,FALSE) -> 22534 | BA11: =HLOOKUP(BA$7,$J$67:$DK$121,ROWS($A$11:$A11)+2,FALSE) -> 163843 | BB11: =HLOOKUP(BB$7,$J$67:$DK$121,ROWS($A$11:$A11)+2,FALSE) -> 402187 | BC11: =HLOOKUP(BC$7,$J$67:$DK$121,ROWS($A$11:$A11)+2,FALSE) -> 82165 | BD11: =HLOOKUP(BD$7,$J$67:$DK$121,ROWS($A$11:$A11)+2,FALSE) -> 20056 | BE11: =HLOOKUP(BE$7,$J$67:$DK$121,ROWS($A$11:$A11)+2,FALSE) -> 238540 | BF11: =HLOOKUP(BF$7,$J$67:$DK$121,ROWS($A$11:$A11)+2,FALSE) -> 180462 | BG11: =HLOOKUP(BG$7,$J$67:$DK$121,ROWS($A$11:$A11)+2,FALSE) -> 47425 | BH11: =HLOOKUP(BH$7,$J$67:$DK$121,ROWS($A$11:$A11)+2,FALSE) -> 97724 | BI11: =HLOOKUP(BI$7,$J$67:$DK$121,ROWS($A$11:$A11)+2,FALSE) -> 32228 | BJ11: =HLOOKUP(BJ$7,$J$67:$DK$121,ROWS($A$11:$A11)+2,FALSE) -> 74500 | BK11: =HLOOKUP(BK$7+0.5,$J$67:$DK$121,ROWS($A$11:$A11)+2,FALSE) -> 58599 | BL11: =HLOOKUP(BL$7+0.5,$J$67:$DK$121,ROWS($A$11:$A11)+2,FALSE) -> 9027 | BM11: =HLOOKUP(BM$7+0.5,$J$67:$DK$121,ROWS($A$11:$A11)+2,FALSE) -> 7600 | BN11: =HLOOKUP(BN$7+0.5,$J$67:$DK$121,ROWS($A$11:$A11)+2,FALSE) -> 12859 | BO11: =HLOOKUP(BO$7+0.5,$J$67:$DK$121,ROWS($A$11:$A11)+2,FALSE) -> 6563 | BP11: =HLOOKUP(BP$7+0.5,$J$67:$DK$121,ROWS($A$11:$A11)+2,FALSE) -> 19755 | BQ11: =HLOOKUP(BQ$7+0.5,$J$67:$DK$121,ROWS($A$11:$A11)+2,FALSE) -> 10348 | BR11: =HLOOKUP(BR$7+0.5,$J$67:$DK$121,ROWS($A$11:$A11)+2,FALSE) -> 5968 | BS11: =HLOOKUP(BS$7+0.5,$J$67:$DK$121,ROWS($A$11:$A11)+2,FALSE) -> 3775 | BT11: =HLOOKUP(BT$7+0.5,$J$67:$DK$121,ROWS($A$11:$A11)+2,FALSE) -> 6154 | BU11: =HLOOKUP(BU$7+0.5,$J$67:$DK$121,ROWS($A$11:$A11)+2,FALSE) -> 18406 | BV11: =HLOOKUP(BV$7+0.5,$J$67:$DK$121,ROWS($A$11:$A11)+2,FALSE) -> 12868 | BW11: =HLOOKUP(BW$7+0.5,$J$67:$DK$121,ROWS($A$11:$A11)+2,FALSE) -> 6100 | BX11: =HLOOKUP(BX$7+0.5,$J$67:$DK$121,ROWS($A$11:$A11)+2,FALSE) -> 6257 | BY11: =HLOOKUP(BY$7+0.5,$J$67:$DK$121,ROWS($A$11:$A11)+2,FALSE) -> 12722 | BZ11: =HLOOKUP(BZ$7+0.5,$J$67:$DK$121,ROWS($A$11:$A11)+2,FALSE) -> 8929 | CA11: =HLOOKUP(CA$7+0.5,$J$67:$DK$121,ROWS($A$11:$A11)+2,FALSE) -> 6129 | CB11: =HLOOKUP(CB$7+0.5,$J$67:$DK$121,ROWS($A$11:$A11)+2,FALSE) -> 7286 | CC11: =HLOOKUP(CC$7+0.5,$J$67:$DK$121,ROWS($A$11:$A11)+2,FALSE) -> 7490 | CD11: =HLOOKUP(CD$7+0.5,$J$67:$DK$121,ROWS($A$11:$A11)+2,FALSE) -> 7745 | CE11: =HLOOKUP(CE$7+0.5,$J$67:$DK$121,ROWS($A$11:$A11)+2,FALSE) -> 5351 | CF11: =HLOOKUP(CF$7+0.5,$J$67:$DK$121,ROWS($A$11:$A11)+2,FALSE) -> 9686 | CG11: =HLOOKUP(CG$7+0.5,$J$67:$DK$121,ROWS($A$11:$A11)+2,FALSE) -> 10755 | CH11: =HLOOKUP(CH$7+0.5,$J$67:$DK$121,ROWS($A$11:$A11)+2,FALSE) -> 9302 | CI11: =HLOOKUP(CI$7+0.5,$J$67:$DK$121,ROWS($A$11:$A11)+2,FALSE) -> 8402 | CJ11: =HLOOKUP(CJ$7+0.5,$J$67:$DK$121,ROWS($A$11:$A11)+2,FALSE) -> 7206 | CK11: =HLOOKUP(CK$7+0.5,$J$67:$DK$121,ROWS($A$11:$A11)+2,FALSE) -> 9402 | CL11: =HLOOKUP(CL$7+0.5,$J$67:$DK$121,ROWS($A$11:$A11)+2,FALSE) -> 4879 | CM11: =HLOOKUP(CM$7+0.5,$J$67:$DK$121,ROWS($A$11:$A11)+2,FALSE) -> 4967 | CN11: =HLOOKUP(CN$7+0.5,$J$67:$DK$121,ROWS($A$11:$A11)+2,FALSE) -> 9332 | CO11: =HLOOKUP(CO$7+0.5,$J$67:$DK$121,ROWS($A$11:$A11)+2,FALSE) -> 3364 | CP11: =HLOOKUP(CP$7+0.5,$J$67:$DK$121,ROWS($A$11:$A11)+2,FALSE) -> 11087 | CQ11: =HLOOKUP(CQ$7+0.5,$J$67:$DK$121,ROWS($A$11:$A11)+2,FALSE) -> 5867 | CR11: =HLOOKUP(CR$7+0.5,$J$67:$DK$121,ROWS($A$11:$A11)+2,FALSE) -> 15692 | CS11: =HLOOKUP(CS$7+0.5,$J$67:$DK$121,ROWS($A$11:$A11)+2,FALSE) -> 13414 | CT11: =HLOOKUP(CT$7+0.5,$J$67:$DK$121,ROWS($A$11:$A11)+2,FALSE) -> 3373 | CU11: =HLOOKUP(CU$7+0.5,$J$67:$DK$121,ROWS($A$11:$A11)+2,FALSE) -> 10288 | CV11: =HLOOKUP(CV$7+0.5,$J$67:$DK$121,ROWS($A$11:$A11)+2,FALSE) -> 9213 | CW11: =HLOOKUP(CW$7+0.5,$J$67:$DK$121,ROWS($A$11:$A11)+2,FALSE) -> 7867 | CX11: =HLOOKUP(CX$7+0.5,$J$67:$DK$121,ROWS($A$11:$A11)+2,FALSE) -> 10246 | CY11: =HLOOKUP(CY$7+0.5,$J$67:$DK$121,ROWS($A$11:$A11)+2,FALSE) -> 3414 | CZ11: =HLOOKUP(CZ$7+0.5,$J$67:$DK$121,ROWS($A$11:$A11)+2,FALSE) -> 8502 | DA11: =HLOOKUP(DA$7+0.5,$J$67:$DK$121,ROWS($A$11:$A11)+2,FALSE) -> 2998 | DB11: =HLOOKUP(DB$7+0.5,$J$67:$DK$121,ROWS($A$11:$A11)+2,FALSE) -> 8717 | DC11: =HLOOKUP(DC$7+0.5,$J$67:$DK$121,ROWS($A$11:$A11)+2,FALSE) -> 15471 | DD11: =HLOOKUP(DD$7+0.5,$J$67:$DK$121,ROWS($A$11:$A11)+2,FALSE) -> 8304 | DE11: =HLOOKUP(DE$7+0.5,$J$67:$DK$121,ROWS($A$11:$A11)+2,FALSE) -> 2967 | DF11: =HLOOKUP(DF$7+0.5,$J$67:$DK$121,ROWS($A$11:$A11)+2,FALSE) -> 11611 | DG11: =HLOOKUP(DG$7+0.5,$J$67:$DK$121,ROWS($A$11:$A11)+2,FALSE) -> 9674 | DH11: =HLOOKUP(DH$7+0.5,$J$67:$DK$121,ROWS($A$11:$A11)+2,FALSE) -> 5262 | DI11: =HLOOKUP(DI$7+0.5,$J$67:$DK$121,ROWS($A$11:$A11)+2,FALSE) -> 5859 | DJ11: =HLOOKUP(DJ$7+0.5,$J$67:$DK$121,ROWS($A$11:$A11)+2,FALSE) -> 5150 | DK11: =HLOOKUP(DK$7+0.5,$J$67:$DK$121,ROWS($A$11:$A11)+2,FALSE) -> 8156
B12: Alabama | C12: 4764428 | D12: 3589 | E12: 4054260 | F12: 21464 | G12: 590326 | H12: 19701 | I12: =J12/$J$11 -> 0.01479418614 | J12: =HLOOKUP(J$7,$J$67:$DK$121,ROWS($A$11:$A12)+2,FALSE) -> 104600 | K12: =HLOOKUP(K$7,$J$67:$DK$121,ROWS($A$11:$A12)+2,FALSE) -> N/A | L12: =HLOOKUP(L$7,$J$67:$DK$121,ROWS($A$11:$A12)+2,FALSE) -> 1004 | M12: =HLOOKUP(M$7,$J$67:$DK$121,ROWS($A$11:$A12)+2,FALSE) -> 962 | N12: =HLOOKUP(N$7,$J$67:$DK$121,ROWS($A$11:$A12)+2,FALSE) -> 660 | O12: =HLOOKUP(O$7,$J$67:$DK$121,ROWS($A$11:$A12)+2,FALSE) -> 3077 | P12: =HLOOKUP(P$7,$J$67:$DK$121,ROWS($A$11:$A12)+2,FALSE) -> 1386 | Q12: =HLOOKUP(Q$7,$J$67:$DK$121,ROWS($A$11:$A12)+2,FALSE) -> 284 | R12: =HLOOKUP(R$7,$J$67:$DK$121,ROWS($A$11:$A12)+2,FALSE) -> 42 | S12: =HLOOKUP(S$7,$J$67:$DK$121,ROWS($A$11:$A12)+2,FALSE) -> 162 | T12: =HLOOKUP(T$7,$J$67:$DK$121,ROWS($A$11:$A12)+2,FALSE) -> 11244 | U12: =HLOOKUP(U$7,$J$67:$DK$121,ROWS($A$11:$A12)+2,FALSE) -> 19920 | V12: =HLOOKUP(V$7,$J$67:$DK$121,ROWS($A$11:$A12)+2,FALSE) -> 627 | W12: =HLOOKUP(W$7,$J$67:$DK$121,ROWS($A$11:$A12)+2,FALSE) -> 493 | X12: =HLOOKUP(X$7,$J$67:$DK$121,ROWS($A$11:$A12)+2,FALSE) -> 2722 | Y12: =HLOOKUP(Y$7,$J$67:$DK$121,ROWS($A$11:$A12)+2,FALSE) -> 1347 | Z12: =HLOOKUP(Z$7,$J$67:$DK$121,ROWS($A$11:$A12)+2,FALSE) -> 345 | AA12: =HLOOKUP(AA$7,$J$67:$DK$121,ROWS($A$11:$A12)+2,FALSE) -> 865 | AB12: =HLOOKUP(AB$7,$J$67:$DK$121,ROWS($A$11:$A12)+2,FALSE) -> 2495 | AC12: =HLOOKUP(AC$7,$J$67:$DK$121,ROWS($A$11:$A12)+2,FALSE) -> 3104 | AD12: =HLOOKUP(AD$7,$J$67:$DK$121,ROWS($A$11:$A12)+2,FALSE) -> 67 | AE12: =HLOOKUP(AE$7,$J$67:$DK$121,ROWS($A$11:$A12)+2,FALSE) -> 1513 | AF12: =HLOOKUP(AF$7,$J$67:$DK$121,ROWS($A$11:$A12)+2,FALSE) -> 334 | AG12: =HLOOKUP(AG$7,$J$67:$DK$121,ROWS($A$11:$A12)+2,FALSE) -> 2298 | AH12: =HLOOKUP(AH$7,$J$67:$DK$121,ROWS($A$11:$A12)+2,FALSE) -> 752 | AI12: =HLOOKUP(AI$7,$J$67:$DK$121,ROWS($A$11:$A12)+2,FALSE) -> 4952 | AJ12: =HLOOKUP(AJ$7,$J$67:$DK$121,ROWS($A$11:$A12)+2,FALSE) -> 1555 | AK12: =HLOOKUP(AK$7,$J$67:$DK$121,ROWS($A$11:$A12)+2,FALSE) -> 101 | AL12: =HLOOKUP(AL$7,$J$67:$DK$121,ROWS($A$11:$A12)+2,FALSE) -> 151 | AM12: =HLOOKUP(AM$7,$J$67:$DK$121,ROWS($A$11:$A12)+2,FALSE) -> 1009 | AN12: =HLOOKUP(AN$7,$J$67:$DK$121,ROWS($A$11:$A12)+2,FALSE) -> 161 | AO12: =HLOOKUP(AO$7,$J$67:$DK$121,ROWS($A$11:$A12)+2,FALSE) -> 1702 | AP12: =HLOOKUP(AP$7,$J$67:$DK$121,ROWS($A$11:$A12)+2,FALSE) -> 459 | AQ12: =HLOOKUP(AQ$7,$J$67:$DK$121,ROWS($A$11:$A12)+2,FALSE) -> 2709 | AR12: =HLOOKUP(AR$7,$J$67:$DK$121,ROWS($A$11:$A12)+2,FALSE) -> 5133 | AS12: =HLOOKUP(AS$7,$J$67:$DK$121,ROWS($A$11:$A12)+2,FALSE) -> 228 | AT12: =HLOOKUP(AT$7,$J$67:$DK$121,ROWS($A$11:$A12)+2,FALSE) -> 1411 | AU12: =HLOOKUP(AU$7,$J$67:$DK$121,ROWS($A$11:$A12)+2,FALSE) -> 194 | AV12: =HLOOKUP(AV$7,$J$67:$DK$121,ROWS($A$11:$A12)+2,FALSE) -> 200 | AW12: =HLOOKUP(AW$7,$J$67:$DK$121,ROWS($A$11:$A12)+2,FALSE) -> 1837 | AX12: =HLOOKUP(AX$7,$J$67:$DK$121,ROWS($A$11:$A12)+2,FALSE) -> 0 | AY12: =HLOOKUP(AY$7,$J$67:$DK$121,ROWS($A$11:$A12)+2,FALSE) -> 2811 | AZ12: =HLOOKUP(AZ$7,$J$67:$DK$121,ROWS($A$11:$A12)+2,FALSE) -> 518 | BA12: =HLOOKUP(BA$7,$J$67:$DK$121,ROWS($A$11:$A12)+2,FALSE) -> 10539 | BB12: =HLOOKUP(BB$7,$J$67:$DK$121,ROWS($A$11:$A12)+2,FALSE) -> 7468 | BC12: =HLOOKUP(BC$7,$J$67:$DK$121,ROWS($A$11:$A12)+2,FALSE) -> 579 | BD12: =HLOOKUP(BD$7,$J$67:$DK$121,ROWS($A$11:$A12)+2,FALSE) -> 0 | BE12: =HLOOKUP(BE$7,$J$67:$DK$121,ROWS($A$11:$A12)+2,FALSE) -> 3170 | BF12: =HLOOKUP(BF$7,$J$67:$DK$121,ROWS($A$11:$A12)+2,FALSE) -> 1034 | BG12: =HLOOKUP(BG$7,$J$67:$DK$121,ROWS($A$11:$A12)+2,FALSE) -> 128 | BH12: =HLOOKUP(BH$7,$J$67:$DK$121,ROWS($A$11:$A12)+2,FALSE) -> 760 | BI12: =HLOOKUP(BI$7,$J$67:$DK$121,ROWS($A$11:$A12)+2,FALSE) -> 88 | BJ12: =HLOOKUP(BJ$7,$J$67:$DK$121,ROWS($A$11:$A12)+2,FALSE) -> 619 | BK12: =HLOOKUP(BK$7+0.5,$J$67:$DK$121,ROWS($A$11:$A12)+2,FALSE) -> 8482 | BL12: =HLOOKUP(BL$7+0.5,$J$67:$DK$121,ROWS($A$11:$A12)+2,FALSE) -> N/A | BM12: =HLOOKUP(BM$7+0.5,$J$67:$DK$121,ROWS($A$11:$A12)+2,FALSE) -> 829 | BN12: =HLOOKUP(BN$7+0.5,$J$67:$DK$121,ROWS($A$11:$A12)+2,FALSE) -> 583 | BO12: =HLOOKUP(BO$7+0.5,$J$67:$DK$121,ROWS($A$11:$A12)+2,FALSE) -> 382 | BP12: =HLOOKUP(BP$7+0.5,$J$67:$DK$121,ROWS($A$11:$A12)+2,FALSE) -> 1037 | BQ12: =HLOOKUP(BQ$7+0.5,$J$67:$DK$121,ROWS($A$11:$A12)+2,FALSE) -> 1393 | BR12: =HLOOKUP(BR$7+0.5,$J$67:$DK$121,ROWS($A$11:$A12)+2,FALSE) -> 256 | BS12: =HLOOKUP(BS$7+0.5,$J$67:$DK$121,ROWS($A$11:$A12)+2,FALSE) -> 68 | BT12: =HLOOKUP(BT$7+0.5,$J$67:$DK$121,ROWS($A$11:$A12)+2,FALSE) -> 195 | BU12: =HLOOKUP(BU$7+0.5,$J$67:$DK$121,ROWS($A$11:$A12)+2,FALSE) -> 2476 | BV12: =HLOOKUP(BV$7+0.5,$J$67:$DK$121,ROWS($A$11:$A12)+2,FALSE) -> 3636 | BW12: =HLOOKUP(BW$7+0.5,$J$67:$DK$121,ROWS($A$11:$A12)+2,FALSE) -> 477 | BX12: =HLOOKUP(BX$7+0.5,$J$67:$DK$121,ROWS($A$11:$A12)+2,FALSE) -> 456 | BY12: =HLOOKUP(BY$7+0.5,$J$67:$DK$121,ROWS($A$11:$A12)+2,FALSE) -> 1030 | BZ12: =HLOOKUP(BZ$7+0.5,$J$67:$DK$121,ROWS($A$11:$A12)+2,FALSE) -> 536 | CA12: =HLOOKUP(CA$7+0.5,$J$67:$DK$121,ROWS($A$11:$A12)+2,FALSE) -> 337 | CB12: =HLOOKUP(CB$7+0.5,$J$67:$DK$121,ROWS($A$11:$A12)+2,FALSE) -> 760 | CC12: =HLOOKUP(CC$7+0.5,$J$67:$DK$121,ROWS($A$11:$A12)+2,FALSE) -> 981 | CD12: =HLOOKUP(CD$7+0.5,$J$67:$DK$121,ROWS($A$11:$A12)+2,FALSE) -> 1216 | CE12: =HLOOKUP(CE$7+0.5,$J$67:$DK$121,ROWS($A$11:$A12)+2,FALSE) -> 82 | CF12: =HLOOKUP(CF$7+0.5,$J$67:$DK$121,ROWS($A$11:$A12)+2,FALSE) -> 847 | CG12: =HLOOKUP(CG$7+0.5,$J$67:$DK$121,ROWS($A$11:$A12)+2,FALSE) -> 272 | CH12: =HLOOKUP(CH$7+0.5,$J$67:$DK$121,ROWS($A$11:$A12)+2,FALSE) -> 881 | CI12: =HLOOKUP(CI$7+0.5,$J$67:$DK$121,ROWS($A$11:$A12)+2,FALSE) -> 716 | CJ12: =HLOOKUP(CJ$7+0.5,$J$67:$DK$121,ROWS($A$11:$A12)+2,FALSE) -> 1703 | CK12: =HLOOKUP(CK$7+0.5,$J$67:$DK$121,ROWS($A$11:$A12)+2,FALSE) -> 836 | CL12: =HLOOKUP(CL$7+0.5,$J$67:$DK$121,ROWS($A$11:$A12)+2,FALSE) -> 132 | CM12: =HLOOKUP(CM$7+0.5,$J$67:$DK$121,ROWS($A$11:$A12)+2,FALSE) -> 167 | CN12: =HLOOKUP(CN$7+0.5,$J$67:$DK$121,ROWS($A$11:$A12)+2,FALSE) -> 824 | CO12: =HLOOKUP(CO$7+0.5,$J$67:$DK$121,ROWS($A$11:$A12)+2,FALSE) -> 166 | CP12: =HLOOKUP(CP$7+0.5,$J$67:$DK$121,ROWS($A$11:$A12)+2,FALSE) -> 1200 | CQ12: =HLOOKUP(CQ$7+0.5,$J$67:$DK$121,ROWS($A$11:$A12)+2,FALSE) -> 576 | CR12: =HLOOKUP(CR$7+0.5,$J$67:$DK$121,ROWS($A$11:$A12)+2,FALSE) -> 1188 | CS12: =HLOOKUP(CS$7+0.5,$J$67:$DK$121,ROWS($A$11:$A12)+2,FALSE) -> 1788 | CT12: =HLOOKUP(CT$7+0.5,$J$67:$DK$121,ROWS($A$11:$A12)+2,FALSE) -> 194 | CU12: =HLOOKUP(CU$7+0.5,$J$67:$DK$121,ROWS($A$11:$A12)+2,FALSE) -> 576 | CV12: =HLOOKUP(CV$7+0.5,$J$67:$DK$121,ROWS($A$11:$A12)+2,FALSE) -> 157 | CW12: =HLOOKUP(CW$7+0.5,$J$67:$DK$121,ROWS($A$11:$A12)+2,FALSE) -> 169 | CX12: =HLOOKUP(CX$7+0.5,$J$67:$DK$121,ROWS($A$11:$A12)+2,FALSE) -> 736 | CY12: =HLOOKUP(CY$7+0.5,$J$67:$DK$121,ROWS($A$11:$A12)+2,FALSE) -> 184 | CZ12: =HLOOKUP(CZ$7+0.5,$J$67:$DK$121,ROWS($A$11:$A12)+2,FALSE) -> 1951 | DA12: =HLOOKUP(DA$7+0.5,$J$67:$DK$121,ROWS($A$11:$A12)+2,FALSE) -> 758 | DB12: =HLOOKUP(DB$7+0.5,$J$67:$DK$121,ROWS($A$11:$A12)+2,FALSE) -> 2731 | DC12: =HLOOKUP(DC$7+0.5,$J$67:$DK$121,ROWS($A$11:$A12)+2,FALSE) -> 2136 | DD12: =HLOOKUP(DD$7+0.5,$J$67:$DK$121,ROWS($A$11:$A12)+2,FALSE) -> 713 | DE12: =HLOOKUP(DE$7+0.5,$J$67:$DK$121,ROWS($A$11:$A12)+2,FALSE) -> 184 | DF12: =HLOOKUP(DF$7+0.5,$J$67:$DK$121,ROWS($A$11:$A12)+2,FALSE) -> 1577 | DG12: =HLOOKUP(DG$7+0.5,$J$67:$DK$121,ROWS($A$11:$A12)+2,FALSE) -> 684 | DH12: =HLOOKUP(DH$7+0.5,$J$67:$DK$121,ROWS($A$11:$A12)+2,FALSE) -> 156 | DI12: =HLOOKUP(DI$7+0.5,$J$67:$DK$121,ROWS($A$11:$A12)+2,FALSE) -> 605 | DJ12: =HLOOKUP(DJ$7+0.5,$J$67:$DK$121,ROWS($A$11:$A12)+2,FALSE) -> 107 | DK12: =HLOOKUP(DK$7+0.5,$J$67:$DK$121,ROWS($A$11:$A12)+2,FALSE) -> 551
B13: Alaska | C13: 721186 | D13: 1290 | E13: 592551 | F13: 8741 | G13: 90613 | H13: 7239 | I13: =J13/$J$11 -> 0.004726077723 | J13: =HLOOKUP(J$7,$J$67:$DK$121,ROWS($A$11:$A13)+2,FALSE) -> 33415 | K13: =HLOOKUP(K$7,$J$67:$DK$121,ROWS($A$11:$A13)+2,FALSE) -> 1097 | L13: =HLOOKUP(L$7,$J$67:$DK$121,ROWS($A$11:$A13)+2,FALSE) -> N/A | M13: =HLOOKUP(M$7,$J$67:$DK$121,ROWS($A$11:$A13)+2,FALSE) -> 1520 | N13: =HLOOKUP(N$7,$J$67:$DK$121,ROWS($A$11:$A13)+2,FALSE) -> 196 | O13: =HLOOKUP(O$7,$J$67:$DK$121,ROWS($A$11:$A13)+2,FALSE) -> 3494 | P13: =HLOOKUP(P$7,$J$67:$DK$121,ROWS($A$11:$A13)+2,FALSE) -> 556 | Q13: =HLOOKUP(Q$7,$J$67:$DK$121,ROWS($A$11:$A13)+2,FALSE) -> 0 | R13: =HLOOKUP(R$7,$J$67:$DK$121,ROWS($A$11:$A13)+2,FALSE) -> 0 | S13: =HLOOKUP(S$7,$J$67:$DK$121,ROWS($A$11:$A13)+2,FALSE) -> 356 | T13: =HLOOKUP(T$7,$J$67:$DK$121,ROWS($A$11:$A13)+2,FALSE) -> 1991 | U13: =HLOOKUP(U$7,$J$67:$DK$121,ROWS($A$11:$A13)+2,FALSE) -> 928 | V13: =HLOOKUP(V$7,$J$67:$DK$121,ROWS($A$11:$A13)+2,FALSE) -> 1376 | W13: =HLOOKUP(W$7,$J$67:$DK$121,ROWS($A$11:$A13)+2,FALSE) -> 538 | X13: =HLOOKUP(X$7,$J$67:$DK$121,ROWS($A$11:$A13)+2,FALSE) -> 58 | Y13: =HLOOKUP(Y$7,$J$67:$DK$121,ROWS($A$11:$A13)+2,FALSE) -> 260 | Z13: =HLOOKUP(Z$7,$J$67:$DK$121,ROWS($A$11:$A13)+2,FALSE) -> 13 | AA13: =HLOOKUP(AA$7,$J$67:$DK$121,ROWS($A$11:$A13)+2,FALSE) -> 221 | AB13: =HLOOKUP(AB$7,$J$67:$DK$121,ROWS($A$11:$A13)+2,FALSE) -> 161 | AC13: =HLOOKUP(AC$7,$J$67:$DK$121,ROWS($A$11:$A13)+2,FALSE) -> 120 | AD13: =HLOOKUP(AD$7,$J$67:$DK$121,ROWS($A$11:$A13)+2,FALSE) -> 66 | AE13: =HLOOKUP(AE$7,$J$67:$DK$121,ROWS($A$11:$A13)+2,FALSE) -> 508 | AF13: =HLOOKUP(AF$7,$J$67:$DK$121,ROWS($A$11:$A13)+2,FALSE) -> 297 | AG13: =HLOOKUP(AG$7,$J$67:$DK$121,ROWS($A$11:$A13)+2,FALSE) -> 563 | AH13: =HLOOKUP(AH$7,$J$67:$DK$121,ROWS($A$11:$A13)+2,FALSE) -> 192 | AI13: =HLOOKUP(AI$7,$J$67:$DK$121,ROWS($A$11:$A13)+2,FALSE) -> 56 | AJ13: =HLOOKUP(AJ$7,$J$67:$DK$121,ROWS($A$11:$A13)+2,FALSE) -> 819 | AK13: =HLOOKUP(AK$7,$J$67:$DK$121,ROWS($A$11:$A13)+2,FALSE) -> 371 | AL13: =HLOOKUP(AL$7,$J$67:$DK$121,ROWS($A$11:$A13)+2,FALSE) -> 1195 | AM13: =HLOOKUP(AM$7,$J$67:$DK$121,ROWS($A$11:$A13)+2,FALSE) -> 803 | AN13: =HLOOKUP(AN$7,$J$67:$DK$121,ROWS($A$11:$A13)+2,FALSE) -> 118 | AO13: =HLOOKUP(AO$7,$J$67:$DK$121,ROWS($A$11:$A13)+2,FALSE) -> 116 | AP13: =HLOOKUP(AP$7,$J$67:$DK$121,ROWS($A$11:$A13)+2,FALSE) -> 263 | AQ13: =HLOOKUP(AQ$7,$J$67:$DK$121,ROWS($A$11:$A13)+2,FALSE) -> 736 | AR13: =HLOOKUP(AR$7,$J$67:$DK$121,ROWS($A$11:$A13)+2,FALSE) -> 920 | AS13: =HLOOKUP(AS$7,$J$67:$DK$121,ROWS($A$11:$A13)+2,FALSE) -> 264 | AT13: =HLOOKUP(AT$7,$J$67:$DK$121,ROWS($A$11:$A13)+2,FALSE) -> 1316 | AU13: =HLOOKUP(AU$7,$J$67:$DK$121,ROWS($A$11:$A13)+2,FALSE) -> 335 | AV13: =HLOOKUP(AV$7,$J$67:$DK$121,ROWS($A$11:$A13)+2,FALSE) -> 3174 | AW13: =HLOOKUP(AW$7,$J$67:$DK$121,ROWS($A$11:$A13)+2,FALSE) -> 255 | AX13: =HLOOKUP(AX$7,$J$67:$DK$121,ROWS($A$11:$A13)+2,FALSE) -> 0 | AY13: =HLOOKUP(AY$7,$J$67:$DK$121,ROWS($A$11:$A13)+2,FALSE) -> 384 | AZ13: =HLOOKUP(AZ$7,$J$67:$DK$121,ROWS($A$11:$A13)+2,FALSE) -> 99 | BA13: =HLOOKUP(BA$7,$J$67:$DK$121,ROWS($A$11:$A13)+2,FALSE) -> 451 | BB13: =HLOOKUP(BB$7,$J$67:$DK$121,ROWS($A$11:$A13)+2,FALSE) -> 1488 | BC13: =HLOOKUP(BC$7,$J$67:$DK$121,ROWS($A$11:$A13)+2,FALSE) -> 330 | BD13: =HLOOKUP(BD$7,$J$67:$DK$121,ROWS($A$11:$A13)+2,FALSE) -> 79 | BE13: =HLOOKUP(BE$7,$J$67:$DK$121,ROWS($A$11:$A13)+2,FALSE) -> 1265 | BF13: =HLOOKUP(BF$7,$J$67:$DK$121,ROWS($A$11:$A13)+2,FALSE) -> 3725 | BG13: =HLOOKUP(BG$7,$J$67:$DK$121,ROWS($A$11:$A13)+2,FALSE) -> 0 | BH13: =HLOOKUP(BH$7,$J$67:$DK$121,ROWS($A$11:$A13)+2,FALSE) -> 206 | BI13: =HLOOKUP(BI$7,$J$67:$DK$121,ROWS($A$11:$A13)+2,FALSE) -> 136 | BJ13: =HLOOKUP(BJ$7,$J$67:$DK$121,ROWS($A$11:$A13)+2,FALSE) -> 25 | BK13: =HLOOKUP(BK$7+0.5,$J$67:$DK$121,ROWS($A$11:$A13)+2,FALSE) -> 4385 | BL13: =HLOOKUP(BL$7+0.5,$J$67:$DK$121,ROWS($A$11:$A13)+2,FALSE) -> 825 | BM13: =HLOOKUP(BM$7+0.5,$J$67:$DK$121,ROWS($A$11:$A13)+2,FALSE) -> N/A | BN13: =HLOOKUP(BN$7+0.5,$J$67:$DK$121,ROWS($A$11:$A13)+2,FALSE) -> 1441 | BO13: =HLOOKUP(BO$7+0.5,$J$67:$DK$121,ROWS($A$11:$A13)+2,FALSE) -> 202 | BP13: =HLOOKUP(BP$7+0.5,$J$67:$DK$121,ROWS($A$11:$A13)+2,FALSE) -> 1643 | BQ13: =HLOOKUP(BQ$7+0.5,$J$67:$DK$121,ROWS($A$11:$A13)+2,FALSE) -> 279 | BR13: =HLOOKUP(BR$7+0.5,$J$67:$DK$121,ROWS($A$11:$A13)+2,FALSE) -> 143 | BS13: =HLOOKUP(BS$7+0.5,$J$67:$DK$121,ROWS($A$11:$A13)+2,FALSE) -> 143 | BT13: =HLOOKUP(BT$7+0.5,$J$67:$DK$121,ROWS($A$11:$A13)+2,FALSE) -> 459 | BU13: =HLOOKUP(BU$7+0.5,$J$67:$DK$121,ROWS($A$11:$A13)+2,FALSE) -> 942 | BV13: =HLOOKUP(BV$7+0.5,$J$67:$DK$121,ROWS($A$11:$A13)+2,FALSE) -> 894 | BW13: =HLOOKUP(BW$7+0.5,$J$67:$DK$121,ROWS($A$11:$A13)+2,FALSE) -> 805 | BX13: =HLOOKUP(BX$7+0.5,$J$67:$DK$121,ROWS($A$11:$A13)+2,FALSE) -> 387 | BY13: =HLOOKUP(BY$7+0.5,$J$67:$DK$121,ROWS($A$11:$A13)+2,FALSE) -> 118 | BZ13: =HLOOKUP(BZ$7+0.5,$J$67:$DK$121,ROWS($A$11:$A13)+2,FALSE) -> 235 | CA13: =HLOOKUP(CA$7+0.5,$J$67:$DK$121,ROWS($A$11:$A13)+2,FALSE) -> 24 | CB13: =HLOOKUP(CB$7+0.5,$J$67:$DK$121,ROWS($A$11:$A13)+2,FALSE) -> 272 | CC13: =HLOOKUP(CC$7+0.5,$J$67:$DK$121,ROWS($A$11:$A13)+2,FALSE) -> 196 | CD13: =HLOOKUP(CD$7+0.5,$J$67:$DK$121,ROWS($A$11:$A13)+2,FALSE) -> 145 | CE13: =HLOOKUP(CE$7+0.5,$J$67:$DK$121,ROWS($A$11:$A13)+2,FALSE) -> 62 | CF13: =HLOOKUP(CF$7+0.5,$J$67:$DK$121,ROWS($A$11:$A13)+2,FALSE) -> 591 | CG13: =HLOOKUP(CG$7+0.5,$J$67:$DK$121,ROWS($A$11:$A13)+2,FALSE) -> 289 | CH13: =HLOOKUP(CH$7+0.5,$J$67:$DK$121,ROWS($A$11:$A13)+2,FALSE) -> 426 | CI13: =HLOOKUP(CI$7+0.5,$J$67:$DK$121,ROWS($A$11:$A13)+2,FALSE) -> 191 | CJ13: =HLOOKUP(CJ$7+0.5,$J$67:$DK$121,ROWS($A$11:$A13)+2,FALSE) -> 76 | CK13: =HLOOKUP(CK$7+0.5,$J$67:$DK$121,ROWS($A$11:$A13)+2,FALSE) -> 628 | CL13: =HLOOKUP(CL$7+0.5,$J$67:$DK$121,ROWS($A$11:$A13)+2,FALSE) -> 334 | CM13: =HLOOKUP(CM$7+0.5,$J$67:$DK$121,ROWS($A$11:$A13)+2,FALSE) -> 1128 | CN13: =HLOOKUP(CN$7+0.5,$J$67:$DK$121,ROWS($A$11:$A13)+2,FALSE) -> 382 | CO13: =HLOOKUP(CO$7+0.5,$J$67:$DK$121,ROWS($A$11:$A13)+2,FALSE) -> 206 | CP13: =HLOOKUP(CP$7+0.5,$J$67:$DK$121,ROWS($A$11:$A13)+2,FALSE) -> 156 | CQ13: =HLOOKUP(CQ$7+0.5,$J$67:$DK$121,ROWS($A$11:$A13)+2,FALSE) -> 219 | CR13: =HLOOKUP(CR$7+0.5,$J$67:$DK$121,ROWS($A$11:$A13)+2,FALSE) -> 576 | CS13: =HLOOKUP(CS$7+0.5,$J$67:$DK$121,ROWS($A$11:$A13)+2,FALSE) -> 784 | CT13: =HLOOKUP(CT$7+0.5,$J$67:$DK$121,ROWS($A$11:$A13)+2,FALSE) -> 359 | CU13: =HLOOKUP(CU$7+0.5,$J$67:$DK$121,ROWS($A$11:$A13)+2,FALSE) -> 757 | CV13: =HLOOKUP(CV$7+0.5,$J$67:$DK$121,ROWS($A$11:$A13)+2,FALSE) -> 252 | CW13: =HLOOKUP(CW$7+0.5,$J$67:$DK$121,ROWS($A$11:$A13)+2,FALSE) -> 1510 | CX13: =HLOOKUP(CX$7+0.5,$J$67:$DK$121,ROWS($A$11:$A13)+2,FALSE) -> 240 | CY13: =HLOOKUP(CY$7+0.5,$J$67:$DK$121,ROWS($A$11:$A13)+2,FALSE) -> 143 | CZ13: =HLOOKUP(CZ$7+0.5,$J$67:$DK$121,ROWS($A$11:$A13)+2,FALSE) -> 394 | DA13: =HLOOKUP(DA$7+0.5,$J$67:$DK$121,ROWS($A$11:$A13)+2,FALSE) -> 123 | DB13: =HLOOKUP(DB$7+0.5,$J$67:$DK$121,ROWS($A$11:$A13)+2,FALSE) -> 413 | DC13: =HLOOKUP(DC$7+0.5,$J$67:$DK$121,ROWS($A$11:$A13)+2,FALSE) -> 760 | DD13: =HLOOKUP(DD$7+0.5,$J$67:$DK$121,ROWS($A$11:$A13)+2,FALSE) -> 347 | DE13: =HLOOKUP(DE$7+0.5,$J$67:$DK$121,ROWS($A$11:$A13)+2,FALSE) -> 108 | DF13: =HLOOKUP(DF$7+0.5,$J$67:$DK$121,ROWS($A$11:$A13)+2,FALSE) -> 674 | DG13: =HLOOKUP(DG$7+0.5,$J$67:$DK$121,ROWS($A$11:$A13)+2,FALSE) -> 1488 | DH13: =HLOOKUP(DH$7+0.5,$J$67:$DK$121,ROWS($A$11:$A13)+2,FALSE) -> 143 | DI13: =HLOOKUP(DI$7+0.5,$J$67:$DK$121,ROWS($A$11:$A13)+2,FALSE) -> 261 | DJ13: =HLOOKUP(DJ$7+0.5,$J$67:$DK$121,ROWS($A$11:$A13)+2,FALSE) -> 217 | DK13: =HLOOKUP(DK$7+0.5,$J$67:$DK$121,ROWS($A$11:$A13)+2,FALSE) -> 43
B14: Arizona | C14: 6468907 | D14: 3874 | E14: 5242674 | F14: 32185 | G14: 953789 | H14: 28803 | I14: 0.032877745 | J14: =HLOOKUP(J$7,$J$67:$DK$121,ROWS($A$11:$A14)+2,FALSE) -> 232457 | K14: =HLOOKUP(K$7,$J$67:$DK$121,ROWS($A$11:$A14)+2,FALSE) -> 1331 | L14: =HLOOKUP(L$7,$J$67:$DK$121,ROWS($A$11:$A14)+2,FALSE) -> 3717 | M14: =HLOOKUP(M$7,$J$67:$DK$121,ROWS($A$11:$A14)+2,FALSE) -> N/A | N14: =HLOOKUP(N$7,$J$67:$DK$121,ROWS($A$11:$A14)+2,FALSE) -> 1214 | O14: =HLOOKUP(O$7,$J$67:$DK$121,ROWS($A$11:$A14)+2,FALSE) -> 44889 | P14: =HLOOKUP(P$7,$J$67:$DK$121,ROWS($A$11:$A14)+2,FALSE) -> 13790 | Q14: =HLOOKUP(Q$7,$J$67:$DK$121,ROWS($A$11:$A14)+2,FALSE) -> 417 | R14: =HLOOKUP(R$7,$J$67:$DK$121,ROWS($A$11:$A14)+2,FALSE) -> 246 | S14: =HLOOKUP(S$7,$J$67:$DK$121,ROWS($A$11:$A14)+2,FALSE) -> 36 | T14: =HLOOKUP(T$7,$J$67:$DK$121,ROWS($A$11:$A14)+2,FALSE) -> 5553 | U14: =HLOOKUP(U$7,$J$67:$DK$121,ROWS($A$11:$A14)+2,FALSE) -> 2263 | V14: =HLOOKUP(V$7,$J$67:$DK$121,ROWS($A$11:$A14)+2,FALSE) -> 2491 | W14: =HLOOKUP(W$7,$J$67:$DK$121,ROWS($A$11:$A14)+2,FALSE) -> 2934 | X14: =HLOOKUP(X$7,$J$67:$DK$121,ROWS($A$11:$A14)+2,FALSE) -> 10744 | Y14: =HLOOKUP(Y$7,$J$67:$DK$121,ROWS($A$11:$A14)+2,FALSE) -> 2930 | Z14: =HLOOKUP(Z$7,$J$67:$DK$121,ROWS($A$11:$A14)+2,FALSE) -> 2702 | AA14: =HLOOKUP(AA$7,$J$67:$DK$121,ROWS($A$11:$A14)+2,FALSE) -> 2498 | AB14: =HLOOKUP(AB$7,$J$67:$DK$121,ROWS($A$11:$A14)+2,FALSE) -> 1328 | AC14: =HLOOKUP(AC$7,$J$67:$DK$121,ROWS($A$11:$A14)+2,FALSE) -> 724 | AD14: =HLOOKUP(AD$7,$J$67:$DK$121,ROWS($A$11:$A14)+2,FALSE) -> 616 | AE14: =HLOOKUP(AE$7,$J$67:$DK$121,ROWS($A$11:$A14)+2,FALSE) -> 3007 | AF14: =HLOOKUP(AF$7,$J$67:$DK$121,ROWS($A$11:$A14)+2,FALSE) -> 1961 | AG14: =HLOOKUP(AG$7,$J$67:$DK$121,ROWS($A$11:$A14)+2,FALSE) -> 9598 | AH14: =HLOOKUP(AH$7,$J$67:$DK$121,ROWS($A$11:$A14)+2,FALSE) -> 8570 | AI14: =HLOOKUP(AI$7,$J$67:$DK$121,ROWS($A$11:$A14)+2,FALSE) -> 293 | AJ14: =HLOOKUP(AJ$7,$J$67:$DK$121,ROWS($A$11:$A14)+2,FALSE) -> 2595 | AK14: =HLOOKUP(AK$7,$J$67:$DK$121,ROWS($A$11:$A14)+2,FALSE) -> 1118 | AL14: =HLOOKUP(AL$7,$J$67:$DK$121,ROWS($A$11:$A14)+2,FALSE) -> 2293 | AM14: =HLOOKUP(AM$7,$J$67:$DK$121,ROWS($A$11:$A14)+2,FALSE) -> 6712 | AN14: =HLOOKUP(AN$7,$J$67:$DK$121,ROWS($A$11:$A14)+2,FALSE) -> 510 | AO14: =HLOOKUP(AO$7,$J$67:$DK$121,ROWS($A$11:$A14)+2,FALSE) -> 2564 | AP14: =HLOOKUP(AP$7,$J$67:$DK$121,ROWS($A$11:$A14)+2,FALSE) -> 6946 | AQ14: =HLOOKUP(AQ$7,$J$67:$DK$121,ROWS($A$11:$A14)+2,FALSE) -> 7402 | AR14: =HLOOKUP(AR$7,$J$67:$DK$121,ROWS($A$11:$A14)+2,FALSE) -> 2721 | AS14: =HLOOKUP(AS$7,$J$67:$DK$121,ROWS($A$11:$A14)+2,FALSE) -> 877 | AT14: =HLOOKUP(AT$7,$J$67:$DK$121,ROWS($A$11:$A14)+2,FALSE) -> 7906 | AU14: =HLOOKUP(AU$7,$J$67:$DK$121,ROWS($A$11:$A14)+2,FALSE) -> 1626 | AV14: =HLOOKUP(AV$7,$J$67:$DK$121,ROWS($A$11:$A14)+2,FALSE) -> 8587 | AW14: =HLOOKUP(AW$7,$J$67:$DK$121,ROWS($A$11:$A14)+2,FALSE) -> 4280 | AX14: =HLOOKUP(AX$7,$J$67:$DK$121,ROWS($A$11:$A14)+2,FALSE) -> 614 | AY14: =HLOOKUP(AY$7,$J$67:$DK$121,ROWS($A$11:$A14)+2,FALSE) -> 1070 | AZ14: =HLOOKUP(AZ$7,$J$67:$DK$121,ROWS($A$11:$A14)+2,FALSE) -> 1472 | BA14: =HLOOKUP(BA$7,$J$67:$DK$121,ROWS($A$11:$A14)+2,FALSE) -> 5075 | BB14: =HLOOKUP(BB$7,$J$67:$DK$121,ROWS($A$11:$A14)+2,FALSE) -> 14788 | BC14: =HLOOKUP(BC$7,$J$67:$DK$121,ROWS($A$11:$A14)+2,FALSE) -> 5916 | BD14: =HLOOKUP(BD$7,$J$67:$DK$121,ROWS($A$11:$A14)+2,FALSE) -> 207 | BE14: =HLOOKUP(BE$7,$J$67:$DK$121,ROWS($A$11:$A14)+2,FALSE) -> 2763 | BF14: =HLOOKUP(BF$7,$J$67:$DK$121,ROWS($A$11:$A14)+2,FALSE) -> 13247 | BG14: =HLOOKUP(BG$7,$J$67:$DK$121,ROWS($A$11:$A14)+2,FALSE) -> 765 | BH14: =HLOOKUP(BH$7,$J$67:$DK$121,ROWS($A$11:$A14)+2,FALSE) -> 3765 | BI14: =HLOOKUP(BI$7,$J$67:$DK$121,ROWS($A$11:$A14)+2,FALSE) -> 2786 | BJ14: =HLOOKUP(BJ$7,$J$67:$DK$121,ROWS($A$11:$A14)+2,FALSE) -> 1791 | BK14: =HLOOKUP(BK$7+0.5,$J$67:$DK$121,ROWS($A$11:$A14)+2,FALSE) -> 14183 | BL14: =HLOOKUP(BL$7+0.5,$J$67:$DK$121,ROWS($A$11:$A14)+2,FALSE) -> 1286 | BM14: =HLOOKUP(BM$7+0.5,$J$67:$DK$121,ROWS($A$11:$A14)+2,FALSE) -> 1505 | BN14: =HLOOKUP(BN$7+0.5,$J$67:$DK$121,ROWS($A$11:$A14)+2,FALSE) -> N/A | BO14: =HLOOKUP(BO$7+0.5,$J$67:$DK$121,ROWS($A$11:$A14)+2,FALSE) -> 659 | BP14: =HLOOKUP(BP$7+0.5,$J$67:$DK$121,ROWS($A$11:$A14)+2,FALSE) -> 5435 | BQ14: =HLOOKUP(BQ$7+0.5,$J$67:$DK$121,ROWS($A$11:$A14)+2,FALSE) -> 6133 | BR14: =HLOOKUP(BR$7+0.5,$J$67:$DK$121,ROWS($A$11:$A14)+2,FALSE) -> 309 | BS14: =HLOOKUP(BS$7+0.5,$J$67:$DK$121,ROWS($A$11:$A14)+2,FALSE) -> 215 | BT14: =HLOOKUP(BT$7+0.5,$J$67:$DK$121,ROWS($A$11:$A14)+2,FALSE) -> 60 | BU14: =HLOOKUP(BU$7+0.5,$J$67:$DK$121,ROWS($A$11:$A14)+2,FALSE) -> 2160 | BV14: =HLOOKUP(BV$7+0.5,$J$67:$DK$121,ROWS($A$11:$A14)+2,FALSE) -> 961 | BW14: =HLOOKUP(BW$7+0.5,$J$67:$DK$121,ROWS($A$11:$A14)+2,FALSE) -> 1285 | BX14: =HLOOKUP(BX$7+0.5,$J$67:$DK$121,ROWS($A$11:$A14)+2,FALSE) -> 1362 | BY14: =HLOOKUP(BY$7+0.5,$J$67:$DK$121,ROWS($A$11:$A14)+2,FALSE) -> 2614 | BZ14: =HLOOKUP(BZ$7+0.5,$J$67:$DK$121,ROWS($A$11:$A14)+2,FALSE) -> 1447 | CA14: =HLOOKUP(CA$7+0.5,$J$67:$DK$121,ROWS($A$11:$A14)+2,FALSE) -> 1000 | CB14: =HLOOKUP(CB$7+0.5,$J$67:$DK$121,ROWS($A$11:$A14)+2,FALSE) -> 852 | CC14: =HLOOKUP(CC$7+0.5,$J$67:$DK$121,ROWS($A$11:$A14)+2,FALSE) -> 997 | CD14: =HLOOKUP(CD$7+0.5,$J$67:$DK$121,ROWS($A$11:$A14)+2,FALSE) -> 442 | CE14: =HLOOKUP(CE$7+0.5,$J$67:$DK$121,ROWS($A$11:$A14)+2,FALSE) -> 593 | CF14: =HLOOKUP(CF$7+0.5,$J$67:$DK$121,ROWS($A$11:$A14)+2,FALSE) -> 1288 | CG14: =HLOOKUP(CG$7+0.5,$J$67:$DK$121,ROWS($A$11:$A14)+2,FALSE) -> 1083 | CH14: =HLOOKUP(CH$7+0.5,$J$67:$DK$121,ROWS($A$11:$A14)+2,FALSE) -> 3471 | CI14: =HLOOKUP(CI$7+0.5,$J$67:$DK$121,ROWS($A$11:$A14)+2,FALSE) -> 3050 | CJ14: =HLOOKUP(CJ$7+0.5,$J$67:$DK$121,ROWS($A$11:$A14)+2,FALSE) -> 215 | CK14: =HLOOKUP(CK$7+0.5,$J$67:$DK$121,ROWS($A$11:$A14)+2,FALSE) -> 1099 | CL14: =HLOOKUP(CL$7+0.5,$J$67:$DK$121,ROWS($A$11:$A14)+2,FALSE) -> 536 | CM14: =HLOOKUP(CM$7+0.5,$J$67:$DK$121,ROWS($A$11:$A14)+2,FALSE) -> 1037 | CN14: =HLOOKUP(CN$7+0.5,$J$67:$DK$121,ROWS($A$11:$A14)+2,FALSE) -> 2202 | CO14: =HLOOKUP(CO$7+0.5,$J$67:$DK$121,ROWS($A$11:$A14)+2,FALSE) -> 443 | CP14: =HLOOKUP(CP$7+0.5,$J$67:$DK$121,ROWS($A$11:$A14)+2,FALSE) -> 1085 | CQ14: =HLOOKUP(CQ$7+0.5,$J$67:$DK$121,ROWS($A$11:$A14)+2,FALSE) -> 1907 | CR14: =HLOOKUP(CR$7+0.5,$J$67:$DK$121,ROWS($A$11:$A14)+2,FALSE) -> 2615 | CS14: =HLOOKUP(CS$7+0.5,$J$67:$DK$121,ROWS($A$11:$A14)+2,FALSE) -> 939 | CT14: =HLOOKUP(CT$7+0.5,$J$67:$DK$121,ROWS($A$11:$A14)+2,FALSE) -> 444 | CU14: =HLOOKUP(CU$7+0.5,$J$67:$DK$121,ROWS($A$11:$A14)+2,FALSE) -> 2239 | CV14: =HLOOKUP(CV$7+0.5,$J$67:$DK$121,ROWS($A$11:$A14)+2,FALSE) -> 838 | CW14: =HLOOKUP(CW$7+0.5,$J$67:$DK$121,ROWS($A$11:$A14)+2,FALSE) -> 3200 | CX14: =HLOOKUP(CX$7+0.5,$J$67:$DK$121,ROWS($A$11:$A14)+2,FALSE) -> 1395 | CY14: =HLOOKUP(CY$7+0.5,$J$67:$DK$121,ROWS($A$11:$A14)+2,FALSE) -> 687 | CZ14: =HLOOKUP(CZ$7+0.5,$J$67:$DK$121,ROWS($A$11:$A14)+2,FALSE) -> 573 | DA14: =HLOOKUP(DA$7+0.5,$J$67:$DK$121,ROWS($A$11:$A14)+2,FALSE) -> 776 | DB14: =HLOOKUP(DB$7+0.5,$J$67:$DK$121,ROWS($A$11:$A14)+2,FALSE) -> 1919 | DC14: =HLOOKUP(DC$7+0.5,$J$67:$DK$121,ROWS($A$11:$A14)+2,FALSE) -> 3541 | DD14: =HLOOKUP(DD$7+0.5,$J$67:$DK$121,ROWS($A$11:$A14)+2,FALSE) -> 1789 | DE14: =HLOOKUP(DE$7+0.5,$J$67:$DK$121,ROWS($A$11:$A14)+2,FALSE) -> 291 | DF14: =HLOOKUP(DF$7+0.5,$J$67:$DK$121,ROWS($A$11:$A14)+2,FALSE) -> 1031 | DG14: =HLOOKUP(DG$7+0.5,$J$67:$DK$121,ROWS($A$11:$A14)+2,FALSE) -> 2448 | DH14: =HLOOKUP(DH$7+0.5,$J$67:$DK$121,ROWS($A$11:$A14)+2,FALSE) -> 734 | DI14: =HLOOKUP(DI$7+0.5,$J$67:$DK$121,ROWS($A$11:$A14)+2,FALSE) -> 1168 | DJ14: =HLOOKUP(DJ$7+0.5,$J$67:$DK$121,ROWS($A$11:$A14)+2,FALSE) -> 1401 | DK14: =HLOOKUP(DK$7+0.5,$J$67:$DK$121,ROWS($A$11:$A14)+2,FALSE) -> 1662
B15: Arkansas | C15: 2912680 | D15: 2753 | E15: 2453347 | F15: 16841 | G15: 373046 | H15: 14543 | I15: 0.01088320301 | J15: =HLOOKUP(J$7,$J$67:$DK$121,ROWS($A$11:$A15)+2,FALSE) -> 76948 | K15: =HLOOKUP(K$7,$J$67:$DK$121,ROWS($A$11:$A15)+2,FALSE) -> 374 | L15: =HLOOKUP(L$7,$J$67:$DK$121,ROWS($A$11:$A15)+2,FALSE) -> 855 | M15: =HLOOKUP(M$7,$J$67:$DK$121,ROWS($A$11:$A15)+2,FALSE) -> 1677 | N15: =HLOOKUP(N$7,$J$67:$DK$121,ROWS($A$11:$A15)+2,FALSE) -> N/A | O15: =HLOOKUP(O$7,$J$67:$DK$121,ROWS($A$11:$A15)+2,FALSE) -> 3525 | P15: =HLOOKUP(P$7,$J$67:$DK$121,ROWS($A$11:$A15)+2,FALSE) -> 603 | Q15: =HLOOKUP(Q$7,$J$67:$DK$121,ROWS($A$11:$A15)+2,FALSE) -> 185 | R15: =HLOOKUP(R$7,$J$67:$DK$121,ROWS($A$11:$A15)+2,FALSE) -> 0 | S15: =HLOOKUP(S$7,$J$67:$DK$121,ROWS($A$11:$A15)+2,FALSE) -> 205 | T15: =HLOOKUP(T$7,$J$67:$DK$121,ROWS($A$11:$A15)+2,FALSE) -> 2682 | U15: =HLOOKUP(U$7,$J$67:$DK$121,ROWS($A$11:$A15)+2,FALSE) -> 1525 | V15: =HLOOKUP(V$7,$J$67:$DK$121,ROWS($A$11:$A15)+2,FALSE) -> 0 | W15: =HLOOKUP(W$7,$J$67:$DK$121,ROWS($A$11:$A15)+2,FALSE) -> 0 | X15: =HLOOKUP(X$7,$J$67:$DK$121,ROWS($A$11:$A15)+2,FALSE) -> 3576 | Y15: =HLOOKUP(Y$7,$J$67:$DK$121,ROWS($A$11:$A15)+2,FALSE) -> 1172 | Z15: =HLOOKUP(Z$7,$J$67:$DK$121,ROWS($A$11:$A15)+2,FALSE) -> 409 | AA15: =HLOOKUP(AA$7,$J$67:$DK$121,ROWS($A$11:$A15)+2,FALSE) -> 1033 | AB15: =HLOOKUP(AB$7,$J$67:$DK$121,ROWS($A$11:$A15)+2,FALSE) -> 1310 | AC15: =HLOOKUP(AC$7,$J$67:$DK$121,ROWS($A$11:$A15)+2,FALSE) -> 3953 | AD15: =HLOOKUP(AD$7,$J$67:$DK$121,ROWS($A$11:$A15)+2,FALSE) -> 17 | AE15: =HLOOKUP(AE$7,$J$67:$DK$121,ROWS($A$11:$A15)+2,FALSE) -> 169 | AF15: =HLOOKUP(AF$7,$J$67:$DK$121,ROWS($A$11:$A15)+2,FALSE) -> 254 | AG15: =HLOOKUP(AG$7,$J$67:$DK$121,ROWS($A$11:$A15)+2,FALSE) -> 1283 | AH15: =HLOOKUP(AH$7,$J$67:$DK$121,ROWS($A$11:$A15)+2,FALSE) -> 295 | AI15: =HLOOKUP(AI$7,$J$67:$DK$121,ROWS($A$11:$A15)+2,FALSE) -> 3689 | AJ15: =HLOOKUP(AJ$7,$J$67:$DK$121,ROWS($A$11:$A15)+2,FALSE) -> 9105 | AK15: =HLOOKUP(AK$7,$J$67:$DK$121,ROWS($A$11:$A15)+2,FALSE) -> 258 | AL15: =HLOOKUP(AL$7,$J$67:$DK$121,ROWS($A$11:$A15)+2,FALSE) -> 166 | AM15: =HLOOKUP(AM$7,$J$67:$DK$121,ROWS($A$11:$A15)+2,FALSE) -> 121 | AN15: =HLOOKUP(AN$7,$J$67:$DK$121,ROWS($A$11:$A15)+2,FALSE) -> 0 | AO15: =HLOOKUP(AO$7,$J$67:$DK$121,ROWS($A$11:$A15)+2,FALSE) -> 157 | AP15: =HLOOKUP(AP$7,$J$67:$DK$121,ROWS($A$11:$A15)+2,FALSE) -> 547 | AQ15: =HLOOKUP(AQ$7,$J$67:$DK$121,ROWS($A$11:$A15)+2,FALSE) -> 2262 | AR15: =HLOOKUP(AR$7,$J$67:$DK$121,ROWS($A$11:$A15)+2,FALSE) -> 3057 | AS15: =HLOOKUP(AS$7,$J$67:$DK$121,ROWS($A$11:$A15)+2,FALSE) -> 0 | AT15: =HLOOKUP(AT$7,$J$67:$DK$121,ROWS($A$11:$A15)+2,FALSE) -> 1135 | AU15: =HLOOKUP(AU$7,$J$67:$DK$121,ROWS($A$11:$A15)+2,FALSE) -> 9938 | AV15: =HLOOKUP(AV$7,$J$67:$DK$121,ROWS($A$11:$A15)+2,FALSE) -> 193 | AW15: =HLOOKUP(AW$7,$J$67:$DK$121,ROWS($A$11:$A15)+2,FALSE) -> 516 | AX15: =HLOOKUP(AX$7,$J$67:$DK$121,ROWS($A$11:$A15)+2,FALSE) -> 59 | AY15: =HLOOKUP(AY$7,$J$67:$DK$121,ROWS($A$11:$A15)+2,FALSE) -> 52 | AZ15: =HLOOKUP(AZ$7,$J$67:$DK$121,ROWS($A$11:$A15)+2,FALSE) -> 673 | BA15: =HLOOKUP(BA$7,$J$67:$DK$121,ROWS($A$11:$A15)+2,FALSE) -> 4195 | BB15: =HLOOKUP(BB$7,$J$67:$DK$121,ROWS($A$11:$A15)+2,FALSE) -> 11767 | BC15: =HLOOKUP(BC$7,$J$67:$DK$121,ROWS($A$11:$A15)+2,FALSE) -> 269 | BD15: =HLOOKUP(BD$7,$J$67:$DK$121,ROWS($A$11:$A15)+2,FALSE) -> 0 | BE15: =HLOOKUP(BE$7,$J$67:$DK$121,ROWS($A$11:$A15)+2,FALSE) -> 1159 | BF15: =HLOOKUP(BF$7,$J$67:$DK$121,ROWS($A$11:$A15)+2,FALSE) -> 251 | BG15: =HLOOKUP(BG$7,$J$67:$DK$121,ROWS($A$11:$A15)+2,FALSE) -> 84 | BH15: =HLOOKUP(BH$7,$J$67:$DK$121,ROWS($A$11:$A15)+2,FALSE) -> 695 | BI15: =HLOOKUP(BI$7,$J$67:$DK$121,ROWS($A$11:$A15)+2,FALSE) -> 1498 | BJ15: =HLOOKUP(BJ$7,$J$67:$DK$121,ROWS($A$11:$A15)+2,FALSE) -> 0 | BK15: =HLOOKUP(BK$7+0.5,$J$67:$DK$121,ROWS($A$11:$A15)+2,FALSE) -> 7223 | BL15: =HLOOKUP(BL$7+0.5,$J$67:$DK$121,ROWS($A$11:$A15)+2,FALSE) -> 293 | BM15: =HLOOKUP(BM$7+0.5,$J$67:$DK$121,ROWS($A$11:$A15)+2,FALSE) -> 906 | BN15: =HLOOKUP(BN$7+0.5,$J$67:$DK$121,ROWS($A$11:$A15)+2,FALSE) -> 954 | BO15: =HLOOKUP(BO$7+0.5,$J$67:$DK$121,ROWS($A$11:$A15)+2,FALSE) -> N/A | BP15: =HLOOKUP(BP$7+0.5,$J$67:$DK$121,ROWS($A$11:$A15)+2,FALSE) -> 1202 | BQ15: =HLOOKUP(BQ$7+0.5,$J$67:$DK$121,ROWS($A$11:$A15)+2,FALSE) -> 369 | BR15: =HLOOKUP(BR$7+0.5,$J$67:$DK$121,ROWS($A$11:$A15)+2,FALSE) -> 264 | BS15: =HLOOKUP(BS$7+0.5,$J$67:$DK$121,ROWS($A$11:$A15)+2,FALSE) -> 184 | BT15: =HLOOKUP(BT$7+0.5,$J$67:$DK$121,ROWS($A$11:$A15)+2,FALSE) -> 232 | BU15: =HLOOKUP(BU$7+0.5,$J$67:$DK$121,ROWS($A$11:$A15)+2,FALSE) -> 1052 | BV15: =HLOOKUP(BV$7+0.5,$J$67:$DK$121,ROWS($A$11:$A15)+2,FALSE) -> 1006 | BW15: =HLOOKUP(BW$7+0.5,$J$67:$DK$121,ROWS($A$11:$A15)+2,FALSE) -> 184 | BX15: =HLOOKUP(BX$7+0.5,$J$67:$DK$121,ROWS($A$11:$A15)+2,FALSE) -> 184 | BY15: =HLOOKUP(BY$7+0.5,$J$67:$DK$121,ROWS($A$11:$A15)+2,FALSE) -> 1286 | BZ15: =HLOOKUP(BZ$7+0.5,$J$67:$DK$121,ROWS($A$11:$A15)+2,FALSE) -> 587 | CA15: =HLOOKUP(CA$7+0.5,$J$67:$DK$121,ROWS($A$11:$A15)+2,FALSE) -> 330 | CB15: =HLOOKUP(CB$7+0.5,$J$67:$DK$121,ROWS($A$11:$A15)+2,FALSE) -> 539 | CC15: =HLOOKUP(CC$7+0.5,$J$67:$DK$121,ROWS($A$11:$A15)+2,FALSE) -> 884 | CD15: =HLOOKUP(CD$7+0.5,$J$67:$DK$121,ROWS($A$11:$A15)+2,FALSE) -> 1340 | CE15: =HLOOKUP(CE$7+0.5,$J$67:$DK$121,ROWS($A$11:$A15)+2,FALSE) -> 39 | CF15: =HLOOKUP(CF$7+0.5,$J$67:$DK$121,ROWS($A$11:$A15)+2,FALSE) -> 209 | CG15: =HLOOKUP(CG$7+0.5,$J$67:$DK$121,ROWS($A$11:$A15)+2,FALSE) -> 262 | CH15: =HLOOKUP(CH$7+0.5,$J$67:$DK$121,ROWS($A$11:$A15)+2,FALSE) -> 607 | CI15: =HLOOKUP(CI$7+0.5,$J$67:$DK$121,ROWS($A$11:$A15)+2,FALSE) -> 285 | CJ15: =HLOOKUP(CJ$7+0.5,$J$67:$DK$121,ROWS($A$11:$A15)+2,FALSE) -> 2537 | CK15: =HLOOKUP(CK$7+0.5,$J$67:$DK$121,ROWS($A$11:$A15)+2,FALSE) -> 2916 | CL15: =HLOOKUP(CL$7+0.5,$J$67:$DK$121,ROWS($A$11:$A15)+2,FALSE) -> 293 | CM15: =HLOOKUP(CM$7+0.5,$J$67:$DK$121,ROWS($A$11:$A15)+2,FALSE) -> 201 | CN15: =HLOOKUP(CN$7+0.5,$J$67:$DK$121,ROWS($A$11:$A15)+2,FALSE) -> 161 | CO15: =HLOOKUP(CO$7+0.5,$J$67:$DK$121,ROWS($A$11:$A15)+2,FALSE) -> 184 | CP15: =HLOOKUP(CP$7+0.5,$J$67:$DK$121,ROWS($A$11:$A15)+2,FALSE) -> 171 | CQ15: =HLOOKUP(CQ$7+0.5,$J$67:$DK$121,ROWS($A$11:$A15)+2,FALSE) -> 482 | CR15: =HLOOKUP(CR$7+0.5,$J$67:$DK$121,ROWS($A$11:$A15)+2,FALSE) -> 1559 | CS15: =HLOOKUP(CS$7+0.5,$J$67:$DK$121,ROWS($A$11:$A15)+2,FALSE) -> 2173 | CT15: =HLOOKUP(CT$7+0.5,$J$67:$DK$121,ROWS($A$11:$A15)+2,FALSE) -> 184 | CU15: =HLOOKUP(CU$7+0.5,$J$67:$DK$121,ROWS($A$11:$A15)+2,FALSE) -> 626 | CV15: =HLOOKUP(CV$7+0.5,$J$67:$DK$121,ROWS($A$11:$A15)+2,FALSE) -> 2371 | CW15: =HLOOKUP(CW$7+0.5,$J$67:$DK$121,ROWS($A$11:$A15)+2,FALSE) -> 179 | CX15: =HLOOKUP(CX$7+0.5,$J$67:$DK$121,ROWS($A$11:$A15)+2,FALSE) -> 475 | CY15: =HLOOKUP(CY$7+0.5,$J$67:$DK$121,ROWS($A$11:$A15)+2,FALSE) -> 103 | CZ15: =HLOOKUP(CZ$7+0.5,$J$67:$DK$121,ROWS($A$11:$A15)+2,FALSE) -> 71 | DA15: =HLOOKUP(DA$7+0.5,$J$67:$DK$121,ROWS($A$11:$A15)+2,FALSE) -> 588 | DB15: =HLOOKUP(DB$7+0.5,$J$67:$DK$121,ROWS($A$11:$A15)+2,FALSE) -> 1127 | DC15: =HLOOKUP(DC$7+0.5,$J$67:$DK$121,ROWS($A$11:$A15)+2,FALSE) -> 2841 | DD15: =HLOOKUP(DD$7+0.5,$J$67:$DK$121,ROWS($A$11:$A15)+2,FALSE) -> 216 | DE15: =HLOOKUP(DE$7+0.5,$J$67:$DK$121,ROWS($A$11:$A15)+2,FALSE) -> 184 | DF15: =HLOOKUP(DF$7+0.5,$J$67:$DK$121,ROWS($A$11:$A15)+2,FALSE) -> 824 | DG15: =HLOOKUP(DG$7+0.5,$J$67:$DK$121,ROWS($A$11:$A15)+2,FALSE) -> 226 | DH15: =HLOOKUP(DH$7+0.5,$J$67:$DK$121,ROWS($A$11:$A15)+2,FALSE) -> 148 | DI15: =HLOOKUP(DI$7+0.5,$J$67:$DK$121,ROWS($A$11:$A15)+2,FALSE) -> 467 | DJ15: =HLOOKUP(DJ$7+0.5,$J$67:$DK$121,ROWS($A$11:$A15)+2,FALSE) -> 2098 | DK15: =HLOOKUP(DK$7+0.5,$J$67:$DK$121,ROWS($A$11:$A15)+2,FALSE) -> 184
B16: California | C16: 37572738 | D16: 10274 | E16: 31777868 | F16: 67939 | G16: 5046618 | H16: 65422 | I16: 0.06981851664 | J16: =HLOOKUP(J$7,$J$67:$DK$121,ROWS($A$11:$A16)+2,FALSE) -> 493641 | K16: =HLOOKUP(K$7,$J$67:$DK$121,ROWS($A$11:$A16)+2,FALSE) -> 2509 | L16: =HLOOKUP(L$7,$J$67:$DK$121,ROWS($A$11:$A16)+2,FALSE) -> 6995 | M16: =HLOOKUP(M$7,$J$67:$DK$121,ROWS($A$11:$A16)+2,FALSE) -> 38916 | N16: =HLOOKUP(N$7,$J$67:$DK$121,ROWS($A$11:$A16)+2,FALSE) -> 3472 | O16: =HLOOKUP(O$7,$J$67:$DK$121,ROWS($A$11:$A16)+2,FALSE) -> N/A | P16: =HLOOKUP(P$7,$J$67:$DK$121,ROWS($A$11:$A16)+2,FALSE) -> 15150 | Q16: =HLOOKUP(Q$7,$J$67:$DK$121,ROWS($A$11:$A16)+2,FALSE) -> 6764 | R16: =HLOOKUP(R$7,$J$67:$DK$121,ROWS($A$11:$A16)+2,FALSE) -> 474 | S16: =HLOOKUP(S$7,$J$67:$DK$121,ROWS($A$11:$A16)+2,FALSE) -> 3199 | T16: =HLOOKUP(T$7,$J$67:$DK$121,ROWS($A$11:$A16)+2,FALSE) -> 21004 | U16: =HLOOKUP(U$7,$J$67:$DK$121,ROWS($A$11:$A16)+2,FALSE) -> 10790 | V16: =HLOOKUP(V$7,$J$67:$DK$121,ROWS($A$11:$A16)+2,FALSE) -> 11906 | W16: =HLOOKUP(W$7,$J$67:$DK$121,ROWS($A$11:$A16)+2,FALSE) -> 5331 | X16: =HLOOKUP(X$7,$J$67:$DK$121,ROWS($A$11:$A16)+2,FALSE) -> 21251 | Y16: =HLOOKUP(Y$7,$J$67:$DK$121,ROWS($A$11:$A16)+2,FALSE) -> 5891 | Z16: =HLOOKUP(Z$7,$J$67:$DK$121,ROWS($A$11:$A16)+2,FALSE) -> 2284 | AA16: =HLOOKUP(AA$7,$J$67:$DK$121,ROWS($A$11:$A16)+2,FALSE) -> 2790 | AB16: =HLOOKUP(AB$7,$J$67:$DK$121,ROWS($A$11:$A16)+2,FALSE) -> 3763 | AC16: =HLOOKUP(AC$7,$J$67:$DK$121,ROWS($A$11:$A16)+2,FALSE) -> 5180 | AD16: =HLOOKUP(AD$7,$J$67:$DK$121,ROWS($A$11:$A16)+2,FALSE) -> 1256 | AE16: =HLOOKUP(AE$7,$J$67:$DK$121,ROWS($A$11:$A16)+2,FALSE) -> 7902 | AF16: =HLOOKUP(AF$7,$J$67:$DK$121,ROWS($A$11:$A16)+2,FALSE) -> 14356 | AG16: =HLOOKUP(AG$7,$J$67:$DK$121,ROWS($A$11:$A16)+2,FALSE) -> 8921 | AH16: =HLOOKUP(AH$7,$J$67:$DK$121,ROWS($A$11:$A16)+2,FALSE) -> 8539 | AI16: =HLOOKUP(AI$7,$J$67:$DK$121,ROWS($A$11:$A16)+2,FALSE) -> 2556 | AJ16: =HLOOKUP(AJ$7,$J$67:$DK$121,ROWS($A$11:$A16)+2,FALSE) -> 6729 | AK16: =HLOOKUP(AK$7,$J$67:$DK$121,ROWS($A$11:$A16)+2,FALSE) -> 3060 | AL16: =HLOOKUP(AL$7,$J$67:$DK$121,ROWS($A$11:$A16)+2,FALSE) -> 3302 | AM16: =HLOOKUP(AM$7,$J$67:$DK$121,ROWS($A$11:$A16)+2,FALSE) -> 27968 | AN16: =HLOOKUP(AN$7,$J$67:$DK$121,ROWS($A$11:$A16)+2,FALSE) -> 1327 | AO16: =HLOOKUP(AO$7,$J$67:$DK$121,ROWS($A$11:$A16)+2,FALSE) -> 12057 | AP16: =HLOOKUP(AP$7,$J$67:$DK$121,ROWS($A$11:$A16)+2,FALSE) -> 5921 | AQ16: =HLOOKUP(AQ$7,$J$67:$DK$121,ROWS($A$11:$A16)+2,FALSE) -> 31261 | AR16: =HLOOKUP(AR$7,$J$67:$DK$121,ROWS($A$11:$A16)+2,FALSE) -> 11195 | AS16: =HLOOKUP(AS$7,$J$67:$DK$121,ROWS($A$11:$A16)+2,FALSE) -> 1827 | AT16: =HLOOKUP(AT$7,$J$67:$DK$121,ROWS($A$11:$A16)+2,FALSE) -> 10653 | AU16: =HLOOKUP(AU$7,$J$67:$DK$121,ROWS($A$11:$A16)+2,FALSE) -> 6671 | AV16: =HLOOKUP(AV$7,$J$67:$DK$121,ROWS($A$11:$A16)+2,FALSE) -> 22724 | AW16: =HLOOKUP(AW$7,$J$67:$DK$121,ROWS($A$11:$A16)+2,FALSE) -> 10466 | AX16: =HLOOKUP(AX$7,$J$67:$DK$121,ROWS($A$11:$A16)+2,FALSE) -> 1648 | AY16: =HLOOKUP(AY$7,$J$67:$DK$121,ROWS($A$11:$A16)+2,FALSE) -> 4110 | AZ16: =HLOOKUP(AZ$7,$J$67:$DK$121,ROWS($A$11:$A16)+2,FALSE) -> 826 | BA16: =HLOOKUP(BA$7,$J$67:$DK$121,ROWS($A$11:$A16)+2,FALSE) -> 5802 | BB16: =HLOOKUP(BB$7,$J$67:$DK$121,ROWS($A$11:$A16)+2,FALSE) -> 43005 | BC16: =HLOOKUP(BC$7,$J$67:$DK$121,ROWS($A$11:$A16)+2,FALSE) -> 12172 | BD16: =HLOOKUP(BD$7,$J$67:$DK$121,ROWS($A$11:$A16)+2,FALSE) -> 544 | BE16: =HLOOKUP(BE$7,$J$67:$DK$121,ROWS($A$11:$A16)+2,FALSE) -> 15625 | BF16: =HLOOKUP(BF$7,$J$67:$DK$121,ROWS($A$11:$A16)+2,FALSE) -> 34569 | BG16: =HLOOKUP(BG$7,$J$67:$DK$121,ROWS($A$11:$A16)+2,FALSE) -> 1413 | BH16: =HLOOKUP(BH$7,$J$67:$DK$121,ROWS($A$11:$A16)+2,FALSE) -> 5681 | BI16: =HLOOKUP(BI$7,$J$67:$DK$121,ROWS($A$11:$A16)+2,FALSE) -> 1886 | BJ16: =HLOOKUP(BJ$7,$J$67:$DK$121,ROWS($A$11:$A16)+2,FALSE) -> 2323 | BK16: =HLOOKUP(BK$7+0.5,$J$67:$DK$121,ROWS($A$11:$A16)+2,FALSE) -> 19652 | BL16: =HLOOKUP(BL$7+0.5,$J$67:$DK$121,ROWS($A$11:$A16)+2,FALSE) -> 983 | BM16: =HLOOKUP(BM$7+0.5,$J$67:$DK$121,ROWS($A$11:$A16)+2,FALSE) -> 1948 | BN16: =HLOOKUP(BN$7+0.5,$J$67:$DK$121,ROWS($A$11:$A16)+2,FALSE) -> 5726 | BO16: =HLOOKUP(BO$7+0.5,$J$67:$DK$121,ROWS($A$11:$A16)+2,FALSE) -> 1354 | BP16: =HLOOKUP(BP$7+0.5,$J$67:$DK$121,ROWS($A$11:$A16)+2,FALSE) -> N/A | BQ16: =HLOOKUP(BQ$7+0.5,$J$67:$DK$121,ROWS($A$11:$A16)+2,FALSE) -> 2598 | BR16: =HLOOKUP(BR$7+0.5,$J$67:$DK$121,ROWS($A$11:$A16)+2,FALSE) -> 2194 | BS16: =HLOOKUP(BS$7+0.5,$J$67:$DK$121,ROWS($A$11:$A16)+2,FALSE) -> 413 | BT16: =HLOOKUP(BT$7+0.5,$J$67:$DK$121,ROWS($A$11:$A16)+2,FALSE) -> 1061 | BU16: =HLOOKUP(BU$7+0.5,$J$67:$DK$121,ROWS($A$11:$A16)+2,FALSE) -> 3394 | BV16: =HLOOKUP(BV$7+0.5,$J$67:$DK$121,ROWS($A$11:$A16)+2,FALSE) -> 2458 | BW16: =HLOOKUP(BW$7+0.5,$J$67:$DK$121,ROWS($A$11:$A16)+2,FALSE) -> 2720 | BX16: =HLOOKUP(BX$7+0.5,$J$67:$DK$121,ROWS($A$11:$A16)+2,FALSE) -> 1519 | BY16: =HLOOKUP(BY$7+0.5,$J$67:$DK$121,ROWS($A$11:$A16)+2,FALSE) -> 3521 | BZ16: =HLOOKUP(BZ$7+0.5,$J$67:$DK$121,ROWS($A$11:$A16)+2,FALSE) -> 1629 | CA16: =HLOOKUP(CA$7+0.5,$J$67:$DK$121,ROWS($A$11:$A16)+2,FALSE) -> 987 | CB16: =HLOOKUP(CB$7+0.5,$J$67:$DK$121,ROWS($A$11:$A16)+2,FALSE) -> 984 | CC16: =HLOOKUP(CC$7+0.5,$J$67:$DK$121,ROWS($A$11:$A16)+2,FALSE) -> 1292 | CD16: =HLOOKUP(CD$7+0.5,$J$67:$DK$121,ROWS($A$11:$A16)+2,FALSE) -> 1525 | CE16: =HLOOKUP(CE$7+0.5,$J$67:$DK$121,ROWS($A$11:$A16)+2,FALSE) -> 951 | CF16: =HLOOKUP(CF$7+0.5,$J$67:$DK$121,ROWS($A$11:$A16)+2,FALSE) -> 2347 | CG16: =HLOOKUP(CG$7+0.5,$J$67:$DK$121,ROWS($A$11:$A16)+2,FALSE) -> 2682 | CH16: =HLOOKUP(CH$7+0.5,$J$67:$DK$121,ROWS($A$11:$A16)+2,FALSE) -> 2069 | CI16: =HLOOKUP(CI$7+0.5,$J$67:$DK$121,ROWS($A$11:$A16)+2,FALSE) -> 1942 | CJ16: =HLOOKUP(CJ$7+0.5,$J$67:$DK$121,ROWS($A$11:$A16)+2,FALSE) -> 993 | CK16: =HLOOKUP(CK$7+0.5,$J$67:$DK$121,ROWS($A$11:$A16)+2,FALSE) -> 1595 | CL16: =HLOOKUP(CL$7+0.5,$J$67:$DK$121,ROWS($A$11:$A16)+2,FALSE) -> 1275 | CM16: =HLOOKUP(CM$7+0.5,$J$67:$DK$121,ROWS($A$11:$A16)+2,FALSE) -> 2007 | CN16: =HLOOKUP(CN$7+0.5,$J$67:$DK$121,ROWS($A$11:$A16)+2,FALSE) -> 3857 | CO16: =HLOOKUP(CO$7+0.5,$J$67:$DK$121,ROWS($A$11:$A16)+2,FALSE) -> 615 | CP16: =HLOOKUP(CP$7+0.5,$J$67:$DK$121,ROWS($A$11:$A16)+2,FALSE) -> 2447 | CQ16: =HLOOKUP(CQ$7+0.5,$J$67:$DK$121,ROWS($A$11:$A16)+2,FALSE) -> 2240 | CR16: =HLOOKUP(CR$7+0.5,$J$67:$DK$121,ROWS($A$11:$A16)+2,FALSE) -> 5136 | CS16: =HLOOKUP(CS$7+0.5,$J$67:$DK$121,ROWS($A$11:$A16)+2,FALSE) -> 2366 | CT16: =HLOOKUP(CT$7+0.5,$J$67:$DK$121,ROWS($A$11:$A16)+2,FALSE) -> 1272 | CU16: =HLOOKUP(CU$7+0.5,$J$67:$DK$121,ROWS($A$11:$A16)+2,FALSE) -> 2869 | CV16: =HLOOKUP(CV$7+0.5,$J$67:$DK$121,ROWS($A$11:$A16)+2,FALSE) -> 1795 | CW16: =HLOOKUP(CW$7+0.5,$J$67:$DK$121,ROWS($A$11:$A16)+2,FALSE) -> 3271 | CX16: =HLOOKUP(CX$7+0.5,$J$67:$DK$121,ROWS($A$11:$A16)+2,FALSE) -> 2392 | CY16: =HLOOKUP(CY$7+0.5,$J$67:$DK$121,ROWS($A$11:$A16)+2,FALSE) -> 697 | CZ16: =HLOOKUP(CZ$7+0.5,$J$67:$DK$121,ROWS($A$11:$A16)+2,FALSE) -> 1492 | DA16: =HLOOKUP(DA$7+0.5,$J$67:$DK$121,ROWS($A$11:$A16)+2,FALSE) -> 674 | DB16: =HLOOKUP(DB$7+0.5,$J$67:$DK$121,ROWS($A$11:$A16)+2,FALSE) -> 1880 | DC16: =HLOOKUP(DC$7+0.5,$J$67:$DK$121,ROWS($A$11:$A16)+2,FALSE) -> 5519 | DD16: =HLOOKUP(DD$7+0.5,$J$67:$DK$121,ROWS($A$11:$A16)+2,FALSE) -> 2457 | DE16: =HLOOKUP(DE$7+0.5,$J$67:$DK$121,ROWS($A$11:$A16)+2,FALSE) -> 345 | DF16: =HLOOKUP(DF$7+0.5,$J$67:$DK$121,ROWS($A$11:$A16)+2,FALSE) -> 3457 | DG16: =HLOOKUP(DG$7+0.5,$J$67:$DK$121,ROWS($A$11:$A16)+2,FALSE) -> 4540 | DH16: =HLOOKUP(DH$7+0.5,$J$67:$DK$121,ROWS($A$11:$A16)+2,FALSE) -> 1135 | DI16: =HLOOKUP(DI$7+0.5,$J$67:$DK$121,ROWS($A$11:$A16)+2,FALSE) -> 1716 | DJ16: =HLOOKUP(DJ$7+0.5,$J$67:$DK$121,ROWS($A$11:$A16)+2,FALSE) -> 1117 | DK16: =HLOOKUP(DK$7+0.5,$J$67:$DK$121,ROWS($A$11:$A16)+2,FALSE) -> 1076
B17: Colorado | C17: 5123944 | D17: 2939 | E17: 4131357 | F17: 21752 | G17: 751921 | H17: 19587 | I17: 0.02900282801 | J17: =HLOOKUP(J$7,$J$67:$DK$121,ROWS($A$11:$A17)+2,FALSE) -> 205060 | K17: =HLOOKUP(K$7,$J$67:$DK$121,ROWS($A$11:$A17)+2,FALSE) -> 3108 | L17: =HLOOKUP(L$7,$J$67:$DK$121,ROWS($A$11:$A17)+2,FALSE) -> 3457 | M17: =HLOOKUP(M$7,$J$67:$DK$121,ROWS($A$11:$A17)+2,FALSE) -> 10589 | N17: =HLOOKUP(N$7,$J$67:$DK$121,ROWS($A$11:$A17)+2,FALSE) -> 1043 | O17: =HLOOKUP(O$7,$J$67:$DK$121,ROWS($A$11:$A17)+2,FALSE) -> 22152 | P17: =HLOOKUP(P$7,$J$67:$DK$121,ROWS($A$11:$A17)+2,FALSE) -> N/A | Q17: =HLOOKUP(Q$7,$J$67:$DK$121,ROWS($A$11:$A17)+2,FALSE) -> 1317 | R17: =HLOOKUP(R$7,$J$67:$DK$121,ROWS($A$11:$A17)+2,FALSE) -> 70 | S17: =HLOOKUP(S$7,$J$67:$DK$121,ROWS($A$11:$A17)+2,FALSE) -> 488 | T17: =HLOOKUP(T$7,$J$67:$DK$121,ROWS($A$11:$A17)+2,FALSE) -> 8615 | U17: =HLOOKUP(U$7,$J$67:$DK$121,ROWS($A$11:$A17)+2,FALSE) -> 5834 | V17: =HLOOKUP(V$7,$J$67:$DK$121,ROWS($A$11:$A17)+2,FALSE) -> 2536 | W17: =HLOOKUP(W$7,$J$67:$DK$121,ROWS($A$11:$A17)+2,FALSE) -> 2660 | X17: =HLOOKUP(X$7,$J$67:$DK$121,ROWS($A$11:$A17)+2,FALSE) -> 6374 | Y17: =HLOOKUP(Y$7,$J$67:$DK$121,ROWS($A$11:$A17)+2,FALSE) -> 4336 | Z17: =HLOOKUP(Z$7,$J$67:$DK$121,ROWS($A$11:$A17)+2,FALSE) -> 2776 | AA17: =HLOOKUP(AA$7,$J$67:$DK$121,ROWS($A$11:$A17)+2,FALSE) -> 5283 | AB17: =HLOOKUP(AB$7,$J$67:$DK$121,ROWS($A$11:$A17)+2,FALSE) -> 2500 | AC17: =HLOOKUP(AC$7,$J$67:$DK$121,ROWS($A$11:$A17)+2,FALSE) -> 5048 | AD17: =HLOOKUP(AD$7,$J$67:$DK$121,ROWS($A$11:$A17)+2,FALSE) -> 20 | AE17: =HLOOKUP(AE$7,$J$67:$DK$121,ROWS($A$11:$A17)+2,FALSE) -> 2844 | AF17: =HLOOKUP(AF$7,$J$67:$DK$121,ROWS($A$11:$A17)+2,FALSE) -> 5939 | AG17: =HLOOKUP(AG$7,$J$67:$DK$121,ROWS($A$11:$A17)+2,FALSE) -> 3343 | AH17: =HLOOKUP(AH$7,$J$67:$DK$121,ROWS($A$11:$A17)+2,FALSE) -> 2992 | AI17: =HLOOKUP(AI$7,$J$67:$DK$121,ROWS($A$11:$A17)+2,FALSE) -> 835 | AJ17: =HLOOKUP(AJ$7,$J$67:$DK$121,ROWS($A$11:$A17)+2,FALSE) -> 3771 | AK17: =HLOOKUP(AK$7,$J$67:$DK$121,ROWS($A$11:$A17)+2,FALSE) -> 2021 | AL17: =HLOOKUP(AL$7,$J$67:$DK$121,ROWS($A$11:$A17)+2,FALSE) -> 4472 | AM17: =HLOOKUP(AM$7,$J$67:$DK$121,ROWS($A$11:$A17)+2,FALSE) -> 3789 | AN17: =HLOOKUP(AN$7,$J$67:$DK$121,ROWS($A$11:$A17)+2,FALSE) -> 679 | AO17: =HLOOKUP(AO$7,$J$67:$DK$121,ROWS($A$11:$A17)+2,FALSE) -> 2464 | AP17: =HLOOKUP(AP$7,$J$67:$DK$121,ROWS($A$11:$A17)+2,FALSE) -> 6520 | AQ17: =HLOOKUP(AQ$7,$J$67:$DK$121,ROWS($A$11:$A17)+2,FALSE) -> 7250 | AR17: =HLOOKUP(AR$7,$J$67:$DK$121,ROWS($A$11:$A17)+2,FALSE) -> 4378 | AS17: =HLOOKUP(AS$7,$J$67:$DK$121,ROWS($A$11:$A17)+2,FALSE) -> 1918 | AT17: =HLOOKUP(AT$7,$J$67:$DK$121,ROWS($A$11:$A17)+2,FALSE) -> 4533 | AU17: =HLOOKUP(AU$7,$J$67:$DK$121,ROWS($A$11:$A17)+2,FALSE) -> 4582 | AV17: =HLOOKUP(AV$7,$J$67:$DK$121,ROWS($A$11:$A17)+2,FALSE) -> 2419 | AW17: =HLOOKUP(AW$7,$J$67:$DK$121,ROWS($A$11:$A17)+2,FALSE) -> 3950 | AX17: =HLOOKUP(AX$7,$J$67:$DK$121,ROWS($A$11:$A17)+2,FALSE) -> 137 | AY17: =HLOOKUP(AY$7,$J$67:$DK$121,ROWS($A$11:$A17)+2,FALSE) -> 2383 | AZ17: =HLOOKUP(AZ$7,$J$67:$DK$121,ROWS($A$11:$A17)+2,FALSE) -> 756 | BA17: =HLOOKUP(BA$7,$J$67:$DK$121,ROWS($A$11:$A17)+2,FALSE) -> 2535 | BB17: =HLOOKUP(BB$7,$J$67:$DK$121,ROWS($A$11:$A17)+2,FALSE) -> 17355 | BC17: =HLOOKUP(BC$7,$J$67:$DK$121,ROWS($A$11:$A17)+2,FALSE) -> 6398 | BD17: =HLOOKUP(BD$7,$J$67:$DK$121,ROWS($A$11:$A17)+2,FALSE) -> 503 | BE17: =HLOOKUP(BE$7,$J$67:$DK$121,ROWS($A$11:$A17)+2,FALSE) -> 3796 | BF17: =HLOOKUP(BF$7,$J$67:$DK$121,ROWS($A$11:$A17)+2,FALSE) -> 4853 | BG17: =HLOOKUP(BG$7,$J$67:$DK$121,ROWS($A$11:$A17)+2,FALSE) -> 837 | BH17: =HLOOKUP(BH$7,$J$67:$DK$121,ROWS($A$11:$A17)+2,FALSE) -> 3000 | BI17: =HLOOKUP(BI$7,$J$67:$DK$121,ROWS($A$11:$A17)+2,FALSE) -> 5602 | BJ17: =HLOOKUP(BJ$7,$J$67:$DK$121,ROWS($A$11:$A17)+2,FALSE) -> 1144 | BK17: =HLOOKUP(BK$7+0.5,$J$67:$DK$121,ROWS($A$11:$A17)+2,FALSE) -> 11855 | BL17: =HLOOKUP(BL$7+0.5,$J$67:$DK$121,ROWS($A$11:$A17)+2,FALSE) -> 1610 | BM17: =HLOOKUP(BM$7+0.5,$J$67:$DK$121,ROWS($A$11:$A17)+2,FALSE) -> 1695 | BN17: =HLOOKUP(BN$7+0.5,$J$67:$DK$121,ROWS($A$11:$A17)+2,FALSE) -> 2218 | BO17: =HLOOKUP(BO$7+0.5,$J$67:$DK$121,ROWS($A$11:$A17)+2,FALSE) -> 580 | BP17: =HLOOKUP(BP$7+0.5,$J$67:$DK$121,ROWS($A$11:$A17)+2,FALSE) -> 4260 | BQ17: =HLOOKUP(BQ$7+0.5,$J$67:$DK$121,ROWS($A$11:$A17)+2,FALSE) -> N/A | BR17: =HLOOKUP(BR$7+0.5,$J$67:$DK$121,ROWS($A$11:$A17)+2,FALSE) -> 677 | BS17: =HLOOKUP(BS$7+0.5,$J$67:$DK$121,ROWS($A$11:$A17)+2,FALSE) -> 133 | BT17: =HLOOKUP(BT$7+0.5,$J$67:$DK$121,ROWS($A$11:$A17)+2,FALSE) -> 387 | BU17: =HLOOKUP(BU$7+0.5,$J$67:$DK$121,ROWS($A$11:$A17)+2,FALSE) -> 1907 | BV17: =HLOOKUP(BV$7+0.5,$J$67:$DK$121,ROWS($A$11:$A17)+2,FALSE) -> 2086 | BW17: =HLOOKUP(BW$7+0.5,$J$67:$DK$121,ROWS($A$11:$A17)+2,FALSE) -> 1020 | BX17: =HLOOKUP(BX$7+0.5,$J$67:$DK$121,ROWS($A$11:$A17)+2,FALSE) -> 1468 | BY17: =HLOOKUP(BY$7+0.5,$J$67:$DK$121,ROWS($A$11:$A17)+2,FALSE) -> 1617 | BZ17: =HLOOKUP(BZ$7+0.5,$J$67:$DK$121,ROWS($A$11:$A17)+2,FALSE) -> 2128 | CA17: =HLOOKUP(CA$7+0.5,$J$67:$DK$121,ROWS($A$11:$A17)+2,FALSE) -> 1486 | CB17: =HLOOKUP(CB$7+0.5,$J$67:$DK$121,ROWS($A$11:$A17)+2,FALSE) -> 1843 | CC17: =HLOOKUP(CC$7+0.5,$J$67:$DK$121,ROWS($A$11:$A17)+2,FALSE) -> 2135 | CD17: =HLOOKUP(CD$7+0.5,$J$67:$DK$121,ROWS($A$11:$A17)+2,FALSE) -> 2468 | CE17: =HLOOKUP(CE$7+0.5,$J$67:$DK$121,ROWS($A$11:$A17)+2,FALSE) -> 40 | CF17: =HLOOKUP(CF$7+0.5,$J$67:$DK$121,ROWS($A$11:$A17)+2,FALSE) -> 1196 | CG17: =HLOOKUP(CG$7+0.5,$J$67:$DK$121,ROWS($A$11:$A17)+2,FALSE) -> 2238 | CH17: =HLOOKUP(CH$7+0.5,$J$67:$DK$121,ROWS($A$11:$A17)+2,FALSE) -> 1293 | CI17: =HLOOKUP(CI$7+0.5,$J$67:$DK$121,ROWS($A$11:$A17)+2,FALSE) -> 909 | CJ17: =HLOOKUP(CJ$7+0.5,$J$67:$DK$121,ROWS($A$11:$A17)+2,FALSE) -> 522 | CK17: =HLOOKUP(CK$7+0.5,$J$67:$DK$121,ROWS($A$11:$A17)+2,FALSE) -> 1262 | CL17: =HLOOKUP(CL$7+0.5,$J$67:$DK$121,ROWS($A$11:$A17)+2,FALSE) -> 923 | CM17: =HLOOKUP(CM$7+0.5,$J$67:$DK$121,ROWS($A$11:$A17)+2,FALSE) -> 1729 | CN17: =HLOOKUP(CN$7+0.5,$J$67:$DK$121,ROWS($A$11:$A17)+2,FALSE) -> 1433 | CO17: =HLOOKUP(CO$7+0.5,$J$67:$DK$121,ROWS($A$11:$A17)+2,FALSE) -> 308 | CP17: =HLOOKUP(CP$7+0.5,$J$67:$DK$121,ROWS($A$11:$A17)+2,FALSE) -> 1179 | CQ17: =HLOOKUP(CQ$7+0.5,$J$67:$DK$121,ROWS($A$11:$A17)+2,FALSE) -> 1851 | CR17: =HLOOKUP(CR$7+0.5,$J$67:$DK$121,ROWS($A$11:$A17)+2,FALSE) -> 2604 | CS17: =HLOOKUP(CS$7+0.5,$J$67:$DK$121,ROWS($A$11:$A17)+2,FALSE) -> 1678 | CT17: =HLOOKUP(CT$7+0.5,$J$67:$DK$121,ROWS($A$11:$A17)+2,FALSE) -> 1071 | CU17: =HLOOKUP(CU$7+0.5,$J$67:$DK$121,ROWS($A$11:$A17)+2,FALSE) -> 2214 | CV17: =HLOOKUP(CV$7+0.5,$J$67:$DK$121,ROWS($A$11:$A17)+2,FALSE) -> 2102 | CW17: =HLOOKUP(CW$7+0.5,$J$67:$DK$121,ROWS($A$11:$A17)+2,FALSE) -> 836 | CX17: =HLOOKUP(CX$7+0.5,$J$67:$DK$121,ROWS($A$11:$A17)+2,FALSE) -> 1530 | CY17: =HLOOKUP(CY$7+0.5,$J$67:$DK$121,ROWS($A$11:$A17)+2,FALSE) -> 153 | CZ17: =HLOOKUP(CZ$7+0.5,$J$67:$DK$121,ROWS($A$11:$A17)+2,FALSE) -> 1479 | DA17: =HLOOKUP(DA$7+0.5,$J$67:$DK$121,ROWS($A$11:$A17)+2,FALSE) -> 553 | DB17: =HLOOKUP(DB$7+0.5,$J$67:$DK$121,ROWS($A$11:$A17)+2,FALSE) -> 1135 | DC17: =HLOOKUP(DC$7+0.5,$J$67:$DK$121,ROWS($A$11:$A17)+2,FALSE) -> 3352 | DD17: =HLOOKUP(DD$7+0.5,$J$67:$DK$121,ROWS($A$11:$A17)+2,FALSE) -> 2035 | DE17: =HLOOKUP(DE$7+0.5,$J$67:$DK$121,ROWS($A$11:$A17)+2,FALSE) -> 371 | DF17: =HLOOKUP(DF$7+0.5,$J$67:$DK$121,ROWS($A$11:$A17)+2,FALSE) -> 1568 | DG17: =HLOOKUP(DG$7+0.5,$J$67:$DK$121,ROWS($A$11:$A17)+2,FALSE) -> 1401 | DH17: =HLOOKUP(DH$7+0.5,$J$67:$DK$121,ROWS($A$11:$A17)+2,FALSE) -> 429 | DI17: =HLOOKUP(DI$7+0.5,$J$67:$DK$121,ROWS($A$11:$A17)+2,FALSE) -> 1006 | DJ17: =HLOOKUP(DJ$7+0.5,$J$67:$DK$121,ROWS($A$11:$A17)+2,FALSE) -> 2808 | DK17: =HLOOKUP(DK$7+0.5,$J$67:$DK$121,ROWS($A$11:$A17)+2,FALSE) -> 903
B18: Connecticut | C18: 3555319 | D18: 2447 | E18: 3114940 | F18: 16188 | G18: 334918 | H18: 14546 | I18: 0.01135885165 | J18: =HLOOKUP(J$7,$J$67:$DK$121,ROWS($A$11:$A18)+2,FALSE) -> 80311 | K18: =HLOOKUP(K$7,$J$67:$DK$121,ROWS($A$11:$A18)+2,FALSE) -> 46 | L18: =HLOOKUP(L$7,$J$67:$DK$121,ROWS($A$11:$A18)+2,FALSE) -> 439 | M18: =HLOOKUP(M$7,$J$67:$DK$121,ROWS($A$11:$A18)+2,FALSE) -> 3167 | N18: =HLOOKUP(N$7,$J$67:$DK$121,ROWS($A$11:$A18)+2,FALSE) -> 200 | O18: =HLOOKUP(O$7,$J$67:$DK$121,ROWS($A$11:$A18)+2,FALSE) -> 3161 | P18: =HLOOKUP(P$7,$J$67:$DK$121,ROWS($A$11:$A18)+2,FALSE) -> 367 | Q18: =HLOOKUP(Q$7,$J$67:$DK$121,ROWS($A$11:$A18)+2,FALSE) -> N/A | R18: =HLOOKUP(R$7,$J$67:$DK$121,ROWS($A$11:$A18)+2,FALSE) -> 22 | S18: =HLOOKUP(S$7,$J$67:$DK$121,ROWS($A$11:$A18)+2,FALSE) -> 288 | T18: =HLOOKUP(T$7,$J$67:$DK$121,ROWS($A$11:$A18)+2,FALSE) -> 6578 | U18: =HLOOKUP(U$7,$J$67:$DK$121,ROWS($A$11:$A18)+2,FALSE) -> 1702 | V18: =HLOOKUP(V$7,$J$67:$DK$121,ROWS($A$11:$A18)+2,FALSE) -> 408 | W18: =HLOOKUP(W$7,$J$67:$DK$121,ROWS($A$11:$A18)+2,FALSE) -> 97 | X18: =HLOOKUP(X$7,$J$67:$DK$121,ROWS($A$11:$A18)+2,FALSE) -> 912 | Y18: =HLOOKUP(Y$7,$J$67:$DK$121,ROWS($A$11:$A18)+2,FALSE) -> 53 | Z18: =HLOOKUP(Z$7,$J$67:$DK$121,ROWS($A$11:$A18)+2,FALSE) -> 0 | AA18: =HLOOKUP(AA$7,$J$67:$DK$121,ROWS($A$11:$A18)+2,FALSE) -> 0 | AB18: =HLOOKUP(AB$7,$J$67:$DK$121,ROWS($A$11:$A18)+2,FALSE) -> 124 | AC18: =HLOOKUP(AC$7,$J$67:$DK$121,ROWS($A$11:$A18)+2,FALSE) -> 909 | AD18: =HLOOKUP(AD$7,$J$67:$DK$121,ROWS($A$11:$A18)+2,FALSE) -> 1224 | AE18: =HLOOKUP(AE$7,$J$67:$DK$121,ROWS($A$11:$A18)+2,FALSE) -> 1752 | AF18: =HLOOKUP(AF$7,$J$67:$DK$121,ROWS($A$11:$A18)+2,FALSE) -> 8743 | AG18: =HLOOKUP(AG$7,$J$67:$DK$121,ROWS($A$11:$A18)+2,FALSE) -> 753 | AH18: =HLOOKUP(AH$7,$J$67:$DK$121,ROWS($A$11:$A18)+2,FALSE) -> 605 | AI18: =HLOOKUP(AI$7,$J$67:$DK$121,ROWS($A$11:$A18)+2,FALSE) -> 276 | AJ18: =HLOOKUP(AJ$7,$J$67:$DK$121,ROWS($A$11:$A18)+2,FALSE) -> 358 | AK18: =HLOOKUP(AK$7,$J$67:$DK$121,ROWS($A$11:$A18)+2,FALSE) -> 50 | AL18: =HLOOKUP(AL$7,$J$67:$DK$121,ROWS($A$11:$A18)+2,FALSE) -> 45 | AM18: =HLOOKUP(AM$7,$J$67:$DK$121,ROWS($A$11:$A18)+2,FALSE) -> 172 | AN18: =HLOOKUP(AN$7,$J$67:$DK$121,ROWS($A$11:$A18)+2,FALSE) -> 1009 | AO18: =HLOOKUP(AO$7,$J$67:$DK$121,ROWS($A$11:$A18)+2,FALSE) -> 5665 | AP18: =HLOOKUP(AP$7,$J$67:$DK$121,ROWS($A$11:$A18)+2,FALSE) -> 444 | AQ18: =HLOOKUP(AQ$7,$J$67:$DK$121,ROWS($A$11:$A18)+2,FALSE) -> 23310 | AR18: =HLOOKUP(AR$7,$J$67:$DK$121,ROWS($A$11:$A18)+2,FALSE) -> 3379 | AS18: =HLOOKUP(AS$7,$J$67:$DK$121,ROWS($A$11:$A18)+2,FALSE) -> 0 | AT18: =HLOOKUP(AT$7,$J$67:$DK$121,ROWS($A$11:$A18)+2,FALSE) -> 287 | AU18: =HLOOKUP(AU$7,$J$67:$DK$121,ROWS($A$11:$A18)+2,FALSE) -> 415 | AV18: =HLOOKUP(AV$7,$J$67:$DK$121,ROWS($A$11:$A18)+2,FALSE) -> 35 | AW18: =HLOOKUP(AW$7,$J$67:$DK$121,ROWS($A$11:$A18)+2,FALSE) -> 2214 | AX18: =HLOOKUP(AX$7,$J$67:$DK$121,ROWS($A$11:$A18)+2,FALSE) -> 1558 | AY18: =HLOOKUP(AY$7,$J$67:$DK$121,ROWS($A$11:$A18)+2,FALSE) -> 940 | AZ18: =HLOOKUP(AZ$7,$J$67:$DK$121,ROWS($A$11:$A18)+2,FALSE) -> 0 | BA18: =HLOOKUP(BA$7,$J$67:$DK$121,ROWS($A$11:$A18)+2,FALSE) -> 260 | BB18: =HLOOKUP(BB$7,$J$67:$DK$121,ROWS($A$11:$A18)+2,FALSE) -> 3279 | BC18: =HLOOKUP(BC$7,$J$67:$DK$121,ROWS($A$11:$A18)+2,FALSE) -> 45 | BD18: =HLOOKUP(BD$7,$J$67:$DK$121,ROWS($A$11:$A18)+2,FALSE) -> 709 | BE18: =HLOOKUP(BE$7,$J$67:$DK$121,ROWS($A$11:$A18)+2,FALSE) -> 1729 | BF18: =HLOOKUP(BF$7,$J$67:$DK$121,ROWS($A$11:$A18)+2,FALSE) -> 1593 | BG18: =HLOOKUP(BG$7,$J$67:$DK$121,ROWS($A$11:$A18)+2,FALSE) -> 174 | BH18: =HLOOKUP(BH$7,$J$67:$DK$121,ROWS($A$11:$A18)+2,FALSE) -> 711 | BI18: =HLOOKUP(BI$7,$J$67:$DK$121,ROWS($A$11:$A18)+2,FALSE) -> 104 | BJ18: =HLOOKUP(BJ$7,$J$67:$DK$121,ROWS($A$11:$A18)+2,FALSE) -> 3228 | BK18: =HLOOKUP(BK$7+0.5,$J$67:$DK$121,ROWS($A$11:$A18)+2,FALSE) -> 6574 | BL18: =HLOOKUP(BL$7+0.5,$J$67:$DK$121,ROWS($A$11:$A18)+2,FALSE) -> 103 | BM18: =HLOOKUP(BM$7+0.5,$J$67:$DK$121,ROWS($A$11:$A18)+2,FALSE) -> 511 | BN18: =HLOOKUP(BN$7+0.5,$J$67:$DK$121,ROWS($A$11:$A18)+2,FALSE) -> 3028 | BO18: =HLOOKUP(BO$7+0.5,$J$67:$DK$121,ROWS($A$11:$A18)+2,FALSE) -> 228 | BP18: =HLOOKUP(BP$7+0.5,$J$67:$DK$121,ROWS($A$11:$A18)+2,FALSE) -> 1015 | BQ18: =HLOOKUP(BQ$7+0.5,$J$67:$DK$121,ROWS($A$11:$A18)+2,FALSE) -> 341 | BR18: =HLOOKUP(BR$7+0.5,$J$67:$DK$121,ROWS($A$11:$A18)+2,FALSE) -> N/A | BS18: =HLOOKUP(BS$7+0.5,$J$67:$DK$121,ROWS($A$11:$A18)+2,FALSE) -> 36 | BT18: =HLOOKUP(BT$7+0.5,$J$67:$DK$121,ROWS($A$11:$A18)+2,FALSE) -> 230 | BU18: =HLOOKUP(BU$7+0.5,$J$67:$DK$121,ROWS($A$11:$A18)+2,FALSE) -> 1844 | BV18: =HLOOKUP(BV$7+0.5,$J$67:$DK$121,ROWS($A$11:$A18)+2,FALSE) -> 971 | BW18: =HLOOKUP(BW$7+0.5,$J$67:$DK$121,ROWS($A$11:$A18)+2,FALSE) -> 476 | BX18: =HLOOKUP(BX$7+0.5,$J$67:$DK$121,ROWS($A$11:$A18)+2,FALSE) -> 155 | BY18: =HLOOKUP(BY$7+0.5,$J$67:$DK$121,ROWS($A$11:$A18)+2,FALSE) -> 583 | BZ18: =HLOOKUP(BZ$7+0.5,$J$67:$DK$121,ROWS($A$11:$A18)+2,FALSE) -> 90 | CA18: =HLOOKUP(CA$7+0.5,$J$67:$DK$121,ROWS($A$11:$A18)+2,FALSE) -> 193 | CB18: =HLOOKUP(CB$7+0.5,$J$67:$DK$121,ROWS($A$11:$A18)+2,FALSE) -> 193 | CC18: =HLOOKUP(CC$7+0.5,$J$67:$DK$121,ROWS($A$11:$A18)+2,FALSE) -> 159 | CD18: =HLOOKUP(CD$7+0.5,$J$67:$DK$121,ROWS($A$11:$A18)+2,FALSE) -> 733 | CE18: =HLOOKUP(CE$7+0.5,$J$67:$DK$121,ROWS($A$11:$A18)+2,FALSE) -> 696 | CF18: =HLOOKUP(CF$7+0.5,$J$67:$DK$121,ROWS($A$11:$A18)+2,FALSE) -> 748 | CG18: =HLOOKUP(CG$7+0.5,$J$67:$DK$121,ROWS($A$11:$A18)+2,FALSE) -> 1587 | CH18: =HLOOKUP(CH$7+0.5,$J$67:$DK$121,ROWS($A$11:$A18)+2,FALSE) -> 539 | CI18: =HLOOKUP(CI$7+0.5,$J$67:$DK$121,ROWS($A$11:$A18)+2,FALSE) -> 564 | CJ18: =HLOOKUP(CJ$7+0.5,$J$67:$DK$121,ROWS($A$11:$A18)+2,FALSE) -> 293 | CK18: =HLOOKUP(CK$7+0.5,$J$67:$DK$121,ROWS($A$11:$A18)+2,FALSE) -> 330 | CL18: =HLOOKUP(CL$7+0.5,$J$67:$DK$121,ROWS($A$11:$A18)+2,FALSE) -> 91 | CM18: =HLOOKUP(CM$7+0.5,$J$67:$DK$121,ROWS($A$11:$A18)+2,FALSE) -> 74 | CN18: =HLOOKUP(CN$7+0.5,$J$67:$DK$121,ROWS($A$11:$A18)+2,FALSE) -> 166 | CO18: =HLOOKUP(CO$7+0.5,$J$67:$DK$121,ROWS($A$11:$A18)+2,FALSE) -> 551 | CP18: =HLOOKUP(CP$7+0.5,$J$67:$DK$121,ROWS($A$11:$A18)+2,FALSE) -> 1490 | CQ18: =HLOOKUP(CQ$7+0.5,$J$67:$DK$121,ROWS($A$11:$A18)+2,FALSE) -> 450 | CR18: =HLOOKUP(CR$7+0.5,$J$67:$DK$121,ROWS($A$11:$A18)+2,FALSE) -> 3774 | CS18: =HLOOKUP(CS$7+0.5,$J$67:$DK$121,ROWS($A$11:$A18)+2,FALSE) -> 1609 | CT18: =HLOOKUP(CT$7+0.5,$J$67:$DK$121,ROWS($A$11:$A18)+2,FALSE) -> 193 | CU18: =HLOOKUP(CU$7+0.5,$J$67:$DK$121,ROWS($A$11:$A18)+2,FALSE) -> 254 | CV18: =HLOOKUP(CV$7+0.5,$J$67:$DK$121,ROWS($A$11:$A18)+2,FALSE) -> 411 | CW18: =HLOOKUP(CW$7+0.5,$J$67:$DK$121,ROWS($A$11:$A18)+2,FALSE) -> 58 | CX18: =HLOOKUP(CX$7+0.5,$J$67:$DK$121,ROWS($A$11:$A18)+2,FALSE) -> 1037 | CY18: =HLOOKUP(CY$7+0.5,$J$67:$DK$121,ROWS($A$11:$A18)+2,FALSE) -> 689 | CZ18: =HLOOKUP(CZ$7+0.5,$J$67:$DK$121,ROWS($A$11:$A18)+2,FALSE) -> 665 | DA18: =HLOOKUP(DA$7+0.5,$J$67:$DK$121,ROWS($A$11:$A18)+2,FALSE) -> 193 | DB18: =HLOOKUP(DB$7+0.5,$J$67:$DK$121,ROWS($A$11:$A18)+2,FALSE) -> 216 | DC18: =HLOOKUP(DC$7+0.5,$J$67:$DK$121,ROWS($A$11:$A18)+2,FALSE) -> 1568 | DD18: =HLOOKUP(DD$7+0.5,$J$67:$DK$121,ROWS($A$11:$A18)+2,FALSE) -> 69 | DE18: =HLOOKUP(DE$7+0.5,$J$67:$DK$121,ROWS($A$11:$A18)+2,FALSE) -> 556 | DF18: =HLOOKUP(DF$7+0.5,$J$67:$DK$121,ROWS($A$11:$A18)+2,FALSE) -> 707 | DG18: =HLOOKUP(DG$7+0.5,$J$67:$DK$121,ROWS($A$11:$A18)+2,FALSE) -> 1274 | DH18: =HLOOKUP(DH$7+0.5,$J$67:$DK$121,ROWS($A$11:$A18)+2,FALSE) -> 293 | DI18: =HLOOKUP(DI$7+0.5,$J$67:$DK$121,ROWS($A$11:$A18)+2,FALSE) -> 684 | DJ18: =HLOOKUP(DJ$7+0.5,$J$67:$DK$121,ROWS($A$11:$A18)+2,FALSE) -> 120 | DK18: =HLOOKUP(DK$7+0.5,$J$67:$DK$121,ROWS($A$11:$A18)+2,FALSE) -> 1540
B19: Delaware | C19: 906576 | D19: 1624 | E19: 782216 | F19: 9177 | G19: 86003 | H19: 7626 | I19: 0.004915884586 | J19: =HLOOKUP(J$7,$J$67:$DK$121,ROWS($A$11:$A19)+2,FALSE) -> 34757 | K19: =HLOOKUP(K$7,$J$67:$DK$121,ROWS($A$11:$A19)+2,FALSE) -> 119 | L19: =HLOOKUP(L$7,$J$67:$DK$121,ROWS($A$11:$A19)+2,FALSE) -> 692 | M19: =HLOOKUP(M$7,$J$67:$DK$121,ROWS($A$11:$A19)+2,FALSE) -> 188 | N19: =HLOOKUP(N$7,$J$67:$DK$121,ROWS($A$11:$A19)+2,FALSE) -> 0 | O19: =HLOOKUP(O$7,$J$67:$DK$121,ROWS($A$11:$A19)+2,FALSE) -> 2221 | P19: =HLOOKUP(P$7,$J$67:$DK$121,ROWS($A$11:$A19)+2,FALSE) -> 0 | Q19: =HLOOKUP(Q$7,$J$67:$DK$121,ROWS($A$11:$A19)+2,FALSE) -> 1489 | R19: =HLOOKUP(R$7,$J$67:$DK$121,ROWS($A$11:$A19)+2,FALSE) -> N/A | S19: =HLOOKUP(S$7,$J$67:$DK$121,ROWS($A$11:$A19)+2,FALSE) -> 11 | T19: =HLOOKUP(T$7,$J$67:$DK$121,ROWS($A$11:$A19)+2,FALSE) -> 715 | U19: =HLOOKUP(U$7,$J$67:$DK$121,ROWS($A$11:$A19)+2,FALSE) -> 179 | V19: =HLOOKUP(V$7,$J$67:$DK$121,ROWS($A$11:$A19)+2,FALSE) -> 0 | W19: =HLOOKUP(W$7,$J$67:$DK$121,ROWS($A$11:$A19)+2,FALSE) -> 32 | X19: =HLOOKUP(X$7,$J$67:$DK$121,ROWS($A$11:$A19)+2,FALSE) -> 567 | Y19: =HLOOKUP(Y$7,$J$67:$DK$121,ROWS($A$11:$A19)+2,FALSE) -> 62 | Z19: =HLOOKUP(Z$7,$J$67:$DK$121,ROWS($A$11:$A19)+2,FALSE) -> 30 | AA19: =HLOOKUP(AA$7,$J$67:$DK$121,ROWS($A$11:$A19)+2,FALSE) -> 113 | AB19: =HLOOKUP(AB$7,$J$67:$DK$121,ROWS($A$11:$A19)+2,FALSE) -> 0 | AC19: =HLOOKUP(AC$7,$J$67:$DK$121,ROWS($A$11:$A19)+2,FALSE) -> 178 | AD19: =HLOOKUP(AD$7,$J$67:$DK$121,ROWS($A$11:$A19)+2,FALSE) -> 0 | AE19: =HLOOKUP(AE$7,$J$67:$DK$121,ROWS($A$11:$A19)+2,FALSE) -> 5649 | AF19: =HLOOKUP(AF$7,$J$67:$DK$121,ROWS($A$11:$A19)+2,FALSE) -> 157 | AG19: =HLOOKUP(AG$7,$J$67:$DK$121,ROWS($A$11:$A19)+2,FALSE) -> 227 | AH19: =HLOOKUP(AH$7,$J$67:$DK$121,ROWS($A$11:$A19)+2,FALSE) -> 351 | AI19: =HLOOKUP(AI$7,$J$67:$DK$121,ROWS($A$11:$A19)+2,FALSE) -> 58 | AJ19: =HLOOKUP(AJ$7,$J$67:$DK$121,ROWS($A$11:$A19)+2,FALSE) -> 80 | AK19: =HLOOKUP(AK$7,$J$67:$DK$121,ROWS($A$11:$A19)+2,FALSE) -> 0 | AL19: =HLOOKUP(AL$7,$J$67:$DK$121,ROWS($A$11:$A19)+2,FALSE) -> 91 | AM19: =HLOOKUP(AM$7,$J$67:$DK$121,ROWS($A$11:$A19)+2,FALSE) -> 572 | AN19: =HLOOKUP(AN$7,$J$67:$DK$121,ROWS($A$11:$A19)+2,FALSE) -> 99 | AO19: =HLOOKUP(AO$7,$J$67:$DK$121,ROWS($A$11:$A19)+2,FALSE) -> 5846 | AP19: =HLOOKUP(AP$7,$J$67:$DK$121,ROWS($A$11:$A19)+2,FALSE) -> 85 | AQ19: =HLOOKUP(AQ$7,$J$67:$DK$121,ROWS($A$11:$A19)+2,FALSE) -> 3566 | AR19: =HLOOKUP(AR$7,$J$67:$DK$121,ROWS($A$11:$A19)+2,FALSE) -> 1349 | AS19: =HLOOKUP(AS$7,$J$67:$DK$121,ROWS($A$11:$A19)+2,FALSE) -> 0 | AT19: =HLOOKUP(AT$7,$J$67:$DK$121,ROWS($A$11:$A19)+2,FALSE) -> 191 | AU19: =HLOOKUP(AU$7,$J$67:$DK$121,ROWS($A$11:$A19)+2,FALSE) -> 0 | AV19: =HLOOKUP(AV$7,$J$67:$DK$121,ROWS($A$11:$A19)+2,FALSE) -> 0 | AW19: =HLOOKUP(AW$7,$J$67:$DK$121,ROWS($A$11:$A19)+2,FALSE) -> 6828 | AX19: =HLOOKUP(AX$7,$J$67:$DK$121,ROWS($A$11:$A19)+2,FALSE) -> 135 | AY19: =HLOOKUP(AY$7,$J$67:$DK$121,ROWS($A$11:$A19)+2,FALSE) -> 298 | AZ19: =HLOOKUP(AZ$7,$J$67:$DK$121,ROWS($A$11:$A19)+2,FALSE) -> 0 | BA19: =HLOOKUP(BA$7,$J$67:$DK$121,ROWS($A$11:$A19)+2,FALSE) -> 344 | BB19: =HLOOKUP(BB$7,$J$67:$DK$121,ROWS($A$11:$A19)+2,FALSE) -> 133 | BC19: =HLOOKUP(BC$7,$J$67:$DK$121,ROWS($A$11:$A19)+2,FALSE) -> 166 | BD19: =HLOOKUP(BD$7,$J$67:$DK$121,ROWS($A$11:$A19)+2,FALSE) -> 0 | BE19: =HLOOKUP(BE$7,$J$67:$DK$121,ROWS($A$11:$A19)+2,FALSE) -> 1746 | BF19: =HLOOKUP(BF$7,$J$67:$DK$121,ROWS($A$11:$A19)+2,FALSE) -> 29 | BG19: =HLOOKUP(BG$7,$J$67:$DK$121,ROWS($A$11:$A19)+2,FALSE) -> 161 | BH19: =HLOOKUP(BH$7,$J$67:$DK$121,ROWS($A$11:$A19)+2,FALSE) -> 0 | BI19: =HLOOKUP(BI$7,$J$67:$DK$121,ROWS($A$11:$A19)+2,FALSE) -> 0 | BJ19: =HLOOKUP(BJ$7,$J$67:$DK$121,ROWS($A$11:$A19)+2,FALSE) -> 56 | BK19: =HLOOKUP(BK$7+0.5,$J$67:$DK$121,ROWS($A$11:$A19)+2,FALSE) -> 4691 | BL19: =HLOOKUP(BL$7+0.5,$J$67:$DK$121,ROWS($A$11:$A19)+2,FALSE) -> 164 | BM19: =HLOOKUP(BM$7+0.5,$J$67:$DK$121,ROWS($A$11:$A19)+2,FALSE) -> 920 | BN19: =HLOOKUP(BN$7+0.5,$J$67:$DK$121,ROWS($A$11:$A19)+2,FALSE) -> 227 | BO19: =HLOOKUP(BO$7+0.5,$J$67:$DK$121,ROWS($A$11:$A19)+2,FALSE) -> 182 | BP19: =HLOOKUP(BP$7+0.5,$J$67:$DK$121,ROWS($A$11:$A19)+2,FALSE) -> 2189 | BQ19: =HLOOKUP(BQ$7+0.5,$J$67:$DK$121,ROWS($A$11:$A19)+2,FALSE) -> 182 | BR19: =HLOOKUP(BR$7+0.5,$J$67:$DK$121,ROWS($A$11:$A19)+2,FALSE) -> 679 | BS19: =HLOOKUP(BS$7+0.5,$J$67:$DK$121,ROWS($A$11:$A19)+2,FALSE) -> N/A | BT19: =HLOOKUP(BT$7+0.5,$J$67:$DK$121,ROWS($A$11:$A19)+2,FALSE) -> 21 | BU19: =HLOOKUP(BU$7+0.5,$J$67:$DK$121,ROWS($A$11:$A19)+2,FALSE) -> 481 | BV19: =HLOOKUP(BV$7+0.5,$J$67:$DK$121,ROWS($A$11:$A19)+2,FALSE) -> 224 | BW19: =HLOOKUP(BW$7+0.5,$J$67:$DK$121,ROWS($A$11:$A19)+2,FALSE) -> 182 | BX19: =HLOOKUP(BX$7+0.5,$J$67:$DK$121,ROWS($A$11:$A19)+2,FALSE) -> 51 | BY19: =HLOOKUP(BY$7+0.5,$J$67:$DK$121,ROWS($A$11:$A19)+2,FALSE) -> 468 | BZ19: =HLOOKUP(BZ$7+0.5,$J$67:$DK$121,ROWS($A$11:$A19)+2,FALSE) -> 80 | CA19: =HLOOKUP(CA$7+0.5,$J$67:$DK$121,ROWS($A$11:$A19)+2,FALSE) -> 49 | CB19: =HLOOKUP(CB$7+0.5,$J$67:$DK$121,ROWS($A$11:$A19)+2,FALSE) -> 190 | CC19: =HLOOKUP(CC$7+0.5,$J$67:$DK$121,ROWS($A$11:$A19)+2,FALSE) -> 182 | CD19: =HLOOKUP(CD$7+0.5,$J$67:$DK$121,ROWS($A$11:$A19)+2,FALSE) -> 266 | CE19: =HLOOKUP(CE$7+0.5,$J$67:$DK$121,ROWS($A$11:$A19)+2,FALSE) -> 182 | CF19: =HLOOKUP(CF$7+0.5,$J$67:$DK$121,ROWS($A$11:$A19)+2,FALSE) -> 1598 | CG19: =HLOOKUP(CG$7+0.5,$J$67:$DK$121,ROWS($A$11:$A19)+2,FALSE) -> 131 | CH19: =HLOOKUP(CH$7+0.5,$J$67:$DK$121,ROWS($A$11:$A19)+2,FALSE) -> 233 | CI19: =HLOOKUP(CI$7+0.5,$J$67:$DK$121,ROWS($A$11:$A19)+2,FALSE) -> 390 | CJ19: =HLOOKUP(CJ$7+0.5,$J$67:$DK$121,ROWS($A$11:$A19)+2,FALSE) -> 110 | CK19: =HLOOKUP(CK$7+0.5,$J$67:$DK$121,ROWS($A$11:$A19)+2,FALSE) -> 138 | CL19: =HLOOKUP(CL$7+0.5,$J$67:$DK$121,ROWS($A$11:$A19)+2,FALSE) -> 182 | CM19: =HLOOKUP(CM$7+0.5,$J$67:$DK$121,ROWS($A$11:$A19)+2,FALSE) -> 116 | CN19: =HLOOKUP(CN$7+0.5,$J$67:$DK$121,ROWS($A$11:$A19)+2,FALSE) -> 474 | CO19: =HLOOKUP(CO$7+0.5,$J$67:$DK$121,ROWS($A$11:$A19)+2,FALSE) -> 127 | CP19: =HLOOKUP(CP$7+0.5,$J$67:$DK$121,ROWS($A$11:$A19)+2,FALSE) -> 2122 | CQ19: =HLOOKUP(CQ$7+0.5,$J$67:$DK$121,ROWS($A$11:$A19)+2,FALSE) -> 136 | CR19: =HLOOKUP(CR$7+0.5,$J$67:$DK$121,ROWS($A$11:$A19)+2,FALSE) -> 1751 | CS19: =HLOOKUP(CS$7+0.5,$J$67:$DK$121,ROWS($A$11:$A19)+2,FALSE) -> 809 | CT19: =HLOOKUP(CT$7+0.5,$J$67:$DK$121,ROWS($A$11:$A19)+2,FALSE) -> 182 | CU19: =HLOOKUP(CU$7+0.5,$J$67:$DK$121,ROWS($A$11:$A19)+2,FALSE) -> 201 | CV19: =HLOOKUP(CV$7+0.5,$J$67:$DK$121,ROWS($A$11:$A19)+2,FALSE) -> 182 | CW19: =HLOOKUP(CW$7+0.5,$J$67:$DK$121,ROWS($A$11:$A19)+2,FALSE) -> 182 | CX19: =HLOOKUP(CX$7+0.5,$J$67:$DK$121,ROWS($A$11:$A19)+2,FALSE) -> 1815 | CY19: =HLOOKUP(CY$7+0.5,$J$67:$DK$121,ROWS($A$11:$A19)+2,FALSE) -> 185 | CZ19: =HLOOKUP(CZ$7+0.5,$J$67:$DK$121,ROWS($A$11:$A19)+2,FALSE) -> 235 | DA19: =HLOOKUP(DA$7+0.5,$J$67:$DK$121,ROWS($A$11:$A19)+2,FALSE) -> 182 | DB19: =HLOOKUP(DB$7+0.5,$J$67:$DK$121,ROWS($A$11:$A19)+2,FALSE) -> 440 | DC19: =HLOOKUP(DC$7+0.5,$J$67:$DK$121,ROWS($A$11:$A19)+2,FALSE) -> 158 | DD19: =HLOOKUP(DD$7+0.5,$J$67:$DK$121,ROWS($A$11:$A19)+2,FALSE) -> 279 | DE19: =HLOOKUP(DE$7+0.5,$J$67:$DK$121,ROWS($A$11:$A19)+2,FALSE) -> 182 | DF19: =HLOOKUP(DF$7+0.5,$J$67:$DK$121,ROWS($A$11:$A19)+2,FALSE) -> 910 | DG19: =HLOOKUP(DG$7+0.5,$J$67:$DK$121,ROWS($A$11:$A19)+2,FALSE) -> 49 | DH19: =HLOOKUP(DH$7+0.5,$J$67:$DK$121,ROWS($A$11:$A19)+2,FALSE) -> 205 | DI19: =HLOOKUP(DI$7+0.5,$J$67:$DK$121,ROWS($A$11:$A19)+2,FALSE) -> 182 | DJ19: =HLOOKUP(DJ$7+0.5,$J$67:$DK$121,ROWS($A$11:$A19)+2,FALSE) -> 182 | DK19: =HLOOKUP(DK$7+0.5,$J$67:$DK$121,ROWS($A$11:$A19)+2,FALSE) -> 90
B20: District of Columbia | C20: 624847 | D20: 948 | E20: 500267 | F20: 6225 | G20: 61992 | H20: 5668 | I20: 0.007613489865 | J20: =HLOOKUP(J$7,$J$67:$DK$121,ROWS($A$11:$A20)+2,FALSE) -> 53830 | K20: =HLOOKUP(K$7,$J$67:$DK$121,ROWS($A$11:$A20)+2,FALSE) -> 79 | L20: =HLOOKUP(L$7,$J$67:$DK$121,ROWS($A$11:$A20)+2,FALSE) -> 1247 | M20: =HLOOKUP(M$7,$J$67:$DK$121,ROWS($A$11:$A20)+2,FALSE) -> 902 | N20: =HLOOKUP(N$7,$J$67:$DK$121,ROWS($A$11:$A20)+2,FALSE) -> 35 | O20: =HLOOKUP(O$7,$J$67:$DK$121,ROWS($A$11:$A20)+2,FALSE) -> 4999 | P20: =HLOOKUP(P$7,$J$67:$DK$121,ROWS($A$11:$A20)+2,FALSE) -> 677 | Q20: =HLOOKUP(Q$7,$J$67:$DK$121,ROWS($A$11:$A20)+2,FALSE) -> 618 | R20: =HLOOKUP(R$7,$J$67:$DK$121,ROWS($A$11:$A20)+2,FALSE) -> 78 | S20: =HLOOKUP(S$7,$J$67:$DK$121,ROWS($A$11:$A20)+2,FALSE) -> N/A | T20: =HLOOKUP(T$7,$J$67:$DK$121,ROWS($A$11:$A20)+2,FALSE) -> 1705 | U20: =HLOOKUP(U$7,$J$67:$DK$121,ROWS($A$11:$A20)+2,FALSE) -> 1079 | V20: =HLOOKUP(V$7,$J$67:$DK$121,ROWS($A$11:$A20)+2,FALSE) -> 38 | W20: =HLOOKUP(W$7,$J$67:$DK$121,ROWS($A$11:$A20)+2,FALSE) -> 46 | X20: =HLOOKUP(X$7,$J$67:$DK$121,ROWS($A$11:$A20)+2,FALSE) -> 795 | Y20: =HLOOKUP(Y$7,$J$67:$DK$121,ROWS($A$11:$A20)+2,FALSE) -> 469 | Z20: =HLOOKUP(Z$7,$J$67:$DK$121,ROWS($A$11:$A20)+2,FALSE) -> 133 | AA20: =HLOOKUP(AA$7,$J$67:$DK$121,ROWS($A$11:$A20)+2,FALSE) -> 164 | AB20: =HLOOKUP(AB$7,$J$67:$DK$121,ROWS($A$11:$A20)+2,FALSE) -> 112 | AC20: =HLOOKUP(AC$7,$J$67:$DK$121,ROWS($A$11:$A20)+2,FALSE) -> 283 | AD20: =HLOOKUP(AD$7,$J$67:$DK$121,ROWS($A$11:$A20)+2,FALSE) -> 194 | AE20: =HLOOKUP(AE$7,$J$67:$DK$121,ROWS($A$11:$A20)+2,FALSE) -> 14120 | AF20: =HLOOKUP(AF$7,$J$67:$DK$121,ROWS($A$11:$A20)+2,FALSE) -> 1524 | AG20: =HLOOKUP(AG$7,$J$67:$DK$121,ROWS($A$11:$A20)+2,FALSE) -> 944 | AH20: =HLOOKUP(AH$7,$J$67:$DK$121,ROWS($A$11:$A20)+2,FALSE) -> 393 | AI20: =HLOOKUP(AI$7,$J$67:$DK$121,ROWS($A$11:$A20)+2,FALSE) -> 44 | AJ20: =HLOOKUP(AJ$7,$J$67:$DK$121,ROWS($A$11:$A20)+2,FALSE) -> 337 | AK20: =HLOOKUP(AK$7,$J$67:$DK$121,ROWS($A$11:$A20)+2,FALSE) -> 0 | AL20: =HLOOKUP(AL$7,$J$67:$DK$121,ROWS($A$11:$A20)+2,FALSE) -> 172 | AM20: =HLOOKUP(AM$7,$J$67:$DK$121,ROWS($A$11:$A20)+2,FALSE) -> 42 | AN20: =HLOOKUP(AN$7,$J$67:$DK$121,ROWS($A$11:$A20)+2,FALSE) -> 197 | AO20: =HLOOKUP(AO$7,$J$67:$DK$121,ROWS($A$11:$A20)+2,FALSE) -> 1451 | AP20: =HLOOKUP(AP$7,$J$67:$DK$121,ROWS($A$11:$A20)+2,FALSE) -> 116 | AQ20: =HLOOKUP(AQ$7,$J$67:$DK$121,ROWS($A$11:$A20)+2,FALSE) -> 3085 | AR20: =HLOOKUP(AR$7,$J$67:$DK$121,ROWS($A$11:$A20)+2,FALSE) -> 985 | AS20: =HLOOKUP(AS$7,$J$67:$DK$121,ROWS($A$11:$A20)+2,FALSE) -> 0 | AT20: =HLOOKUP(AT$7,$J$67:$DK$121,ROWS($A$11:$A20)+2,FALSE) -> 651 | AU20: =HLOOKUP(AU$7,$J$67:$DK$121,ROWS($A$11:$A20)+2,FALSE) -> 0 | AV20: =HLOOKUP(AV$7,$J$67:$DK$121,ROWS($A$11:$A20)+2,FALSE) -> 157 | AW20: =HLOOKUP(AW$7,$J$67:$DK$121,ROWS($A$11:$A20)+2,FALSE) -> 1494 | AX20: =HLOOKUP(AX$7,$J$67:$DK$121,ROWS($A$11:$A20)+2,FALSE) -> 635 | AY20: =HLOOKUP(AY$7,$J$67:$DK$121,ROWS($A$11:$A20)+2,FALSE) -> 150 | AZ20: =HLOOKUP(AZ$7,$J$67:$DK$121,ROWS($A$11:$A20)+2,FALSE) -> 0 | BA20: =HLOOKUP(BA$7,$J$67:$DK$121,ROWS($A$11:$A20)+2,FALSE) -> 577 | BB20: =HLOOKUP(BB$7,$J$67:$DK$121,ROWS($A$11:$A20)+2,FALSE) -> 1473 | BC20: =HLOOKUP(BC$7,$J$67:$DK$121,ROWS($A$11:$A20)+2,FALSE) -> 116 | BD20: =HLOOKUP(BD$7,$J$67:$DK$121,ROWS($A$11:$A20)+2,FALSE) -> 267 | BE20: =HLOOKUP(BE$7,$J$67:$DK$121,ROWS($A$11:$A20)+2,FALSE) -> 9537 | BF20: =HLOOKUP(BF$7,$J$67:$DK$121,ROWS($A$11:$A20)+2,FALSE) -> 481 | BG20: =HLOOKUP(BG$7,$J$67:$DK$121,ROWS($A$11:$A20)+2,FALSE) -> 293 | BH20: =HLOOKUP(BH$7,$J$67:$DK$121,ROWS($A$11:$A20)+2,FALSE) -> 721 | BI20: =HLOOKUP(BI$7,$J$67:$DK$121,ROWS($A$11:$A20)+2,FALSE) -> 215 | BJ20: =HLOOKUP(BJ$7,$J$67:$DK$121,ROWS($A$11:$A20)+2,FALSE) -> 0 | BK20: =HLOOKUP(BK$7+0.5,$J$67:$DK$121,ROWS($A$11:$A20)+2,FALSE) -> 5001 | BL20: =HLOOKUP(BL$7+0.5,$J$67:$DK$121,ROWS($A$11:$A20)+2,FALSE) -> 138 | BM20: =HLOOKUP(BM$7+0.5,$J$67:$DK$121,ROWS($A$11:$A20)+2,FALSE) -> 715 | BN20: =HLOOKUP(BN$7+0.5,$J$67:$DK$121,ROWS($A$11:$A20)+2,FALSE) -> 646 | BO20: =HLOOKUP(BO$7+0.5,$J$67:$DK$121,ROWS($A$11:$A20)+2,FALSE) -> 59 | BP20: =HLOOKUP(BP$7+0.5,$J$67:$DK$121,ROWS($A$11:$A20)+2,FALSE) -> 2108 | BQ20: =HLOOKUP(BQ$7+0.5,$J$67:$DK$121,ROWS($A$11:$A20)+2,FALSE) -> 546 | BR20: =HLOOKUP(BR$7+0.5,$J$67:$DK$121,ROWS($A$11:$A20)+2,FALSE) -> 439 | BS20: =HLOOKUP(BS$7+0.5,$J$67:$DK$121,ROWS($A$11:$A20)+2,FALSE) -> 127 | BT20: =HLOOKUP(BT$7+0.5,$J$67:$DK$121,ROWS($A$11:$A20)+2,FALSE) -> N/A | BU20: =HLOOKUP(BU$7+0.5,$J$67:$DK$121,ROWS($A$11:$A20)+2,FALSE) -> 661 | BV20: =HLOOKUP(BV$7+0.5,$J$67:$DK$121,ROWS($A$11:$A20)+2,FALSE) -> 470 | BW20: =HLOOKUP(BW$7+0.5,$J$67:$DK$121,ROWS($A$11:$A20)+2,FALSE) -> 87 | BX20: =HLOOKUP(BX$7+0.5,$J$67:$DK$121,ROWS($A$11:$A20)+2,FALSE) -> 75 | BY20: =HLOOKUP(BY$7+0.5,$J$67:$DK$121,ROWS($A$11:$A20)+2,FALSE) -> 446 | BZ20: =HLOOKUP(BZ$7+0.5,$J$67:$DK$121,ROWS($A$11:$A20)+2,FALSE) -> 379 | CA20: =HLOOKUP(CA$7+0.5,$J$67:$DK$121,ROWS($A$11:$A20)+2,FALSE) -> 221 | CB20: =HLOOKUP(CB$7+0.5,$J$67:$DK$121,ROWS($A$11:$A20)+2,FALSE) -> 267 | CC20: =HLOOKUP(CC$7+0.5,$J$67:$DK$121,ROWS($A$11:$A20)+2,FALSE) -> 136 | CD20: =HLOOKUP(CD$7+0.5,$J$67:$DK$121,ROWS($A$11:$A20)+2,FALSE) -> 295 | CE20: =HLOOKUP(CE$7+0.5,$J$67:$DK$121,ROWS($A$11:$A20)+2,FALSE) -> 244 | CF20: =HLOOKUP(CF$7+0.5,$J$67:$DK$121,ROWS($A$11:$A20)+2,FALSE) -> 2487 | CG20: =HLOOKUP(CG$7+0.5,$J$67:$DK$121,ROWS($A$11:$A20)+2,FALSE) -> 717 | CH20: =HLOOKUP(CH$7+0.5,$J$67:$DK$121,ROWS($A$11:$A20)+2,FALSE) -> 670 | CI20: =HLOOKUP(CI$7+0.5,$J$67:$DK$121,ROWS($A$11:$A20)+2,FALSE) -> 240 | CJ20: =HLOOKUP(CJ$7+0.5,$J$67:$DK$121,ROWS($A$11:$A20)+2,FALSE) -> 74 | CK20: =HLOOKUP(CK$7+0.5,$J$67:$DK$121,ROWS($A$11:$A20)+2,FALSE) -> 354 | CL20: =HLOOKUP(CL$7+0.5,$J$67:$DK$121,ROWS($A$11:$A20)+2,FALSE) -> 197 | CM20: =HLOOKUP(CM$7+0.5,$J$67:$DK$121,ROWS($A$11:$A20)+2,FALSE) -> 182 | CN20: =HLOOKUP(CN$7+0.5,$J$67:$DK$121,ROWS($A$11:$A20)+2,FALSE) -> 69 | CO20: =HLOOKUP(CO$7+0.5,$J$67:$DK$121,ROWS($A$11:$A20)+2,FALSE) -> 183 | CP20: =HLOOKUP(CP$7+0.5,$J$67:$DK$121,ROWS($A$11:$A20)+2,FALSE) -> 792 | CQ20: =HLOOKUP(CQ$7+0.5,$J$67:$DK$121,ROWS($A$11:$A20)+2,FALSE) -> 139 | CR20: =HLOOKUP(CR$7+0.5,$J$67:$DK$121,ROWS($A$11:$A20)+2,FALSE) -> 851 | CS20: =HLOOKUP(CS$7+0.5,$J$67:$DK$121,ROWS($A$11:$A20)+2,FALSE) -> 503 | CT20: =HLOOKUP(CT$7+0.5,$J$67:$DK$121,ROWS($A$11:$A20)+2,FALSE) -> 197 | CU20: =HLOOKUP(CU$7+0.5,$J$67:$DK$121,ROWS($A$11:$A20)+2,FALSE) -> 429 | CV20: =HLOOKUP(CV$7+0.5,$J$67:$DK$121,ROWS($A$11:$A20)+2,FALSE) -> 197 | CW20: =HLOOKUP(CW$7+0.5,$J$67:$DK$121,ROWS($A$11:$A20)+2,FALSE) -> 182 | CX20: =HLOOKUP(CX$7+0.5,$J$67:$DK$121,ROWS($A$11:$A20)+2,FALSE) -> 608 | CY20: =HLOOKUP(CY$7+0.5,$J$67:$DK$121,ROWS($A$11:$A20)+2,FALSE) -> 596 | CZ20: =HLOOKUP(CZ$7+0.5,$J$67:$DK$121,ROWS($A$11:$A20)+2,FALSE) -> 140 | DA20: =HLOOKUP(DA$7+0.5,$J$67:$DK$121,ROWS($A$11:$A20)+2,FALSE) -> 197 | DB20: =HLOOKUP(DB$7+0.5,$J$67:$DK$121,ROWS($A$11:$A20)+2,FALSE) -> 478 | DC20: =HLOOKUP(DC$7+0.5,$J$67:$DK$121,ROWS($A$11:$A20)+2,FALSE) -> 826 | DD20: =HLOOKUP(DD$7+0.5,$J$67:$DK$121,ROWS($A$11:$A20)+2,FALSE) -> 145 | DE20: =HLOOKUP(DE$7+0.5,$J$67:$DK$121,ROWS($A$11:$A20)+2,FALSE) -> 250 | DF20: =HLOOKUP(DF$7+0.5,$J$67:$DK$121,ROWS($A$11:$A20)+2,FALSE) -> 1762 | DG20: =HLOOKUP(DG$7+0.5,$J$67:$DK$121,ROWS($A$11:$A20)+2,FALSE) -> 358 | DH20: =HLOOKUP(DH$7+0.5,$J$67:$DK$121,ROWS($A$11:$A20)+2,FALSE) -> 219 | DI20: =HLOOKUP(DI$7+0.5,$J$67:$DK$121,ROWS($A$11:$A20)+2,FALSE) -> 420 | DJ20: =HLOOKUP(DJ$7+0.5,$J$67:$DK$121,ROWS($A$11:$A20)+2,FALSE) -> 303 | DK20: =HLOOKUP(DK$7+0.5,$J$67:$DK$121,ROWS($A$11:$A20)+2,FALSE) -> 197
B21: Florida | C21: 19114620 | D21: 6877 | E21: 16032617 | F21: 49245 | G21: 2380288 | H21: 44658 | I21: 0.07597196459 | J21: =HLOOKUP(J$7,$J$67:$DK$121,ROWS($A$11:$A21)+2,FALSE) -> 537148 | K21: =HLOOKUP(K$7,$J$67:$DK$121,ROWS($A$11:$A21)+2,FALSE) -> 18599 | L21: =HLOOKUP(L$7,$J$67:$DK$121,ROWS($A$11:$A21)+2,FALSE) -> 10704 | M21: =HLOOKUP(M$7,$J$67:$DK$121,ROWS($A$11:$A21)+2,FALSE) -> 6473 | N21: =HLOOKUP(N$7,$J$67:$DK$121,ROWS($A$11:$A21)+2,FALSE) -> 3321 | O21: =HLOOKUP(O$7,$J$67:$DK$121,ROWS($A$11:$A21)+2,FALSE) -> 20386 | P21: =HLOOKUP(P$7,$J$67:$DK$121,ROWS($A$11:$A21)+2,FALSE) -> 8766 | Q21: =HLOOKUP(Q$7,$J$67:$DK$121,ROWS($A$11:$A21)+2,FALSE) -> 8975 | R21: =HLOOKUP(R$7,$J$67:$DK$121,ROWS($A$11:$A21)+2,FALSE) -> 1099 | S21: =HLOOKUP(S$7,$J$67:$DK$121,ROWS($A$11:$A21)+2,FALSE) -> 780 | T21: =HLOOKUP(T$7,$J$67:$DK$121,ROWS($A$11:$A21)+2,FALSE) -> N/A | U21: =HLOOKUP(U$7,$J$67:$DK$121,ROWS($A$11:$A21)+2,FALSE) -> 42754 | V21: =HLOOKUP(V$7,$J$67:$DK$121,ROWS($A$11:$A21)+2,FALSE) -> 3177 | W21: =HLOOKUP(W$7,$J$67:$DK$121,ROWS($A$11:$A21)+2,FALSE) -> 1268 | X21: =HLOOKUP(X$7,$J$67:$DK$121,ROWS($A$11:$A21)+2,FALSE) -> 22565 | Y21: =HLOOKUP(Y$7,$J$67:$DK$121,ROWS($A$11:$A21)+2,FALSE) -> 13803 | Z21: =HLOOKUP(Z$7,$J$67:$DK$121,ROWS($A$11:$A21)+2,FALSE) -> 3864 | AA21: =HLOOKUP(AA$7,$J$67:$DK$121,ROWS($A$11:$A21)+2,FALSE) -> 5661 | AB21: =HLOOKUP(AB$7,$J$67:$DK$121,ROWS($A$11:$A21)+2,FALSE) -> 6912 | AC21: =HLOOKUP(AC$7,$J$67:$DK$121,ROWS($A$11:$A21)+2,FALSE) -> 5550 | AD21: =HLOOKUP(AD$7,$J$67:$DK$121,ROWS($A$11:$A21)+2,FALSE) -> 7348 | AE21: =HLOOKUP(AE$7,$J$67:$DK$121,ROWS($A$11:$A21)+2,FALSE) -> 10442 | AF21: =HLOOKUP(AF$7,$J$67:$DK$121,ROWS($A$11:$A21)+2,FALSE) -> 15159 | AG21: =HLOOKUP(AG$7,$J$67:$DK$121,ROWS($A$11:$A21)+2,FALSE) -> 23400 | AH21: =HLOOKUP(AH$7,$J$67:$DK$121,ROWS($A$11:$A21)+2,FALSE) -> 5460 | AI21: =HLOOKUP(AI$7,$J$67:$DK$121,ROWS($A$11:$A21)+2,FALSE) -> 5490 | AJ21: =HLOOKUP(AJ$7,$J$67:$DK$121,ROWS($A$11:$A21)+2,FALSE) -> 10666 | AK21: =HLOOKUP(AK$7,$J$67:$DK$121,ROWS($A$11:$A21)+2,FALSE) -> 1758 | AL21: =HLOOKUP(AL$7,$J$67:$DK$121,ROWS($A$11:$A21)+2,FALSE) -> 945 | AM21: =HLOOKUP(AM$7,$J$67:$DK$121,ROWS($A$11:$A21)+2,FALSE) -> 1241 | AN21: =HLOOKUP(AN$7,$J$67:$DK$121,ROWS($A$11:$A21)+2,FALSE) -> 2362 | AO21: =HLOOKUP(AO$7,$J$67:$DK$121,ROWS($A$11:$A21)+2,FALSE) -> 27606 | AP21: =HLOOKUP(AP$7,$J$67:$DK$121,ROWS($A$11:$A21)+2,FALSE) -> 2853 | AQ21: =HLOOKUP(AQ$7,$J$67:$DK$121,ROWS($A$11:$A21)+2,FALSE) -> 53009 | AR21: =HLOOKUP(AR$7,$J$67:$DK$121,ROWS($A$11:$A21)+2,FALSE) -> 23133 | AS21: =HLOOKUP(AS$7,$J$67:$DK$121,ROWS($A$11:$A21)+2,FALSE) -> 239 | AT21: =HLOOKUP(AT$7,$J$67:$DK$121,ROWS($A$11:$A21)+2,FALSE) -> 22927 | AU21: =HLOOKUP(AU$7,$J$67:$DK$121,ROWS($A$11:$A21)+2,FALSE) -> 3142 | AV21: =HLOOKUP(AV$7,$J$67:$DK$121,ROWS($A$11:$A21)+2,FALSE) -> 2919 | AW21: =HLOOKUP(AW$7,$J$67:$DK$121,ROWS($A$11:$A21)+2,FALSE) -> 25659 | AX21: =HLOOKUP(AX$7,$J$67:$DK$121,ROWS($A$11:$A21)+2,FALSE) -> 3050 | AY21: =HLOOKUP(AY$7,$J$67:$DK$121,ROWS($A$11:$A21)+2,FALSE) -> 11366 | AZ21: =HLOOKUP(AZ$7,$J$67:$DK$121,ROWS($A$11:$A21)+2,FALSE) -> 1070 | BA21: =HLOOKUP(BA$7,$J$67:$DK$121,ROWS($A$11:$A21)+2,FALSE) -> 16275 | BB21: =HLOOKUP(BB$7,$J$67:$DK$121,ROWS($A$11:$A21)+2,FALSE) -> 28564 | BC21: =HLOOKUP(BC$7,$J$67:$DK$121,ROWS($A$11:$A21)+2,FALSE) -> 2499 | BD21: =HLOOKUP(BD$7,$J$67:$DK$121,ROWS($A$11:$A21)+2,FALSE) -> 2747 | BE21: =HLOOKUP(BE$7,$J$67:$DK$121,ROWS($A$11:$A21)+2,FALSE) -> 25697 | BF21: =HLOOKUP(BF$7,$J$67:$DK$121,ROWS($A$11:$A21)+2,FALSE) -> 4943 | BG21: =HLOOKUP(BG$7,$J$67:$DK$121,ROWS($A$11:$A21)+2,FALSE) -> 3533 | BH21: =HLOOKUP(BH$7,$J$67:$DK$121,ROWS($A$11:$A21)+2,FALSE) -> 6216 | BI21: =HLOOKUP(BI$7,$J$67:$DK$121,ROWS($A$11:$A21)+2,FALSE) -> 773 | BJ21: =HLOOKUP(BJ$7,$J$67:$DK$121,ROWS($A$11:$A21)+2,FALSE) -> 21638 | BK21: =HLOOKUP(BK$7+0.5,$J$67:$DK$121,ROWS($A$11:$A21)+2,FALSE) -> 19784 | BL21: =HLOOKUP(BL$7+0.5,$J$67:$DK$121,ROWS($A$11:$A21)+2,FALSE) -> 4762 | BM21: =HLOOKUP(BM$7+0.5,$J$67:$DK$121,ROWS($A$11:$A21)+2,FALSE) -> 4327 | BN21: =HLOOKUP(BN$7+0.5,$J$67:$DK$121,ROWS($A$11:$A21)+2,FALSE) -> 1865 | BO21: =HLOOKUP(BO$7+0.5,$J$67:$DK$121,ROWS($A$11:$A21)+2,FALSE) -> 1136 | BP21: =HLOOKUP(BP$7+0.5,$J$67:$DK$121,ROWS($A$11:$A21)+2,FALSE) -> 4221 | BQ21: =HLOOKUP(BQ$7+0.5,$J$67:$DK$121,ROWS($A$11:$A21)+2,FALSE) -> 2537 | BR21: =HLOOKUP(BR$7+0.5,$J$67:$DK$121,ROWS($A$11:$A21)+2,FALSE) -> 1882 | BS21: =HLOOKUP(BS$7+0.5,$J$67:$DK$121,ROWS($A$11:$A21)+2,FALSE) -> 608 | BT21: =HLOOKUP(BT$7+0.5,$J$67:$DK$121,ROWS($A$11:$A21)+2,FALSE) -> 481 | BU21: =HLOOKUP(BU$7+0.5,$J$67:$DK$121,ROWS($A$11:$A21)+2,FALSE) -> N/A | BV21: =HLOOKUP(BV$7+0.5,$J$67:$DK$121,ROWS($A$11:$A21)+2,FALSE) -> 6205 | BW21: =HLOOKUP(BW$7+0.5,$J$67:$DK$121,ROWS($A$11:$A21)+2,FALSE) -> 2730 | BX21: =HLOOKUP(BX$7+0.5,$J$67:$DK$121,ROWS($A$11:$A21)+2,FALSE) -> 923 | BY21: =HLOOKUP(BY$7+0.5,$J$67:$DK$121,ROWS($A$11:$A21)+2,FALSE) -> 3828 | BZ21: =HLOOKUP(BZ$7+0.5,$J$67:$DK$121,ROWS($A$11:$A21)+2,FALSE) -> 2852 | CA21: =HLOOKUP(CA$7+0.5,$J$67:$DK$121,ROWS($A$11:$A21)+2,FALSE) -> 1332 | CB21: =HLOOKUP(CB$7+0.5,$J$67:$DK$121,ROWS($A$11:$A21)+2,FALSE) -> 3133 | CC21: =HLOOKUP(CC$7+0.5,$J$67:$DK$121,ROWS($A$11:$A21)+2,FALSE) -> 1607 | CD21: =HLOOKUP(CD$7+0.5,$J$67:$DK$121,ROWS($A$11:$A21)+2,FALSE) -> 2266 | CE21: =HLOOKUP(CE$7+0.5,$J$67:$DK$121,ROWS($A$11:$A21)+2,FALSE) -> 3032 | CF21: =HLOOKUP(CF$7+0.5,$J$67:$DK$121,ROWS($A$11:$A21)+2,FALSE) -> 2378 | CG21: =HLOOKUP(CG$7+0.5,$J$67:$DK$121,ROWS($A$11:$A21)+2,FALSE) -> 2747 | CH21: =HLOOKUP(CH$7+0.5,$J$67:$DK$121,ROWS($A$11:$A21)+2,FALSE) -> 3519 | CI21: =HLOOKUP(CI$7+0.5,$J$67:$DK$121,ROWS($A$11:$A21)+2,FALSE) -> 2185 | CJ21: =HLOOKUP(CJ$7+0.5,$J$67:$DK$121,ROWS($A$11:$A21)+2,FALSE) -> 3345 | CK21: =HLOOKUP(CK$7+0.5,$J$67:$DK$121,ROWS($A$11:$A21)+2,FALSE) -> 3498 | CL21: =HLOOKUP(CL$7+0.5,$J$67:$DK$121,ROWS($A$11:$A21)+2,FALSE) -> 2104 | CM21: =HLOOKUP(CM$7+0.5,$J$67:$DK$121,ROWS($A$11:$A21)+2,FALSE) -> 713 | CN21: =HLOOKUP(CN$7+0.5,$J$67:$DK$121,ROWS($A$11:$A21)+2,FALSE) -> 515 | CO21: =HLOOKUP(CO$7+0.5,$J$67:$DK$121,ROWS($A$11:$A21)+2,FALSE) -> 922 | CP21: =HLOOKUP(CP$7+0.5,$J$67:$DK$121,ROWS($A$11:$A21)+2,FALSE) -> 4242 | CQ21: =HLOOKUP(CQ$7+0.5,$J$67:$DK$121,ROWS($A$11:$A21)+2,FALSE) -> 1004 | CR21: =HLOOKUP(CR$7+0.5,$J$67:$DK$121,ROWS($A$11:$A21)+2,FALSE) -> 5886 | CS21: =HLOOKUP(CS$7+0.5,$J$67:$DK$121,ROWS($A$11:$A21)+2,FALSE) -> 3843 | CT21: =HLOOKUP(CT$7+0.5,$J$67:$DK$121,ROWS($A$11:$A21)+2,FALSE) -> 203 | CU21: =HLOOKUP(CU$7+0.5,$J$67:$DK$121,ROWS($A$11:$A21)+2,FALSE) -> 4305 | CV21: =HLOOKUP(CV$7+0.5,$J$67:$DK$121,ROWS($A$11:$A21)+2,FALSE) -> 1301 | CW21: =HLOOKUP(CW$7+0.5,$J$67:$DK$121,ROWS($A$11:$A21)+2,FALSE) -> 1736 | CX21: =HLOOKUP(CX$7+0.5,$J$67:$DK$121,ROWS($A$11:$A21)+2,FALSE) -> 4174 | CY21: =HLOOKUP(CY$7+0.5,$J$67:$DK$121,ROWS($A$11:$A21)+2,FALSE) -> 1458 | CZ21: =HLOOKUP(CZ$7+0.5,$J$67:$DK$121,ROWS($A$11:$A21)+2,FALSE) -> 2719 | DA21: =HLOOKUP(DA$7+0.5,$J$67:$DK$121,ROWS($A$11:$A21)+2,FALSE) -> 762 | DB21: =HLOOKUP(DB$7+0.5,$J$67:$DK$121,ROWS($A$11:$A21)+2,FALSE) -> 3583 | DC21: =HLOOKUP(DC$7+0.5,$J$67:$DK$121,ROWS($A$11:$A21)+2,FALSE) -> 4750 | DD21: =HLOOKUP(DD$7+0.5,$J$67:$DK$121,ROWS($A$11:$A21)+2,FALSE) -> 1348 | DE21: =HLOOKUP(DE$7+0.5,$J$67:$DK$121,ROWS($A$11:$A21)+2,FALSE) -> 1190 | DF21: =HLOOKUP(DF$7+0.5,$J$67:$DK$121,ROWS($A$11:$A21)+2,FALSE) -> 3965 | DG21: =HLOOKUP(DG$7+0.5,$J$67:$DK$121,ROWS($A$11:$A21)+2,FALSE) -> 1710 | DH21: =HLOOKUP(DH$7+0.5,$J$67:$DK$121,ROWS($A$11:$A21)+2,FALSE) -> 1587 | DI21: =HLOOKUP(DI$7+0.5,$J$67:$DK$121,ROWS($A$11:$A21)+2,FALSE) -> 1993 | DJ21: =HLOOKUP(DJ$7+0.5,$J$67:$DK$121,ROWS($A$11:$A21)+2,FALSE) -> 567 | DK21: =HLOOKUP(DK$7+0.5,$J$67:$DK$121,ROWS($A$11:$A21)+2,FALSE) -> 4641
B22: Georgia | C22: 9796547 | D22: 5863 | E22: 8231384 | F22: 34188 | G22: 1236302 | H22: 31155 | I22: 0.03924362955 | J22: =HLOOKUP(J$7,$J$67:$DK$121,ROWS($A$11:$A22)+2,FALSE) -> 277466 | K22: =HLOOKUP(K$7,$J$67:$DK$121,ROWS($A$11:$A22)+2,FALSE) -> 13864 | L22: =HLOOKUP(L$7,$J$67:$DK$121,ROWS($A$11:$A22)+2,FALSE) -> 2654 | M22: =HLOOKUP(M$7,$J$67:$DK$121,ROWS($A$11:$A22)+2,FALSE) -> 6657 | N22: =HLOOKUP(N$7,$J$67:$DK$121,ROWS($A$11:$A22)+2,FALSE) -> 1041 | O22: =HLOOKUP(O$7,$J$67:$DK$121,ROWS($A$11:$A22)+2,FALSE) -> 14174 | P22: =HLOOKUP(P$7,$J$67:$DK$121,ROWS($A$11:$A22)+2,FALSE) -> 4710 | Q22: =HLOOKUP(Q$7,$J$67:$DK$121,ROWS($A$11:$A22)+2,FALSE) -> 1829 | R22: =HLOOKUP(R$7,$J$67:$DK$121,ROWS($A$11:$A22)+2,FALSE) -> 226 | S22: =HLOOKUP(S$7,$J$67:$DK$121,ROWS($A$11:$A22)+2,FALSE) -> 1352 | T22: =HLOOKUP(T$7,$J$67:$DK$121,ROWS($A$11:$A22)+2,FALSE) -> 42870 | U22: =HLOOKUP(U$7,$J$67:$DK$121,ROWS($A$11:$A22)+2,FALSE) -> N/A | V22: =HLOOKUP(V$7,$J$67:$DK$121,ROWS($A$11:$A22)+2,FALSE) -> 1409 | W22: =HLOOKUP(W$7,$J$67:$DK$121,ROWS($A$11:$A22)+2,FALSE) -> 936 | X22: =HLOOKUP(X$7,$J$67:$DK$121,ROWS($A$11:$A22)+2,FALSE) -> 7143 | Y22: =HLOOKUP(Y$7,$J$67:$DK$121,ROWS($A$11:$A22)+2,FALSE) -> 5972 | Z22: =HLOOKUP(Z$7,$J$67:$DK$121,ROWS($A$11:$A22)+2,FALSE) -> 1687 | AA22: =HLOOKUP(AA$7,$J$67:$DK$121,ROWS($A$11:$A22)+2,FALSE) -> 1497 | AB22: =HLOOKUP(AB$7,$J$67:$DK$121,ROWS($A$11:$A22)+2,FALSE) -> 6172 | AC22: =HLOOKUP(AC$7,$J$67:$DK$121,ROWS($A$11:$A22)+2,FALSE) -> 4100 | AD22: =HLOOKUP(AD$7,$J$67:$DK$121,ROWS($A$11:$A22)+2,FALSE) -> 222 | AE22: =HLOOKUP(AE$7,$J$67:$DK$121,ROWS($A$11:$A22)+2,FALSE) -> 3619 | AF22: =HLOOKUP(AF$7,$J$67:$DK$121,ROWS($A$11:$A22)+2,FALSE) -> 4153 | AG22: =HLOOKUP(AG$7,$J$67:$DK$121,ROWS($A$11:$A22)+2,FALSE) -> 9949 | AH22: =HLOOKUP(AH$7,$J$67:$DK$121,ROWS($A$11:$A22)+2,FALSE) -> 2237 | AI22: =HLOOKUP(AI$7,$J$67:$DK$121,ROWS($A$11:$A22)+2,FALSE) -> 3280 | AJ22: =HLOOKUP(AJ$7,$J$67:$DK$121,ROWS($A$11:$A22)+2,FALSE) -> 3377 | AK22: =HLOOKUP(AK$7,$J$67:$DK$121,ROWS($A$11:$A22)+2,FALSE) -> 251 | AL22: =HLOOKUP(AL$7,$J$67:$DK$121,ROWS($A$11:$A22)+2,FALSE) -> 1283 | AM22: =HLOOKUP(AM$7,$J$67:$DK$121,ROWS($A$11:$A22)+2,FALSE) -> 3783 | AN22: =HLOOKUP(AN$7,$J$67:$DK$121,ROWS($A$11:$A22)+2,FALSE) -> 15 | AO22: =HLOOKUP(AO$7,$J$67:$DK$121,ROWS($A$11:$A22)+2,FALSE) -> 4920 | AP22: =HLOOKUP(AP$7,$J$67:$DK$121,ROWS($A$11:$A22)+2,FALSE) -> 915 | AQ22: =HLOOKUP(AQ$7,$J$67:$DK$121,ROWS($A$11:$A22)+2,FALSE) -> 13957 | AR22: =HLOOKUP(AR$7,$J$67:$DK$121,ROWS($A$11:$A22)+2,FALSE) -> 16009 | AS22: =HLOOKUP(AS$7,$J$67:$DK$121,ROWS($A$11:$A22)+2,FALSE) -> 207 | AT22: =HLOOKUP(AT$7,$J$67:$DK$121,ROWS($A$11:$A22)+2,FALSE) -> 7501 | AU22: =HLOOKUP(AU$7,$J$67:$DK$121,ROWS($A$11:$A22)+2,FALSE) -> 3299 | AV22: =HLOOKUP(AV$7,$J$67:$DK$121,ROWS($A$11:$A22)+2,FALSE) -> 453 | AW22: =HLOOKUP(AW$7,$J$67:$DK$121,ROWS($A$11:$A22)+2,FALSE) -> 9076 | AX22: =HLOOKUP(AX$7,$J$67:$DK$121,ROWS($A$11:$A22)+2,FALSE) -> 440 | AY22: =HLOOKUP(AY$7,$J$67:$DK$121,ROWS($A$11:$A22)+2,FALSE) -> 18611 | AZ22: =HLOOKUP(AZ$7,$J$67:$DK$121,ROWS($A$11:$A22)+2,FALSE) -> 257 | BA22: =HLOOKUP(BA$7,$J$67:$DK$121,ROWS($A$11:$A22)+2,FALSE) -> 17606 | BB22: =HLOOKUP(BB$7,$J$67:$DK$121,ROWS($A$11:$A22)+2,FALSE) -> 16198 | BC22: =HLOOKUP(BC$7,$J$67:$DK$121,ROWS($A$11:$A22)+2,FALSE) -> 20 | BD22: =HLOOKUP(BD$7,$J$67:$DK$121,ROWS($A$11:$A22)+2,FALSE) -> 84 | BE22: =HLOOKUP(BE$7,$J$67:$DK$121,ROWS($A$11:$A22)+2,FALSE) -> 10702 | BF22: =HLOOKUP(BF$7,$J$67:$DK$121,ROWS($A$11:$A22)+2,FALSE) -> 1965 | BG22: =HLOOKUP(BG$7,$J$67:$DK$121,ROWS($A$11:$A22)+2,FALSE) -> 1237 | BH22: =HLOOKUP(BH$7,$J$67:$DK$121,ROWS($A$11:$A22)+2,FALSE) -> 3441 | BI22: =HLOOKUP(BI$7,$J$67:$DK$121,ROWS($A$11:$A22)+2,FALSE) -> 106 | BJ22: =HLOOKUP(BJ$7,$J$67:$DK$121,ROWS($A$11:$A22)+2,FALSE) -> 1730 | BK22: =HLOOKUP(BK$7+0.5,$J$67:$DK$121,ROWS($A$11:$A22)+2,FALSE) -> 14075 | BL22: =HLOOKUP(BL$7+0.5,$J$67:$DK$121,ROWS($A$11:$A22)+2,FALSE) -> 2903 | BM22: =HLOOKUP(BM$7+0.5,$J$67:$DK$121,ROWS($A$11:$A22)+2,FALSE) -> 1444 | BN22: =HLOOKUP(BN$7+0.5,$J$67:$DK$121,ROWS($A$11:$A22)+2,FALSE) -> 2675 | BO22: =HLOOKUP(BO$7+0.5,$J$67:$DK$121,ROWS($A$11:$A22)+2,FALSE) -> 519 | BP22: =HLOOKUP(BP$7+0.5,$J$67:$DK$121,ROWS($A$11:$A22)+2,FALSE) -> 3182 | BQ22: =HLOOKUP(BQ$7+0.5,$J$67:$DK$121,ROWS($A$11:$A22)+2,FALSE) -> 2093 | BR22: =HLOOKUP(BR$7+0.5,$J$67:$DK$121,ROWS($A$11:$A22)+2,FALSE) -> 824 | BS22: =HLOOKUP(BS$7+0.5,$J$67:$DK$121,ROWS($A$11:$A22)+2,FALSE) -> 246 | BT22: =HLOOKUP(BT$7+0.5,$J$67:$DK$121,ROWS($A$11:$A22)+2,FALSE) -> 994 | BU22: =HLOOKUP(BU$7+0.5,$J$67:$DK$121,ROWS($A$11:$A22)+2,FALSE) -> 5472 | BV22: =HLOOKUP(BV$7+0.5,$J$67:$DK$121,ROWS($A$11:$A22)+2,FALSE) -> N/A | BW22: =HLOOKUP(BW$7+0.5,$J$67:$DK$121,ROWS($A$11:$A22)+2,FALSE) -> 831 | BX22: =HLOOKUP(BX$7+0.5,$J$67:$DK$121,ROWS($A$11:$A22)+2,FALSE) -> 797 | BY22: =HLOOKUP(BY$7+0.5,$J$67:$DK$121,ROWS($A$11:$A22)+2,FALSE) -> 1833 | BZ22: =HLOOKUP(BZ$7+0.5,$J$67:$DK$121,ROWS($A$11:$A22)+2,FALSE) -> 2678 | CA22: =HLOOKUP(CA$7+0.5,$J$67:$DK$121,ROWS($A$11:$A22)+2,FALSE) -> 1036 | CB22: =HLOOKUP(CB$7+0.5,$J$67:$DK$121,ROWS($A$11:$A22)+2,FALSE) -> 707 | CC22: =HLOOKUP(CC$7+0.5,$J$67:$DK$121,ROWS($A$11:$A22)+2,FALSE) -> 1972 | CD22: =HLOOKUP(CD$7+0.5,$J$67:$DK$121,ROWS($A$11:$A22)+2,FALSE) -> 1490 | CE22: =HLOOKUP(CE$7+0.5,$J$67:$DK$121,ROWS($A$11:$A22)+2,FALSE) -> 178 | CF22: =HLOOKUP(CF$7+0.5,$J$67:$DK$121,ROWS($A$11:$A22)+2,FALSE) -> 1621 | CG22: =HLOOKUP(CG$7+0.5,$J$67:$DK$121,ROWS($A$11:$A22)+2,FALSE) -> 1720 | CH22: =HLOOKUP(CH$7+0.5,$J$67:$DK$121,ROWS($A$11:$A22)+2,FALSE) -> 3100 | CI22: =HLOOKUP(CI$7+0.5,$J$67:$DK$121,ROWS($A$11:$A22)+2,FALSE) -> 2164 | CJ22: =HLOOKUP(CJ$7+0.5,$J$67:$DK$121,ROWS($A$11:$A22)+2,FALSE) -> 1372 | CK22: =HLOOKUP(CK$7+0.5,$J$67:$DK$121,ROWS($A$11:$A22)+2,FALSE) -> 1479 | CL22: =HLOOKUP(CL$7+0.5,$J$67:$DK$121,ROWS($A$11:$A22)+2,FALSE) -> 224 | CM22: =HLOOKUP(CM$7+0.5,$J$67:$DK$121,ROWS($A$11:$A22)+2,FALSE) -> 1001 | CN22: =HLOOKUP(CN$7+0.5,$J$67:$DK$121,ROWS($A$11:$A22)+2,FALSE) -> 2622 | CO22: =HLOOKUP(CO$7+0.5,$J$67:$DK$121,ROWS($A$11:$A22)+2,FALSE) -> 27 | CP22: =HLOOKUP(CP$7+0.5,$J$67:$DK$121,ROWS($A$11:$A22)+2,FALSE) -> 1544 | CQ22: =HLOOKUP(CQ$7+0.5,$J$67:$DK$121,ROWS($A$11:$A22)+2,FALSE) -> 512 | CR22: =HLOOKUP(CR$7+0.5,$J$67:$DK$121,ROWS($A$11:$A22)+2,FALSE) -> 3960 | CS22: =HLOOKUP(CS$7+0.5,$J$67:$DK$121,ROWS($A$11:$A22)+2,FALSE) -> 2963 | CT22: =HLOOKUP(CT$7+0.5,$J$67:$DK$121,ROWS($A$11:$A22)+2,FALSE) -> 250 | CU22: =HLOOKUP(CU$7+0.5,$J$67:$DK$121,ROWS($A$11:$A22)+2,FALSE) -> 2501 | CV22: =HLOOKUP(CV$7+0.5,$J$67:$DK$121,ROWS($A$11:$A22)+2,FALSE) -> 1818 | CW22: =HLOOKUP(CW$7+0.5,$J$67:$DK$121,ROWS($A$11:$A22)+2,FALSE) -> 472 | CX22: =HLOOKUP(CX$7+0.5,$J$67:$DK$121,ROWS($A$11:$A22)+2,FALSE) -> 2622 | CY22: =HLOOKUP(CY$7+0.5,$J$67:$DK$121,ROWS($A$11:$A22)+2,FALSE) -> 620 | CZ22: =HLOOKUP(CZ$7+0.5,$J$67:$DK$121,ROWS($A$11:$A22)+2,FALSE) -> 3871 | DA22: =HLOOKUP(DA$7+0.5,$J$67:$DK$121,ROWS($A$11:$A22)+2,FALSE) -> 291 | DB22: =HLOOKUP(DB$7+0.5,$J$67:$DK$121,ROWS($A$11:$A22)+2,FALSE) -> 4620 | DC22: =HLOOKUP(DC$7+0.5,$J$67:$DK$121,ROWS($A$11:$A22)+2,FALSE) -> 3367 | DD22: =HLOOKUP(DD$7+0.5,$J$67:$DK$121,ROWS($A$11:$A22)+2,FALSE) -> 35 | DE22: =HLOOKUP(DE$7+0.5,$J$67:$DK$121,ROWS($A$11:$A22)+2,FALSE) -> 142 | DF22: =HLOOKUP(DF$7+0.5,$J$67:$DK$121,ROWS($A$11:$A22)+2,FALSE) -> 2094 | DG22: =HLOOKUP(DG$7+0.5,$J$67:$DK$121,ROWS($A$11:$A22)+2,FALSE) -> 826 | DH22: =HLOOKUP(DH$7+0.5,$J$67:$DK$121,ROWS($A$11:$A22)+2,FALSE) -> 625 | DI22: =HLOOKUP(DI$7+0.5,$J$67:$DK$121,ROWS($A$11:$A22)+2,FALSE) -> 1725 | DJ22: =HLOOKUP(DJ$7+0.5,$J$67:$DK$121,ROWS($A$11:$A22)+2,FALSE) -> 154 | DK22: =HLOOKUP(DK$7+0.5,$J$67:$DK$121,ROWS($A$11:$A22)+2,FALSE) -> 1190
B23: Hawaii | C23: 1374852 | D23: 1662 | E23: 1164145 | F23: 10466 | G23: 134827 | H23: 9196 | I23: 0.00779947796 | J23: =HLOOKUP(J$7,$J$67:$DK$121,ROWS($A$11:$A23)+2,FALSE) -> 55145 | K23: =HLOOKUP(K$7,$J$67:$DK$121,ROWS($A$11:$A23)+2,FALSE) -> 608 | L23: =HLOOKUP(L$7,$J$67:$DK$121,ROWS($A$11:$A23)+2,FALSE) -> 1417 | M23: =HLOOKUP(M$7,$J$67:$DK$121,ROWS($A$11:$A23)+2,FALSE) -> 1865 | N23: =HLOOKUP(N$7,$J$67:$DK$121,ROWS($A$11:$A23)+2,FALSE) -> 24 | O23: =HLOOKUP(O$7,$J$67:$DK$121,ROWS($A$11:$A23)+2,FALSE) -> 9756 | P23: =HLOOKUP(P$7,$J$67:$DK$121,ROWS($A$11:$A23)+2,FALSE) -> 1216 | Q23: =HLOOKUP(Q$7,$J$67:$DK$121,ROWS($A$11:$A23)+2,FALSE) -> 191 | R23: =HLOOKUP(R$7,$J$67:$DK$121,ROWS($A$11:$A23)+2,FALSE) -> 278 | S23: =HLOOKUP(S$7,$J$67:$DK$121,ROWS($A$11:$A23)+2,FALSE) -> 230 | T23: =HLOOKUP(T$7,$J$67:$DK$121,ROWS($A$11:$A23)+2,FALSE) -> 2780 | U23: =HLOOKUP(U$7,$J$67:$DK$121,ROWS($A$11:$A23)+2,FALSE) -> 1448 | V23: =HLOOKUP(V$7,$J$67:$DK$121,ROWS($A$11:$A23)+2,FALSE) -> N/A | W23: =HLOOKUP(W$7,$J$67:$DK$121,ROWS($A$11:$A23)+2,FALSE) -> 404 | X23: =HLOOKUP(X$7,$J$67:$DK$121,ROWS($A$11:$A23)+2,FALSE) -> 318 | Y23: =HLOOKUP(Y$7,$J$67:$DK$121,ROWS($A$11:$A23)+2,FALSE) -> 292 | Z23: =HLOOKUP(Z$7,$J$67:$DK$121,ROWS($A$11:$A23)+2,FALSE) -> 84 | AA23: =HLOOKUP(AA$7,$J$67:$DK$121,ROWS($A$11:$A23)+2,FALSE) -> 1135 | AB23: =HLOOKUP(AB$7,$J$67:$DK$121,ROWS($A$11:$A23)+2,FALSE) -> 485 | AC23: =HLOOKUP(AC$7,$J$67:$DK$121,ROWS($A$11:$A23)+2,FALSE) -> 207 | AD23: =HLOOKUP(AD$7,$J$67:$DK$121,ROWS($A$11:$A23)+2,FALSE) -> 91 | AE23: =HLOOKUP(AE$7,$J$67:$DK$121,ROWS($A$11:$A23)+2,FALSE) -> 2491 | AF23: =HLOOKUP(AF$7,$J$67:$DK$121,ROWS($A$11:$A23)+2,FALSE) -> 1266 | AG23: =HLOOKUP(AG$7,$J$67:$DK$121,ROWS($A$11:$A23)+2,FALSE) -> 321 | AH23: =HLOOKUP(AH$7,$J$67:$DK$121,ROWS($A$11:$A23)+2,FALSE) -> 192 | AI23: =HLOOKUP(AI$7,$J$67:$DK$121,ROWS($A$11:$A23)+2,FALSE) -> 44 | AJ23: =HLOOKUP(AJ$7,$J$67:$DK$121,ROWS($A$11:$A23)+2,FALSE) -> 944 | AK23: =HLOOKUP(AK$7,$J$67:$DK$121,ROWS($A$11:$A23)+2,FALSE) -> 131 | AL23: =HLOOKUP(AL$7,$J$67:$DK$121,ROWS($A$11:$A23)+2,FALSE) -> 75 | AM23: =HLOOKUP(AM$7,$J$67:$DK$121,ROWS($A$11:$A23)+2,FALSE) -> 760 | AN23: =HLOOKUP(AN$7,$J$67:$DK$121,ROWS($A$11:$A23)+2,FALSE) -> 85 | AO23: =HLOOKUP(AO$7,$J$67:$DK$121,ROWS($A$11:$A23)+2,FALSE) -> 410 | AP23: =HLOOKUP(AP$7,$J$67:$DK$121,ROWS($A$11:$A23)+2,FALSE) -> 284 | AQ23: =HLOOKUP(AQ$7,$J$67:$DK$121,ROWS($A$11:$A23)+2,FALSE) -> 2382 | AR23: =HLOOKUP(AR$7,$J$67:$DK$121,ROWS($A$11:$A23)+2,FALSE) -> 2241 | AS23: =HLOOKUP(AS$7,$J$67:$DK$121,ROWS($A$11:$A23)+2,FALSE) -> 0 | AT23: =HLOOKUP(AT$7,$J$67:$DK$121,ROWS($A$11:$A23)+2,FALSE) -> 884 | AU23: =HLOOKUP(AU$7,$J$67:$DK$121,ROWS($A$11:$A23)+2,FALSE) -> 1095 | AV23: =HLOOKUP(AV$7,$J$67:$DK$121,ROWS($A$11:$A23)+2,FALSE) -> 1763 | AW23: =HLOOKUP(AW$7,$J$67:$DK$121,ROWS($A$11:$A23)+2,FALSE) -> 1087 | AX23: =HLOOKUP(AX$7,$J$67:$DK$121,ROWS($A$11:$A23)+2,FALSE) -> 106 | AY23: =HLOOKUP(AY$7,$J$67:$DK$121,ROWS($A$11:$A23)+2,FALSE) -> 644 | AZ23: =HLOOKUP(AZ$7,$J$67:$DK$121,ROWS($A$11:$A23)+2,FALSE) -> 459 | BA23: =HLOOKUP(BA$7,$J$67:$DK$121,ROWS($A$11:$A23)+2,FALSE) -> 1314 | BB23: =HLOOKUP(BB$7,$J$67:$DK$121,ROWS($A$11:$A23)+2,FALSE) -> 3300 | BC23: =HLOOKUP(BC$7,$J$67:$DK$121,ROWS($A$11:$A23)+2,FALSE) -> 2183 | BD23: =HLOOKUP(BD$7,$J$67:$DK$121,ROWS($A$11:$A23)+2,FALSE) -> 0 | BE23: =HLOOKUP(BE$7,$J$67:$DK$121,ROWS($A$11:$A23)+2,FALSE) -> 1393 | BF23: =HLOOKUP(BF$7,$J$67:$DK$121,ROWS($A$11:$A23)+2,FALSE) -> 5920 | BG23: =HLOOKUP(BG$7,$J$67:$DK$121,ROWS($A$11:$A23)+2,FALSE) -> 197 | BH23: =HLOOKUP(BH$7,$J$67:$DK$121,ROWS($A$11:$A23)+2,FALSE) -> 295 | BI23: =HLOOKUP(BI$7,$J$67:$DK$121,ROWS($A$11:$A23)+2,FALSE) -> 50 | BJ23: =HLOOKUP(BJ$7,$J$67:$DK$121,ROWS($A$11:$A23)+2,FALSE) -> 336 | BK23: =HLOOKUP(BK$7+0.5,$J$67:$DK$121,ROWS($A$11:$A23)+2,FALSE) -> 5749 | BL23: =HLOOKUP(BL$7+0.5,$J$67:$DK$121,ROWS($A$11:$A23)+2,FALSE) -> 479 | BM23: =HLOOKUP(BM$7+0.5,$J$67:$DK$121,ROWS($A$11:$A23)+2,FALSE) -> 869 | BN23: =HLOOKUP(BN$7+0.5,$J$67:$DK$121,ROWS($A$11:$A23)+2,FALSE) -> 695 | BO23: =HLOOKUP(BO$7+0.5,$J$67:$DK$121,ROWS($A$11:$A23)+2,FALSE) -> 54 | BP23: =HLOOKUP(BP$7+0.5,$J$67:$DK$121,ROWS($A$11:$A23)+2,FALSE) -> 1508 | BQ23: =HLOOKUP(BQ$7+0.5,$J$67:$DK$121,ROWS($A$11:$A23)+2,FALSE) -> 574 | BR23: =HLOOKUP(BR$7+0.5,$J$67:$DK$121,ROWS($A$11:$A23)+2,FALSE) -> 222 | BS23: =HLOOKUP(BS$7+0.5,$J$67:$DK$121,ROWS($A$11:$A23)+2,FALSE) -> 253 | BT23: =HLOOKUP(BT$7+0.5,$J$67:$DK$121,ROWS($A$11:$A23)+2,FALSE) -> 253 | BU23: =HLOOKUP(BU$7+0.5,$J$67:$DK$121,ROWS($A$11:$A23)+2,FALSE) -> 1227 | BV23: =HLOOKUP(BV$7+0.5,$J$67:$DK$121,ROWS($A$11:$A23)+2,FALSE) -> 639 | BW23: =HLOOKUP(BW$7+0.5,$J$67:$DK$121,ROWS($A$11:$A23)+2,FALSE) -> N/A | BX23: =HLOOKUP(BX$7+0.5,$J$67:$DK$121,ROWS($A$11:$A23)+2,FALSE) -> 431 | BY23: =HLOOKUP(BY$7+0.5,$J$67:$DK$121,ROWS($A$11:$A23)+2,FALSE) -> 194 | BZ23: =HLOOKUP(BZ$7+0.5,$J$67:$DK$121,ROWS($A$11:$A23)+2,FALSE) -> 261 | CA23: =HLOOKUP(CA$7+0.5,$J$67:$DK$121,ROWS($A$11:$A23)+2,FALSE) -> 98 | CB23: =HLOOKUP(CB$7+0.5,$J$67:$DK$121,ROWS($A$11:$A23)+2,FALSE) -> 709 | CC23: =HLOOKUP(CC$7+0.5,$J$67:$DK$121,ROWS($A$11:$A23)+2,FALSE) -> 630 | CD23: =HLOOKUP(CD$7+0.5,$J$67:$DK$121,ROWS($A$11:$A23)+2,FALSE) -> 183 | CE23: =HLOOKUP(CE$7+0.5,$J$67:$DK$121,ROWS($A$11:$A23)+2,FALSE) -> 147 | CF23: =HLOOKUP(CF$7+0.5,$J$67:$DK$121,ROWS($A$11:$A23)+2,FALSE) -> 1610 | CG23: =HLOOKUP(CG$7+0.5,$J$67:$DK$121,ROWS($A$11:$A23)+2,FALSE) -> 962 | CH23: =HLOOKUP(CH$7+0.5,$J$67:$DK$121,ROWS($A$11:$A23)+2,FALSE) -> 189 | CI23: =HLOOKUP(CI$7+0.5,$J$67:$DK$121,ROWS($A$11:$A23)+2,FALSE) -> 240 | CJ23: =HLOOKUP(CJ$7+0.5,$J$67:$DK$121,ROWS($A$11:$A23)+2,FALSE) -> 52 | CK23: =HLOOKUP(CK$7+0.5,$J$67:$DK$121,ROWS($A$11:$A23)+2,FALSE) -> 630 | CL23: =HLOOKUP(CL$7+0.5,$J$67:$DK$121,ROWS($A$11:$A23)+2,FALSE) -> 172 | CM23: =HLOOKUP(CM$7+0.5,$J$67:$DK$121,ROWS($A$11:$A23)+2,FALSE) -> 125 | CN23: =HLOOKUP(CN$7+0.5,$J$67:$DK$121,ROWS($A$11:$A23)+2,FALSE) -> 424 | CO23: =HLOOKUP(CO$7+0.5,$J$67:$DK$121,ROWS($A$11:$A23)+2,FALSE) -> 119 | CP23: =HLOOKUP(CP$7+0.5,$J$67:$DK$121,ROWS($A$11:$A23)+2,FALSE) -> 435 | CQ23: =HLOOKUP(CQ$7+0.5,$J$67:$DK$121,ROWS($A$11:$A23)+2,FALSE) -> 243 | CR23: =HLOOKUP(CR$7+0.5,$J$67:$DK$121,ROWS($A$11:$A23)+2,FALSE) -> 1279 | CS23: =HLOOKUP(CS$7+0.5,$J$67:$DK$121,ROWS($A$11:$A23)+2,FALSE) -> 1274 | CT23: =HLOOKUP(CT$7+0.5,$J$67:$DK$121,ROWS($A$11:$A23)+2,FALSE) -> 177 | CU23: =HLOOKUP(CU$7+0.5,$J$67:$DK$121,ROWS($A$11:$A23)+2,FALSE) -> 995 | CV23: =HLOOKUP(CV$7+0.5,$J$67:$DK$121,ROWS($A$11:$A23)+2,FALSE) -> 933 | CW23: =HLOOKUP(CW$7+0.5,$J$67:$DK$121,ROWS($A$11:$A23)+2,FALSE) -> 764 | CX23: =HLOOKUP(CX$7+0.5,$J$67:$DK$121,ROWS($A$11:$A23)+2,FALSE) -> 770 | CY23: =HLOOKUP(CY$7+0.5,$J$67:$DK$121,ROWS($A$11:$A23)+2,FALSE) -> 176 | CZ23: =HLOOKUP(CZ$7+0.5,$J$67:$DK$121,ROWS($A$11:$A23)+2,FALSE) -> 460 | DA23: =HLOOKUP(DA$7+0.5,$J$67:$DK$121,ROWS($A$11:$A23)+2,FALSE) -> 726 | DB23: =HLOOKUP(DB$7+0.5,$J$67:$DK$121,ROWS($A$11:$A23)+2,FALSE) -> 675 | DC23: =HLOOKUP(DC$7+0.5,$J$67:$DK$121,ROWS($A$11:$A23)+2,FALSE) -> 1887 | DD23: =HLOOKUP(DD$7+0.5,$J$67:$DK$121,ROWS($A$11:$A23)+2,FALSE) -> 1283 | DE23: =HLOOKUP(DE$7+0.5,$J$67:$DK$121,ROWS($A$11:$A23)+2,FALSE) -> 177 | DF23: =HLOOKUP(DF$7+0.5,$J$67:$DK$121,ROWS($A$11:$A23)+2,FALSE) -> 755 | DG23: =HLOOKUP(DG$7+0.5,$J$67:$DK$121,ROWS($A$11:$A23)+2,FALSE) -> 1901 | DH23: =HLOOKUP(DH$7+0.5,$J$67:$DK$121,ROWS($A$11:$A23)+2,FALSE) -> 330 | DI23: =HLOOKUP(DI$7+0.5,$J$67:$DK$121,ROWS($A$11:$A23)+2,FALSE) -> 234 | DJ23: =HLOOKUP(DJ$7+0.5,$J$67:$DK$121,ROWS($A$11:$A23)+2,FALSE) -> 66 | DK23: =HLOOKUP(DK$7+0.5,$J$67:$DK$121,ROWS($A$11:$A23)+2,FALSE) -> 436
B24: Idaho | C24: 1573036 | D24: 2184 | E24: 1296975 | F24: 12998 | G24: 210151 | H24: 11483 | I24: 0.008384739359 | J24: =HLOOKUP(J$7,$J$67:$DK$121,ROWS($A$11:$A24)+2,FALSE) -> 59283 | K24: =HLOOKUP(K$7,$J$67:$DK$121,ROWS($A$11:$A24)+2,FALSE) -> 575 | L24: =HLOOKUP(L$7,$J$67:$DK$121,ROWS($A$11:$A24)+2,FALSE) -> 1198 | M24: =HLOOKUP(M$7,$J$67:$DK$121,ROWS($A$11:$A24)+2,FALSE) -> 2424 | N24: =HLOOKUP(N$7,$J$67:$DK$121,ROWS($A$11:$A24)+2,FALSE) -> 291 | O24: =HLOOKUP(O$7,$J$67:$DK$121,ROWS($A$11:$A24)+2,FALSE) -> 10280 | P24: =HLOOKUP(P$7,$J$67:$DK$121,ROWS($A$11:$A24)+2,FALSE) -> 1186 | Q24: =HLOOKUP(Q$7,$J$67:$DK$121,ROWS($A$11:$A24)+2,FALSE) -> 44 | R24: =HLOOKUP(R$7,$J$67:$DK$121,ROWS($A$11:$A24)+2,FALSE) -> 120 | S24: =HLOOKUP(S$7,$J$67:$DK$121,ROWS($A$11:$A24)+2,FALSE) -> 116 | T24: =HLOOKUP(T$7,$J$67:$DK$121,ROWS($A$11:$A24)+2,FALSE) -> 2014 | U24: =HLOOKUP(U$7,$J$67:$DK$121,ROWS($A$11:$A24)+2,FALSE) -> 583 | V24: =HLOOKUP(V$7,$J$67:$DK$121,ROWS($A$11:$A24)+2,FALSE) -> 206 | W24: =HLOOKUP(W$7,$J$67:$DK$121,ROWS($A$11:$A24)+2,FALSE) -> N/A | X24: =HLOOKUP(X$7,$J$67:$DK$121,ROWS($A$11:$A24)+2,FALSE) -> 532 | Y24: =HLOOKUP(Y$7,$J$67:$DK$121,ROWS($A$11:$A24)+2,FALSE) -> 283 | Z24: =HLOOKUP(Z$7,$J$67:$DK$121,ROWS($A$11:$A24)+2,FALSE) -> 90 | AA24: =HLOOKUP(AA$7,$J$67:$DK$121,ROWS($A$11:$A24)+2,FALSE) -> 63 | AB24: =HLOOKUP(AB$7,$J$67:$DK$121,ROWS($A$11:$A24)+2,FALSE) -> 83 | AC24: =HLOOKUP(AC$7,$J$67:$DK$121,ROWS($A$11:$A24)+2,FALSE) -> 54 | AD24: =HLOOKUP(AD$7,$J$67:$DK$121,ROWS($A$11:$A24)+2,FALSE) -> 0 | AE24: =HLOOKUP(AE$7,$J$67:$DK$121,ROWS($A$11:$A24)+2,FALSE) -> 107 | AF24: =HLOOKUP(AF$7,$J$67:$DK$121,ROWS($A$11:$A24)+2,FALSE) -> 338 | AG24: =HLOOKUP(AG$7,$J$67:$DK$121,ROWS($A$11:$A24)+2,FALSE) -> 683 | AH24: =HLOOKUP(AH$7,$J$67:$DK$121,ROWS($A$11:$A24)+2,FALSE) -> 637 | AI24: =HLOOKUP(AI$7,$J$67:$DK$121,ROWS($A$11:$A24)+2,FALSE) -> 87 | AJ24: =HLOOKUP(AJ$7,$J$67:$DK$121,ROWS($A$11:$A24)+2,FALSE) -> 214 | AK24: =HLOOKUP(AK$7,$J$67:$DK$121,ROWS($A$11:$A24)+2,FALSE) -> 3800 | AL24: =HLOOKUP(AL$7,$J$67:$DK$121,ROWS($A$11:$A24)+2,FALSE) -> 35 | AM24: =HLOOKUP(AM$7,$J$67:$DK$121,ROWS($A$11:$A24)+2,FALSE) -> 2535 | AN24: =HLOOKUP(AN$7,$J$67:$DK$121,ROWS($A$11:$A24)+2,FALSE) -> 0 | AO24: =HLOOKUP(AO$7,$J$67:$DK$121,ROWS($A$11:$A24)+2,FALSE) -> 214 | AP24: =HLOOKUP(AP$7,$J$67:$DK$121,ROWS($A$11:$A24)+2,FALSE) -> 675 | AQ24: =HLOOKUP(AQ$7,$J$67:$DK$121,ROWS($A$11:$A24)+2,FALSE) -> 938 | AR24: =HLOOKUP(AR$7,$J$67:$DK$121,ROWS($A$11:$A24)+2,FALSE) -> 817 | AS24: =HLOOKUP(AS$7,$J$67:$DK$121,ROWS($A$11:$A24)+2,FALSE) -> 0 | AT24: =HLOOKUP(AT$7,$J$67:$DK$121,ROWS($A$11:$A24)+2,FALSE) -> 1018 | AU24: =HLOOKUP(AU$7,$J$67:$DK$121,ROWS($A$11:$A24)+2,FALSE) -> 93 | AV24: =HLOOKUP(AV$7,$J$67:$DK$121,ROWS($A$11:$A24)+2,FALSE) -> 4963 | AW24: =HLOOKUP(AW$7,$J$67:$DK$121,ROWS($A$11:$A24)+2,FALSE) -> 169 | AX24: =HLOOKUP(AX$7,$J$67:$DK$121,ROWS($A$11:$A24)+2,FALSE) -> 0 | AY24: =HLOOKUP(AY$7,$J$67:$DK$121,ROWS($A$11:$A24)+2,FALSE) -> 205 | AZ24: =HLOOKUP(AZ$7,$J$67:$DK$121,ROWS($A$11:$A24)+2,FALSE) -> 118 | BA24: =HLOOKUP(BA$7,$J$67:$DK$121,ROWS($A$11:$A24)+2,FALSE) -> 1957 | BB24: =HLOOKUP(BB$7,$J$67:$DK$121,ROWS($A$11:$A24)+2,FALSE) -> 1352 | BC24: =HLOOKUP(BC$7,$J$67:$DK$121,ROWS($A$11:$A24)+2,FALSE) -> 6617 | BD24: =HLOOKUP(BD$7,$J$67:$DK$121,ROWS($A$11:$A24)+2,FALSE) -> 0 | BE24: =HLOOKUP(BE$7,$J$67:$DK$121,ROWS($A$11:$A24)+2,FALSE) -> 269 | BF24: =HLOOKUP(BF$7,$J$67:$DK$121,ROWS($A$11:$A24)+2,FALSE) -> 10398 | BG24: =HLOOKUP(BG$7,$J$67:$DK$121,ROWS($A$11:$A24)+2,FALSE) -> 0 | BH24: =HLOOKUP(BH$7,$J$67:$DK$121,ROWS($A$11:$A24)+2,FALSE) -> 225 | BI24: =HLOOKUP(BI$7,$J$67:$DK$121,ROWS($A$11:$A24)+2,FALSE) -> 677 | BJ24: =HLOOKUP(BJ$7,$J$67:$DK$121,ROWS($A$11:$A24)+2,FALSE) -> 136 | BK24: =HLOOKUP(BK$7+0.5,$J$67:$DK$121,ROWS($A$11:$A24)+2,FALSE) -> 6040 | BL24: =HLOOKUP(BL$7+0.5,$J$67:$DK$121,ROWS($A$11:$A24)+2,FALSE) -> 838 | BM24: =HLOOKUP(BM$7+0.5,$J$67:$DK$121,ROWS($A$11:$A24)+2,FALSE) -> 790 | BN24: =HLOOKUP(BN$7+0.5,$J$67:$DK$121,ROWS($A$11:$A24)+2,FALSE) -> 1307 | BO24: =HLOOKUP(BO$7+0.5,$J$67:$DK$121,ROWS($A$11:$A24)+2,FALSE) -> 268 | BP24: =HLOOKUP(BP$7+0.5,$J$67:$DK$121,ROWS($A$11:$A24)+2,FALSE) -> 2708 | BQ24: =HLOOKUP(BQ$7+0.5,$J$67:$DK$121,ROWS($A$11:$A24)+2,FALSE) -> 614 | BR24: =HLOOKUP(BR$7+0.5,$J$67:$DK$121,ROWS($A$11:$A24)+2,FALSE) -> 81 | BS24: =HLOOKUP(BS$7+0.5,$J$67:$DK$121,ROWS($A$11:$A24)+2,FALSE) -> 199 | BT24: =HLOOKUP(BT$7+0.5,$J$67:$DK$121,ROWS($A$11:$A24)+2,FALSE) -> 124 | BU24: =HLOOKUP(BU$7+0.5,$J$67:$DK$121,ROWS($A$11:$A24)+2,FALSE) -> 1608 | BV24: =HLOOKUP(BV$7+0.5,$J$67:$DK$121,ROWS($A$11:$A24)+2,FALSE) -> 848 | BW24: =HLOOKUP(BW$7+0.5,$J$67:$DK$121,ROWS($A$11:$A24)+2,FALSE) -> 194 | BX24: =HLOOKUP(BX$7+0.5,$J$67:$DK$121,ROWS($A$11:$A24)+2,FALSE) -> N/A | BY24: =HLOOKUP(BY$7+0.5,$J$67:$DK$121,ROWS($A$11:$A24)+2,FALSE) -> 469 | BZ24: =HLOOKUP(BZ$7+0.5,$J$67:$DK$121,ROWS($A$11:$A24)+2,FALSE) -> 282 | CA24: =HLOOKUP(CA$7+0.5,$J$67:$DK$121,ROWS($A$11:$A24)+2,FALSE) -> 170 | CB24: =HLOOKUP(CB$7+0.5,$J$67:$DK$121,ROWS($A$11:$A24)+2,FALSE) -> 69 | CC24: =HLOOKUP(CC$7+0.5,$J$67:$DK$121,ROWS($A$11:$A24)+2,FALSE) -> 128 | CD24: =HLOOKUP(CD$7+0.5,$J$67:$DK$121,ROWS($A$11:$A24)+2,FALSE) -> 92 | CE24: =HLOOKUP(CE$7+0.5,$J$67:$DK$121,ROWS($A$11:$A24)+2,FALSE) -> 187 | CF24: =HLOOKUP(CF$7+0.5,$J$67:$DK$121,ROWS($A$11:$A24)+2,FALSE) -> 161 | CG24: =HLOOKUP(CG$7+0.5,$J$67:$DK$121,ROWS($A$11:$A24)+2,FALSE) -> 391 | CH24: =HLOOKUP(CH$7+0.5,$J$67:$DK$121,ROWS($A$11:$A24)+2,FALSE) -> 777 | CI24: =HLOOKUP(CI$7+0.5,$J$67:$DK$121,ROWS($A$11:$A24)+2,FALSE) -> 528 | CJ24: =HLOOKUP(CJ$7+0.5,$J$67:$DK$121,ROWS($A$11:$A24)+2,FALSE) -> 170 | CK24: =HLOOKUP(CK$7+0.5,$J$67:$DK$121,ROWS($A$11:$A24)+2,FALSE) -> 259 | CL24: =HLOOKUP(CL$7+0.5,$J$67:$DK$121,ROWS($A$11:$A24)+2,FALSE) -> 2162 | CM24: =HLOOKUP(CM$7+0.5,$J$67:$DK$121,ROWS($A$11:$A24)+2,FALSE) -> 60 | CN24: =HLOOKUP(CN$7+0.5,$J$67:$DK$121,ROWS($A$11:$A24)+2,FALSE) -> 1031 | CO24: =HLOOKUP(CO$7+0.5,$J$67:$DK$121,ROWS($A$11:$A24)+2,FALSE) -> 187 | CP24: =HLOOKUP(CP$7+0.5,$J$67:$DK$121,ROWS($A$11:$A24)+2,FALSE) -> 206 | CQ24: =HLOOKUP(CQ$7+0.5,$J$67:$DK$121,ROWS($A$11:$A24)+2,FALSE) -> 554 | CR24: =HLOOKUP(CR$7+0.5,$J$67:$DK$121,ROWS($A$11:$A24)+2,FALSE) -> 554 | CS24: =HLOOKUP(CS$7+0.5,$J$67:$DK$121,ROWS($A$11:$A24)+2,FALSE) -> 843 | CT24: =HLOOKUP(CT$7+0.5,$J$67:$DK$121,ROWS($A$11:$A24)+2,FALSE) -> 187 | CU24: =HLOOKUP(CU$7+0.5,$J$67:$DK$121,ROWS($A$11:$A24)+2,FALSE) -> 753 | CV24: =HLOOKUP(CV$7+0.5,$J$67:$DK$121,ROWS($A$11:$A24)+2,FALSE) -> 108 | CW24: =HLOOKUP(CW$7+0.5,$J$67:$DK$121,ROWS($A$11:$A24)+2,FALSE) -> 1377 | CX24: =HLOOKUP(CX$7+0.5,$J$67:$DK$121,ROWS($A$11:$A24)+2,FALSE) -> 181 | CY24: =HLOOKUP(CY$7+0.5,$J$67:$DK$121,ROWS($A$11:$A24)+2,FALSE) -> 187 | CZ24: =HLOOKUP(CZ$7+0.5,$J$67:$DK$121,ROWS($A$11:$A24)+2,FALSE) -> 238 | DA24: =HLOOKUP(DA$7+0.5,$J$67:$DK$121,ROWS($A$11:$A24)+2,FALSE) -> 192 | DB24: =HLOOKUP(DB$7+0.5,$J$67:$DK$121,ROWS($A$11:$A24)+2,FALSE) -> 1539 | DC24: =HLOOKUP(DC$7+0.5,$J$67:$DK$121,ROWS($A$11:$A24)+2,FALSE) -> 714 | DD24: =HLOOKUP(DD$7+0.5,$J$67:$DK$121,ROWS($A$11:$A24)+2,FALSE) -> 3016 | DE24: =HLOOKUP(DE$7+0.5,$J$67:$DK$121,ROWS($A$11:$A24)+2,FALSE) -> 187 | DF24: =HLOOKUP(DF$7+0.5,$J$67:$DK$121,ROWS($A$11:$A24)+2,FALSE) -> 388 | DG24: =HLOOKUP(DG$7+0.5,$J$67:$DK$121,ROWS($A$11:$A24)+2,FALSE) -> 1919 | DH24: =HLOOKUP(DH$7+0.5,$J$67:$DK$121,ROWS($A$11:$A24)+2,FALSE) -> 187 | DI24: =HLOOKUP(DI$7+0.5,$J$67:$DK$121,ROWS($A$11:$A24)+2,FALSE) -> 272 | DJ24: =HLOOKUP(DJ$7+0.5,$J$67:$DK$121,ROWS($A$11:$A24)+2,FALSE) -> 406 | DK24: =HLOOKUP(DK$7+0.5,$J$67:$DK$121,ROWS($A$11:$A24)+2,FALSE) -> 228
B25: Illinois | C25: 12725119 | D25: 5939 | E25: 11009321 | F25: 31714 | G25: 1441191 | H25: 27618 | I25: 0.02952543334 | J25: =HLOOKUP(J$7,$J$67:$DK$121,ROWS($A$11:$A25)+2,FALSE) -> 208755 | K25: =HLOOKUP(K$7,$J$67:$DK$121,ROWS($A$11:$A25)+2,FALSE) -> 883 | L25: =HLOOKUP(L$7,$J$67:$DK$121,ROWS($A$11:$A25)+2,FALSE) -> 2250 | M25: =HLOOKUP(M$7,$J$67:$DK$121,ROWS($A$11:$A25)+2,FALSE) -> 7139 | N25: =HLOOKUP(N$7,$J$67:$DK$121,ROWS($A$11:$A25)+2,FALSE) -> 1587 | O25: =HLOOKUP(O$7,$J$67:$DK$121,ROWS($A$11:$A25)+2,FALSE) -> 14940 | P25: =HLOOKUP(P$7,$J$67:$DK$121,ROWS($A$11:$A25)+2,FALSE) -> 3036 | Q25: =HLOOKUP(Q$7,$J$67:$DK$121,ROWS($A$11:$A25)+2,FALSE) -> 955 | R25: =HLOOKUP(R$7,$J$67:$DK$121,ROWS($A$11:$A25)+2,FALSE) -> 234 | S25: =HLOOKUP(S$7,$J$67:$DK$121,ROWS($A$11:$A25)+2,FALSE) -> 1066 | T25: =HLOOKUP(T$7,$J$67:$DK$121,ROWS($A$11:$A25)+2,FALSE) -> 12687 | U25: =HLOOKUP(U$7,$J$67:$DK$121,ROWS($A$11:$A25)+2,FALSE) -> 8745 | V25: =HLOOKUP(V$7,$J$67:$DK$121,ROWS($A$11:$A25)+2,FALSE) -> 869 | W25: =HLOOKUP(W$7,$J$67:$DK$121,ROWS($A$11:$A25)+2,FALSE) -> 1384 | X25: =HLOOKUP(X$7,$J$67:$DK$121,ROWS($A$11:$A25)+2,FALSE) -> N/A | Y25: =HLOOKUP(Y$7,$J$67:$DK$121,ROWS($A$11:$A25)+2,FALSE) -> 16907 | Z25: =HLOOKUP(Z$7,$J$67:$DK$121,ROWS($A$11:$A25)+2,FALSE) -> 8529 | AA25: =HLOOKUP(AA$7,$J$67:$DK$121,ROWS($A$11:$A25)+2,FALSE) -> 2009 | AB25: =HLOOKUP(AB$7,$J$67:$DK$121,ROWS($A$11:$A25)+2,FALSE) -> 2923 | AC25: =HLOOKUP(AC$7,$J$67:$DK$121,ROWS($A$11:$A25)+2,FALSE) -> 1229 | AD25: =HLOOKUP(AD$7,$J$67:$DK$121,ROWS($A$11:$A25)+2,FALSE) -> 526 | AE25: =HLOOKUP(AE$7,$J$67:$DK$121,ROWS($A$11:$A25)+2,FALSE) -> 1865 | AF25: =HLOOKUP(AF$7,$J$67:$DK$121,ROWS($A$11:$A25)+2,FALSE) -> 3296 | AG25: =HLOOKUP(AG$7,$J$67:$DK$121,ROWS($A$11:$A25)+2,FALSE) -> 12583 | AH25: =HLOOKUP(AH$7,$J$67:$DK$121,ROWS($A$11:$A25)+2,FALSE) -> 6537 | AI25: =HLOOKUP(AI$7,$J$67:$DK$121,ROWS($A$11:$A25)+2,FALSE) -> 2744 | AJ25: =HLOOKUP(AJ$7,$J$67:$DK$121,ROWS($A$11:$A25)+2,FALSE) -> 13264 | AK25: =HLOOKUP(AK$7,$J$67:$DK$121,ROWS($A$11:$A25)+2,FALSE) -> 228 | AL25: =HLOOKUP(AL$7,$J$67:$DK$121,ROWS($A$11:$A25)+2,FALSE) -> 1302 | AM25: =HLOOKUP(AM$7,$J$67:$DK$121,ROWS($A$11:$A25)+2,FALSE) -> 1478 | AN25: =HLOOKUP(AN$7,$J$67:$DK$121,ROWS($A$11:$A25)+2,FALSE) -> 283 | AO25: =HLOOKUP(AO$7,$J$67:$DK$121,ROWS($A$11:$A25)+2,FALSE) -> 2366 | AP25: =HLOOKUP(AP$7,$J$67:$DK$121,ROWS($A$11:$A25)+2,FALSE) -> 1359 | AQ25: =HLOOKUP(AQ$7,$J$67:$DK$121,ROWS($A$11:$A25)+2,FALSE) -> 7561 | AR25: =HLOOKUP(AR$7,$J$67:$DK$121,ROWS($A$11:$A25)+2,FALSE) -> 3761 | AS25: =HLOOKUP(AS$7,$J$67:$DK$121,ROWS($A$11:$A25)+2,FALSE) -> 196 | AT25: =HLOOKUP(AT$7,$J$67:$DK$121,ROWS($A$11:$A25)+2,FALSE) -> 6872 | AU25: =HLOOKUP(AU$7,$J$67:$DK$121,ROWS($A$11:$A25)+2,FALSE) -> 1491 | AV25: =HLOOKUP(AV$7,$J$67:$DK$121,ROWS($A$11:$A25)+2,FALSE) -> 954 | AW25: =HLOOKUP(AW$7,$J$67:$DK$121,ROWS($A$11:$A25)+2,FALSE) -> 4588 | AX25: =HLOOKUP(AX$7,$J$67:$DK$121,ROWS($A$11:$A25)+2,FALSE) -> 462 | AY25: =HLOOKUP(AY$7,$J$67:$DK$121,ROWS($A$11:$A25)+2,FALSE) -> 1583 | AZ25: =HLOOKUP(AZ$7,$J$67:$DK$121,ROWS($A$11:$A25)+2,FALSE) -> 394 | BA25: =HLOOKUP(BA$7,$J$67:$DK$121,ROWS($A$11:$A25)+2,FALSE) -> 4648 | BB25: =HLOOKUP(BB$7,$J$67:$DK$121,ROWS($A$11:$A25)+2,FALSE) -> 16780 | BC25: =HLOOKUP(BC$7,$J$67:$DK$121,ROWS($A$11:$A25)+2,FALSE) -> 1154 | BD25: =HLOOKUP(BD$7,$J$67:$DK$121,ROWS($A$11:$A25)+2,FALSE) -> 156 | BE25: =HLOOKUP(BE$7,$J$67:$DK$121,ROWS($A$11:$A25)+2,FALSE) -> 4311 | BF25: =HLOOKUP(BF$7,$J$67:$DK$121,ROWS($A$11:$A25)+2,FALSE) -> 2704 | BG25: =HLOOKUP(BG$7,$J$67:$DK$121,ROWS($A$11:$A25)+2,FALSE) -> 1221 | BH25: =HLOOKUP(BH$7,$J$67:$DK$121,ROWS($A$11:$A25)+2,FALSE) -> 14414 | BI25: =HLOOKUP(BI$7,$J$67:$DK$121,ROWS($A$11:$A25)+2,FALSE) -> 302 | BJ25: =HLOOKUP(BJ$7,$J$67:$DK$121,ROWS($A$11:$A25)+2,FALSE) -> 2049 | BK25: =HLOOKUP(BK$7+0.5,$J$67:$DK$121,ROWS($A$11:$A25)+2,FALSE) -> 10844 | BL25: =HLOOKUP(BL$7+0.5,$J$67:$DK$121,ROWS($A$11:$A25)+2,FALSE) -> 478 | BM25: =HLOOKUP(BM$7+0.5,$J$67:$DK$121,ROWS($A$11:$A25)+2,FALSE) -> 1511 | BN25: =HLOOKUP(BN$7+0.5,$J$67:$DK$121,ROWS($A$11:$A25)+2,FALSE) -> 2314 | BO25: =HLOOKUP(BO$7+0.5,$J$67:$DK$121,ROWS($A$11:$A25)+2,FALSE) -> 643 | BP25: =HLOOKUP(BP$7+0.5,$J$67:$DK$121,ROWS($A$11:$A25)+2,FALSE) -> 2770 | BQ25: =HLOOKUP(BQ$7+0.5,$J$67:$DK$121,ROWS($A$11:$A25)+2,FALSE) -> 1235 | BR25: =HLOOKUP(BR$7+0.5,$J$67:$DK$121,ROWS($A$11:$A25)+2,FALSE) -> 634 | BS25: =HLOOKUP(BS$7+0.5,$J$67:$DK$121,ROWS($A$11:$A25)+2,FALSE) -> 228 | BT25: =HLOOKUP(BT$7+0.5,$J$67:$DK$121,ROWS($A$11:$A25)+2,FALSE) -> 615 | BU25: =HLOOKUP(BU$7+0.5,$J$67:$DK$121,ROWS($A$11:$A25)+2,FALSE) -> 2735 | BV25: =HLOOKUP(BV$7+0.5,$J$67:$DK$121,ROWS($A$11:$A25)+2,FALSE) -> 3894 | BW25: =HLOOKUP(BW$7+0.5,$J$67:$DK$121,ROWS($A$11:$A25)+2,FALSE) -> 593 | BX25: =HLOOKUP(BX$7+0.5,$J$67:$DK$121,ROWS($A$11:$A25)+2,FALSE) -> 868 | BY25: =HLOOKUP(BY$7+0.5,$J$67:$DK$121,ROWS($A$11:$A25)+2,FALSE) -> N/A | BZ25: =HLOOKUP(BZ$7+0.5,$J$67:$DK$121,ROWS($A$11:$A25)+2,FALSE) -> 2654 | CA25: =HLOOKUP(CA$7+0.5,$J$67:$DK$121,ROWS($A$11:$A25)+2,FALSE) -> 1959 | CB25: =HLOOKUP(CB$7+0.5,$J$67:$DK$121,ROWS($A$11:$A25)+2,FALSE) -> 988 | CC25: =HLOOKUP(CC$7+0.5,$J$67:$DK$121,ROWS($A$11:$A25)+2,FALSE) -> 1049 | CD25: =HLOOKUP(CD$7+0.5,$J$67:$DK$121,ROWS($A$11:$A25)+2,FALSE) -> 561 | CE25: =HLOOKUP(CE$7+0.5,$J$67:$DK$121,ROWS($A$11:$A25)+2,FALSE) -> 347 | CF25: =HLOOKUP(CF$7+0.5,$J$67:$DK$121,ROWS($A$11:$A25)+2,FALSE) -> 755 | CG25: =HLOOKUP(CG$7+0.5,$J$67:$DK$121,ROWS($A$11:$A25)+2,FALSE) -> 1088 | CH25: =HLOOKUP(CH$7+0.5,$J$67:$DK$121,ROWS($A$11:$A25)+2,FALSE) -> 3412 | CI25: =HLOOKUP(CI$7+0.5,$J$67:$DK$121,ROWS($A$11:$A25)+2,FALSE) -> 1781 | CJ25: =HLOOKUP(CJ$7+0.5,$J$67:$DK$121,ROWS($A$11:$A25)+2,FALSE) -> 1178 | CK25: =HLOOKUP(CK$7+0.5,$J$67:$DK$121,ROWS($A$11:$A25)+2,FALSE) -> 3449 | CL25: =HLOOKUP(CL$7+0.5,$J$67:$DK$121,ROWS($A$11:$A25)+2,FALSE) -> 183 | CM25: =HLOOKUP(CM$7+0.5,$J$67:$DK$121,ROWS($A$11:$A25)+2,FALSE) -> 637 | CN25: =HLOOKUP(CN$7+0.5,$J$67:$DK$121,ROWS($A$11:$A25)+2,FALSE) -> 817 | CO25: =HLOOKUP(CO$7+0.5,$J$67:$DK$121,ROWS($A$11:$A25)+2,FALSE) -> 255 | CP25: =HLOOKUP(CP$7+0.5,$J$67:$DK$121,ROWS($A$11:$A25)+2,FALSE) -> 1097 | CQ25: =HLOOKUP(CQ$7+0.5,$J$67:$DK$121,ROWS($A$11:$A25)+2,FALSE) -> 1078 | CR25: =HLOOKUP(CR$7+0.5,$J$67:$DK$121,ROWS($A$11:$A25)+2,FALSE) -> 2307 | CS25: =HLOOKUP(CS$7+0.5,$J$67:$DK$121,ROWS($A$11:$A25)+2,FALSE) -> 1150 | CT25: =HLOOKUP(CT$7+0.5,$J$67:$DK$121,ROWS($A$11:$A25)+2,FALSE) -> 184 | CU25: =HLOOKUP(CU$7+0.5,$J$67:$DK$121,ROWS($A$11:$A25)+2,FALSE) -> 1834 | CV25: =HLOOKUP(CV$7+0.5,$J$67:$DK$121,ROWS($A$11:$A25)+2,FALSE) -> 860 | CW25: =HLOOKUP(CW$7+0.5,$J$67:$DK$121,ROWS($A$11:$A25)+2,FALSE) -> 517 | CX25: =HLOOKUP(CX$7+0.5,$J$67:$DK$121,ROWS($A$11:$A25)+2,FALSE) -> 1506 | CY25: =HLOOKUP(CY$7+0.5,$J$67:$DK$121,ROWS($A$11:$A25)+2,FALSE) -> 478 | CZ25: =HLOOKUP(CZ$7+0.5,$J$67:$DK$121,ROWS($A$11:$A25)+2,FALSE) -> 875 | DA25: =HLOOKUP(DA$7+0.5,$J$67:$DK$121,ROWS($A$11:$A25)+2,FALSE) -> 444 | DB25: =HLOOKUP(DB$7+0.5,$J$67:$DK$121,ROWS($A$11:$A25)+2,FALSE) -> 1468 | DC25: =HLOOKUP(DC$7+0.5,$J$67:$DK$121,ROWS($A$11:$A25)+2,FALSE) -> 3035 | DD25: =HLOOKUP(DD$7+0.5,$J$67:$DK$121,ROWS($A$11:$A25)+2,FALSE) -> 495 | DE25: =HLOOKUP(DE$7+0.5,$J$67:$DK$121,ROWS($A$11:$A25)+2,FALSE) -> 133 | DF25: =HLOOKUP(DF$7+0.5,$J$67:$DK$121,ROWS($A$11:$A25)+2,FALSE) -> 1212 | DG25: =HLOOKUP(DG$7+0.5,$J$67:$DK$121,ROWS($A$11:$A25)+2,FALSE) -> 971 | DH25: =HLOOKUP(DH$7+0.5,$J$67:$DK$121,ROWS($A$11:$A25)+2,FALSE) -> 1224 | DI25: =HLOOKUP(DI$7+0.5,$J$67:$DK$121,ROWS($A$11:$A25)+2,FALSE) -> 2249 | DJ25: =HLOOKUP(DJ$7+0.5,$J$67:$DK$121,ROWS($A$11:$A25)+2,FALSE) -> 309 | DK25: =HLOOKUP(DK$7+0.5,$J$67:$DK$121,ROWS($A$11:$A25)+2,FALSE) -> 1480
B26: Indiana | C26: 6457067 | D26: 4184 | E26: 5493090 | F26: 26865 | G26: 805228 | H26: 22224 | I26: 0.01897177578 | J26: =HLOOKUP(J$7,$J$67:$DK$121,ROWS($A$11:$A26)+2,FALSE) -> 134137 | K26: =HLOOKUP(K$7,$J$67:$DK$121,ROWS($A$11:$A26)+2,FALSE) -> 1625 | L26: =HLOOKUP(L$7,$J$67:$DK$121,ROWS($A$11:$A26)+2,FALSE) -> 479 | M26: =HLOOKUP(M$7,$J$67:$DK$121,ROWS($A$11:$A26)+2,FALSE) -> 2763 | N26: =HLOOKUP(N$7,$J$67:$DK$121,ROWS($A$11:$A26)+2,FALSE) -> 564 | O26: =HLOOKUP(O$7,$J$67:$DK$121,ROWS($A$11:$A26)+2,FALSE) -> 6033 | P26: =HLOOKUP(P$7,$J$67:$DK$121,ROWS($A$11:$A26)+2,FALSE) -> 1225 | Q26: =HLOOKUP(Q$7,$J$67:$DK$121,ROWS($A$11:$A26)+2,FALSE) -> 823 | R26: =HLOOKUP(R$7,$J$67:$DK$121,ROWS($A$11:$A26)+2,FALSE) -> 639 | S26: =HLOOKUP(S$7,$J$67:$DK$121,ROWS($A$11:$A26)+2,FALSE) -> 1045 | T26: =HLOOKUP(T$7,$J$67:$DK$121,ROWS($A$11:$A26)+2,FALSE) -> 11472 | U26: =HLOOKUP(U$7,$J$67:$DK$121,ROWS($A$11:$A26)+2,FALSE) -> 2258 | V26: =HLOOKUP(V$7,$J$67:$DK$121,ROWS($A$11:$A26)+2,FALSE) -> 856 | W26: =HLOOKUP(W$7,$J$67:$DK$121,ROWS($A$11:$A26)+2,FALSE) -> 186 | X26: =HLOOKUP(X$7,$J$67:$DK$121,ROWS($A$11:$A26)+2,FALSE) -> 28436 | Y26: =HLOOKUP(Y$7,$J$67:$DK$121,ROWS($A$11:$A26)+2,FALSE) -> N/A | Z26: =HLOOKUP(Z$7,$J$67:$DK$121,ROWS($A$11:$A26)+2,FALSE) -> 1678 | AA26: =HLOOKUP(AA$7,$J$67:$DK$121,ROWS($A$11:$A26)+2,FALSE) -> 1624 | AB26: =HLOOKUP(AB$7,$J$67:$DK$121,ROWS($A$11:$A26)+2,FALSE) -> 11177 | AC26: =HLOOKUP(AC$7,$J$67:$DK$121,ROWS($A$11:$A26)+2,FALSE) -> 736 | AD26: =HLOOKUP(AD$7,$J$67:$DK$121,ROWS($A$11:$A26)+2,FALSE) -> 0 | AE26: =HLOOKUP(AE$7,$J$67:$DK$121,ROWS($A$11:$A26)+2,FALSE) -> 1050 | AF26: =HLOOKUP(AF$7,$J$67:$DK$121,ROWS($A$11:$A26)+2,FALSE) -> 837 | AG26: =HLOOKUP(AG$7,$J$67:$DK$121,ROWS($A$11:$A26)+2,FALSE) -> 11017 | AH26: =HLOOKUP(AH$7,$J$67:$DK$121,ROWS($A$11:$A26)+2,FALSE) -> 1543 | AI26: =HLOOKUP(AI$7,$J$67:$DK$121,ROWS($A$11:$A26)+2,FALSE) -> 1948 | AJ26: =HLOOKUP(AJ$7,$J$67:$DK$121,ROWS($A$11:$A26)+2,FALSE) -> 4526 | AK26: =HLOOKUP(AK$7,$J$67:$DK$121,ROWS($A$11:$A26)+2,FALSE) -> 134 | AL26: =HLOOKUP(AL$7,$J$67:$DK$121,ROWS($A$11:$A26)+2,FALSE) -> 591 | AM26: =HLOOKUP(AM$7,$J$67:$DK$121,ROWS($A$11:$A26)+2,FALSE) -> 1011 | AN26: =HLOOKUP(AN$7,$J$67:$DK$121,ROWS($A$11:$A26)+2,FALSE) -> 0 | AO26: =HLOOKUP(AO$7,$J$67:$DK$121,ROWS($A$11:$A26)+2,FALSE) -> 1537 | AP26: =HLOOKUP(AP$7,$J$67:$DK$121,ROWS($A$11:$A26)+2,FALSE) -> 219 | AQ26: =HLOOKUP(AQ$7,$J$67:$DK$121,ROWS($A$11:$A26)+2,FALSE) -> 2316 | AR26: =HLOOKUP(AR$7,$J$67:$DK$121,ROWS($A$11:$A26)+2,FALSE) -> 2665 | AS26: =HLOOKUP(AS$7,$J$67:$DK$121,ROWS($A$11:$A26)+2,FALSE) -> 113 | AT26: =HLOOKUP(AT$7,$J$67:$DK$121,ROWS($A$11:$A26)+2,FALSE) -> 11235 | AU26: =HLOOKUP(AU$7,$J$67:$DK$121,ROWS($A$11:$A26)+2,FALSE) -> 1198 | AV26: =HLOOKUP(AV$7,$J$67:$DK$121,ROWS($A$11:$A26)+2,FALSE) -> 387 | AW26: =HLOOKUP(AW$7,$J$67:$DK$121,ROWS($A$11:$A26)+2,FALSE) -> 2419 | AX26: =HLOOKUP(AX$7,$J$67:$DK$121,ROWS($A$11:$A26)+2,FALSE) -> 0 | AY26: =HLOOKUP(AY$7,$J$67:$DK$121,ROWS($A$11:$A26)+2,FALSE) -> 1414 | AZ26: =HLOOKUP(AZ$7,$J$67:$DK$121,ROWS($A$11:$A26)+2,FALSE) -> 111 | BA26: =HLOOKUP(BA$7,$J$67:$DK$121,ROWS($A$11:$A26)+2,FALSE) -> 3547 | BB26: =HLOOKUP(BB$7,$J$67:$DK$121,ROWS($A$11:$A26)+2,FALSE) -> 4490 | BC26: =HLOOKUP(BC$7,$J$67:$DK$121,ROWS($A$11:$A26)+2,FALSE) -> 105 | BD26: =HLOOKUP(BD$7,$J$67:$DK$121,ROWS($A$11:$A26)+2,FALSE) -> 0 | BE26: =HLOOKUP(BE$7,$J$67:$DK$121,ROWS($A$11:$A26)+2,FALSE) -> 1932 | BF26: =HLOOKUP(BF$7,$J$67:$DK$121,ROWS($A$11:$A26)+2,FALSE) -> 258 | BG26: =HLOOKUP(BG$7,$J$67:$DK$121,ROWS($A$11:$A26)+2,FALSE) -> 507 | BH26: =HLOOKUP(BH$7,$J$67:$DK$121,ROWS($A$11:$A26)+2,FALSE) -> 1727 | BI26: =HLOOKUP(BI$7,$J$67:$DK$121,ROWS($A$11:$A26)+2,FALSE) -> 1681 | BJ26: =HLOOKUP(BJ$7,$J$67:$DK$121,ROWS($A$11:$A26)+2,FALSE) -> 136 | BK26: =HLOOKUP(BK$7+0.5,$J$67:$DK$121,ROWS($A$11:$A26)+2,FALSE) -> 9664 | BL26: =HLOOKUP(BL$7+0.5,$J$67:$DK$121,ROWS($A$11:$A26)+2,FALSE) -> 788 | BM26: =HLOOKUP(BM$7+0.5,$J$67:$DK$121,ROWS($A$11:$A26)+2,FALSE) -> 429 | BN26: =HLOOKUP(BN$7+0.5,$J$67:$DK$121,ROWS($A$11:$A26)+2,FALSE) -> 1095 | BO26: =HLOOKUP(BO$7+0.5,$J$67:$DK$121,ROWS($A$11:$A26)+2,FALSE) -> 753 | BP26: =HLOOKUP(BP$7+0.5,$J$67:$DK$121,ROWS($A$11:$A26)+2,FALSE) -> 1477 | BQ26: =HLOOKUP(BQ$7+0.5,$J$67:$DK$121,ROWS($A$11:$A26)+2,FALSE) -> 531 | BR26: =HLOOKUP(BR$7+0.5,$J$67:$DK$121,ROWS($A$11:$A26)+2,FALSE) -> 595 | BS26: =HLOOKUP(BS$7+0.5,$J$67:$DK$121,ROWS($A$11:$A26)+2,FALSE) -> 831 | BT26: =HLOOKUP(BT$7+0.5,$J$67:$DK$121,ROWS($A$11:$A26)+2,FALSE) -> 733 | BU26: =HLOOKUP(BU$7+0.5,$J$67:$DK$121,ROWS($A$11:$A26)+2,FALSE) -> 2864 | BV26: =HLOOKUP(BV$7+0.5,$J$67:$DK$121,ROWS($A$11:$A26)+2,FALSE) -> 1176 | BW26: =HLOOKUP(BW$7+0.5,$J$67:$DK$121,ROWS($A$11:$A26)+2,FALSE) -> 998 | BX26: =HLOOKUP(BX$7+0.5,$J$67:$DK$121,ROWS($A$11:$A26)+2,FALSE) -> 176 | BY26: =HLOOKUP(BY$7+0.5,$J$67:$DK$121,ROWS($A$11:$A26)+2,FALSE) -> 4261 | BZ26: =HLOOKUP(BZ$7+0.5,$J$67:$DK$121,ROWS($A$11:$A26)+2,FALSE) -> N/A | CA26: =HLOOKUP(CA$7+0.5,$J$67:$DK$121,ROWS($A$11:$A26)+2,FALSE) -> 860 | CB26: =HLOOKUP(CB$7+0.5,$J$67:$DK$121,ROWS($A$11:$A26)+2,FALSE) -> 785 | CC26: =HLOOKUP(CC$7+0.5,$J$67:$DK$121,ROWS($A$11:$A26)+2,FALSE) -> 2929 | CD26: =HLOOKUP(CD$7+0.5,$J$67:$DK$121,ROWS($A$11:$A26)+2,FALSE) -> 416 | CE26: =HLOOKUP(CE$7+0.5,$J$67:$DK$121,ROWS($A$11:$A26)+2,FALSE) -> 184 | CF26: =HLOOKUP(CF$7+0.5,$J$67:$DK$121,ROWS($A$11:$A26)+2,FALSE) -> 648 | CG26: =HLOOKUP(CG$7+0.5,$J$67:$DK$121,ROWS($A$11:$A26)+2,FALSE) -> 590 | CH26: =HLOOKUP(CH$7+0.5,$J$67:$DK$121,ROWS($A$11:$A26)+2,FALSE) -> 2594 | CI26: =HLOOKUP(CI$7+0.5,$J$67:$DK$121,ROWS($A$11:$A26)+2,FALSE) -> 732 | CJ26: =HLOOKUP(CJ$7+0.5,$J$67:$DK$121,ROWS($A$11:$A26)+2,FALSE) -> 1655 | CK26: =HLOOKUP(CK$7+0.5,$J$67:$DK$121,ROWS($A$11:$A26)+2,FALSE) -> 1802 | CL26: =HLOOKUP(CL$7+0.5,$J$67:$DK$121,ROWS($A$11:$A26)+2,FALSE) -> 191 | CM26: =HLOOKUP(CM$7+0.5,$J$67:$DK$121,ROWS($A$11:$A26)+2,FALSE) -> 541 | CN26: =HLOOKUP(CN$7+0.5,$J$67:$DK$121,ROWS($A$11:$A26)+2,FALSE) -> 549 | CO26: =HLOOKUP(CO$7+0.5,$J$67:$DK$121,ROWS($A$11:$A26)+2,FALSE) -> 184 | CP26: =HLOOKUP(CP$7+0.5,$J$67:$DK$121,ROWS($A$11:$A26)+2,FALSE) -> 1034 | CQ26: =HLOOKUP(CQ$7+0.5,$J$67:$DK$121,ROWS($A$11:$A26)+2,FALSE) -> 245 | CR26: =HLOOKUP(CR$7+0.5,$J$67:$DK$121,ROWS($A$11:$A26)+2,FALSE) -> 724 | CS26: =HLOOKUP(CS$7+0.5,$J$67:$DK$121,ROWS($A$11:$A26)+2,FALSE) -> 884 | CT26: =HLOOKUP(CT$7+0.5,$J$67:$DK$121,ROWS($A$11:$A26)+2,FALSE) -> 164 | CU26: =HLOOKUP(CU$7+0.5,$J$67:$DK$121,ROWS($A$11:$A26)+2,FALSE) -> 2192 | CV26: =HLOOKUP(CV$7+0.5,$J$67:$DK$121,ROWS($A$11:$A26)+2,FALSE) -> 725 | CW26: =HLOOKUP(CW$7+0.5,$J$67:$DK$121,ROWS($A$11:$A26)+2,FALSE) -> 239 | CX26: =HLOOKUP(CX$7+0.5,$J$67:$DK$121,ROWS($A$11:$A26)+2,FALSE) -> 1101 | CY26: =HLOOKUP(CY$7+0.5,$J$67:$DK$121,ROWS($A$11:$A26)+2,FALSE) -> 184 | CZ26: =HLOOKUP(CZ$7+0.5,$J$67:$DK$121,ROWS($A$11:$A26)+2,FALSE) -> 901 | DA26: =HLOOKUP(DA$7+0.5,$J$67:$DK$121,ROWS($A$11:$A26)+2,FALSE) -> 147 | DB26: =HLOOKUP(DB$7+0.5,$J$67:$DK$121,ROWS($A$11:$A26)+2,FALSE) -> 1422 | DC26: =HLOOKUP(DC$7+0.5,$J$67:$DK$121,ROWS($A$11:$A26)+2,FALSE) -> 1562 | DD26: =HLOOKUP(DD$7+0.5,$J$67:$DK$121,ROWS($A$11:$A26)+2,FALSE) -> 124 | DE26: =HLOOKUP(DE$7+0.5,$J$67:$DK$121,ROWS($A$11:$A26)+2,FALSE) -> 184 | DF26: =HLOOKUP(DF$7+0.5,$J$67:$DK$121,ROWS($A$11:$A26)+2,FALSE) -> 1101 | DG26: =HLOOKUP(DG$7+0.5,$J$67:$DK$121,ROWS($A$11:$A26)+2,FALSE) -> 221 | DH26: =HLOOKUP(DH$7+0.5,$J$67:$DK$121,ROWS($A$11:$A26)+2,FALSE) -> 345 | DI26: =HLOOKUP(DI$7+0.5,$J$67:$DK$121,ROWS($A$11:$A26)+2,FALSE) -> 769 | DJ26: =HLOOKUP(DJ$7+0.5,$J$67:$DK$121,ROWS($A$11:$A26)+2,FALSE) -> 2023 | DK26: =HLOOKUP(DK$7+0.5,$J$67:$DK$121,ROWS($A$11:$A26)+2,FALSE) -> 194
B27: Iowa | C27: 3035469 | D27: 2721 | E27: 2585979 | F27: 14093 | G27: 362938 | H27: 11238 | I27: 0.01071517727 | J27: =HLOOKUP(J$7,$J$67:$DK$121,ROWS($A$11:$A27)+2,FALSE) -> 75760 | K27: =HLOOKUP(K$7,$J$67:$DK$121,ROWS($A$11:$A27)+2,FALSE) -> 503 | L27: =HLOOKUP(L$7,$J$67:$DK$121,ROWS($A$11:$A27)+2,FALSE) -> 951 | M27: =HLOOKUP(M$7,$J$67:$DK$121,ROWS($A$11:$A27)+2,FALSE) -> 1590 | N27: =HLOOKUP(N$7,$J$67:$DK$121,ROWS($A$11:$A27)+2,FALSE) -> 451 | O27: =HLOOKUP(O$7,$J$67:$DK$121,ROWS($A$11:$A27)+2,FALSE) -> 3268 | P27: =HLOOKUP(P$7,$J$67:$DK$121,ROWS($A$11:$A27)+2,FALSE) -> 3252 | Q27: =HLOOKUP(Q$7,$J$67:$DK$121,ROWS($A$11:$A27)+2,FALSE) -> 112 | R27: =HLOOKUP(R$7,$J$67:$DK$121,ROWS($A$11:$A27)+2,FALSE) -> 0 | S27: =HLOOKUP(S$7,$J$67:$DK$121,ROWS($A$11:$A27)+2,FALSE) -> 151 | T27: =HLOOKUP(T$7,$J$67:$DK$121,ROWS($A$11:$A27)+2,FALSE) -> 4335 | U27: =HLOOKUP(U$7,$J$67:$DK$121,ROWS($A$11:$A27)+2,FALSE) -> 596 | V27: =HLOOKUP(V$7,$J$67:$DK$121,ROWS($A$11:$A27)+2,FALSE) -> 521 | W27: =HLOOKUP(W$7,$J$67:$DK$121,ROWS($A$11:$A27)+2,FALSE) -> 290 | X27: =HLOOKUP(X$7,$J$67:$DK$121,ROWS($A$11:$A27)+2,FALSE) -> 11969 | Y27: =HLOOKUP(Y$7,$J$67:$DK$121,ROWS($A$11:$A27)+2,FALSE) -> 1716 | Z27: =HLOOKUP(Z$7,$J$67:$DK$121,ROWS($A$11:$A27)+2,FALSE) -> N/A | AA27: =HLOOKUP(AA$7,$J$67:$DK$121,ROWS($A$11:$A27)+2,FALSE) -> 918 | AB27: =HLOOKUP(AB$7,$J$67:$DK$121,ROWS($A$11:$A27)+2,FALSE) -> 819 | AC27: =HLOOKUP(AC$7,$J$67:$DK$121,ROWS($A$11:$A27)+2,FALSE) -> 763 | AD27: =HLOOKUP(AD$7,$J$67:$DK$121,ROWS($A$11:$A27)+2,FALSE) -> 78 | AE27: =HLOOKUP(AE$7,$J$67:$DK$121,ROWS($A$11:$A27)+2,FALSE) -> 419 | AF27: =HLOOKUP(AF$7,$J$67:$DK$121,ROWS($A$11:$A27)+2,FALSE) -> 585 | AG27: =HLOOKUP(AG$7,$J$67:$DK$121,ROWS($A$11:$A27)+2,FALSE) -> 946 | AH27: =HLOOKUP(AH$7,$J$67:$DK$121,ROWS($A$11:$A27)+2,FALSE) -> 7505 | AI27: =HLOOKUP(AI$7,$J$67:$DK$121,ROWS($A$11:$A27)+2,FALSE) -> 751 | AJ27: =HLOOKUP(AJ$7,$J$67:$DK$121,ROWS($A$11:$A27)+2,FALSE) -> 4168 | AK27: =HLOOKUP(AK$7,$J$67:$DK$121,ROWS($A$11:$A27)+2,FALSE) -> 452 | AL27: =HLOOKUP(AL$7,$J$67:$DK$121,ROWS($A$11:$A27)+2,FALSE) -> 7698 | AM27: =HLOOKUP(AM$7,$J$67:$DK$121,ROWS($A$11:$A27)+2,FALSE) -> 681 | AN27: =HLOOKUP(AN$7,$J$67:$DK$121,ROWS($A$11:$A27)+2,FALSE) -> 56 | AO27: =HLOOKUP(AO$7,$J$67:$DK$121,ROWS($A$11:$A27)+2,FALSE) -> 1018 | AP27: =HLOOKUP(AP$7,$J$67:$DK$121,ROWS($A$11:$A27)+2,FALSE) -> 114 | AQ27: =HLOOKUP(AQ$7,$J$67:$DK$121,ROWS($A$11:$A27)+2,FALSE) -> 1230 | AR27: =HLOOKUP(AR$7,$J$67:$DK$121,ROWS($A$11:$A27)+2,FALSE) -> 734 | AS27: =HLOOKUP(AS$7,$J$67:$DK$121,ROWS($A$11:$A27)+2,FALSE) -> 833 | AT27: =HLOOKUP(AT$7,$J$67:$DK$121,ROWS($A$11:$A27)+2,FALSE) -> 1127 | AU27: =HLOOKUP(AU$7,$J$67:$DK$121,ROWS($A$11:$A27)+2,FALSE) -> 1465 | AV27: =HLOOKUP(AV$7,$J$67:$DK$121,ROWS($A$11:$A27)+2,FALSE) -> 348 | AW27: =HLOOKUP(AW$7,$J$67:$DK$121,ROWS($A$11:$A27)+2,FALSE) -> 451 | AX27: =HLOOKUP(AX$7,$J$67:$DK$121,ROWS($A$11:$A27)+2,FALSE) -> 0 | AY27: =HLOOKUP(AY$7,$J$67:$DK$121,ROWS($A$11:$A27)+2,FALSE) -> 943 | AZ27: =HLOOKUP(AZ$7,$J$67:$DK$121,ROWS($A$11:$A27)+2,FALSE) -> 1158 | BA27: =HLOOKUP(BA$7,$J$67:$DK$121,ROWS($A$11:$A27)+2,FALSE) -> 1148 | BB27: =HLOOKUP(BB$7,$J$67:$DK$121,ROWS($A$11:$A27)+2,FALSE) -> 3553 | BC27: =HLOOKUP(BC$7,$J$67:$DK$121,ROWS($A$11:$A27)+2,FALSE) -> 886 | BD27: =HLOOKUP(BD$7,$J$67:$DK$121,ROWS($A$11:$A27)+2,FALSE) -> 0 | BE27: =HLOOKUP(BE$7,$J$67:$DK$121,ROWS($A$11:$A27)+2,FALSE) -> 268 | BF27: =HLOOKUP(BF$7,$J$67:$DK$121,ROWS($A$11:$A27)+2,FALSE) -> 919 | BG27: =HLOOKUP(BG$7,$J$67:$DK$121,ROWS($A$11:$A27)+2,FALSE) -> 22 | BH27: =HLOOKUP(BH$7,$J$67:$DK$121,ROWS($A$11:$A27)+2,FALSE) -> 3607 | BI27: =HLOOKUP(BI$7,$J$67:$DK$121,ROWS($A$11:$A27)+2,FALSE) -> 392 | BJ27: =HLOOKUP(BJ$7,$J$67:$DK$121,ROWS($A$11:$A27)+2,FALSE) -> 786 | BK27: =HLOOKUP(BK$7+0.5,$J$67:$DK$121,ROWS($A$11:$A27)+2,FALSE) -> 5982 | BL27: =HLOOKUP(BL$7+0.5,$J$67:$DK$121,ROWS($A$11:$A27)+2,FALSE) -> 400 | BM27: =HLOOKUP(BM$7+0.5,$J$67:$DK$121,ROWS($A$11:$A27)+2,FALSE) -> 814 | BN27: =HLOOKUP(BN$7+0.5,$J$67:$DK$121,ROWS($A$11:$A27)+2,FALSE) -> 803 | BO27: =HLOOKUP(BO$7+0.5,$J$67:$DK$121,ROWS($A$11:$A27)+2,FALSE) -> 237 | BP27: =HLOOKUP(BP$7+0.5,$J$67:$DK$121,ROWS($A$11:$A27)+2,FALSE) -> 1296 | BQ27: =HLOOKUP(BQ$7+0.5,$J$67:$DK$121,ROWS($A$11:$A27)+2,FALSE) -> 1250 | BR27: =HLOOKUP(BR$7+0.5,$J$67:$DK$121,ROWS($A$11:$A27)+2,FALSE) -> 135 | BS27: =HLOOKUP(BS$7+0.5,$J$67:$DK$121,ROWS($A$11:$A27)+2,FALSE) -> 151 | BT27: =HLOOKUP(BT$7+0.5,$J$67:$DK$121,ROWS($A$11:$A27)+2,FALSE) -> 155 | BU27: =HLOOKUP(BU$7+0.5,$J$67:$DK$121,ROWS($A$11:$A27)+2,FALSE) -> 2060 | BV27: =HLOOKUP(BV$7+0.5,$J$67:$DK$121,ROWS($A$11:$A27)+2,FALSE) -> 481 | BW27: =HLOOKUP(BW$7+0.5,$J$67:$DK$121,ROWS($A$11:$A27)+2,FALSE) -> 476 | BX27: =HLOOKUP(BX$7+0.5,$J$67:$DK$121,ROWS($A$11:$A27)+2,FALSE) -> 218 | BY27: =HLOOKUP(BY$7+0.5,$J$67:$DK$121,ROWS($A$11:$A27)+2,FALSE) -> 2313 | BZ27: =HLOOKUP(BZ$7+0.5,$J$67:$DK$121,ROWS($A$11:$A27)+2,FALSE) -> 1097 | CA27: =HLOOKUP(CA$7+0.5,$J$67:$DK$121,ROWS($A$11:$A27)+2,FALSE) -> N/A | CB27: =HLOOKUP(CB$7+0.5,$J$67:$DK$121,ROWS($A$11:$A27)+2,FALSE) -> 500 | CC27: =HLOOKUP(CC$7+0.5,$J$67:$DK$121,ROWS($A$11:$A27)+2,FALSE) -> 609 | CD27: =HLOOKUP(CD$7+0.5,$J$67:$DK$121,ROWS($A$11:$A27)+2,FALSE) -> 568 | CE27: =HLOOKUP(CE$7+0.5,$J$67:$DK$121,ROWS($A$11:$A27)+2,FALSE) -> 125 | CF27: =HLOOKUP(CF$7+0.5,$J$67:$DK$121,ROWS($A$11:$A27)+2,FALSE) -> 287 | CG27: =HLOOKUP(CG$7+0.5,$J$67:$DK$121,ROWS($A$11:$A27)+2,FALSE) -> 520 | CH27: =HLOOKUP(CH$7+0.5,$J$67:$DK$121,ROWS($A$11:$A27)+2,FALSE) -> 497 | CI27: =HLOOKUP(CI$7+0.5,$J$67:$DK$121,ROWS($A$11:$A27)+2,FALSE) -> 1826 | CJ27: =HLOOKUP(CJ$7+0.5,$J$67:$DK$121,ROWS($A$11:$A27)+2,FALSE) -> 621 | CK27: =HLOOKUP(CK$7+0.5,$J$67:$DK$121,ROWS($A$11:$A27)+2,FALSE) -> 1021 | CL27: =HLOOKUP(CL$7+0.5,$J$67:$DK$121,ROWS($A$11:$A27)+2,FALSE) -> 305 | CM27: =HLOOKUP(CM$7+0.5,$J$67:$DK$121,ROWS($A$11:$A27)+2,FALSE) -> 1806 | CN27: =HLOOKUP(CN$7+0.5,$J$67:$DK$121,ROWS($A$11:$A27)+2,FALSE) -> 602 | CO27: =HLOOKUP(CO$7+0.5,$J$67:$DK$121,ROWS($A$11:$A27)+2,FALSE) -> 93 | CP27: =HLOOKUP(CP$7+0.5,$J$67:$DK$121,ROWS($A$11:$A27)+2,FALSE) -> 767 | CQ27: =HLOOKUP(CQ$7+0.5,$J$67:$DK$121,ROWS($A$11:$A27)+2,FALSE) -> 188 | CR27: =HLOOKUP(CR$7+0.5,$J$67:$DK$121,ROWS($A$11:$A27)+2,FALSE) -> 819 | CS27: =HLOOKUP(CS$7+0.5,$J$67:$DK$121,ROWS($A$11:$A27)+2,FALSE) -> 428 | CT27: =HLOOKUP(CT$7+0.5,$J$67:$DK$121,ROWS($A$11:$A27)+2,FALSE) -> 617 | CU27: =HLOOKUP(CU$7+0.5,$J$67:$DK$121,ROWS($A$11:$A27)+2,FALSE) -> 692 | CV27: =HLOOKUP(CV$7+0.5,$J$67:$DK$121,ROWS($A$11:$A27)+2,FALSE) -> 974 | CW27: =HLOOKUP(CW$7+0.5,$J$67:$DK$121,ROWS($A$11:$A27)+2,FALSE) -> 302 | CX27: =HLOOKUP(CX$7+0.5,$J$67:$DK$121,ROWS($A$11:$A27)+2,FALSE) -> 353 | CY27: =HLOOKUP(CY$7+0.5,$J$67:$DK$121,ROWS($A$11:$A27)+2,FALSE) -> 151 | CZ27: =HLOOKUP(CZ$7+0.5,$J$67:$DK$121,ROWS($A$11:$A27)+2,FALSE) -> 556 | DA27: =HLOOKUP(DA$7+0.5,$J$67:$DK$121,ROWS($A$11:$A27)+2,FALSE) -> 441 | DB27: =HLOOKUP(DB$7+0.5,$J$67:$DK$121,ROWS($A$11:$A27)+2,FALSE) -> 871 | DC27: =HLOOKUP(DC$7+0.5,$J$67:$DK$121,ROWS($A$11:$A27)+2,FALSE) -> 1275 | DD27: =HLOOKUP(DD$7+0.5,$J$67:$DK$121,ROWS($A$11:$A27)+2,FALSE) -> 880 | DE27: =HLOOKUP(DE$7+0.5,$J$67:$DK$121,ROWS($A$11:$A27)+2,FALSE) -> 151 | DF27: =HLOOKUP(DF$7+0.5,$J$67:$DK$121,ROWS($A$11:$A27)+2,FALSE) -> 200 | DG27: =HLOOKUP(DG$7+0.5,$J$67:$DK$121,ROWS($A$11:$A27)+2,FALSE) -> 485 | DH27: =HLOOKUP(DH$7+0.5,$J$67:$DK$121,ROWS($A$11:$A27)+2,FALSE) -> 41 | DI27: =HLOOKUP(DI$7+0.5,$J$67:$DK$121,ROWS($A$11:$A27)+2,FALSE) -> 849 | DJ27: =HLOOKUP(DJ$7+0.5,$J$67:$DK$121,ROWS($A$11:$A27)+2,FALSE) -> 316 | DK27: =HLOOKUP(DK$7+0.5,$J$67:$DK$121,ROWS($A$11:$A27)+2,FALSE) -> 1190
B28: Kansas | C28: 2848708 | D28: 2507 | E28: 2361899 | F28: 16878 | G28: 381695 | H28: 15902 | I28: 0.0124865194 | J28: =HLOOKUP(J$7,$J$67:$DK$121,ROWS($A$11:$A28)+2,FALSE) -> 88284 | K28: =HLOOKUP(K$7,$J$67:$DK$121,ROWS($A$11:$A28)+2,FALSE) -> 853 | L28: =HLOOKUP(L$7,$J$67:$DK$121,ROWS($A$11:$A28)+2,FALSE) -> 333 | M28: =HLOOKUP(M$7,$J$67:$DK$121,ROWS($A$11:$A28)+2,FALSE) -> 3094 | N28: =HLOOKUP(N$7,$J$67:$DK$121,ROWS($A$11:$A28)+2,FALSE) -> 2158 | O28: =HLOOKUP(O$7,$J$67:$DK$121,ROWS($A$11:$A28)+2,FALSE) -> 5411 | P28: =HLOOKUP(P$7,$J$67:$DK$121,ROWS($A$11:$A28)+2,FALSE) -> 3746 | Q28: =HLOOKUP(Q$7,$J$67:$DK$121,ROWS($A$11:$A28)+2,FALSE) -> 210 | R28: =HLOOKUP(R$7,$J$67:$DK$121,ROWS($A$11:$A28)+2,FALSE) -> 0 | S28: =HLOOKUP(S$7,$J$67:$DK$121,ROWS($A$11:$A28)+2,FALSE) -> 456 | T28: =HLOOKUP(T$7,$J$67:$DK$121,ROWS($A$11:$A28)+2,FALSE) -> 3118 | U28: =HLOOKUP(U$7,$J$67:$DK$121,ROWS($A$11:$A28)+2,FALSE) -> 1896 | V28: =HLOOKUP(V$7,$J$67:$DK$121,ROWS($A$11:$A28)+2,FALSE) -> 149 | W28: =HLOOKUP(W$7,$J$67:$DK$121,ROWS($A$11:$A28)+2,FALSE) -> 456 | X28: =HLOOKUP(X$7,$J$67:$DK$121,ROWS($A$11:$A28)+2,FALSE) -> 1702 | Y28: =HLOOKUP(Y$7,$J$67:$DK$121,ROWS($A$11:$A28)+2,FALSE) -> 1679 | Z28: =HLOOKUP(Z$7,$J$67:$DK$121,ROWS($A$11:$A28)+2,FALSE) -> 1527 | AA28: =HLOOKUP(AA$7,$J$67:$DK$121,ROWS($A$11:$A28)+2,FALSE) -> N/A | AB28: =HLOOKUP(AB$7,$J$67:$DK$121,ROWS($A$11:$A28)+2,FALSE) -> 617 | AC28: =HLOOKUP(AC$7,$J$67:$DK$121,ROWS($A$11:$A28)+2,FALSE) -> 438 | AD28: =HLOOKUP(AD$7,$J$67:$DK$121,ROWS($A$11:$A28)+2,FALSE) -> 211 | AE28: =HLOOKUP(AE$7,$J$67:$DK$121,ROWS($A$11:$A28)+2,FALSE) -> 282 | AF28: =HLOOKUP(AF$7,$J$67:$DK$121,ROWS($A$11:$A28)+2,FALSE) -> 187 | AG28: =HLOOKUP(AG$7,$J$67:$DK$121,ROWS($A$11:$A28)+2,FALSE) -> 1125 | AH28: =HLOOKUP(AH$7,$J$67:$DK$121,ROWS($A$11:$A28)+2,FALSE) -> 682 | AI28: =HLOOKUP(AI$7,$J$67:$DK$121,ROWS($A$11:$A28)+2,FALSE) -> 452 | AJ28: =HLOOKUP(AJ$7,$J$67:$DK$121,ROWS($A$11:$A28)+2,FALSE) -> 21022 | AK28: =HLOOKUP(AK$7,$J$67:$DK$121,ROWS($A$11:$A28)+2,FALSE) -> 300 | AL28: =HLOOKUP(AL$7,$J$67:$DK$121,ROWS($A$11:$A28)+2,FALSE) -> 4126 | AM28: =HLOOKUP(AM$7,$J$67:$DK$121,ROWS($A$11:$A28)+2,FALSE) -> 851 | AN28: =HLOOKUP(AN$7,$J$67:$DK$121,ROWS($A$11:$A28)+2,FALSE) -> 0 | AO28: =HLOOKUP(AO$7,$J$67:$DK$121,ROWS($A$11:$A28)+2,FALSE) -> 267 | AP28: =HLOOKUP(AP$7,$J$67:$DK$121,ROWS($A$11:$A28)+2,FALSE) -> 1029 | AQ28: =HLOOKUP(AQ$7,$J$67:$DK$121,ROWS($A$11:$A28)+2,FALSE) -> 571 | AR28: =HLOOKUP(AR$7,$J$67:$DK$121,ROWS($A$11:$A28)+2,FALSE) -> 813 | AS28: =HLOOKUP(AS$7,$J$67:$DK$121,ROWS($A$11:$A28)+2,FALSE) -> 261 | AT28: =HLOOKUP(AT$7,$J$67:$DK$121,ROWS($A$11:$A28)+2,FALSE) -> 1310 | AU28: =HLOOKUP(AU$7,$J$67:$DK$121,ROWS($A$11:$A28)+2,FALSE) -> 8408 | AV28: =HLOOKUP(AV$7,$J$67:$DK$121,ROWS($A$11:$A28)+2,FALSE) -> 848 | AW28: =HLOOKUP(AW$7,$J$67:$DK$121,ROWS($A$11:$A28)+2,FALSE) -> 918 | AX28: =HLOOKUP(AX$7,$J$67:$DK$121,ROWS($A$11:$A28)+2,FALSE) -> 18 | AY28: =HLOOKUP(AY$7,$J$67:$DK$121,ROWS($A$11:$A28)+2,FALSE) -> 556 | AZ28: =HLOOKUP(AZ$7,$J$67:$DK$121,ROWS($A$11:$A28)+2,FALSE) -> 154 | BA28: =HLOOKUP(BA$7,$J$67:$DK$121,ROWS($A$11:$A28)+2,FALSE) -> 1542 | BB28: =HLOOKUP(BB$7,$J$67:$DK$121,ROWS($A$11:$A28)+2,FALSE) -> 8468 | BC28: =HLOOKUP(BC$7,$J$67:$DK$121,ROWS($A$11:$A28)+2,FALSE) -> 97 | BD28: =HLOOKUP(BD$7,$J$67:$DK$121,ROWS($A$11:$A28)+2,FALSE) -> 70 | BE28: =HLOOKUP(BE$7,$J$67:$DK$121,ROWS($A$11:$A28)+2,FALSE) -> 1705 | BF28: =HLOOKUP(BF$7,$J$67:$DK$121,ROWS($A$11:$A28)+2,FALSE) -> 3265 | BG28: =HLOOKUP(BG$7,$J$67:$DK$121,ROWS($A$11:$A28)+2,FALSE) -> 139 | BH28: =HLOOKUP(BH$7,$J$67:$DK$121,ROWS($A$11:$A28)+2,FALSE) -> 486 | BI28: =HLOOKUP(BI$7,$J$67:$DK$121,ROWS($A$11:$A28)+2,FALSE) -> 278 | BJ28: =HLOOKUP(BJ$7,$J$67:$DK$121,ROWS($A$11:$A28)+2,FALSE) -> 82 | BK28: =HLOOKUP(BK$7+0.5,$J$67:$DK$121,ROWS($A$11:$A28)+2,FALSE) -> 7145 | BL28: =HLOOKUP(BL$7+0.5,$J$67:$DK$121,ROWS($A$11:$A28)+2,FALSE) -> 609 | BM28: =HLOOKUP(BM$7+0.5,$J$67:$DK$121,ROWS($A$11:$A28)+2,FALSE) -> 407 | BN28: =HLOOKUP(BN$7+0.5,$J$67:$DK$121,ROWS($A$11:$A28)+2,FALSE) -> 1630 | BO28: =HLOOKUP(BO$7+0.5,$J$67:$DK$121,ROWS($A$11:$A28)+2,FALSE) -> 890 | BP28: =HLOOKUP(BP$7+0.5,$J$67:$DK$121,ROWS($A$11:$A28)+2,FALSE) -> 2012 | BQ28: =HLOOKUP(BQ$7+0.5,$J$67:$DK$121,ROWS($A$11:$A28)+2,FALSE) -> 1360 | BR28: =HLOOKUP(BR$7+0.5,$J$67:$DK$121,ROWS($A$11:$A28)+2,FALSE) -> 208 | BS28: =HLOOKUP(BS$7+0.5,$J$67:$DK$121,ROWS($A$11:$A28)+2,FALSE) -> 165 | BT28: =HLOOKUP(BT$7+0.5,$J$67:$DK$121,ROWS($A$11:$A28)+2,FALSE) -> 737 | BU28: =HLOOKUP(BU$7+0.5,$J$67:$DK$121,ROWS($A$11:$A28)+2,FALSE) -> 1380 | BV28: =HLOOKUP(BV$7+0.5,$J$67:$DK$121,ROWS($A$11:$A28)+2,FALSE) -> 1395 | BW28: =HLOOKUP(BW$7+0.5,$J$67:$DK$121,ROWS($A$11:$A28)+2,FALSE) -> 156 | BX28: =HLOOKUP(BX$7+0.5,$J$67:$DK$121,ROWS($A$11:$A28)+2,FALSE) -> 356 | BY28: =HLOOKUP(BY$7+0.5,$J$67:$DK$121,ROWS($A$11:$A28)+2,FALSE) -> 582 | BZ28: =HLOOKUP(BZ$7+0.5,$J$67:$DK$121,ROWS($A$11:$A28)+2,FALSE) -> 839 | CA28: =HLOOKUP(CA$7+0.5,$J$67:$DK$121,ROWS($A$11:$A28)+2,FALSE) -> 860 | CB28: =HLOOKUP(CB$7+0.5,$J$67:$DK$121,ROWS($A$11:$A28)+2,FALSE) -> N/A | CC28: =HLOOKUP(CC$7+0.5,$J$67:$DK$121,ROWS($A$11:$A28)+2,FALSE) -> 476 | CD28: =HLOOKUP(CD$7+0.5,$J$67:$DK$121,ROWS($A$11:$A28)+2,FALSE) -> 408 | CE28: =HLOOKUP(CE$7+0.5,$J$67:$DK$121,ROWS($A$11:$A28)+2,FALSE) -> 225 | CF28: =HLOOKUP(CF$7+0.5,$J$67:$DK$121,ROWS($A$11:$A28)+2,FALSE) -> 282 | CG28: =HLOOKUP(CG$7+0.5,$J$67:$DK$121,ROWS($A$11:$A28)+2,FALSE) -> 203 | CH28: =HLOOKUP(CH$7+0.5,$J$67:$DK$121,ROWS($A$11:$A28)+2,FALSE) -> 682 | CI28: =HLOOKUP(CI$7+0.5,$J$67:$DK$121,ROWS($A$11:$A28)+2,FALSE) -> 367 | CJ28: =HLOOKUP(CJ$7+0.5,$J$67:$DK$121,ROWS($A$11:$A28)+2,FALSE) -> 501 | CK28: =HLOOKUP(CK$7+0.5,$J$67:$DK$121,ROWS($A$11:$A28)+2,FALSE) -> 3073 | CL28: =HLOOKUP(CL$7+0.5,$J$67:$DK$121,ROWS($A$11:$A28)+2,FALSE) -> 326 | CM28: =HLOOKUP(CM$7+0.5,$J$67:$DK$121,ROWS($A$11:$A28)+2,FALSE) -> 1245 | CN28: =HLOOKUP(CN$7+0.5,$J$67:$DK$121,ROWS($A$11:$A28)+2,FALSE) -> 606 | CO28: =HLOOKUP(CO$7+0.5,$J$67:$DK$121,ROWS($A$11:$A28)+2,FALSE) -> 165 | CP28: =HLOOKUP(CP$7+0.5,$J$67:$DK$121,ROWS($A$11:$A28)+2,FALSE) -> 228 | CQ28: =HLOOKUP(CQ$7+0.5,$J$67:$DK$121,ROWS($A$11:$A28)+2,FALSE) -> 627 | CR28: =HLOOKUP(CR$7+0.5,$J$67:$DK$121,ROWS($A$11:$A28)+2,FALSE) -> 367 | CS28: =HLOOKUP(CS$7+0.5,$J$67:$DK$121,ROWS($A$11:$A28)+2,FALSE) -> 476 | CT28: =HLOOKUP(CT$7+0.5,$J$67:$DK$121,ROWS($A$11:$A28)+2,FALSE) -> 263 | CU28: =HLOOKUP(CU$7+0.5,$J$67:$DK$121,ROWS($A$11:$A28)+2,FALSE) -> 638 | CV28: =HLOOKUP(CV$7+0.5,$J$67:$DK$121,ROWS($A$11:$A28)+2,FALSE) -> 2299 | CW28: =HLOOKUP(CW$7+0.5,$J$67:$DK$121,ROWS($A$11:$A28)+2,FALSE) -> 557 | CX28: =HLOOKUP(CX$7+0.5,$J$67:$DK$121,ROWS($A$11:$A28)+2,FALSE) -> 672 | CY28: =HLOOKUP(CY$7+0.5,$J$67:$DK$121,ROWS($A$11:$A28)+2,FALSE) -> 31 | CZ28: =HLOOKUP(CZ$7+0.5,$J$67:$DK$121,ROWS($A$11:$A28)+2,FALSE) -> 375 | DA28: =HLOOKUP(DA$7+0.5,$J$67:$DK$121,ROWS($A$11:$A28)+2,FALSE) -> 195 | DB28: =HLOOKUP(DB$7+0.5,$J$67:$DK$121,ROWS($A$11:$A28)+2,FALSE) -> 825 | DC28: =HLOOKUP(DC$7+0.5,$J$67:$DK$121,ROWS($A$11:$A28)+2,FALSE) -> 2434 | DD28: =HLOOKUP(DD$7+0.5,$J$67:$DK$121,ROWS($A$11:$A28)+2,FALSE) -> 106 | DE28: =HLOOKUP(DE$7+0.5,$J$67:$DK$121,ROWS($A$11:$A28)+2,FALSE) -> 138 | DF28: =HLOOKUP(DF$7+0.5,$J$67:$DK$121,ROWS($A$11:$A28)+2,FALSE) -> 853 | DG28: =HLOOKUP(DG$7+0.5,$J$67:$DK$121,ROWS($A$11:$A28)+2,FALSE) -> 1675 | DH28: =HLOOKUP(DH$7+0.5,$J$67:$DK$121,ROWS($A$11:$A28)+2,FALSE) -> 132 | DI28: =HLOOKUP(DI$7+0.5,$J$67:$DK$121,ROWS($A$11:$A28)+2,FALSE) -> 530 | DJ28: =HLOOKUP(DJ$7+0.5,$J$67:$DK$121,ROWS($A$11:$A28)+2,FALSE) -> 239 | DK28: =HLOOKUP(DK$7+0.5,$J$67:$DK$121,ROWS($A$11:$A28)+2,FALSE) -> 147
B29: Kentucky | C29: 4328626 | D29: 2851 | E29: 3676472 | F29: 15304 | G29: 521511 | H29: 14825 | I29: 0.01595212115 | J29: =HLOOKUP(J$7,$J$67:$DK$121,ROWS($A$11:$A29)+2,FALSE) -> 112787 | K29: =HLOOKUP(K$7,$J$67:$DK$121,ROWS($A$11:$A29)+2,FALSE) -> 4137 | L29: =HLOOKUP(L$7,$J$67:$DK$121,ROWS($A$11:$A29)+2,FALSE) -> 304 | M29: =HLOOKUP(M$7,$J$67:$DK$121,ROWS($A$11:$A29)+2,FALSE) -> 1103 | N29: =HLOOKUP(N$7,$J$67:$DK$121,ROWS($A$11:$A29)+2,FALSE) -> 518 | O29: =HLOOKUP(O$7,$J$67:$DK$121,ROWS($A$11:$A29)+2,FALSE) -> 3415 | P29: =HLOOKUP(P$7,$J$67:$DK$121,ROWS($A$11:$A29)+2,FALSE) -> 712 | Q29: =HLOOKUP(Q$7,$J$67:$DK$121,ROWS($A$11:$A29)+2,FALSE) -> 246 | R29: =HLOOKUP(R$7,$J$67:$DK$121,ROWS($A$11:$A29)+2,FALSE) -> 706 | S29: =HLOOKUP(S$7,$J$67:$DK$121,ROWS($A$11:$A29)+2,FALSE) -> 254 | T29: =HLOOKUP(T$7,$J$67:$DK$121,ROWS($A$11:$A29)+2,FALSE) -> 9232 | U29: =HLOOKUP(U$7,$J$67:$DK$121,ROWS($A$11:$A29)+2,FALSE) -> 4173 | V29: =HLOOKUP(V$7,$J$67:$DK$121,ROWS($A$11:$A29)+2,FALSE) -> 647 | W29: =HLOOKUP(W$7,$J$67:$DK$121,ROWS($A$11:$A29)+2,FALSE) -> 50 | X29: =HLOOKUP(X$7,$J$67:$DK$121,ROWS($A$11:$A29)+2,FALSE) -> 4445 | Y29: =HLOOKUP(Y$7,$J$67:$DK$121,ROWS($A$11:$A29)+2,FALSE) -> 12203 | Z29: =HLOOKUP(Z$7,$J$67:$DK$121,ROWS($A$11:$A29)+2,FALSE) -> 238 | AA29: =HLOOKUP(AA$7,$J$67:$DK$121,ROWS($A$11:$A29)+2,FALSE) -> 602 | AB29: =HLOOKUP(AB$7,$J$67:$DK$121,ROWS($A$11:$A29)+2,FALSE) -> N/A | AC29: =HLOOKUP(AC$7,$J$67:$DK$121,ROWS($A$11:$A29)+2,FALSE) -> 666 | AD29: =HLOOKUP(AD$7,$J$67:$DK$121,ROWS($A$11:$A29)+2,FALSE) -> 46 | AE29: =HLOOKUP(AE$7,$J$67:$DK$121,ROWS($A$11:$A29)+2,FALSE) -> 1120 | AF29: =HLOOKUP(AF$7,$J$67:$DK$121,ROWS($A$11:$A29)+2,FALSE) -> 419 | AG29: =HLOOKUP(AG$7,$J$67:$DK$121,ROWS($A$11:$A29)+2,FALSE) -> 7302 | AH29: =HLOOKUP(AH$7,$J$67:$DK$121,ROWS($A$11:$A29)+2,FALSE) -> 605 | AI29: =HLOOKUP(AI$7,$J$67:$DK$121,ROWS($A$11:$A29)+2,FALSE) -> 646 | AJ29: =HLOOKUP(AJ$7,$J$67:$DK$121,ROWS($A$11:$A29)+2,FALSE) -> 2381 | AK29: =HLOOKUP(AK$7,$J$67:$DK$121,ROWS($A$11:$A29)+2,FALSE) -> 0 | AL29: =HLOOKUP(AL$7,$J$67:$DK$121,ROWS($A$11:$A29)+2,FALSE) -> 723 | AM29: =HLOOKUP(AM$7,$J$67:$DK$121,ROWS($A$11:$A29)+2,FALSE) -> 301 | AN29: =HLOOKUP(AN$7,$J$67:$DK$121,ROWS($A$11:$A29)+2,FALSE) -> 84 | AO29: =HLOOKUP(AO$7,$J$67:$DK$121,ROWS($A$11:$A29)+2,FALSE) -> 496 | AP29: =HLOOKUP(AP$7,$J$67:$DK$121,ROWS($A$11:$A29)+2,FALSE) -> 554 | AQ29: =HLOOKUP(AQ$7,$J$67:$DK$121,ROWS($A$11:$A29)+2,FALSE) -> 5239 | AR29: =HLOOKUP(AR$7,$J$67:$DK$121,ROWS($A$11:$A29)+2,FALSE) -> 3643 | AS29: =HLOOKUP(AS$7,$J$67:$DK$121,ROWS($A$11:$A29)+2,FALSE) -> 122 | AT29: =HLOOKUP(AT$7,$J$67:$DK$121,ROWS($A$11:$A29)+2,FALSE) -> 17041 | AU29: =HLOOKUP(AU$7,$J$67:$DK$121,ROWS($A$11:$A29)+2,FALSE) -> 577 | AV29: =HLOOKUP(AV$7,$J$67:$DK$121,ROWS($A$11:$A29)+2,FALSE) -> 298 | AW29: =HLOOKUP(AW$7,$J$67:$DK$121,ROWS($A$11:$A29)+2,FALSE) -> 2226 | AX29: =HLOOKUP(AX$7,$J$67:$DK$121,ROWS($A$11:$A29)+2,FALSE) -> 0 | AY29: =HLOOKUP(AY$7,$J$67:$DK$121,ROWS($A$11:$A29)+2,FALSE) -> 1347 | AZ29: =HLOOKUP(AZ$7,$J$67:$DK$121,ROWS($A$11:$A29)+2,FALSE) -> 0 | BA29: =HLOOKUP(BA$7,$J$67:$DK$121,ROWS($A$11:$A29)+2,FALSE) -> 10064 | BB29: =HLOOKUP(BB$7,$J$67:$DK$121,ROWS($A$11:$A29)+2,FALSE) -> 3345 | BC29: =HLOOKUP(BC$7,$J$67:$DK$121,ROWS($A$11:$A29)+2,FALSE) -> 464 | BD29: =HLOOKUP(BD$7,$J$67:$DK$121,ROWS($A$11:$A29)+2,FALSE) -> 45 | BE29: =HLOOKUP(BE$7,$J$67:$DK$121,ROWS($A$11:$A29)+2,FALSE) -> 3319 | BF29: =HLOOKUP(BF$7,$J$67:$DK$121,ROWS($A$11:$A29)+2,FALSE) -> 1988 | BG29: =HLOOKUP(BG$7,$J$67:$DK$121,ROWS($A$11:$A29)+2,FALSE) -> 3346 | BH29: =HLOOKUP(BH$7,$J$67:$DK$121,ROWS($A$11:$A29)+2,FALSE) -> 1395 | BI29: =HLOOKUP(BI$7,$J$67:$DK$121,ROWS($A$11:$A29)+2,FALSE) -> 0 | BJ29: =HLOOKUP(BJ$7,$J$67:$DK$121,ROWS($A$11:$A29)+2,FALSE) -> 170 | BK29: =HLOOKUP(BK$7+0.5,$J$67:$DK$121,ROWS($A$11:$A29)+2,FALSE) -> 7854 | BL29: =HLOOKUP(BL$7+0.5,$J$67:$DK$121,ROWS($A$11:$A29)+2,FALSE) -> 1628 | BM29: =HLOOKUP(BM$7+0.5,$J$67:$DK$121,ROWS($A$11:$A29)+2,FALSE) -> 370 | BN29: =HLOOKUP(BN$7+0.5,$J$67:$DK$121,ROWS($A$11:$A29)+2,FALSE) -> 715 | BO29: =HLOOKUP(BO$7+0.5,$J$67:$DK$121,ROWS($A$11:$A29)+2,FALSE) -> 299 | BP29: =HLOOKUP(BP$7+0.5,$J$67:$DK$121,ROWS($A$11:$A29)+2,FALSE) -> 1157 | BQ29: =HLOOKUP(BQ$7+0.5,$J$67:$DK$121,ROWS($A$11:$A29)+2,FALSE) -> 572 | BR29: =HLOOKUP(BR$7+0.5,$J$67:$DK$121,ROWS($A$11:$A29)+2,FALSE) -> 290 | BS29: =HLOOKUP(BS$7+0.5,$J$67:$DK$121,ROWS($A$11:$A29)+2,FALSE) -> 774 | BT29: =HLOOKUP(BT$7+0.5,$J$67:$DK$121,ROWS($A$11:$A29)+2,FALSE) -> 262 | BU29: =HLOOKUP(BU$7+0.5,$J$67:$DK$121,ROWS($A$11:$A29)+2,FALSE) -> 2697 | BV29: =HLOOKUP(BV$7+0.5,$J$67:$DK$121,ROWS($A$11:$A29)+2,FALSE) -> 1184 | BW29: =HLOOKUP(BW$7+0.5,$J$67:$DK$121,ROWS($A$11:$A29)+2,FALSE) -> 665 | BX29: =HLOOKUP(BX$7+0.5,$J$67:$DK$121,ROWS($A$11:$A29)+2,FALSE) -> 91 | BY29: =HLOOKUP(BY$7+0.5,$J$67:$DK$121,ROWS($A$11:$A29)+2,FALSE) -> 1359 | BZ29: =HLOOKUP(BZ$7+0.5,$J$67:$DK$121,ROWS($A$11:$A29)+2,FALSE) -> 2150 | CA29: =HLOOKUP(CA$7+0.5,$J$67:$DK$121,ROWS($A$11:$A29)+2,FALSE) -> 257 | CB29: =HLOOKUP(CB$7+0.5,$J$67:$DK$121,ROWS($A$11:$A29)+2,FALSE) -> 464 | CC29: =HLOOKUP(CC$7+0.5,$J$67:$DK$121,ROWS($A$11:$A29)+2,FALSE) -> N/A | CD29: =HLOOKUP(CD$7+0.5,$J$67:$DK$121,ROWS($A$11:$A29)+2,FALSE) -> 294 | CE29: =HLOOKUP(CE$7+0.5,$J$67:$DK$121,ROWS($A$11:$A29)+2,FALSE) -> 80 | CF29: =HLOOKUP(CF$7+0.5,$J$67:$DK$121,ROWS($A$11:$A29)+2,FALSE) -> 615 | CG29: =HLOOKUP(CG$7+0.5,$J$67:$DK$121,ROWS($A$11:$A29)+2,FALSE) -> 285 | CH29: =HLOOKUP(CH$7+0.5,$J$67:$DK$121,ROWS($A$11:$A29)+2,FALSE) -> 1809 | CI29: =HLOOKUP(CI$7+0.5,$J$67:$DK$121,ROWS($A$11:$A29)+2,FALSE) -> 346 | CJ29: =HLOOKUP(CJ$7+0.5,$J$67:$DK$121,ROWS($A$11:$A29)+2,FALSE) -> 467 | CK29: =HLOOKUP(CK$7+0.5,$J$67:$DK$121,ROWS($A$11:$A29)+2,FALSE) -> 1021 | CL29: =HLOOKUP(CL$7+0.5,$J$67:$DK$121,ROWS($A$11:$A29)+2,FALSE) -> 181 | CM29: =HLOOKUP(CM$7+0.5,$J$67:$DK$121,ROWS($A$11:$A29)+2,FALSE) -> 588 | CN29: =HLOOKUP(CN$7+0.5,$J$67:$DK$121,ROWS($A$11:$A29)+2,FALSE) -> 294 | CO29: =HLOOKUP(CO$7+0.5,$J$67:$DK$121,ROWS($A$11:$A29)+2,FALSE) -> 103 | CP29: =HLOOKUP(CP$7+0.5,$J$67:$DK$121,ROWS($A$11:$A29)+2,FALSE) -> 551 | CQ29: =HLOOKUP(CQ$7+0.5,$J$67:$DK$121,ROWS($A$11:$A29)+2,FALSE) -> 348 | CR29: =HLOOKUP(CR$7+0.5,$J$67:$DK$121,ROWS($A$11:$A29)+2,FALSE) -> 1774 | CS29: =HLOOKUP(CS$7+0.5,$J$67:$DK$121,ROWS($A$11:$A29)+2,FALSE) -> 1903 | CT29: =HLOOKUP(CT$7+0.5,$J$67:$DK$121,ROWS($A$11:$A29)+2,FALSE) -> 192 | CU29: =HLOOKUP(CU$7+0.5,$J$67:$DK$121,ROWS($A$11:$A29)+2,FALSE) -> 3384 | CV29: =HLOOKUP(CV$7+0.5,$J$67:$DK$121,ROWS($A$11:$A29)+2,FALSE) -> 437 | CW29: =HLOOKUP(CW$7+0.5,$J$67:$DK$121,ROWS($A$11:$A29)+2,FALSE) -> 212 | CX29: =HLOOKUP(CX$7+0.5,$J$67:$DK$121,ROWS($A$11:$A29)+2,FALSE) -> 964 | CY29: =HLOOKUP(CY$7+0.5,$J$67:$DK$121,ROWS($A$11:$A29)+2,FALSE) -> 181 | CZ29: =HLOOKUP(CZ$7+0.5,$J$67:$DK$121,ROWS($A$11:$A29)+2,FALSE) -> 671 | DA29: =HLOOKUP(DA$7+0.5,$J$67:$DK$121,ROWS($A$11:$A29)+2,FALSE) -> 181 | DB29: =HLOOKUP(DB$7+0.5,$J$67:$DK$121,ROWS($A$11:$A29)+2,FALSE) -> 2378 | DC29: =HLOOKUP(DC$7+0.5,$J$67:$DK$121,ROWS($A$11:$A29)+2,FALSE) -> 1420 | DD29: =HLOOKUP(DD$7+0.5,$J$67:$DK$121,ROWS($A$11:$A29)+2,FALSE) -> 360 | DE29: =HLOOKUP(DE$7+0.5,$J$67:$DK$121,ROWS($A$11:$A29)+2,FALSE) -> 81 | DF29: =HLOOKUP(DF$7+0.5,$J$67:$DK$121,ROWS($A$11:$A29)+2,FALSE) -> 1111 | DG29: =HLOOKUP(DG$7+0.5,$J$67:$DK$121,ROWS($A$11:$A29)+2,FALSE) -> 998 | DH29: =HLOOKUP(DH$7+0.5,$J$67:$DK$121,ROWS($A$11:$A29)+2,FALSE) -> 1472 | DI29: =HLOOKUP(DI$7+0.5,$J$67:$DK$121,ROWS($A$11:$A29)+2,FALSE) -> 845 | DJ29: =HLOOKUP(DJ$7+0.5,$J$67:$DK$121,ROWS($A$11:$A29)+2,FALSE) -> 181 | DK29: =HLOOKUP(DK$7+0.5,$J$67:$DK$121,ROWS($A$11:$A29)+2,FALSE) -> 197
B30: Louisiana | C30: 4545914 | D30: 4612 | E30: 3912023 | F30: 21791 | G30: 528406 | H30: 20131 | I30: 0.01290106777 | J30: =HLOOKUP(J$7,$J$67:$DK$121,ROWS($A$11:$A30)+2,FALSE) -> 91215 | K30: =HLOOKUP(K$7,$J$67:$DK$121,ROWS($A$11:$A30)+2,FALSE) -> 2329 | L30: =HLOOKUP(L$7,$J$67:$DK$121,ROWS($A$11:$A30)+2,FALSE) -> 403 | M30: =HLOOKUP(M$7,$J$67:$DK$121,ROWS($A$11:$A30)+2,FALSE) -> 2021 | N30: =HLOOKUP(N$7,$J$67:$DK$121,ROWS($A$11:$A30)+2,FALSE) -> 3645 | O30: =HLOOKUP(O$7,$J$67:$DK$121,ROWS($A$11:$A30)+2,FALSE) -> 5139 | P30: =HLOOKUP(P$7,$J$67:$DK$121,ROWS($A$11:$A30)+2,FALSE) -> 1433 | Q30: =HLOOKUP(Q$7,$J$67:$DK$121,ROWS($A$11:$A30)+2,FALSE) -> 164 | R30: =HLOOKUP(R$7,$J$67:$DK$121,ROWS($A$11:$A30)+2,FALSE) -> 0 | S30: =HLOOKUP(S$7,$J$67:$DK$121,ROWS($A$11:$A30)+2,FALSE) -> 596 | T30: =HLOOKUP(T$7,$J$67:$DK$121,ROWS($A$11:$A30)+2,FALSE) -> 6534 | U30: =HLOOKUP(U$7,$J$67:$DK$121,ROWS($A$11:$A30)+2,FALSE) -> 4478 | V30: =HLOOKUP(V$7,$J$67:$DK$121,ROWS($A$11:$A30)+2,FALSE) -> 378 | W30: =HLOOKUP(W$7,$J$67:$DK$121,ROWS($A$11:$A30)+2,FALSE) -> 265 | X30: =HLOOKUP(X$7,$J$67:$DK$121,ROWS($A$11:$A30)+2,FALSE) -> 1229 | Y30: =HLOOKUP(Y$7,$J$67:$DK$121,ROWS($A$11:$A30)+2,FALSE) -> 1359 | Z30: =HLOOKUP(Z$7,$J$67:$DK$121,ROWS($A$11:$A30)+2,FALSE) -> 544 | AA30: =HLOOKUP(AA$7,$J$67:$DK$121,ROWS($A$11:$A30)+2,FALSE) -> 420 | AB30: =HLOOKUP(AB$7,$J$67:$DK$121,ROWS($A$11:$A30)+2,FALSE) -> 1649 | AC30: =HLOOKUP(AC$7,$J$67:$DK$121,ROWS($A$11:$A30)+2,FALSE) -> N/A | AD30: =HLOOKUP(AD$7,$J$67:$DK$121,ROWS($A$11:$A30)+2,FALSE) -> 251 | AE30: =HLOOKUP(AE$7,$J$67:$DK$121,ROWS($A$11:$A30)+2,FALSE) -> 642 | AF30: =HLOOKUP(AF$7,$J$67:$DK$121,ROWS($A$11:$A30)+2,FALSE) -> 549 | AG30: =HLOOKUP(AG$7,$J$67:$DK$121,ROWS($A$11:$A30)+2,FALSE) -> 1080 | AH30: =HLOOKUP(AH$7,$J$67:$DK$121,ROWS($A$11:$A30)+2,FALSE) -> 330 | AI30: =HLOOKUP(AI$7,$J$67:$DK$121,ROWS($A$11:$A30)+2,FALSE) -> 6791 | AJ30: =HLOOKUP(AJ$7,$J$67:$DK$121,ROWS($A$11:$A30)+2,FALSE) -> 1591 | AK30: =HLOOKUP(AK$7,$J$67:$DK$121,ROWS($A$11:$A30)+2,FALSE) -> 428 | AL30: =HLOOKUP(AL$7,$J$67:$DK$121,ROWS($A$11:$A30)+2,FALSE) -> 745 | AM30: =HLOOKUP(AM$7,$J$67:$DK$121,ROWS($A$11:$A30)+2,FALSE) -> 931 | AN30: =HLOOKUP(AN$7,$J$67:$DK$121,ROWS($A$11:$A30)+2,FALSE) -> 11 | AO30: =HLOOKUP(AO$7,$J$67:$DK$121,ROWS($A$11:$A30)+2,FALSE) -> 975 | AP30: =HLOOKUP(AP$7,$J$67:$DK$121,ROWS($A$11:$A30)+2,FALSE) -> 150 | AQ30: =HLOOKUP(AQ$7,$J$67:$DK$121,ROWS($A$11:$A30)+2,FALSE) -> 2786 | AR30: =HLOOKUP(AR$7,$J$67:$DK$121,ROWS($A$11:$A30)+2,FALSE) -> 2284 | AS30: =HLOOKUP(AS$7,$J$67:$DK$121,ROWS($A$11:$A30)+2,FALSE) -> 64 | AT30: =HLOOKUP(AT$7,$J$67:$DK$121,ROWS($A$11:$A30)+2,FALSE) -> 1115 | AU30: =HLOOKUP(AU$7,$J$67:$DK$121,ROWS($A$11:$A30)+2,FALSE) -> 2159 | AV30: =HLOOKUP(AV$7,$J$67:$DK$121,ROWS($A$11:$A30)+2,FALSE) -> 195 | AW30: =HLOOKUP(AW$7,$J$67:$DK$121,ROWS($A$11:$A30)+2,FALSE) -> 1239 | AX30: =HLOOKUP(AX$7,$J$67:$DK$121,ROWS($A$11:$A30)+2,FALSE) -> 737 | AY30: =HLOOKUP(AY$7,$J$67:$DK$121,ROWS($A$11:$A30)+2,FALSE) -> 1914 | AZ30: =HLOOKUP(AZ$7,$J$67:$DK$121,ROWS($A$11:$A30)+2,FALSE) -> 0 | BA30: =HLOOKUP(BA$7,$J$67:$DK$121,ROWS($A$11:$A30)+2,FALSE) -> 2348 | BB30: =HLOOKUP(BB$7,$J$67:$DK$121,ROWS($A$11:$A30)+2,FALSE) -> 24488 | BC30: =HLOOKUP(BC$7,$J$67:$DK$121,ROWS($A$11:$A30)+2,FALSE) -> 277 | BD30: =HLOOKUP(BD$7,$J$67:$DK$121,ROWS($A$11:$A30)+2,FALSE) -> 45 | BE30: =HLOOKUP(BE$7,$J$67:$DK$121,ROWS($A$11:$A30)+2,FALSE) -> 1857 | BF30: =HLOOKUP(BF$7,$J$67:$DK$121,ROWS($A$11:$A30)+2,FALSE) -> 1581 | BG30: =HLOOKUP(BG$7,$J$67:$DK$121,ROWS($A$11:$A30)+2,FALSE) -> 238 | BH30: =HLOOKUP(BH$7,$J$67:$DK$121,ROWS($A$11:$A30)+2,FALSE) -> 682 | BI30: =HLOOKUP(BI$7,$J$67:$DK$121,ROWS($A$11:$A30)+2,FALSE) -> 146 | BJ30: =HLOOKUP(BJ$7,$J$67:$DK$121,ROWS($A$11:$A30)+2,FALSE) -> 655 | BK30: =HLOOKUP(BK$7+0.5,$J$67:$DK$121,ROWS($A$11:$A30)+2,FALSE) -> 6941 | BL30: =HLOOKUP(BL$7+0.5,$J$67:$DK$121,ROWS($A$11:$A30)+2,FALSE) -> 1114 | BM30: =HLOOKUP(BM$7+0.5,$J$67:$DK$121,ROWS($A$11:$A30)+2,FALSE) -> 467 | BN30: =HLOOKUP(BN$7+0.5,$J$67:$DK$121,ROWS($A$11:$A30)+2,FALSE) -> 1191 | BO30: =HLOOKUP(BO$7+0.5,$J$67:$DK$121,ROWS($A$11:$A30)+2,FALSE) -> 2324 | BP30: =HLOOKUP(BP$7+0.5,$J$67:$DK$121,ROWS($A$11:$A30)+2,FALSE) -> 1438 | BQ30: =HLOOKUP(BQ$7+0.5,$J$67:$DK$121,ROWS($A$11:$A30)+2,FALSE) -> 1002 | BR30: =HLOOKUP(BR$7+0.5,$J$67:$DK$121,ROWS($A$11:$A30)+2,FALSE) -> 149 | BS30: =HLOOKUP(BS$7+0.5,$J$67:$DK$121,ROWS($A$11:$A30)+2,FALSE) -> 193 | BT30: =HLOOKUP(BT$7+0.5,$J$67:$DK$121,ROWS($A$11:$A30)+2,FALSE) -> 517 | BU30: =HLOOKUP(BU$7+0.5,$J$67:$DK$121,ROWS($A$11:$A30)+2,FALSE) -> 2276 | BV30: =HLOOKUP(BV$7+0.5,$J$67:$DK$121,ROWS($A$11:$A30)+2,FALSE) -> 1559 | BW30: =HLOOKUP(BW$7+0.5,$J$67:$DK$121,ROWS($A$11:$A30)+2,FALSE) -> 283 | BX30: =HLOOKUP(BX$7+0.5,$J$67:$DK$121,ROWS($A$11:$A30)+2,FALSE) -> 242 | BY30: =HLOOKUP(BY$7+0.5,$J$67:$DK$121,ROWS($A$11:$A30)+2,FALSE) -> 466 | BZ30: =HLOOKUP(BZ$7+0.5,$J$67:$DK$121,ROWS($A$11:$A30)+2,FALSE) -> 954 | CA30: =HLOOKUP(CA$7+0.5,$J$67:$DK$121,ROWS($A$11:$A30)+2,FALSE) -> 447 | CB30: =HLOOKUP(CB$7+0.5,$J$67:$DK$121,ROWS($A$11:$A30)+2,FALSE) -> 392 | CC30: =HLOOKUP(CC$7+0.5,$J$67:$DK$121,ROWS($A$11:$A30)+2,FALSE) -> 1224 | CD30: =HLOOKUP(CD$7+0.5,$J$67:$DK$121,ROWS($A$11:$A30)+2,FALSE) -> N/A | CE30: =HLOOKUP(CE$7+0.5,$J$67:$DK$121,ROWS($A$11:$A30)+2,FALSE) -> 334 | CF30: =HLOOKUP(CF$7+0.5,$J$67:$DK$121,ROWS($A$11:$A30)+2,FALSE) -> 701 | CG30: =HLOOKUP(CG$7+0.5,$J$67:$DK$121,ROWS($A$11:$A30)+2,FALSE) -> 354 | CH30: =HLOOKUP(CH$7+0.5,$J$67:$DK$121,ROWS($A$11:$A30)+2,FALSE) -> 782 | CI30: =HLOOKUP(CI$7+0.5,$J$67:$DK$121,ROWS($A$11:$A30)+2,FALSE) -> 324 | CJ30: =HLOOKUP(CJ$7+0.5,$J$67:$DK$121,ROWS($A$11:$A30)+2,FALSE) -> 1938 | CK30: =HLOOKUP(CK$7+0.5,$J$67:$DK$121,ROWS($A$11:$A30)+2,FALSE) -> 684 | CL30: =HLOOKUP(CL$7+0.5,$J$67:$DK$121,ROWS($A$11:$A30)+2,FALSE) -> 524 | CM30: =HLOOKUP(CM$7+0.5,$J$67:$DK$121,ROWS($A$11:$A30)+2,FALSE) -> 538 | CN30: =HLOOKUP(CN$7+0.5,$J$67:$DK$121,ROWS($A$11:$A30)+2,FALSE) -> 682 | CO30: =HLOOKUP(CO$7+0.5,$J$67:$DK$121,ROWS($A$11:$A30)+2,FALSE) -> 21 | CP30: =HLOOKUP(CP$7+0.5,$J$67:$DK$121,ROWS($A$11:$A30)+2,FALSE) -> 575 | CQ30: =HLOOKUP(CQ$7+0.5,$J$67:$DK$121,ROWS($A$11:$A30)+2,FALSE) -> 188 | CR30: =HLOOKUP(CR$7+0.5,$J$67:$DK$121,ROWS($A$11:$A30)+2,FALSE) -> 1105 | CS30: =HLOOKUP(CS$7+0.5,$J$67:$DK$121,ROWS($A$11:$A30)+2,FALSE) -> 1152 | CT30: =HLOOKUP(CT$7+0.5,$J$67:$DK$121,ROWS($A$11:$A30)+2,FALSE) -> 113 | CU30: =HLOOKUP(CU$7+0.5,$J$67:$DK$121,ROWS($A$11:$A30)+2,FALSE) -> 773 | CV30: =HLOOKUP(CV$7+0.5,$J$67:$DK$121,ROWS($A$11:$A30)+2,FALSE) -> 1365 | CW30: =HLOOKUP(CW$7+0.5,$J$67:$DK$121,ROWS($A$11:$A30)+2,FALSE) -> 232 | CX30: =HLOOKUP(CX$7+0.5,$J$67:$DK$121,ROWS($A$11:$A30)+2,FALSE) -> 616 | CY30: =HLOOKUP(CY$7+0.5,$J$67:$DK$121,ROWS($A$11:$A30)+2,FALSE) -> 695 | CZ30: =HLOOKUP(CZ$7+0.5,$J$67:$DK$121,ROWS($A$11:$A30)+2,FALSE) -> 1377 | DA30: =HLOOKUP(DA$7+0.5,$J$67:$DK$121,ROWS($A$11:$A30)+2,FALSE) -> 193 | DB30: =HLOOKUP(DB$7+0.5,$J$67:$DK$121,ROWS($A$11:$A30)+2,FALSE) -> 1546 | DC30: =HLOOKUP(DC$7+0.5,$J$67:$DK$121,ROWS($A$11:$A30)+2,FALSE) -> 4076 | DD30: =HLOOKUP(DD$7+0.5,$J$67:$DK$121,ROWS($A$11:$A30)+2,FALSE) -> 288 | DE30: =HLOOKUP(DE$7+0.5,$J$67:$DK$121,ROWS($A$11:$A30)+2,FALSE) -> 72 | DF30: =HLOOKUP(DF$7+0.5,$J$67:$DK$121,ROWS($A$11:$A30)+2,FALSE) -> 1033 | DG30: =HLOOKUP(DG$7+0.5,$J$67:$DK$121,ROWS($A$11:$A30)+2,FALSE) -> 631 | DH30: =HLOOKUP(DH$7+0.5,$J$67:$DK$121,ROWS($A$11:$A30)+2,FALSE) -> 271 | DI30: =HLOOKUP(DI$7+0.5,$J$67:$DK$121,ROWS($A$11:$A30)+2,FALSE) -> 474 | DJ30: =HLOOKUP(DJ$7+0.5,$J$67:$DK$121,ROWS($A$11:$A30)+2,FALSE) -> 216 | DK30: =HLOOKUP(DK$7+0.5,$J$67:$DK$121,ROWS($A$11:$A30)+2,FALSE) -> 507
B31: Maine | C31: 1315586 | D31: 1384 | E31: 1132344 | F31: 9895 | G31: 151438 | H31: 9223 | I31: 0.003892737907 | J31: =HLOOKUP(J$7,$J$67:$DK$121,ROWS($A$11:$A31)+2,FALSE) -> 27523 | K31: =HLOOKUP(K$7,$J$67:$DK$121,ROWS($A$11:$A31)+2,FALSE) -> 129 | L31: =HLOOKUP(L$7,$J$67:$DK$121,ROWS($A$11:$A31)+2,FALSE) -> 38 | M31: =HLOOKUP(M$7,$J$67:$DK$121,ROWS($A$11:$A31)+2,FALSE) -> 230 | N31: =HLOOKUP(N$7,$J$67:$DK$121,ROWS($A$11:$A31)+2,FALSE) -> 0 | O31: =HLOOKUP(O$7,$J$67:$DK$121,ROWS($A$11:$A31)+2,FALSE) -> 1610 | P31: =HLOOKUP(P$7,$J$67:$DK$121,ROWS($A$11:$A31)+2,FALSE) -> 314 | Q31: =HLOOKUP(Q$7,$J$67:$DK$121,ROWS($A$11:$A31)+2,FALSE) -> 1468 | R31: =HLOOKUP(R$7,$J$67:$DK$121,ROWS($A$11:$A31)+2,FALSE) -> 234 | S31: =HLOOKUP(S$7,$J$67:$DK$121,ROWS($A$11:$A31)+2,FALSE) -> 32 | T31: =HLOOKUP(T$7,$J$67:$DK$121,ROWS($A$11:$A31)+2,FALSE) -> 2926 | U31: =HLOOKUP(U$7,$J$67:$DK$121,ROWS($A$11:$A31)+2,FALSE) -> 511 | V31: =HLOOKUP(V$7,$J$67:$DK$121,ROWS($A$11:$A31)+2,FALSE) -> 0 | W31: =HLOOKUP(W$7,$J$67:$DK$121,ROWS($A$11:$A31)+2,FALSE) -> 143 | X31: =HLOOKUP(X$7,$J$67:$DK$121,ROWS($A$11:$A31)+2,FALSE) -> 195 | Y31: =HLOOKUP(Y$7,$J$67:$DK$121,ROWS($A$11:$A31)+2,FALSE) -> 0 | Z31: =HLOOKUP(Z$7,$J$67:$DK$121,ROWS($A$11:$A31)+2,FALSE) -> 7 | AA31: =HLOOKUP(AA$7,$J$67:$DK$121,ROWS($A$11:$A31)+2,FALSE) -> 277 | AB31: =HLOOKUP(AB$7,$J$67:$DK$121,ROWS($A$11:$A31)+2,FALSE) -> 482 | AC31: =HLOOKUP(AC$7,$J$67:$DK$121,ROWS($A$11:$A31)+2,FALSE) -> 15 | AD31: =HLOOKUP(AD$7,$J$67:$DK$121,ROWS($A$11:$A31)+2,FALSE) -> N/A | AE31: =HLOOKUP(AE$7,$J$67:$DK$121,ROWS($A$11:$A31)+2,FALSE) -> 325 | AF31: =HLOOKUP(AF$7,$J$67:$DK$121,ROWS($A$11:$A31)+2,FALSE) -> 3887 | AG31: =HLOOKUP(AG$7,$J$67:$DK$121,ROWS($A$11:$A31)+2,FALSE) -> 116 | AH31: =HLOOKUP(AH$7,$J$67:$DK$121,ROWS($A$11:$A31)+2,FALSE) -> 430 | AI31: =HLOOKUP(AI$7,$J$67:$DK$121,ROWS($A$11:$A31)+2,FALSE) -> 79 | AJ31: =HLOOKUP(AJ$7,$J$67:$DK$121,ROWS($A$11:$A31)+2,FALSE) -> 69 | AK31: =HLOOKUP(AK$7,$J$67:$DK$121,ROWS($A$11:$A31)+2,FALSE) -> 0 | AL31: =HLOOKUP(AL$7,$J$67:$DK$121,ROWS($A$11:$A31)+2,FALSE) -> 82 | AM31: =HLOOKUP(AM$7,$J$67:$DK$121,ROWS($A$11:$A31)+2,FALSE) -> 35 | AN31: =HLOOKUP(AN$7,$J$67:$DK$121,ROWS($A$11:$A31)+2,FALSE) -> 3655 | AO31: =HLOOKUP(AO$7,$J$67:$DK$121,ROWS($A$11:$A31)+2,FALSE) -> 405 | AP31: =HLOOKUP(AP$7,$J$67:$DK$121,ROWS($A$11:$A31)+2,FALSE) -> 272 | AQ31: =HLOOKUP(AQ$7,$J$67:$DK$121,ROWS($A$11:$A31)+2,FALSE) -> 2519 | AR31: =HLOOKUP(AR$7,$J$67:$DK$121,ROWS($A$11:$A31)+2,FALSE) -> 1112 | AS31: =HLOOKUP(AS$7,$J$67:$DK$121,ROWS($A$11:$A31)+2,FALSE) -> 0 | AT31: =HLOOKUP(AT$7,$J$67:$DK$121,ROWS($A$11:$A31)+2,FALSE) -> 628 | AU31: =HLOOKUP(AU$7,$J$67:$DK$121,ROWS($A$11:$A31)+2,FALSE) -> 79 | AV31: =HLOOKUP(AV$7,$J$67:$DK$121,ROWS($A$11:$A31)+2,FALSE) -> 215 | AW31: =HLOOKUP(AW$7,$J$67:$DK$121,ROWS($A$11:$A31)+2,FALSE) -> 976 | AX31: =HLOOKUP(AX$7,$J$67:$DK$121,ROWS($A$11:$A31)+2,FALSE) -> 1024 | AY31: =HLOOKUP(AY$7,$J$67:$DK$121,ROWS($A$11:$A31)+2,FALSE) -> 173 | AZ31: =HLOOKUP(AZ$7,$J$67:$DK$121,ROWS($A$11:$A31)+2,FALSE) -> 0 | BA31: =HLOOKUP(BA$7,$J$67:$DK$121,ROWS($A$11:$A31)+2,FALSE) -> 985 | BB31: =HLOOKUP(BB$7,$J$67:$DK$121,ROWS($A$11:$A31)+2,FALSE) -> 496 | BC31: =HLOOKUP(BC$7,$J$67:$DK$121,ROWS($A$11:$A31)+2,FALSE) -> 200 | BD31: =HLOOKUP(BD$7,$J$67:$DK$121,ROWS($A$11:$A31)+2,FALSE) -> 349 | BE31: =HLOOKUP(BE$7,$J$67:$DK$121,ROWS($A$11:$A31)+2,FALSE) -> 573 | BF31: =HLOOKUP(BF$7,$J$67:$DK$121,ROWS($A$11:$A31)+2,FALSE) -> 118 | BG31: =HLOOKUP(BG$7,$J$67:$DK$121,ROWS($A$11:$A31)+2,FALSE) -> 51 | BH31: =HLOOKUP(BH$7,$J$67:$DK$121,ROWS($A$11:$A31)+2,FALSE) -> 0 | BI31: =HLOOKUP(BI$7,$J$67:$DK$121,ROWS($A$11:$A31)+2,FALSE) -> 59 | BJ31: =HLOOKUP(BJ$7,$J$67:$DK$121,ROWS($A$11:$A31)+2,FALSE) -> 38 | BK31: =HLOOKUP(BK$7+0.5,$J$67:$DK$121,ROWS($A$11:$A31)+2,FALSE) -> 3132 | BL31: =HLOOKUP(BL$7+0.5,$J$67:$DK$121,ROWS($A$11:$A31)+2,FALSE) -> 172 | BM31: =HLOOKUP(BM$7+0.5,$J$67:$DK$121,ROWS($A$11:$A31)+2,FALSE) -> 48 | BN31: =HLOOKUP(BN$7+0.5,$J$67:$DK$121,ROWS($A$11:$A31)+2,FALSE) -> 170 | BO31: =HLOOKUP(BO$7+0.5,$J$67:$DK$121,ROWS($A$11:$A31)+2,FALSE) -> 155 | BP31: =HLOOKUP(BP$7+0.5,$J$67:$DK$121,ROWS($A$11:$A31)+2,FALSE) -> 860 | BQ31: =HLOOKUP(BQ$7+0.5,$J$67:$DK$121,ROWS($A$11:$A31)+2,FALSE) -> 287 | BR31: =HLOOKUP(BR$7+0.5,$J$67:$DK$121,ROWS($A$11:$A31)+2,FALSE) -> 620 | BS31: =HLOOKUP(BS$7+0.5,$J$67:$DK$121,ROWS($A$11:$A31)+2,FALSE) -> 299 | BT31: =HLOOKUP(BT$7+0.5,$J$67:$DK$121,ROWS($A$11:$A31)+2,FALSE) -> 55 | BU31: =HLOOKUP(BU$7+0.5,$J$67:$DK$121,ROWS($A$11:$A31)+2,FALSE) -> 1292 | BV31: =HLOOKUP(BV$7+0.5,$J$67:$DK$121,ROWS($A$11:$A31)+2,FALSE) -> 538 | BW31: =HLOOKUP(BW$7+0.5,$J$67:$DK$121,ROWS($A$11:$A31)+2,FALSE) -> 155 | BX31: =HLOOKUP(BX$7+0.5,$J$67:$DK$121,ROWS($A$11:$A31)+2,FALSE) -> 128 | BY31: =HLOOKUP(BY$7+0.5,$J$67:$DK$121,ROWS($A$11:$A31)+2,FALSE) -> 277 | BZ31: =HLOOKUP(BZ$7+0.5,$J$67:$DK$121,ROWS($A$11:$A31)+2,FALSE) -> 155 | CA31: =HLOOKUP(CA$7+0.5,$J$67:$DK$121,ROWS($A$11:$A31)+2,FALSE) -> 16 | CB31: =HLOOKUP(CB$7+0.5,$J$67:$DK$121,ROWS($A$11:$A31)+2,FALSE) -> 401 | CC31: =HLOOKUP(CC$7+0.5,$J$67:$DK$121,ROWS($A$11:$A31)+2,FALSE) -> 521 | CD31: =HLOOKUP(CD$7+0.5,$J$67:$DK$121,ROWS($A$11:$A31)+2,FALSE) -> 30 | CE31: =HLOOKUP(CE$7+0.5,$J$67:$DK$121,ROWS($A$11:$A31)+2,FALSE) -> N/A | CF31: =HLOOKUP(CF$7+0.5,$J$67:$DK$121,ROWS($A$11:$A31)+2,FALSE) -> 263 | CG31: =HLOOKUP(CG$7+0.5,$J$67:$DK$121,ROWS($A$11:$A31)+2,FALSE) -> 1167 | CH31: =HLOOKUP(CH$7+0.5,$J$67:$DK$121,ROWS($A$11:$A31)+2,FALSE) -> 123 | CI31: =HLOOKUP(CI$7+0.5,$J$67:$DK$121,ROWS($A$11:$A31)+2,FALSE) -> 359 | CJ31: =HLOOKUP(CJ$7+0.5,$J$67:$DK$121,ROWS($A$11:$A31)+2,FALSE) -> 134 | CK31: =HLOOKUP(CK$7+0.5,$J$67:$DK$121,ROWS($A$11:$A31)+2,FALSE) -> 112 | CL31: =HLOOKUP(CL$7+0.5,$J$67:$DK$121,ROWS($A$11:$A31)+2,FALSE) -> 155 | CM31: =HLOOKUP(CM$7+0.5,$J$67:$DK$121,ROWS($A$11:$A31)+2,FALSE) -> 136 | CN31: =HLOOKUP(CN$7+0.5,$J$67:$DK$121,ROWS($A$11:$A31)+2,FALSE) -> 56 | CO31: =HLOOKUP(CO$7+0.5,$J$67:$DK$121,ROWS($A$11:$A31)+2,FALSE) -> 1077 | CP31: =HLOOKUP(CP$7+0.5,$J$67:$DK$121,ROWS($A$11:$A31)+2,FALSE) -> 281 | CQ31: =HLOOKUP(CQ$7+0.5,$J$67:$DK$121,ROWS($A$11:$A31)+2,FALSE) -> 320 | CR31: =HLOOKUP(CR$7+0.5,$J$67:$DK$121,ROWS($A$11:$A31)+2,FALSE) -> 1180 | CS31: =HLOOKUP(CS$7+0.5,$J$67:$DK$121,ROWS($A$11:$A31)+2,FALSE) -> 574 | CT31: =HLOOKUP(CT$7+0.5,$J$67:$DK$121,ROWS($A$11:$A31)+2,FALSE) -> 155 | CU31: =HLOOKUP(CU$7+0.5,$J$67:$DK$121,ROWS($A$11:$A31)+2,FALSE) -> 368 | CV31: =HLOOKUP(CV$7+0.5,$J$67:$DK$121,ROWS($A$11:$A31)+2,FALSE) -> 115 | CW31: =HLOOKUP(CW$7+0.5,$J$67:$DK$121,ROWS($A$11:$A31)+2,FALSE) -> 255 | CX31: =HLOOKUP(CX$7+0.5,$J$67:$DK$121,ROWS($A$11:$A31)+2,FALSE) -> 600 | CY31: =HLOOKUP(CY$7+0.5,$J$67:$DK$121,ROWS($A$11:$A31)+2,FALSE) -> 656 | CZ31: =HLOOKUP(CZ$7+0.5,$J$67:$DK$121,ROWS($A$11:$A31)+2,FALSE) -> 143 | DA31: =HLOOKUP(DA$7+0.5,$J$67:$DK$121,ROWS($A$11:$A31)+2,FALSE) -> 155 | DB31: =HLOOKUP(DB$7+0.5,$J$67:$DK$121,ROWS($A$11:$A31)+2,FALSE) -> 1062 | DC31: =HLOOKUP(DC$7+0.5,$J$67:$DK$121,ROWS($A$11:$A31)+2,FALSE) -> 381 | DD31: =HLOOKUP(DD$7+0.5,$J$67:$DK$121,ROWS($A$11:$A31)+2,FALSE) -> 183 | DE31: =HLOOKUP(DE$7+0.5,$J$67:$DK$121,ROWS($A$11:$A31)+2,FALSE) -> 340 | DF31: =HLOOKUP(DF$7+0.5,$J$67:$DK$121,ROWS($A$11:$A31)+2,FALSE) -> 408 | DG31: =HLOOKUP(DG$7+0.5,$J$67:$DK$121,ROWS($A$11:$A31)+2,FALSE) -> 137 | DH31: =HLOOKUP(DH$7+0.5,$J$67:$DK$121,ROWS($A$11:$A31)+2,FALSE) -> 85 | DI31: =HLOOKUP(DI$7+0.5,$J$67:$DK$121,ROWS($A$11:$A31)+2,FALSE) -> 155 | DJ31: =HLOOKUP(DJ$7+0.5,$J$67:$DK$121,ROWS($A$11:$A31)+2,FALSE) -> 81 | DK31: =HLOOKUP(DK$7+0.5,$J$67:$DK$121,ROWS($A$11:$A31)+2,FALSE) -> 69
B32: Maryland | C32: 5816472 | D32: 3717 | E32: 5068457 | F32: 21604 | G32: 549973 | H32: 20595 | I32: 0.02192014675 | J32: =HLOOKUP(J$7,$J$67:$DK$121,ROWS($A$11:$A32)+2,FALSE) -> 154983 | K32: =HLOOKUP(K$7,$J$67:$DK$121,ROWS($A$11:$A32)+2,FALSE) -> 1261 | L32: =HLOOKUP(L$7,$J$67:$DK$121,ROWS($A$11:$A32)+2,FALSE) -> 1947 | M32: =HLOOKUP(M$7,$J$67:$DK$121,ROWS($A$11:$A32)+2,FALSE) -> 760 | N32: =HLOOKUP(N$7,$J$67:$DK$121,ROWS($A$11:$A32)+2,FALSE) -> 136 | O32: =HLOOKUP(O$7,$J$67:$DK$121,ROWS($A$11:$A32)+2,FALSE) -> 8614 | P32: =HLOOKUP(P$7,$J$67:$DK$121,ROWS($A$11:$A32)+2,FALSE) -> 1071 | Q32: =HLOOKUP(Q$7,$J$67:$DK$121,ROWS($A$11:$A32)+2,FALSE) -> 881 | R32: =HLOOKUP(R$7,$J$67:$DK$121,ROWS($A$11:$A32)+2,FALSE) -> 4100 | S32: =HLOOKUP(S$7,$J$67:$DK$121,ROWS($A$11:$A32)+2,FALSE) -> 21213 | T32: =HLOOKUP(T$7,$J$67:$DK$121,ROWS($A$11:$A32)+2,FALSE) -> 9610 | U32: =HLOOKUP(U$7,$J$67:$DK$121,ROWS($A$11:$A32)+2,FALSE) -> 4610 | V32: =HLOOKUP(V$7,$J$67:$DK$121,ROWS($A$11:$A32)+2,FALSE) -> 610 | W32: =HLOOKUP(W$7,$J$67:$DK$121,ROWS($A$11:$A32)+2,FALSE) -> 429 | X32: =HLOOKUP(X$7,$J$67:$DK$121,ROWS($A$11:$A32)+2,FALSE) -> 3621 | Y32: =HLOOKUP(Y$7,$J$67:$DK$121,ROWS($A$11:$A32)+2,FALSE) -> 1210 | Z32: =HLOOKUP(Z$7,$J$67:$DK$121,ROWS($A$11:$A32)+2,FALSE) -> 569 | AA32: =HLOOKUP(AA$7,$J$67:$DK$121,ROWS($A$11:$A32)+2,FALSE) -> 1726 | AB32: =HLOOKUP(AB$7,$J$67:$DK$121,ROWS($A$11:$A32)+2,FALSE) -> 715 | AC32: =HLOOKUP(AC$7,$J$67:$DK$121,ROWS($A$11:$A32)+2,FALSE) -> 606 | AD32: =HLOOKUP(AD$7,$J$67:$DK$121,ROWS($A$11:$A32)+2,FALSE) -> 332 | AE32: =HLOOKUP(AE$7,$J$67:$DK$121,ROWS($A$11:$A32)+2,FALSE) -> N/A | AF32: =HLOOKUP(AF$7,$J$67:$DK$121,ROWS($A$11:$A32)+2,FALSE) -> 3977 | AG32: =HLOOKUP(AG$7,$J$67:$DK$121,ROWS($A$11:$A32)+2,FALSE) -> 2167 | AH32: =HLOOKUP(AH$7,$J$67:$DK$121,ROWS($A$11:$A32)+2,FALSE) -> 1422 | AI32: =HLOOKUP(AI$7,$J$67:$DK$121,ROWS($A$11:$A32)+2,FALSE) -> 581 | AJ32: =HLOOKUP(AJ$7,$J$67:$DK$121,ROWS($A$11:$A32)+2,FALSE) -> 256 | AK32: =HLOOKUP(AK$7,$J$67:$DK$121,ROWS($A$11:$A32)+2,FALSE) -> 0 | AL32: =HLOOKUP(AL$7,$J$67:$DK$121,ROWS($A$11:$A32)+2,FALSE) -> 132 | AM32: =HLOOKUP(AM$7,$J$67:$DK$121,ROWS($A$11:$A32)+2,FALSE) -> 330 | AN32: =HLOOKUP(AN$7,$J$67:$DK$121,ROWS($A$11:$A32)+2,FALSE) -> 1124 | AO32: =HLOOKUP(AO$7,$J$67:$DK$121,ROWS($A$11:$A32)+2,FALSE) -> 6260 | AP32: =HLOOKUP(AP$7,$J$67:$DK$121,ROWS($A$11:$A32)+2,FALSE) -> 638 | AQ32: =HLOOKUP(AQ$7,$J$67:$DK$121,ROWS($A$11:$A32)+2,FALSE) -> 11736 | AR32: =HLOOKUP(AR$7,$J$67:$DK$121,ROWS($A$11:$A32)+2,FALSE) -> 7507 | AS32: =HLOOKUP(AS$7,$J$67:$DK$121,ROWS($A$11:$A32)+2,FALSE) -> 116 | AT32: =HLOOKUP(AT$7,$J$67:$DK$121,ROWS($A$11:$A32)+2,FALSE) -> 2522 | AU32: =HLOOKUP(AU$7,$J$67:$DK$121,ROWS($A$11:$A32)+2,FALSE) -> 463 | AV32: =HLOOKUP(AV$7,$J$67:$DK$121,ROWS($A$11:$A32)+2,FALSE) -> 378 | AW32: =HLOOKUP(AW$7,$J$67:$DK$121,ROWS($A$11:$A32)+2,FALSE) -> 15485 | AX32: =HLOOKUP(AX$7,$J$67:$DK$121,ROWS($A$11:$A32)+2,FALSE) -> 82 | AY32: =HLOOKUP(AY$7,$J$67:$DK$121,ROWS($A$11:$A32)+2,FALSE) -> 2297 | AZ32: =HLOOKUP(AZ$7,$J$67:$DK$121,ROWS($A$11:$A32)+2,FALSE) -> 0 | BA32: =HLOOKUP(BA$7,$J$67:$DK$121,ROWS($A$11:$A32)+2,FALSE) -> 1800 | BB32: =HLOOKUP(BB$7,$J$67:$DK$121,ROWS($A$11:$A32)+2,FALSE) -> 5612 | BC32: =HLOOKUP(BC$7,$J$67:$DK$121,ROWS($A$11:$A32)+2,FALSE) -> 1061 | BD32: =HLOOKUP(BD$7,$J$67:$DK$121,ROWS($A$11:$A32)+2,FALSE) -> 589 | BE32: =HLOOKUP(BE$7,$J$67:$DK$121,ROWS($A$11:$A32)+2,FALSE) -> 20579 | BF32: =HLOOKUP(BF$7,$J$67:$DK$121,ROWS($A$11:$A32)+2,FALSE) -> 1431 | BG32: =HLOOKUP(BG$7,$J$67:$DK$121,ROWS($A$11:$A32)+2,FALSE) -> 1957 | BH32: =HLOOKUP(BH$7,$J$67:$DK$121,ROWS($A$11:$A32)+2,FALSE) -> 460 | BI32: =HLOOKUP(BI$7,$J$67:$DK$121,ROWS($A$11:$A32)+2,FALSE) -> 0 | BJ32: =HLOOKUP(BJ$7,$J$67:$DK$121,ROWS($A$11:$A32)+2,FALSE) -> 294 | BK32: =HLOOKUP(BK$7+0.5,$J$67:$DK$121,ROWS($A$11:$A32)+2,FALSE) -> 8958 | BL32: =HLOOKUP(BL$7+0.5,$J$67:$DK$121,ROWS($A$11:$A32)+2,FALSE) -> 713 | BM32: =HLOOKUP(BM$7+0.5,$J$67:$DK$121,ROWS($A$11:$A32)+2,FALSE) -> 1123 | BN32: =HLOOKUP(BN$7+0.5,$J$67:$DK$121,ROWS($A$11:$A32)+2,FALSE) -> 359 | BO32: =HLOOKUP(BO$7+0.5,$J$67:$DK$121,ROWS($A$11:$A32)+2,FALSE) -> 159 | BP32: =HLOOKUP(BP$7+0.5,$J$67:$DK$121,ROWS($A$11:$A32)+2,FALSE) -> 2155 | BQ32: =HLOOKUP(BQ$7+0.5,$J$67:$DK$121,ROWS($A$11:$A32)+2,FALSE) -> 609 | BR32: =HLOOKUP(BR$7+0.5,$J$67:$DK$121,ROWS($A$11:$A32)+2,FALSE) -> 516 | BS32: =HLOOKUP(BS$7+0.5,$J$67:$DK$121,ROWS($A$11:$A32)+2,FALSE) -> 1303 | BT32: =HLOOKUP(BT$7+0.5,$J$67:$DK$121,ROWS($A$11:$A32)+2,FALSE) -> 3437 | BU32: =HLOOKUP(BU$7+0.5,$J$67:$DK$121,ROWS($A$11:$A32)+2,FALSE) -> 2515 | BV32: =HLOOKUP(BV$7+0.5,$J$67:$DK$121,ROWS($A$11:$A32)+2,FALSE) -> 2430 | BW32: =HLOOKUP(BW$7+0.5,$J$67:$DK$121,ROWS($A$11:$A32)+2,FALSE) -> 474 | BX32: =HLOOKUP(BX$7+0.5,$J$67:$DK$121,ROWS($A$11:$A32)+2,FALSE) -> 444 | BY32: =HLOOKUP(BY$7+0.5,$J$67:$DK$121,ROWS($A$11:$A32)+2,FALSE) -> 1647 | BZ32: =HLOOKUP(BZ$7+0.5,$J$67:$DK$121,ROWS($A$11:$A32)+2,FALSE) -> 709 | CA32: =HLOOKUP(CA$7+0.5,$J$67:$DK$121,ROWS($A$11:$A32)+2,FALSE) -> 389 | CB32: =HLOOKUP(CB$7+0.5,$J$67:$DK$121,ROWS($A$11:$A32)+2,FALSE) -> 1123 | CC32: =HLOOKUP(CC$7+0.5,$J$67:$DK$121,ROWS($A$11:$A32)+2,FALSE) -> 602 | CD32: =HLOOKUP(CD$7+0.5,$J$67:$DK$121,ROWS($A$11:$A32)+2,FALSE) -> 441 | CE32: =HLOOKUP(CE$7+0.5,$J$67:$DK$121,ROWS($A$11:$A32)+2,FALSE) -> 261 | CF32: =HLOOKUP(CF$7+0.5,$J$67:$DK$121,ROWS($A$11:$A32)+2,FALSE) -> N/A | CG32: =HLOOKUP(CG$7+0.5,$J$67:$DK$121,ROWS($A$11:$A32)+2,FALSE) -> 1805 | CH32: =HLOOKUP(CH$7+0.5,$J$67:$DK$121,ROWS($A$11:$A32)+2,FALSE) -> 973 | CI32: =HLOOKUP(CI$7+0.5,$J$67:$DK$121,ROWS($A$11:$A32)+2,FALSE) -> 707 | CJ32: =HLOOKUP(CJ$7+0.5,$J$67:$DK$121,ROWS($A$11:$A32)+2,FALSE) -> 706 | CK32: =HLOOKUP(CK$7+0.5,$J$67:$DK$121,ROWS($A$11:$A32)+2,FALSE) -> 199 | CL32: =HLOOKUP(CL$7+0.5,$J$67:$DK$121,ROWS($A$11:$A32)+2,FALSE) -> 190 | CM32: =HLOOKUP(CM$7+0.5,$J$67:$DK$121,ROWS($A$11:$A32)+2,FALSE) -> 152 | CN32: =HLOOKUP(CN$7+0.5,$J$67:$DK$121,ROWS($A$11:$A32)+2,FALSE) -> 258 | CO32: =HLOOKUP(CO$7+0.5,$J$67:$DK$121,ROWS($A$11:$A32)+2,FALSE) -> 820 | CP32: =HLOOKUP(CP$7+0.5,$J$67:$DK$121,ROWS($A$11:$A32)+2,FALSE) -> 2244 | CQ32: =HLOOKUP(CQ$7+0.5,$J$67:$DK$121,ROWS($A$11:$A32)+2,FALSE) -> 453 | CR32: =HLOOKUP(CR$7+0.5,$J$67:$DK$121,ROWS($A$11:$A32)+2,FALSE) -> 2585 | CS32: =HLOOKUP(CS$7+0.5,$J$67:$DK$121,ROWS($A$11:$A32)+2,FALSE) -> 2284 | CT32: =HLOOKUP(CT$7+0.5,$J$67:$DK$121,ROWS($A$11:$A32)+2,FALSE) -> 94 | CU32: =HLOOKUP(CU$7+0.5,$J$67:$DK$121,ROWS($A$11:$A32)+2,FALSE) -> 1035 | CV32: =HLOOKUP(CV$7+0.5,$J$67:$DK$121,ROWS($A$11:$A32)+2,FALSE) -> 447 | CW32: =HLOOKUP(CW$7+0.5,$J$67:$DK$121,ROWS($A$11:$A32)+2,FALSE) -> 426 | CX32: =HLOOKUP(CX$7+0.5,$J$67:$DK$121,ROWS($A$11:$A32)+2,FALSE) -> 2922 | CY32: =HLOOKUP(CY$7+0.5,$J$67:$DK$121,ROWS($A$11:$A32)+2,FALSE) -> 95 | CZ32: =HLOOKUP(CZ$7+0.5,$J$67:$DK$121,ROWS($A$11:$A32)+2,FALSE) -> 1139 | DA32: =HLOOKUP(DA$7+0.5,$J$67:$DK$121,ROWS($A$11:$A32)+2,FALSE) -> 190 | DB32: =HLOOKUP(DB$7+0.5,$J$67:$DK$121,ROWS($A$11:$A32)+2,FALSE) -> 986 | DC32: =HLOOKUP(DC$7+0.5,$J$67:$DK$121,ROWS($A$11:$A32)+2,FALSE) -> 1271 | DD32: =HLOOKUP(DD$7+0.5,$J$67:$DK$121,ROWS($A$11:$A32)+2,FALSE) -> 831 | DE32: =HLOOKUP(DE$7+0.5,$J$67:$DK$121,ROWS($A$11:$A32)+2,FALSE) -> 598 | DF32: =HLOOKUP(DF$7+0.5,$J$67:$DK$121,ROWS($A$11:$A32)+2,FALSE) -> 2668 | DG32: =HLOOKUP(DG$7+0.5,$J$67:$DK$121,ROWS($A$11:$A32)+2,FALSE) -> 884 | DH32: =HLOOKUP(DH$7+0.5,$J$67:$DK$121,ROWS($A$11:$A32)+2,FALSE) -> 799 | DI32: =HLOOKUP(DI$7+0.5,$J$67:$DK$121,ROWS($A$11:$A32)+2,FALSE) -> 371 | DJ32: =HLOOKUP(DJ$7+0.5,$J$67:$DK$121,ROWS($A$11:$A32)+2,FALSE) -> 190 | DK32: =HLOOKUP(DK$7+0.5,$J$67:$DK$121,ROWS($A$11:$A32)+2,FALSE) -> 249
B33: Massachusetts | C33: 6580641 | D33: 3587 | E33: 5752166 | F33: 19793 | G33: 626380 | H33: 17354 | I33: 0.02016549405 | J33: =HLOOKUP(J$7,$J$67:$DK$121,ROWS($A$11:$A33)+2,FALSE) -> 142577 | K33: =HLOOKUP(K$7,$J$67:$DK$121,ROWS($A$11:$A33)+2,FALSE) -> 636 | L33: =HLOOKUP(L$7,$J$67:$DK$121,ROWS($A$11:$A33)+2,FALSE) -> 890 | M33: =HLOOKUP(M$7,$J$67:$DK$121,ROWS($A$11:$A33)+2,FALSE) -> 1972 | N33: =HLOOKUP(N$7,$J$67:$DK$121,ROWS($A$11:$A33)+2,FALSE) -> 394 | O33: =HLOOKUP(O$7,$J$67:$DK$121,ROWS($A$11:$A33)+2,FALSE) -> 12770 | P33: =HLOOKUP(P$7,$J$67:$DK$121,ROWS($A$11:$A33)+2,FALSE) -> 980 | Q33: =HLOOKUP(Q$7,$J$67:$DK$121,ROWS($A$11:$A33)+2,FALSE) -> 10525 | R33: =HLOOKUP(R$7,$J$67:$DK$121,ROWS($A$11:$A33)+2,FALSE) -> 506 | S33: =HLOOKUP(S$7,$J$67:$DK$121,ROWS($A$11:$A33)+2,FALSE) -> 379 | T33: =HLOOKUP(T$7,$J$67:$DK$121,ROWS($A$11:$A33)+2,FALSE) -> 12890 | U33: =HLOOKUP(U$7,$J$67:$DK$121,ROWS($A$11:$A33)+2,FALSE) -> 2789 | V33: =HLOOKUP(V$7,$J$67:$DK$121,ROWS($A$11:$A33)+2,FALSE) -> 1108 | W33: =HLOOKUP(W$7,$J$67:$DK$121,ROWS($A$11:$A33)+2,FALSE) -> 188 | X33: =HLOOKUP(X$7,$J$67:$DK$121,ROWS($A$11:$A33)+2,FALSE) -> 2886 | Y33: =HLOOKUP(Y$7,$J$67:$DK$121,ROWS($A$11:$A33)+2,FALSE) -> 677 | Z33: =HLOOKUP(Z$7,$J$67:$DK$121,ROWS($A$11:$A33)+2,FALSE) -> 151 | AA33: =HLOOKUP(AA$7,$J$67:$DK$121,ROWS($A$11:$A33)+2,FALSE) -> 565 | AB33: =HLOOKUP(AB$7,$J$67:$DK$121,ROWS($A$11:$A33)+2,FALSE) -> 52 | AC33: =HLOOKUP(AC$7,$J$67:$DK$121,ROWS($A$11:$A33)+2,FALSE) -> 1556 | AD33: =HLOOKUP(AD$7,$J$67:$DK$121,ROWS($A$11:$A33)+2,FALSE) -> 3907 | AE33: =HLOOKUP(AE$7,$J$67:$DK$121,ROWS($A$11:$A33)+2,FALSE) -> 2381 | AF33: =HLOOKUP(AF$7,$J$67:$DK$121,ROWS($A$11:$A33)+2,FALSE) -> N/A | AG33: =HLOOKUP(AG$7,$J$67:$DK$121,ROWS($A$11:$A33)+2,FALSE) -> 1337 | AH33: =HLOOKUP(AH$7,$J$67:$DK$121,ROWS($A$11:$A33)+2,FALSE) -> 966 | AI33: =HLOOKUP(AI$7,$J$67:$DK$121,ROWS($A$11:$A33)+2,FALSE) -> 155 | AJ33: =HLOOKUP(AJ$7,$J$67:$DK$121,ROWS($A$11:$A33)+2,FALSE) -> 453 | AK33: =HLOOKUP(AK$7,$J$67:$DK$121,ROWS($A$11:$A33)+2,FALSE) -> 49 | AL33: =HLOOKUP(AL$7,$J$67:$DK$121,ROWS($A$11:$A33)+2,FALSE) -> 182 | AM33: =HLOOKUP(AM$7,$J$67:$DK$121,ROWS($A$11:$A33)+2,FALSE) -> 787 | AN33: =HLOOKUP(AN$7,$J$67:$DK$121,ROWS($A$11:$A33)+2,FALSE) -> 13331 | AO33: =HLOOKUP(AO$7,$J$67:$DK$121,ROWS($A$11:$A33)+2,FALSE) -> 8046 | AP33: =HLOOKUP(AP$7,$J$67:$DK$121,ROWS($A$11:$A33)+2,FALSE) -> 521 | AQ33: =HLOOKUP(AQ$7,$J$67:$DK$121,ROWS($A$11:$A33)+2,FALSE) -> 19467 | AR33: =HLOOKUP(AR$7,$J$67:$DK$121,ROWS($A$11:$A33)+2,FALSE) -> 2514 | AS33: =HLOOKUP(AS$7,$J$67:$DK$121,ROWS($A$11:$A33)+2,FALSE) -> 81 | AT33: =HLOOKUP(AT$7,$J$67:$DK$121,ROWS($A$11:$A33)+2,FALSE) -> 1829 | AU33: =HLOOKUP(AU$7,$J$67:$DK$121,ROWS($A$11:$A33)+2,FALSE) -> 297 | AV33: =HLOOKUP(AV$7,$J$67:$DK$121,ROWS($A$11:$A33)+2,FALSE) -> 1528 | AW33: =HLOOKUP(AW$7,$J$67:$DK$121,ROWS($A$11:$A33)+2,FALSE) -> 8236 | AX33: =HLOOKUP(AX$7,$J$67:$DK$121,ROWS($A$11:$A33)+2,FALSE) -> 6863 | AY33: =HLOOKUP(AY$7,$J$67:$DK$121,ROWS($A$11:$A33)+2,FALSE) -> 2477 | AZ33: =HLOOKUP(AZ$7,$J$67:$DK$121,ROWS($A$11:$A33)+2,FALSE) -> 194 | BA33: =HLOOKUP(BA$7,$J$67:$DK$121,ROWS($A$11:$A33)+2,FALSE) -> 823 | BB33: =HLOOKUP(BB$7,$J$67:$DK$121,ROWS($A$11:$A33)+2,FALSE) -> 3694 | BC33: =HLOOKUP(BC$7,$J$67:$DK$121,ROWS($A$11:$A33)+2,FALSE) -> 1027 | BD33: =HLOOKUP(BD$7,$J$67:$DK$121,ROWS($A$11:$A33)+2,FALSE) -> 2534 | BE33: =HLOOKUP(BE$7,$J$67:$DK$121,ROWS($A$11:$A33)+2,FALSE) -> 4098 | BF33: =HLOOKUP(BF$7,$J$67:$DK$121,ROWS($A$11:$A33)+2,FALSE) -> 1653 | BG33: =HLOOKUP(BG$7,$J$67:$DK$121,ROWS($A$11:$A33)+2,FALSE) -> 385 | BH33: =HLOOKUP(BH$7,$J$67:$DK$121,ROWS($A$11:$A33)+2,FALSE) -> 584 | BI33: =HLOOKUP(BI$7,$J$67:$DK$121,ROWS($A$11:$A33)+2,FALSE) -> 264 | BJ33: =HLOOKUP(BJ$7,$J$67:$DK$121,ROWS($A$11:$A33)+2,FALSE) -> 4056 | BK33: =HLOOKUP(BK$7+0.5,$J$67:$DK$121,ROWS($A$11:$A33)+2,FALSE) -> 7863 | BL33: =HLOOKUP(BL$7+0.5,$J$67:$DK$121,ROWS($A$11:$A33)+2,FALSE) -> 622 | BM33: =HLOOKUP(BM$7+0.5,$J$67:$DK$121,ROWS($A$11:$A33)+2,FALSE) -> 600 | BN33: =HLOOKUP(BN$7+0.5,$J$67:$DK$121,ROWS($A$11:$A33)+2,FALSE) -> 979 | BO33: =HLOOKUP(BO$7+0.5,$J$67:$DK$121,ROWS($A$11:$A33)+2,FALSE) -> 340 | BP33: =HLOOKUP(BP$7+0.5,$J$67:$DK$121,ROWS($A$11:$A33)+2,FALSE) -> 2994 | BQ33: =HLOOKUP(BQ$7+0.5,$J$67:$DK$121,ROWS($A$11:$A33)+2,FALSE) -> 438 | BR33: =HLOOKUP(BR$7+0.5,$J$67:$DK$121,ROWS($A$11:$A33)+2,FALSE) -> 2062 | BS33: =HLOOKUP(BS$7+0.5,$J$67:$DK$121,ROWS($A$11:$A33)+2,FALSE) -> 505 | BT33: =HLOOKUP(BT$7+0.5,$J$67:$DK$121,ROWS($A$11:$A33)+2,FALSE) -> 219 | BU33: =HLOOKUP(BU$7+0.5,$J$67:$DK$121,ROWS($A$11:$A33)+2,FALSE) -> 2568 | BV33: =HLOOKUP(BV$7+0.5,$J$67:$DK$121,ROWS($A$11:$A33)+2,FALSE) -> 1129 | BW33: =HLOOKUP(BW$7+0.5,$J$67:$DK$121,ROWS($A$11:$A33)+2,FALSE) -> 564 | BX33: =HLOOKUP(BX$7+0.5,$J$67:$DK$121,ROWS($A$11:$A33)+2,FALSE) -> 164 | BY33: =HLOOKUP(BY$7+0.5,$J$67:$DK$121,ROWS($A$11:$A33)+2,FALSE) -> 1041 | BZ33: =HLOOKUP(BZ$7+0.5,$J$67:$DK$121,ROWS($A$11:$A33)+2,FALSE) -> 497 | CA33: =HLOOKUP(CA$7+0.5,$J$67:$DK$121,ROWS($A$11:$A33)+2,FALSE) -> 251 | CB33: =HLOOKUP(CB$7+0.5,$J$67:$DK$121,ROWS($A$11:$A33)+2,FALSE) -> 429 | CC33: =HLOOKUP(CC$7+0.5,$J$67:$DK$121,ROWS($A$11:$A33)+2,FALSE) -> 87 | CD33: =HLOOKUP(CD$7+0.5,$J$67:$DK$121,ROWS($A$11:$A33)+2,FALSE) -> 742 | CE33: =HLOOKUP(CE$7+0.5,$J$67:$DK$121,ROWS($A$11:$A33)+2,FALSE) -> 1349 | CF33: =HLOOKUP(CF$7+0.5,$J$67:$DK$121,ROWS($A$11:$A33)+2,FALSE) -> 895 | CG33: =HLOOKUP(CG$7+0.5,$J$67:$DK$121,ROWS($A$11:$A33)+2,FALSE) -> N/A | CH33: =HLOOKUP(CH$7+0.5,$J$67:$DK$121,ROWS($A$11:$A33)+2,FALSE) -> 680 | CI33: =HLOOKUP(CI$7+0.5,$J$67:$DK$121,ROWS($A$11:$A33)+2,FALSE) -> 367 | CJ33: =HLOOKUP(CJ$7+0.5,$J$67:$DK$121,ROWS($A$11:$A33)+2,FALSE) -> 186 | CK33: =HLOOKUP(CK$7+0.5,$J$67:$DK$121,ROWS($A$11:$A33)+2,FALSE) -> 218 | CL33: =HLOOKUP(CL$7+0.5,$J$67:$DK$121,ROWS($A$11:$A33)+2,FALSE) -> 81 | CM33: =HLOOKUP(CM$7+0.5,$J$67:$DK$121,ROWS($A$11:$A33)+2,FALSE) -> 189 | CN33: =HLOOKUP(CN$7+0.5,$J$67:$DK$121,ROWS($A$11:$A33)+2,FALSE) -> 544 | CO33: =HLOOKUP(CO$7+0.5,$J$67:$DK$121,ROWS($A$11:$A33)+2,FALSE) -> 2144 | CP33: =HLOOKUP(CP$7+0.5,$J$67:$DK$121,ROWS($A$11:$A33)+2,FALSE) -> 1874 | CQ33: =HLOOKUP(CQ$7+0.5,$J$67:$DK$121,ROWS($A$11:$A33)+2,FALSE) -> 364 | CR33: =HLOOKUP(CR$7+0.5,$J$67:$DK$121,ROWS($A$11:$A33)+2,FALSE) -> 2432 | CS33: =HLOOKUP(CS$7+0.5,$J$67:$DK$121,ROWS($A$11:$A33)+2,FALSE) -> 1003 | CT33: =HLOOKUP(CT$7+0.5,$J$67:$DK$121,ROWS($A$11:$A33)+2,FALSE) -> 133 | CU33: =HLOOKUP(CU$7+0.5,$J$67:$DK$121,ROWS($A$11:$A33)+2,FALSE) -> 772 | CV33: =HLOOKUP(CV$7+0.5,$J$67:$DK$121,ROWS($A$11:$A33)+2,FALSE) -> 206 | CW33: =HLOOKUP(CW$7+0.5,$J$67:$DK$121,ROWS($A$11:$A33)+2,FALSE) -> 1359 | CX33: =HLOOKUP(CX$7+0.5,$J$67:$DK$121,ROWS($A$11:$A33)+2,FALSE) -> 1924 | CY33: =HLOOKUP(CY$7+0.5,$J$67:$DK$121,ROWS($A$11:$A33)+2,FALSE) -> 1317 | CZ33: =HLOOKUP(CZ$7+0.5,$J$67:$DK$121,ROWS($A$11:$A33)+2,FALSE) -> 1120 | DA33: =HLOOKUP(DA$7+0.5,$J$67:$DK$121,ROWS($A$11:$A33)+2,FALSE) -> 326 | DB33: =HLOOKUP(DB$7+0.5,$J$67:$DK$121,ROWS($A$11:$A33)+2,FALSE) -> 342 | DC33: =HLOOKUP(DC$7+0.5,$J$67:$DK$121,ROWS($A$11:$A33)+2,FALSE) -> 1078 | DD33: =HLOOKUP(DD$7+0.5,$J$67:$DK$121,ROWS($A$11:$A33)+2,FALSE) -> 666 | DE33: =HLOOKUP(DE$7+0.5,$J$67:$DK$121,ROWS($A$11:$A33)+2,FALSE) -> 913 | DF33: =HLOOKUP(DF$7+0.5,$J$67:$DK$121,ROWS($A$11:$A33)+2,FALSE) -> 1470 | DG33: =HLOOKUP(DG$7+0.5,$J$67:$DK$121,ROWS($A$11:$A33)+2,FALSE) -> 696 | DH33: =HLOOKUP(DH$7+0.5,$J$67:$DK$121,ROWS($A$11:$A33)+2,FALSE) -> 569 | DI33: =HLOOKUP(DI$7+0.5,$J$67:$DK$121,ROWS($A$11:$A33)+2,FALSE) -> 445 | DJ33: =HLOOKUP(DJ$7+0.5,$J$67:$DK$121,ROWS($A$11:$A33)+2,FALSE) -> 404 | DK33: =HLOOKUP(DK$7+0.5,$J$67:$DK$121,ROWS($A$11:$A33)+2,FALSE) -> 1883
B34: Michigan | C34: 9778980 | D34: 4263 | E34: 8330990 | F34: 24803 | G34: 1268105 | H34: 23226 | I34: 0.01894971179 | J34: =HLOOKUP(J$7,$J$67:$DK$121,ROWS($A$11:$A34)+2,FALSE) -> 133981 | K34: =HLOOKUP(K$7,$J$67:$DK$121,ROWS($A$11:$A34)+2,FALSE) -> 2341 | L34: =HLOOKUP(L$7,$J$67:$DK$121,ROWS($A$11:$A34)+2,FALSE) -> 1152 | M34: =HLOOKUP(M$7,$J$67:$DK$121,ROWS($A$11:$A34)+2,FALSE) -> 7168 | N34: =HLOOKUP(N$7,$J$67:$DK$121,ROWS($A$11:$A34)+2,FALSE) -> 906 | O34: =HLOOKUP(O$7,$J$67:$DK$121,ROWS($A$11:$A34)+2,FALSE) -> 8085 | P34: =HLOOKUP(P$7,$J$67:$DK$121,ROWS($A$11:$A34)+2,FALSE) -> 2363 | Q34: =HLOOKUP(Q$7,$J$67:$DK$121,ROWS($A$11:$A34)+2,FALSE) -> 798 | R34: =HLOOKUP(R$7,$J$67:$DK$121,ROWS($A$11:$A34)+2,FALSE) -> 114 | S34: =HLOOKUP(S$7,$J$67:$DK$121,ROWS($A$11:$A34)+2,FALSE) -> 274 | T34: =HLOOKUP(T$7,$J$67:$DK$121,ROWS($A$11:$A34)+2,FALSE) -> 13146 | U34: =HLOOKUP(U$7,$J$67:$DK$121,ROWS($A$11:$A34)+2,FALSE) -> 4270 | V34: =HLOOKUP(V$7,$J$67:$DK$121,ROWS($A$11:$A34)+2,FALSE) -> 291 | W34: =HLOOKUP(W$7,$J$67:$DK$121,ROWS($A$11:$A34)+2,FALSE) -> 242 | X34: =HLOOKUP(X$7,$J$67:$DK$121,ROWS($A$11:$A34)+2,FALSE) -> 10047 | Y34: =HLOOKUP(Y$7,$J$67:$DK$121,ROWS($A$11:$A34)+2,FALSE) -> 10976 | Z34: =HLOOKUP(Z$7,$J$67:$DK$121,ROWS($A$11:$A34)+2,FALSE) -> 993 | AA34: =HLOOKUP(AA$7,$J$67:$DK$121,ROWS($A$11:$A34)+2,FALSE) -> 805 | AB34: =HLOOKUP(AB$7,$J$67:$DK$121,ROWS($A$11:$A34)+2,FALSE) -> 3409 | AC34: =HLOOKUP(AC$7,$J$67:$DK$121,ROWS($A$11:$A34)+2,FALSE) -> 1284 | AD34: =HLOOKUP(AD$7,$J$67:$DK$121,ROWS($A$11:$A34)+2,FALSE) -> 261 | AE34: =HLOOKUP(AE$7,$J$67:$DK$121,ROWS($A$11:$A34)+2,FALSE) -> 2201 | AF34: =HLOOKUP(AF$7,$J$67:$DK$121,ROWS($A$11:$A34)+2,FALSE) -> 1720 | AG34: =HLOOKUP(AG$7,$J$67:$DK$121,ROWS($A$11:$A34)+2,FALSE) -> N/A | AH34: =HLOOKUP(AH$7,$J$67:$DK$121,ROWS($A$11:$A34)+2,FALSE) -> 1127 | AI34: =HLOOKUP(AI$7,$J$67:$DK$121,ROWS($A$11:$A34)+2,FALSE) -> 922 | AJ34: =HLOOKUP(AJ$7,$J$67:$DK$121,ROWS($A$11:$A34)+2,FALSE) -> 2206 | AK34: =HLOOKUP(AK$7,$J$67:$DK$121,ROWS($A$11:$A34)+2,FALSE) -> 218 | AL34: =HLOOKUP(AL$7,$J$67:$DK$121,ROWS($A$11:$A34)+2,FALSE) -> 113 | AM34: =HLOOKUP(AM$7,$J$67:$DK$121,ROWS($A$11:$A34)+2,FALSE) -> 1354 | AN34: =HLOOKUP(AN$7,$J$67:$DK$121,ROWS($A$11:$A34)+2,FALSE) -> 446 | AO34: =HLOOKUP(AO$7,$J$67:$DK$121,ROWS($A$11:$A34)+2,FALSE) -> 1617 | AP34: =HLOOKUP(AP$7,$J$67:$DK$121,ROWS($A$11:$A34)+2,FALSE) -> 1318 | AQ34: =HLOOKUP(AQ$7,$J$67:$DK$121,ROWS($A$11:$A34)+2,FALSE) -> 5731 | AR34: =HLOOKUP(AR$7,$J$67:$DK$121,ROWS($A$11:$A34)+2,FALSE) -> 3912 | AS34: =HLOOKUP(AS$7,$J$67:$DK$121,ROWS($A$11:$A34)+2,FALSE) -> 265 | AT34: =HLOOKUP(AT$7,$J$67:$DK$121,ROWS($A$11:$A34)+2,FALSE) -> 11318 | AU34: =HLOOKUP(AU$7,$J$67:$DK$121,ROWS($A$11:$A34)+2,FALSE) -> 705 | AV34: =HLOOKUP(AV$7,$J$67:$DK$121,ROWS($A$11:$A34)+2,FALSE) -> 811 | AW34: =HLOOKUP(AW$7,$J$67:$DK$121,ROWS($A$11:$A34)+2,FALSE) -> 2739 | AX34: =HLOOKUP(AX$7,$J$67:$DK$121,ROWS($A$11:$A34)+2,FALSE) -> 68 | AY34: =HLOOKUP(AY$7,$J$67:$DK$121,ROWS($A$11:$A34)+2,FALSE) -> 1822 | AZ34: =HLOOKUP(AZ$7,$J$67:$DK$121,ROWS($A$11:$A34)+2,FALSE) -> 66 | BA34: =HLOOKUP(BA$7,$J$67:$DK$121,ROWS($A$11:$A34)+2,FALSE) -> 3259 | BB34: =HLOOKUP(BB$7,$J$67:$DK$121,ROWS($A$11:$A34)+2,FALSE) -> 8638 | BC34: =HLOOKUP(BC$7,$J$67:$DK$121,ROWS($A$11:$A34)+2,FALSE) -> 819 | BD34: =HLOOKUP(BD$7,$J$67:$DK$121,ROWS($A$11:$A34)+2,FALSE) -> 60 | BE34: =HLOOKUP(BE$7,$J$67:$DK$121,ROWS($A$11:$A34)+2,FALSE) -> 3057 | BF34: =HLOOKUP(BF$7,$J$67:$DK$121,ROWS($A$11:$A34)+2,FALSE) -> 2146 | BG34: =HLOOKUP(BG$7,$J$67:$DK$121,ROWS($A$11:$A34)+2,FALSE) -> 353 | BH34: =HLOOKUP(BH$7,$J$67:$DK$121,ROWS($A$11:$A34)+2,FALSE) -> 4768 | BI34: =HLOOKUP(BI$7,$J$67:$DK$121,ROWS($A$11:$A34)+2,FALSE) -> 1277 | BJ34: =HLOOKUP(BJ$7,$J$67:$DK$121,ROWS($A$11:$A34)+2,FALSE) -> 782 | BK34: =HLOOKUP(BK$7+0.5,$J$67:$DK$121,ROWS($A$11:$A34)+2,FALSE) -> 8566 | BL34: =HLOOKUP(BL$7+0.5,$J$67:$DK$121,ROWS($A$11:$A34)+2,FALSE) -> 1013 | BM34: =HLOOKUP(BM$7+0.5,$J$67:$DK$121,ROWS($A$11:$A34)+2,FALSE) -> 685 | BN34: =HLOOKUP(BN$7+0.5,$J$67:$DK$121,ROWS($A$11:$A34)+2,FALSE) -> 3100 | BO34: =HLOOKUP(BO$7+0.5,$J$67:$DK$121,ROWS($A$11:$A34)+2,FALSE) -> 559 | BP34: =HLOOKUP(BP$7+0.5,$J$67:$DK$121,ROWS($A$11:$A34)+2,FALSE) -> 1721 | BQ34: =HLOOKUP(BQ$7+0.5,$J$67:$DK$121,ROWS($A$11:$A34)+2,FALSE) -> 967 | BR34: =HLOOKUP(BR$7+0.5,$J$67:$DK$121,ROWS($A$11:$A34)+2,FALSE) -> 506 | BS34: =HLOOKUP(BS$7+0.5,$J$67:$DK$121,ROWS($A$11:$A34)+2,FALSE) -> 164 | BT34: =HLOOKUP(BT$7+0.5,$J$67:$DK$121,ROWS($A$11:$A34)+2,FALSE) -> 282 | BU34: =HLOOKUP(BU$7+0.5,$J$67:$DK$121,ROWS($A$11:$A34)+2,FALSE) -> 3306 | BV34: =HLOOKUP(BV$7+0.5,$J$67:$DK$121,ROWS($A$11:$A34)+2,FALSE) -> 1652 | BW34: =HLOOKUP(BW$7+0.5,$J$67:$DK$121,ROWS($A$11:$A34)+2,FALSE) -> 238 | BX34: =HLOOKUP(BX$7+0.5,$J$67:$DK$121,ROWS($A$11:$A34)+2,FALSE) -> 371 | BY34: =HLOOKUP(BY$7+0.5,$J$67:$DK$121,ROWS($A$11:$A34)+2,FALSE) -> 1702 | BZ34: =HLOOKUP(BZ$7+0.5,$J$67:$DK$121,ROWS($A$11:$A34)+2,FALSE) -> 2324 | CA34: =HLOOKUP(CA$7+0.5,$J$67:$DK$121,ROWS($A$11:$A34)+2,FALSE) -> 495 | CB34: =HLOOKUP(CB$7+0.5,$J$67:$DK$121,ROWS($A$11:$A34)+2,FALSE) -> 608 | CC34: =HLOOKUP(CC$7+0.5,$J$67:$DK$121,ROWS($A$11:$A34)+2,FALSE) -> 1388 | CD34: =HLOOKUP(CD$7+0.5,$J$67:$DK$121,ROWS($A$11:$A34)+2,FALSE) -> 662 | CE34: =HLOOKUP(CE$7+0.5,$J$67:$DK$121,ROWS($A$11:$A34)+2,FALSE) -> 218 | CF34: =HLOOKUP(CF$7+0.5,$J$67:$DK$121,ROWS($A$11:$A34)+2,FALSE) -> 1094 | CG34: =HLOOKUP(CG$7+0.5,$J$67:$DK$121,ROWS($A$11:$A34)+2,FALSE) -> 764 | CH34: =HLOOKUP(CH$7+0.5,$J$67:$DK$121,ROWS($A$11:$A34)+2,FALSE) -> N/A | CI34: =HLOOKUP(CI$7+0.5,$J$67:$DK$121,ROWS($A$11:$A34)+2,FALSE) -> 512 | CJ34: =HLOOKUP(CJ$7+0.5,$J$67:$DK$121,ROWS($A$11:$A34)+2,FALSE) -> 671 | CK34: =HLOOKUP(CK$7+0.5,$J$67:$DK$121,ROWS($A$11:$A34)+2,FALSE) -> 695 | CL34: =HLOOKUP(CL$7+0.5,$J$67:$DK$121,ROWS($A$11:$A34)+2,FALSE) -> 171 | CM34: =HLOOKUP(CM$7+0.5,$J$67:$DK$121,ROWS($A$11:$A34)+2,FALSE) -> 137 | CN34: =HLOOKUP(CN$7+0.5,$J$67:$DK$121,ROWS($A$11:$A34)+2,FALSE) -> 715 | CO34: =HLOOKUP(CO$7+0.5,$J$67:$DK$121,ROWS($A$11:$A34)+2,FALSE) -> 342 | CP34: =HLOOKUP(CP$7+0.5,$J$67:$DK$121,ROWS($A$11:$A34)+2,FALSE) -> 721 | CQ34: =HLOOKUP(CQ$7+0.5,$J$67:$DK$121,ROWS($A$11:$A34)+2,FALSE) -> 685 | CR34: =HLOOKUP(CR$7+0.5,$J$67:$DK$121,ROWS($A$11:$A34)+2,FALSE) -> 1680 | CS34: =HLOOKUP(CS$7+0.5,$J$67:$DK$121,ROWS($A$11:$A34)+2,FALSE) -> 1056 | CT34: =HLOOKUP(CT$7+0.5,$J$67:$DK$121,ROWS($A$11:$A34)+2,FALSE) -> 202 | CU34: =HLOOKUP(CU$7+0.5,$J$67:$DK$121,ROWS($A$11:$A34)+2,FALSE) -> 2251 | CV34: =HLOOKUP(CV$7+0.5,$J$67:$DK$121,ROWS($A$11:$A34)+2,FALSE) -> 307 | CW34: =HLOOKUP(CW$7+0.5,$J$67:$DK$121,ROWS($A$11:$A34)+2,FALSE) -> 440 | CX34: =HLOOKUP(CX$7+0.5,$J$67:$DK$121,ROWS($A$11:$A34)+2,FALSE) -> 686 | CY34: =HLOOKUP(CY$7+0.5,$J$67:$DK$121,ROWS($A$11:$A34)+2,FALSE) -> 114 | CZ34: =HLOOKUP(CZ$7+0.5,$J$67:$DK$121,ROWS($A$11:$A34)+2,FALSE) -> 797 | DA34: =HLOOKUP(DA$7+0.5,$J$67:$DK$121,ROWS($A$11:$A34)+2,FALSE) -> 77 | DB34: =HLOOKUP(DB$7+0.5,$J$67:$DK$121,ROWS($A$11:$A34)+2,FALSE) -> 997 | DC34: =HLOOKUP(DC$7+0.5,$J$67:$DK$121,ROWS($A$11:$A34)+2,FALSE) -> 2574 | DD34: =HLOOKUP(DD$7+0.5,$J$67:$DK$121,ROWS($A$11:$A34)+2,FALSE) -> 534 | DE34: =HLOOKUP(DE$7+0.5,$J$67:$DK$121,ROWS($A$11:$A34)+2,FALSE) -> 120 | DF34: =HLOOKUP(DF$7+0.5,$J$67:$DK$121,ROWS($A$11:$A34)+2,FALSE) -> 855 | DG34: =HLOOKUP(DG$7+0.5,$J$67:$DK$121,ROWS($A$11:$A34)+2,FALSE) -> 839 | DH34: =HLOOKUP(DH$7+0.5,$J$67:$DK$121,ROWS($A$11:$A34)+2,FALSE) -> 279 | DI34: =HLOOKUP(DI$7+0.5,$J$67:$DK$121,ROWS($A$11:$A34)+2,FALSE) -> 1111 | DJ34: =HLOOKUP(DJ$7+0.5,$J$67:$DK$121,ROWS($A$11:$A34)+2,FALSE) -> 862 | DK34: =HLOOKUP(DK$7+0.5,$J$67:$DK$121,ROWS($A$11:$A34)+2,FALSE) -> 797
B35: Minnesota | C35: 5315228 | D35: 2787 | E35: 4536303 | F35: 18312 | G35: 653012 | H35: 17074 | I35: 0.01429095751 | J35: =HLOOKUP(J$7,$J$67:$DK$121,ROWS($A$11:$A35)+2,FALSE) -> 101042 | K35: =HLOOKUP(K$7,$J$67:$DK$121,ROWS($A$11:$A35)+2,FALSE) -> 1299 | L35: =HLOOKUP(L$7,$J$67:$DK$121,ROWS($A$11:$A35)+2,FALSE) -> 523 | M35: =HLOOKUP(M$7,$J$67:$DK$121,ROWS($A$11:$A35)+2,FALSE) -> 3065 | N35: =HLOOKUP(N$7,$J$67:$DK$121,ROWS($A$11:$A35)+2,FALSE) -> 375 | O35: =HLOOKUP(O$7,$J$67:$DK$121,ROWS($A$11:$A35)+2,FALSE) -> 8086 | P35: =HLOOKUP(P$7,$J$67:$DK$121,ROWS($A$11:$A35)+2,FALSE) -> 3565 | Q35: =HLOOKUP(Q$7,$J$67:$DK$121,ROWS($A$11:$A35)+2,FALSE) -> 696 | R35: =HLOOKUP(R$7,$J$67:$DK$121,ROWS($A$11:$A35)+2,FALSE) -> 0 | S35: =HLOOKUP(S$7,$J$67:$DK$121,ROWS($A$11:$A35)+2,FALSE) -> 310 | T35: =HLOOKUP(T$7,$J$67:$DK$121,ROWS($A$11:$A35)+2,FALSE) -> 2372 | U35: =HLOOKUP(U$7,$J$67:$DK$121,ROWS($A$11:$A35)+2,FALSE) -> 2235 | V35: =HLOOKUP(V$7,$J$67:$DK$121,ROWS($A$11:$A35)+2,FALSE) -> 1277 | W35: =HLOOKUP(W$7,$J$67:$DK$121,ROWS($A$11:$A35)+2,FALSE) -> 575 | X35: =HLOOKUP(X$7,$J$67:$DK$121,ROWS($A$11:$A35)+2,FALSE) -> 5896 | Y35: =HLOOKUP(Y$7,$J$67:$DK$121,ROWS($A$11:$A35)+2,FALSE) -> 2026 | Z35: =HLOOKUP(Z$7,$J$67:$DK$121,ROWS($A$11:$A35)+2,FALSE) -> 7220 | AA35: =HLOOKUP(AA$7,$J$67:$DK$121,ROWS($A$11:$A35)+2,FALSE) -> 924 | AB35: =HLOOKUP(AB$7,$J$67:$DK$121,ROWS($A$11:$A35)+2,FALSE) -> 57 | AC35: =HLOOKUP(AC$7,$J$67:$DK$121,ROWS($A$11:$A35)+2,FALSE) -> 791 | AD35: =HLOOKUP(AD$7,$J$67:$DK$121,ROWS($A$11:$A35)+2,FALSE) -> 187 | AE35: =HLOOKUP(AE$7,$J$67:$DK$121,ROWS($A$11:$A35)+2,FALSE) -> 1841 | AF35: =HLOOKUP(AF$7,$J$67:$DK$121,ROWS($A$11:$A35)+2,FALSE) -> 814 | AG35: =HLOOKUP(AG$7,$J$67:$DK$121,ROWS($A$11:$A35)+2,FALSE) -> 2212 | AH35: =HLOOKUP(AH$7,$J$67:$DK$121,ROWS($A$11:$A35)+2,FALSE) -> N/A | AI35: =HLOOKUP(AI$7,$J$67:$DK$121,ROWS($A$11:$A35)+2,FALSE) -> 202 | AJ35: =HLOOKUP(AJ$7,$J$67:$DK$121,ROWS($A$11:$A35)+2,FALSE) -> 1709 | AK35: =HLOOKUP(AK$7,$J$67:$DK$121,ROWS($A$11:$A35)+2,FALSE) -> 1257 | AL35: =HLOOKUP(AL$7,$J$67:$DK$121,ROWS($A$11:$A35)+2,FALSE) -> 992 | AM35: =HLOOKUP(AM$7,$J$67:$DK$121,ROWS($A$11:$A35)+2,FALSE) -> 932 | AN35: =HLOOKUP(AN$7,$J$67:$DK$121,ROWS($A$11:$A35)+2,FALSE) -> 0 | AO35: =HLOOKUP(AO$7,$J$67:$DK$121,ROWS($A$11:$A35)+2,FALSE) -> 1038 | AP35: =HLOOKUP(AP$7,$J$67:$DK$121,ROWS($A$11:$A35)+2,FALSE) -> 322 | AQ35: =HLOOKUP(AQ$7,$J$67:$DK$121,ROWS($A$11:$A35)+2,FALSE) -> 1849 | AR35: =HLOOKUP(AR$7,$J$67:$DK$121,ROWS($A$11:$A35)+2,FALSE) -> 1745 | AS35: =HLOOKUP(AS$7,$J$67:$DK$121,ROWS($A$11:$A35)+2,FALSE) -> 6672 | AT35: =HLOOKUP(AT$7,$J$67:$DK$121,ROWS($A$11:$A35)+2,FALSE) -> 2635 | AU35: =HLOOKUP(AU$7,$J$67:$DK$121,ROWS($A$11:$A35)+2,FALSE) -> 1212 | AV35: =HLOOKUP(AV$7,$J$67:$DK$121,ROWS($A$11:$A35)+2,FALSE) -> 781 | AW35: =HLOOKUP(AW$7,$J$67:$DK$121,ROWS($A$11:$A35)+2,FALSE) -> 1106 | AX35: =HLOOKUP(AX$7,$J$67:$DK$121,ROWS($A$11:$A35)+2,FALSE) -> 299 | AY35: =HLOOKUP(AY$7,$J$67:$DK$121,ROWS($A$11:$A35)+2,FALSE) -> 1705 | AZ35: =HLOOKUP(AZ$7,$J$67:$DK$121,ROWS($A$11:$A35)+2,FALSE) -> 3442 | BA35: =HLOOKUP(BA$7,$J$67:$DK$121,ROWS($A$11:$A35)+2,FALSE) -> 1738 | BB35: =HLOOKUP(BB$7,$J$67:$DK$121,ROWS($A$11:$A35)+2,FALSE) -> 4001 | BC35: =HLOOKUP(BC$7,$J$67:$DK$121,ROWS($A$11:$A35)+2,FALSE) -> 429 | BD35: =HLOOKUP(BD$7,$J$67:$DK$121,ROWS($A$11:$A35)+2,FALSE) -> 77 | BE35: =HLOOKUP(BE$7,$J$67:$DK$121,ROWS($A$11:$A35)+2,FALSE) -> 1037 | BF35: =HLOOKUP(BF$7,$J$67:$DK$121,ROWS($A$11:$A35)+2,FALSE) -> 1685 | BG35: =HLOOKUP(BG$7,$J$67:$DK$121,ROWS($A$11:$A35)+2,FALSE) -> 0 | BH35: =HLOOKUP(BH$7,$J$67:$DK$121,ROWS($A$11:$A35)+2,FALSE) -> 17618 | BI35: =HLOOKUP(BI$7,$J$67:$DK$121,ROWS($A$11:$A35)+2,FALSE) -> 213 | BJ35: =HLOOKUP(BJ$7,$J$67:$DK$121,ROWS($A$11:$A35)+2,FALSE) -> 134 | BK35: =HLOOKUP(BK$7+0.5,$J$67:$DK$121,ROWS($A$11:$A35)+2,FALSE) -> 6534 | BL35: =HLOOKUP(BL$7+0.5,$J$67:$DK$121,ROWS($A$11:$A35)+2,FALSE) -> 919 | BM35: =HLOOKUP(BM$7+0.5,$J$67:$DK$121,ROWS($A$11:$A35)+2,FALSE) -> 312 | BN35: =HLOOKUP(BN$7+0.5,$J$67:$DK$121,ROWS($A$11:$A35)+2,FALSE) -> 861 | BO35: =HLOOKUP(BO$7+0.5,$J$67:$DK$121,ROWS($A$11:$A35)+2,FALSE) -> 222 | BP35: =HLOOKUP(BP$7+0.5,$J$67:$DK$121,ROWS($A$11:$A35)+2,FALSE) -> 2263 | BQ35: =HLOOKUP(BQ$7+0.5,$J$67:$DK$121,ROWS($A$11:$A35)+2,FALSE) -> 1095 | BR35: =HLOOKUP(BR$7+0.5,$J$67:$DK$121,ROWS($A$11:$A35)+2,FALSE) -> 360 | BS35: =HLOOKUP(BS$7+0.5,$J$67:$DK$121,ROWS($A$11:$A35)+2,FALSE) -> 139 | BT35: =HLOOKUP(BT$7+0.5,$J$67:$DK$121,ROWS($A$11:$A35)+2,FALSE) -> 353 | BU35: =HLOOKUP(BU$7+0.5,$J$67:$DK$121,ROWS($A$11:$A35)+2,FALSE) -> 752 | BV35: =HLOOKUP(BV$7+0.5,$J$67:$DK$121,ROWS($A$11:$A35)+2,FALSE) -> 1482 | BW35: =HLOOKUP(BW$7+0.5,$J$67:$DK$121,ROWS($A$11:$A35)+2,FALSE) -> 1179 | BX35: =HLOOKUP(BX$7+0.5,$J$67:$DK$121,ROWS($A$11:$A35)+2,FALSE) -> 531 | BY35: =HLOOKUP(BY$7+0.5,$J$67:$DK$121,ROWS($A$11:$A35)+2,FALSE) -> 1405 | BZ35: =HLOOKUP(BZ$7+0.5,$J$67:$DK$121,ROWS($A$11:$A35)+2,FALSE) -> 1057 | CA35: =HLOOKUP(CA$7+0.5,$J$67:$DK$121,ROWS($A$11:$A35)+2,FALSE) -> 1774 | CB35: =HLOOKUP(CB$7+0.5,$J$67:$DK$121,ROWS($A$11:$A35)+2,FALSE) -> 513 | CC35: =HLOOKUP(CC$7+0.5,$J$67:$DK$121,ROWS($A$11:$A35)+2,FALSE) -> 103 | CD35: =HLOOKUP(CD$7+0.5,$J$67:$DK$121,ROWS($A$11:$A35)+2,FALSE) -> 858 | CE35: =HLOOKUP(CE$7+0.5,$J$67:$DK$121,ROWS($A$11:$A35)+2,FALSE) -> 136 | CF35: =HLOOKUP(CF$7+0.5,$J$67:$DK$121,ROWS($A$11:$A35)+2,FALSE) -> 2080 | CG35: =HLOOKUP(CG$7+0.5,$J$67:$DK$121,ROWS($A$11:$A35)+2,FALSE) -> 434 | CH35: =HLOOKUP(CH$7+0.5,$J$67:$DK$121,ROWS($A$11:$A35)+2,FALSE) -> 822 | CI35: =HLOOKUP(CI$7+0.5,$J$67:$DK$121,ROWS($A$11:$A35)+2,FALSE) -> N/A | CJ35: =HLOOKUP(CJ$7+0.5,$J$67:$DK$121,ROWS($A$11:$A35)+2,FALSE) -> 323 | CK35: =HLOOKUP(CK$7+0.5,$J$67:$DK$121,ROWS($A$11:$A35)+2,FALSE) -> 750 | CL35: =HLOOKUP(CL$7+0.5,$J$67:$DK$121,ROWS($A$11:$A35)+2,FALSE) -> 900 | CM35: =HLOOKUP(CM$7+0.5,$J$67:$DK$121,ROWS($A$11:$A35)+2,FALSE) -> 477 | CN35: =HLOOKUP(CN$7+0.5,$J$67:$DK$121,ROWS($A$11:$A35)+2,FALSE) -> 542 | CO35: =HLOOKUP(CO$7+0.5,$J$67:$DK$121,ROWS($A$11:$A35)+2,FALSE) -> 139 | CP35: =HLOOKUP(CP$7+0.5,$J$67:$DK$121,ROWS($A$11:$A35)+2,FALSE) -> 546 | CQ35: =HLOOKUP(CQ$7+0.5,$J$67:$DK$121,ROWS($A$11:$A35)+2,FALSE) -> 224 | CR35: =HLOOKUP(CR$7+0.5,$J$67:$DK$121,ROWS($A$11:$A35)+2,FALSE) -> 732 | CS35: =HLOOKUP(CS$7+0.5,$J$67:$DK$121,ROWS($A$11:$A35)+2,FALSE) -> 956 | CT35: =HLOOKUP(CT$7+0.5,$J$67:$DK$121,ROWS($A$11:$A35)+2,FALSE) -> 1485 | CU35: =HLOOKUP(CU$7+0.5,$J$67:$DK$121,ROWS($A$11:$A35)+2,FALSE) -> 1248 | CV35: =HLOOKUP(CV$7+0.5,$J$67:$DK$121,ROWS($A$11:$A35)+2,FALSE) -> 894 | CW35: =HLOOKUP(CW$7+0.5,$J$67:$DK$121,ROWS($A$11:$A35)+2,FALSE) -> 513 | CX35: =HLOOKUP(CX$7+0.5,$J$67:$DK$121,ROWS($A$11:$A35)+2,FALSE) -> 570 | CY35: =HLOOKUP(CY$7+0.5,$J$67:$DK$121,ROWS($A$11:$A35)+2,FALSE) -> 226 | CZ35: =HLOOKUP(CZ$7+0.5,$J$67:$DK$121,ROWS($A$11:$A35)+2,FALSE) -> 1448 | DA35: =HLOOKUP(DA$7+0.5,$J$67:$DK$121,ROWS($A$11:$A35)+2,FALSE) -> 990 | DB35: =HLOOKUP(DB$7+0.5,$J$67:$DK$121,ROWS($A$11:$A35)+2,FALSE) -> 1141 | DC35: =HLOOKUP(DC$7+0.5,$J$67:$DK$121,ROWS($A$11:$A35)+2,FALSE) -> 1244 | DD35: =HLOOKUP(DD$7+0.5,$J$67:$DK$121,ROWS($A$11:$A35)+2,FALSE) -> 312 | DE35: =HLOOKUP(DE$7+0.5,$J$67:$DK$121,ROWS($A$11:$A35)+2,FALSE) -> 126 | DF35: =HLOOKUP(DF$7+0.5,$J$67:$DK$121,ROWS($A$11:$A35)+2,FALSE) -> 434 | DG35: =HLOOKUP(DG$7+0.5,$J$67:$DK$121,ROWS($A$11:$A35)+2,FALSE) -> 678 | DH35: =HLOOKUP(DH$7+0.5,$J$67:$DK$121,ROWS($A$11:$A35)+2,FALSE) -> 139 | DI35: =HLOOKUP(DI$7+0.5,$J$67:$DK$121,ROWS($A$11:$A35)+2,FALSE) -> 2358 | DJ35: =HLOOKUP(DJ$7+0.5,$J$67:$DK$121,ROWS($A$11:$A35)+2,FALSE) -> 213 | DK35: =HLOOKUP(DK$7+0.5,$J$67:$DK$121,ROWS($A$11:$A35)+2,FALSE) -> 136
B36: Mississippi | C36: 2947696 | D36: 2744 | E36: 2529377 | F36: 17940 | G36: 339807 | H36: 16126 | I36: 0.01039553233 | J36: =HLOOKUP(J$7,$J$67:$DK$121,ROWS($A$11:$A36)+2,FALSE) -> 73500 | K36: =HLOOKUP(K$7,$J$67:$DK$121,ROWS($A$11:$A36)+2,FALSE) -> 5141 | L36: =HLOOKUP(L$7,$J$67:$DK$121,ROWS($A$11:$A36)+2,FALSE) -> 0 | M36: =HLOOKUP(M$7,$J$67:$DK$121,ROWS($A$11:$A36)+2,FALSE) -> 710 | N36: =HLOOKUP(N$7,$J$67:$DK$121,ROWS($A$11:$A36)+2,FALSE) -> 2680 | O36: =HLOOKUP(O$7,$J$67:$DK$121,ROWS($A$11:$A36)+2,FALSE) -> 4371 | P36: =HLOOKUP(P$7,$J$67:$DK$121,ROWS($A$11:$A36)+2,FALSE) -> 799 | Q36: =HLOOKUP(Q$7,$J$67:$DK$121,ROWS($A$11:$A36)+2,FALSE) -> 106 | R36: =HLOOKUP(R$7,$J$67:$DK$121,ROWS($A$11:$A36)+2,FALSE) -> 0 | S36: =HLOOKUP(S$7,$J$67:$DK$121,ROWS($A$11:$A36)+2,FALSE) -> 97 | T36: =HLOOKUP(T$7,$J$67:$DK$121,ROWS($A$11:$A36)+2,FALSE) -> 4676 | U36: =HLOOKUP(U$7,$J$67:$DK$121,ROWS($A$11:$A36)+2,FALSE) -> 2669 | V36: =HLOOKUP(V$7,$J$67:$DK$121,ROWS($A$11:$A36)+2,FALSE) -> 184 | W36: =HLOOKUP(W$7,$J$67:$DK$121,ROWS($A$11:$A36)+2,FALSE) -> 586 | X36: =HLOOKUP(X$7,$J$67:$DK$121,ROWS($A$11:$A36)+2,FALSE) -> 2703 | Y36: =HLOOKUP(Y$7,$J$67:$DK$121,ROWS($A$11:$A36)+2,FALSE) -> 1200 | Z36: =HLOOKUP(Z$7,$J$67:$DK$121,ROWS($A$11:$A36)+2,FALSE) -> 160 | AA36: =HLOOKUP(AA$7,$J$67:$DK$121,ROWS($A$11:$A36)+2,FALSE) -> 400 | AB36: =HLOOKUP(AB$7,$J$67:$DK$121,ROWS($A$11:$A36)+2,FALSE) -> 446 | AC36: =HLOOKUP(AC$7,$J$67:$DK$121,ROWS($A$11:$A36)+2,FALSE) -> 8588 | AD36: =HLOOKUP(AD$7,$J$67:$DK$121,ROWS($A$11:$A36)+2,FALSE) -> 163 | AE36: =HLOOKUP(AE$7,$J$67:$DK$121,ROWS($A$11:$A36)+2,FALSE) -> 379 | AF36: =HLOOKUP(AF$7,$J$67:$DK$121,ROWS($A$11:$A36)+2,FALSE) -> 67 | AG36: =HLOOKUP(AG$7,$J$67:$DK$121,ROWS($A$11:$A36)+2,FALSE) -> 1768 | AH36: =HLOOKUP(AH$7,$J$67:$DK$121,ROWS($A$11:$A36)+2,FALSE) -> 568 | AI36: =HLOOKUP(AI$7,$J$67:$DK$121,ROWS($A$11:$A36)+2,FALSE) -> N/A | AJ36: =HLOOKUP(AJ$7,$J$67:$DK$121,ROWS($A$11:$A36)+2,FALSE) -> 2634 | AK36: =HLOOKUP(AK$7,$J$67:$DK$121,ROWS($A$11:$A36)+2,FALSE) -> 166 | AL36: =HLOOKUP(AL$7,$J$67:$DK$121,ROWS($A$11:$A36)+2,FALSE) -> 138 | AM36: =HLOOKUP(AM$7,$J$67:$DK$121,ROWS($A$11:$A36)+2,FALSE) -> 526 | AN36: =HLOOKUP(AN$7,$J$67:$DK$121,ROWS($A$11:$A36)+2,FALSE) -> 60 | AO36: =HLOOKUP(AO$7,$J$67:$DK$121,ROWS($A$11:$A36)+2,FALSE) -> 2127 | AP36: =HLOOKUP(AP$7,$J$67:$DK$121,ROWS($A$11:$A36)+2,FALSE) -> 86 | AQ36: =HLOOKUP(AQ$7,$J$67:$DK$121,ROWS($A$11:$A36)+2,FALSE) -> 1492 | AR36: =HLOOKUP(AR$7,$J$67:$DK$121,ROWS($A$11:$A36)+2,FALSE) -> 1709 | AS36: =HLOOKUP(AS$7,$J$67:$DK$121,ROWS($A$11:$A36)+2,FALSE) -> 98 | AT36: =HLOOKUP(AT$7,$J$67:$DK$121,ROWS($A$11:$A36)+2,FALSE) -> 896 | AU36: =HLOOKUP(AU$7,$J$67:$DK$121,ROWS($A$11:$A36)+2,FALSE) -> 562 | AV36: =HLOOKUP(AV$7,$J$67:$DK$121,ROWS($A$11:$A36)+2,FALSE) -> 465 | AW36: =HLOOKUP(AW$7,$J$67:$DK$121,ROWS($A$11:$A36)+2,FALSE) -> 613 | AX36: =HLOOKUP(AX$7,$J$67:$DK$121,ROWS($A$11:$A36)+2,FALSE) -> 185 | AY36: =HLOOKUP(AY$7,$J$67:$DK$121,ROWS($A$11:$A36)+2,FALSE) -> 596 | AZ36: =HLOOKUP(AZ$7,$J$67:$DK$121,ROWS($A$11:$A36)+2,FALSE) -> 79 | BA36: =HLOOKUP(BA$7,$J$67:$DK$121,ROWS($A$11:$A36)+2,FALSE) -> 11643 | BB36: =HLOOKUP(BB$7,$J$67:$DK$121,ROWS($A$11:$A36)+2,FALSE) -> 7230 | BC36: =HLOOKUP(BC$7,$J$67:$DK$121,ROWS($A$11:$A36)+2,FALSE) -> 454 | BD36: =HLOOKUP(BD$7,$J$67:$DK$121,ROWS($A$11:$A36)+2,FALSE) -> 0 | BE36: =HLOOKUP(BE$7,$J$67:$DK$121,ROWS($A$11:$A36)+2,FALSE) -> 1929 | BF36: =HLOOKUP(BF$7,$J$67:$DK$121,ROWS($A$11:$A36)+2,FALSE) -> 433 | BG36: =HLOOKUP(BG$7,$J$67:$DK$121,ROWS($A$11:$A36)+2,FALSE) -> 0 | BH36: =HLOOKUP(BH$7,$J$67:$DK$121,ROWS($A$11:$A36)+2,FALSE) -> 611 | BI36: =HLOOKUP(BI$7,$J$67:$DK$121,ROWS($A$11:$A36)+2,FALSE) -> 307 | BJ36: =HLOOKUP(BJ$7,$J$67:$DK$121,ROWS($A$11:$A36)+2,FALSE) -> 81 | BK36: =HLOOKUP(BK$7+0.5,$J$67:$DK$121,ROWS($A$11:$A36)+2,FALSE) -> 7080 | BL36: =HLOOKUP(BL$7+0.5,$J$67:$DK$121,ROWS($A$11:$A36)+2,FALSE) -> 1870 | BM36: =HLOOKUP(BM$7+0.5,$J$67:$DK$121,ROWS($A$11:$A36)+2,FALSE) -> 198 | BN36: =HLOOKUP(BN$7+0.5,$J$67:$DK$121,ROWS($A$11:$A36)+2,FALSE) -> 509 | BO36: =HLOOKUP(BO$7+0.5,$J$67:$DK$121,ROWS($A$11:$A36)+2,FALSE) -> 1447 | BP36: =HLOOKUP(BP$7+0.5,$J$67:$DK$121,ROWS($A$11:$A36)+2,FALSE) -> 1070 | BQ36: =HLOOKUP(BQ$7+0.5,$J$67:$DK$121,ROWS($A$11:$A36)+2,FALSE) -> 426 | BR36: =HLOOKUP(BR$7+0.5,$J$67:$DK$121,ROWS($A$11:$A36)+2,FALSE) -> 147 | BS36: =HLOOKUP(BS$7+0.5,$J$67:$DK$121,ROWS($A$11:$A36)+2,FALSE) -> 198 | BT36: =HLOOKUP(BT$7+0.5,$J$67:$DK$121,ROWS($A$11:$A36)+2,FALSE) -> 164 | BU36: =HLOOKUP(BU$7+0.5,$J$67:$DK$121,ROWS($A$11:$A36)+2,FALSE) -> 1396 | BV36: =HLOOKUP(BV$7+0.5,$J$67:$DK$121,ROWS($A$11:$A36)+2,FALSE) -> 865 | BW36: =HLOOKUP(BW$7+0.5,$J$67:$DK$121,ROWS($A$11:$A36)+2,FALSE) -> 191 | BX36: =HLOOKUP(BX$7+0.5,$J$67:$DK$121,ROWS($A$11:$A36)+2,FALSE) -> 597 | BY36: =HLOOKUP(BY$7+0.5,$J$67:$DK$121,ROWS($A$11:$A36)+2,FALSE) -> 933 | BZ36: =HLOOKUP(BZ$7+0.5,$J$67:$DK$121,ROWS($A$11:$A36)+2,FALSE) -> 621 | CA36: =HLOOKUP(CA$7+0.5,$J$67:$DK$121,ROWS($A$11:$A36)+2,FALSE) -> 275 | CB36: =HLOOKUP(CB$7+0.5,$J$67:$DK$121,ROWS($A$11:$A36)+2,FALSE) -> 339 | CC36: =HLOOKUP(CC$7+0.5,$J$67:$DK$121,ROWS($A$11:$A36)+2,FALSE) -> 276 | CD36: =HLOOKUP(CD$7+0.5,$J$67:$DK$121,ROWS($A$11:$A36)+2,FALSE) -> 2293 | CE36: =HLOOKUP(CE$7+0.5,$J$67:$DK$121,ROWS($A$11:$A36)+2,FALSE) -> 167 | CF36: =HLOOKUP(CF$7+0.5,$J$67:$DK$121,ROWS($A$11:$A36)+2,FALSE) -> 262 | CG36: =HLOOKUP(CG$7+0.5,$J$67:$DK$121,ROWS($A$11:$A36)+2,FALSE) -> 113 | CH36: =HLOOKUP(CH$7+0.5,$J$67:$DK$121,ROWS($A$11:$A36)+2,FALSE) -> 1071 | CI36: =HLOOKUP(CI$7+0.5,$J$67:$DK$121,ROWS($A$11:$A36)+2,FALSE) -> 385 | CJ36: =HLOOKUP(CJ$7+0.5,$J$67:$DK$121,ROWS($A$11:$A36)+2,FALSE) -> N/A | CK36: =HLOOKUP(CK$7+0.5,$J$67:$DK$121,ROWS($A$11:$A36)+2,FALSE) -> 1581 | CL36: =HLOOKUP(CL$7+0.5,$J$67:$DK$121,ROWS($A$11:$A36)+2,FALSE) -> 168 | CM36: =HLOOKUP(CM$7+0.5,$J$67:$DK$121,ROWS($A$11:$A36)+2,FALSE) -> 159 | CN36: =HLOOKUP(CN$7+0.5,$J$67:$DK$121,ROWS($A$11:$A36)+2,FALSE) -> 342 | CO36: =HLOOKUP(CO$7+0.5,$J$67:$DK$121,ROWS($A$11:$A36)+2,FALSE) -> 117 | CP36: =HLOOKUP(CP$7+0.5,$J$67:$DK$121,ROWS($A$11:$A36)+2,FALSE) -> 1495 | CQ36: =HLOOKUP(CQ$7+0.5,$J$67:$DK$121,ROWS($A$11:$A36)+2,FALSE) -> 102 | CR36: =HLOOKUP(CR$7+0.5,$J$67:$DK$121,ROWS($A$11:$A36)+2,FALSE) -> 660 | CS36: =HLOOKUP(CS$7+0.5,$J$67:$DK$121,ROWS($A$11:$A36)+2,FALSE) -> 609 | CT36: =HLOOKUP(CT$7+0.5,$J$67:$DK$121,ROWS($A$11:$A36)+2,FALSE) -> 118 | CU36: =HLOOKUP(CU$7+0.5,$J$67:$DK$121,ROWS($A$11:$A36)+2,FALSE) -> 703 | CV36: =HLOOKUP(CV$7+0.5,$J$67:$DK$121,ROWS($A$11:$A36)+2,FALSE) -> 352 | CW36: =HLOOKUP(CW$7+0.5,$J$67:$DK$121,ROWS($A$11:$A36)+2,FALSE) -> 768 | CX36: =HLOOKUP(CX$7+0.5,$J$67:$DK$121,ROWS($A$11:$A36)+2,FALSE) -> 434 | CY36: =HLOOKUP(CY$7+0.5,$J$67:$DK$121,ROWS($A$11:$A36)+2,FALSE) -> 229 | CZ36: =HLOOKUP(CZ$7+0.5,$J$67:$DK$121,ROWS($A$11:$A36)+2,FALSE) -> 469 | DA36: =HLOOKUP(DA$7+0.5,$J$67:$DK$121,ROWS($A$11:$A36)+2,FALSE) -> 129 | DB36: =HLOOKUP(DB$7+0.5,$J$67:$DK$121,ROWS($A$11:$A36)+2,FALSE) -> 2856 | DC36: =HLOOKUP(DC$7+0.5,$J$67:$DK$121,ROWS($A$11:$A36)+2,FALSE) -> 2491 | DD36: =HLOOKUP(DD$7+0.5,$J$67:$DK$121,ROWS($A$11:$A36)+2,FALSE) -> 724 | DE36: =HLOOKUP(DE$7+0.5,$J$67:$DK$121,ROWS($A$11:$A36)+2,FALSE) -> 198 | DF36: =HLOOKUP(DF$7+0.5,$J$67:$DK$121,ROWS($A$11:$A36)+2,FALSE) -> 1285 | DG36: =HLOOKUP(DG$7+0.5,$J$67:$DK$121,ROWS($A$11:$A36)+2,FALSE) -> 309 | DH36: =HLOOKUP(DH$7+0.5,$J$67:$DK$121,ROWS($A$11:$A36)+2,FALSE) -> 198 | DI36: =HLOOKUP(DI$7+0.5,$J$67:$DK$121,ROWS($A$11:$A36)+2,FALSE) -> 521 | DJ36: =HLOOKUP(DJ$7+0.5,$J$67:$DK$121,ROWS($A$11:$A36)+2,FALSE) -> 287 | DK36: =HLOOKUP(DK$7+0.5,$J$67:$DK$121,ROWS($A$11:$A36)+2,FALSE) -> 108
B37: Missouri | C37: 5951913 | D37: 3866 | E37: 4965459 | F37: 21306 | G37: 801093 | H37: 19635 | I37: 0.02304413717 | J37: =HLOOKUP(J$7,$J$67:$DK$121,ROWS($A$11:$A37)+2,FALSE) -> 162930 | K37: =HLOOKUP(K$7,$J$67:$DK$121,ROWS($A$11:$A37)+2,FALSE) -> 1333 | L37: =HLOOKUP(L$7,$J$67:$DK$121,ROWS($A$11:$A37)+2,FALSE) -> 2186 | M37: =HLOOKUP(M$7,$J$67:$DK$121,ROWS($A$11:$A37)+2,FALSE) -> 2297 | N37: =HLOOKUP(N$7,$J$67:$DK$121,ROWS($A$11:$A37)+2,FALSE) -> 9434 | O37: =HLOOKUP(O$7,$J$67:$DK$121,ROWS($A$11:$A37)+2,FALSE) -> 10717 | P37: =HLOOKUP(P$7,$J$67:$DK$121,ROWS($A$11:$A37)+2,FALSE) -> 3798 | Q37: =HLOOKUP(Q$7,$J$67:$DK$121,ROWS($A$11:$A37)+2,FALSE) -> 410 | R37: =HLOOKUP(R$7,$J$67:$DK$121,ROWS($A$11:$A37)+2,FALSE) -> 234 | S37: =HLOOKUP(S$7,$J$67:$DK$121,ROWS($A$11:$A37)+2,FALSE) -> 144 | T37: =HLOOKUP(T$7,$J$67:$DK$121,ROWS($A$11:$A37)+2,FALSE) -> 8374 | U37: =HLOOKUP(U$7,$J$67:$DK$121,ROWS($A$11:$A37)+2,FALSE) -> 3451 | V37: =HLOOKUP(V$7,$J$67:$DK$121,ROWS($A$11:$A37)+2,FALSE) -> 2114 | W37: =HLOOKUP(W$7,$J$67:$DK$121,ROWS($A$11:$A37)+2,FALSE) -> 596 | X37: =HLOOKUP(X$7,$J$67:$DK$121,ROWS($A$11:$A37)+2,FALSE) -> 22001 | Y37: =HLOOKUP(Y$7,$J$67:$DK$121,ROWS($A$11:$A37)+2,FALSE) -> 4184 | Z37: =HLOOKUP(Z$7,$J$67:$DK$121,ROWS($A$11:$A37)+2,FALSE) -> 5956 | AA37: =HLOOKUP(AA$7,$J$67:$DK$121,ROWS($A$11:$A37)+2,FALSE) -> 20218 | AB37: =HLOOKUP(AB$7,$J$67:$DK$121,ROWS($A$11:$A37)+2,FALSE) -> 2291 | AC37: =HLOOKUP(AC$7,$J$67:$DK$121,ROWS($A$11:$A37)+2,FALSE) -> 1178 | AD37: =HLOOKUP(AD$7,$J$67:$DK$121,ROWS($A$11:$A37)+2,FALSE) -> 996 | AE37: =HLOOKUP(AE$7,$J$67:$DK$121,ROWS($A$11:$A37)+2,FALSE) -> 1246 | AF37: =HLOOKUP(AF$7,$J$67:$DK$121,ROWS($A$11:$A37)+2,FALSE) -> 810 | AG37: =HLOOKUP(AG$7,$J$67:$DK$121,ROWS($A$11:$A37)+2,FALSE) -> 2964 | AH37: =HLOOKUP(AH$7,$J$67:$DK$121,ROWS($A$11:$A37)+2,FALSE) -> 2798 | AI37: =HLOOKUP(AI$7,$J$67:$DK$121,ROWS($A$11:$A37)+2,FALSE) -> 1110 | AJ37: =HLOOKUP(AJ$7,$J$67:$DK$121,ROWS($A$11:$A37)+2,FALSE) -> N/A | AK37: =HLOOKUP(AK$7,$J$67:$DK$121,ROWS($A$11:$A37)+2,FALSE) -> 511 | AL37: =HLOOKUP(AL$7,$J$67:$DK$121,ROWS($A$11:$A37)+2,FALSE) -> 1999 | AM37: =HLOOKUP(AM$7,$J$67:$DK$121,ROWS($A$11:$A37)+2,FALSE) -> 836 | AN37: =HLOOKUP(AN$7,$J$67:$DK$121,ROWS($A$11:$A37)+2,FALSE) -> 35 | AO37: =HLOOKUP(AO$7,$J$67:$DK$121,ROWS($A$11:$A37)+2,FALSE) -> 960 | AP37: =HLOOKUP(AP$7,$J$67:$DK$121,ROWS($A$11:$A37)+2,FALSE) -> 451 | AQ37: =HLOOKUP(AQ$7,$J$67:$DK$121,ROWS($A$11:$A37)+2,FALSE) -> 2834 | AR37: =HLOOKUP(AR$7,$J$67:$DK$121,ROWS($A$11:$A37)+2,FALSE) -> 3988 | AS37: =HLOOKUP(AS$7,$J$67:$DK$121,ROWS($A$11:$A37)+2,FALSE) -> 636 | AT37: =HLOOKUP(AT$7,$J$67:$DK$121,ROWS($A$11:$A37)+2,FALSE) -> 3557 | AU37: =HLOOKUP(AU$7,$J$67:$DK$121,ROWS($A$11:$A37)+2,FALSE) -> 5298 | AV37: =HLOOKUP(AV$7,$J$67:$DK$121,ROWS($A$11:$A37)+2,FALSE) -> 1186 | AW37: =HLOOKUP(AW$7,$J$67:$DK$121,ROWS($A$11:$A37)+2,FALSE) -> 1535 | AX37: =HLOOKUP(AX$7,$J$67:$DK$121,ROWS($A$11:$A37)+2,FALSE) -> 361 | AY37: =HLOOKUP(AY$7,$J$67:$DK$121,ROWS($A$11:$A37)+2,FALSE) -> 2856 | AZ37: =HLOOKUP(AZ$7,$J$67:$DK$121,ROWS($A$11:$A37)+2,FALSE) -> 527 | BA37: =HLOOKUP(BA$7,$J$67:$DK$121,ROWS($A$11:$A37)+2,FALSE) -> 3122 | BB37: =HLOOKUP(BB$7,$J$67:$DK$121,ROWS($A$11:$A37)+2,FALSE) -> 9278 | BC37: =HLOOKUP(BC$7,$J$67:$DK$121,ROWS($A$11:$A37)+2,FALSE) -> 3287 | BD37: =HLOOKUP(BD$7,$J$67:$DK$121,ROWS($A$11:$A37)+2,FALSE) -> 318 | BE37: =HLOOKUP(BE$7,$J$67:$DK$121,ROWS($A$11:$A37)+2,FALSE) -> 2609 | BF37: =HLOOKUP(BF$7,$J$67:$DK$121,ROWS($A$11:$A37)+2,FALSE) -> 2312 | BG37: =HLOOKUP(BG$7,$J$67:$DK$121,ROWS($A$11:$A37)+2,FALSE) -> 148 | BH37: =HLOOKUP(BH$7,$J$67:$DK$121,ROWS($A$11:$A37)+2,FALSE) -> 2636 | BI37: =HLOOKUP(BI$7,$J$67:$DK$121,ROWS($A$11:$A37)+2,FALSE) -> 810 | BJ37: =HLOOKUP(BJ$7,$J$67:$DK$121,ROWS($A$11:$A37)+2,FALSE) -> 826 | BK37: =HLOOKUP(BK$7+0.5,$J$67:$DK$121,ROWS($A$11:$A37)+2,FALSE) -> 8034 | BL37: =HLOOKUP(BL$7+0.5,$J$67:$DK$121,ROWS($A$11:$A37)+2,FALSE) -> 768 | BM37: =HLOOKUP(BM$7+0.5,$J$67:$DK$121,ROWS($A$11:$A37)+2,FALSE) -> 1289 | BN37: =HLOOKUP(BN$7+0.5,$J$67:$DK$121,ROWS($A$11:$A37)+2,FALSE) -> 741 | BO37: =HLOOKUP(BO$7+0.5,$J$67:$DK$121,ROWS($A$11:$A37)+2,FALSE) -> 2224 | BP37: =HLOOKUP(BP$7+0.5,$J$67:$DK$121,ROWS($A$11:$A37)+2,FALSE) -> 2409 | BQ37: =HLOOKUP(BQ$7+0.5,$J$67:$DK$121,ROWS($A$11:$A37)+2,FALSE) -> 1371 | BR37: =HLOOKUP(BR$7+0.5,$J$67:$DK$121,ROWS($A$11:$A37)+2,FALSE) -> 331 | BS37: =HLOOKUP(BS$7+0.5,$J$67:$DK$121,ROWS($A$11:$A37)+2,FALSE) -> 314 | BT37: =HLOOKUP(BT$7+0.5,$J$67:$DK$121,ROWS($A$11:$A37)+2,FALSE) -> 172 | BU37: =HLOOKUP(BU$7+0.5,$J$67:$DK$121,ROWS($A$11:$A37)+2,FALSE) -> 1990 | BV37: =HLOOKUP(BV$7+0.5,$J$67:$DK$121,ROWS($A$11:$A37)+2,FALSE) -> 1391 | BW37: =HLOOKUP(BW$7+0.5,$J$67:$DK$121,ROWS($A$11:$A37)+2,FALSE) -> 1271 | BX37: =HLOOKUP(BX$7+0.5,$J$67:$DK$121,ROWS($A$11:$A37)+2,FALSE) -> 478 | BY37: =HLOOKUP(BY$7+0.5,$J$67:$DK$121,ROWS($A$11:$A37)+2,FALSE) -> 2893 | BZ37: =HLOOKUP(BZ$7+0.5,$J$67:$DK$121,ROWS($A$11:$A37)+2,FALSE) -> 1267 | CA37: =HLOOKUP(CA$7+0.5,$J$67:$DK$121,ROWS($A$11:$A37)+2,FALSE) -> 1324 | CB37: =HLOOKUP(CB$7+0.5,$J$67:$DK$121,ROWS($A$11:$A37)+2,FALSE) -> 3673 | CC37: =HLOOKUP(CC$7+0.5,$J$67:$DK$121,ROWS($A$11:$A37)+2,FALSE) -> 1067 | CD37: =HLOOKUP(CD$7+0.5,$J$67:$DK$121,ROWS($A$11:$A37)+2,FALSE) -> 651 | CE37: =HLOOKUP(CE$7+0.5,$J$67:$DK$121,ROWS($A$11:$A37)+2,FALSE) -> 1247 | CF37: =HLOOKUP(CF$7+0.5,$J$67:$DK$121,ROWS($A$11:$A37)+2,FALSE) -> 717 | CG37: =HLOOKUP(CG$7+0.5,$J$67:$DK$121,ROWS($A$11:$A37)+2,FALSE) -> 486 | CH37: =HLOOKUP(CH$7+0.5,$J$67:$DK$121,ROWS($A$11:$A37)+2,FALSE) -> 1169 | CI37: =HLOOKUP(CI$7+0.5,$J$67:$DK$121,ROWS($A$11:$A37)+2,FALSE) -> 1265 | CJ37: =HLOOKUP(CJ$7+0.5,$J$67:$DK$121,ROWS($A$11:$A37)+2,FALSE) -> 532 | CK37: =HLOOKUP(CK$7+0.5,$J$67:$DK$121,ROWS($A$11:$A37)+2,FALSE) -> N/A | CL37: =HLOOKUP(CL$7+0.5,$J$67:$DK$121,ROWS($A$11:$A37)+2,FALSE) -> 506 | CM37: =HLOOKUP(CM$7+0.5,$J$67:$DK$121,ROWS($A$11:$A37)+2,FALSE) -> 833 | CN37: =HLOOKUP(CN$7+0.5,$J$67:$DK$121,ROWS($A$11:$A37)+2,FALSE) -> 366 | CO37: =HLOOKUP(CO$7+0.5,$J$67:$DK$121,ROWS($A$11:$A37)+2,FALSE) -> 58 | CP37: =HLOOKUP(CP$7+0.5,$J$67:$DK$121,ROWS($A$11:$A37)+2,FALSE) -> 536 | CQ37: =HLOOKUP(CQ$7+0.5,$J$67:$DK$121,ROWS($A$11:$A37)+2,FALSE) -> 309 | CR37: =HLOOKUP(CR$7+0.5,$J$67:$DK$121,ROWS($A$11:$A37)+2,FALSE) -> 918 | CS37: =HLOOKUP(CS$7+0.5,$J$67:$DK$121,ROWS($A$11:$A37)+2,FALSE) -> 1420 | CT37: =HLOOKUP(CT$7+0.5,$J$67:$DK$121,ROWS($A$11:$A37)+2,FALSE) -> 462 | CU37: =HLOOKUP(CU$7+0.5,$J$67:$DK$121,ROWS($A$11:$A37)+2,FALSE) -> 1317 | CV37: =HLOOKUP(CV$7+0.5,$J$67:$DK$121,ROWS($A$11:$A37)+2,FALSE) -> 2199 | CW37: =HLOOKUP(CW$7+0.5,$J$67:$DK$121,ROWS($A$11:$A37)+2,FALSE) -> 899 | CX37: =HLOOKUP(CX$7+0.5,$J$67:$DK$121,ROWS($A$11:$A37)+2,FALSE) -> 639 | CY37: =HLOOKUP(CY$7+0.5,$J$67:$DK$121,ROWS($A$11:$A37)+2,FALSE) -> 582 | CZ37: =HLOOKUP(CZ$7+0.5,$J$67:$DK$121,ROWS($A$11:$A37)+2,FALSE) -> 1625 | DA37: =HLOOKUP(DA$7+0.5,$J$67:$DK$121,ROWS($A$11:$A37)+2,FALSE) -> 542 | DB37: =HLOOKUP(DB$7+0.5,$J$67:$DK$121,ROWS($A$11:$A37)+2,FALSE) -> 1350 | DC37: =HLOOKUP(DC$7+0.5,$J$67:$DK$121,ROWS($A$11:$A37)+2,FALSE) -> 2841 | DD37: =HLOOKUP(DD$7+0.5,$J$67:$DK$121,ROWS($A$11:$A37)+2,FALSE) -> 1733 | DE37: =HLOOKUP(DE$7+0.5,$J$67:$DK$121,ROWS($A$11:$A37)+2,FALSE) -> 413 | DF37: =HLOOKUP(DF$7+0.5,$J$67:$DK$121,ROWS($A$11:$A37)+2,FALSE) -> 1081 | DG37: =HLOOKUP(DG$7+0.5,$J$67:$DK$121,ROWS($A$11:$A37)+2,FALSE) -> 1093 | DH37: =HLOOKUP(DH$7+0.5,$J$67:$DK$121,ROWS($A$11:$A37)+2,FALSE) -> 181 | DI37: =HLOOKUP(DI$7+0.5,$J$67:$DK$121,ROWS($A$11:$A37)+2,FALSE) -> 999 | DJ37: =HLOOKUP(DJ$7+0.5,$J$67:$DK$121,ROWS($A$11:$A37)+2,FALSE) -> 452 | DK37: =HLOOKUP(DK$7+0.5,$J$67:$DK$121,ROWS($A$11:$A37)+2,FALSE) -> 958
B38: Montana | C38: 995544 | D38: 947 | E38: 829489 | F38: 8669 | G38: 126463 | H38: 7466 | I38: 0.005330715828 | J38: =HLOOKUP(J$7,$J$67:$DK$121,ROWS($A$11:$A38)+2,FALSE) -> 37690 | K38: =HLOOKUP(K$7,$J$67:$DK$121,ROWS($A$11:$A38)+2,FALSE) -> 31 | L38: =HLOOKUP(L$7,$J$67:$DK$121,ROWS($A$11:$A38)+2,FALSE) -> 726 | M38: =HLOOKUP(M$7,$J$67:$DK$121,ROWS($A$11:$A38)+2,FALSE) -> 1548 | N38: =HLOOKUP(N$7,$J$67:$DK$121,ROWS($A$11:$A38)+2,FALSE) -> 63 | O38: =HLOOKUP(O$7,$J$67:$DK$121,ROWS($A$11:$A38)+2,FALSE) -> 5428 | P38: =HLOOKUP(P$7,$J$67:$DK$121,ROWS($A$11:$A38)+2,FALSE) -> 2135 | Q38: =HLOOKUP(Q$7,$J$67:$DK$121,ROWS($A$11:$A38)+2,FALSE) -> 0 | R38: =HLOOKUP(R$7,$J$67:$DK$121,ROWS($A$11:$A38)+2,FALSE) -> 0 | S38: =HLOOKUP(S$7,$J$67:$DK$121,ROWS($A$11:$A38)+2,FALSE) -> 0 | T38: =HLOOKUP(T$7,$J$67:$DK$121,ROWS($A$11:$A38)+2,FALSE) -> 1875 | U38: =HLOOKUP(U$7,$J$67:$DK$121,ROWS($A$11:$A38)+2,FALSE) -> 292 | V38: =HLOOKUP(V$7,$J$67:$DK$121,ROWS($A$11:$A38)+2,FALSE) -> 556 | W38: =HLOOKUP(W$7,$J$67:$DK$121,ROWS($A$11:$A38)+2,FALSE) -> 3385 | X38: =HLOOKUP(X$7,$J$67:$DK$121,ROWS($A$11:$A38)+2,FALSE) -> 542 | Y38: =HLOOKUP(Y$7,$J$67:$DK$121,ROWS($A$11:$A38)+2,FALSE) -> 163 | Z38: =HLOOKUP(Z$7,$J$67:$DK$121,ROWS($A$11:$A38)+2,FALSE) -> 415 | AA38: =HLOOKUP(AA$7,$J$67:$DK$121,ROWS($A$11:$A38)+2,FALSE) -> 224 | AB38: =HLOOKUP(AB$7,$J$67:$DK$121,ROWS($A$11:$A38)+2,FALSE) -> 367 | AC38: =HLOOKUP(AC$7,$J$67:$DK$121,ROWS($A$11:$A38)+2,FALSE) -> 0 | AD38: =HLOOKUP(AD$7,$J$67:$DK$121,ROWS($A$11:$A38)+2,FALSE) -> 225 | AE38: =HLOOKUP(AE$7,$J$67:$DK$121,ROWS($A$11:$A38)+2,FALSE) -> 33 | AF38: =HLOOKUP(AF$7,$J$67:$DK$121,ROWS($A$11:$A38)+2,FALSE) -> 97 | AG38: =HLOOKUP(AG$7,$J$67:$DK$121,ROWS($A$11:$A38)+2,FALSE) -> 822 | AH38: =HLOOKUP(AH$7,$J$67:$DK$121,ROWS($A$11:$A38)+2,FALSE) -> 481 | AI38: =HLOOKUP(AI$7,$J$67:$DK$121,ROWS($A$11:$A38)+2,FALSE) -> 32 | AJ38: =HLOOKUP(AJ$7,$J$67:$DK$121,ROWS($A$11:$A38)+2,FALSE) -> 447 | AK38: =HLOOKUP(AK$7,$J$67:$DK$121,ROWS($A$11:$A38)+2,FALSE) -> N/A | AL38: =HLOOKUP(AL$7,$J$67:$DK$121,ROWS($A$11:$A38)+2,FALSE) -> 108 | AM38: =HLOOKUP(AM$7,$J$67:$DK$121,ROWS($A$11:$A38)+2,FALSE) -> 968 | AN38: =HLOOKUP(AN$7,$J$67:$DK$121,ROWS($A$11:$A38)+2,FALSE) -> 115 | AO38: =HLOOKUP(AO$7,$J$67:$DK$121,ROWS($A$11:$A38)+2,FALSE) -> 156 | AP38: =HLOOKUP(AP$7,$J$67:$DK$121,ROWS($A$11:$A38)+2,FALSE) -> 259 | AQ38: =HLOOKUP(AQ$7,$J$67:$DK$121,ROWS($A$11:$A38)+2,FALSE) -> 482 | AR38: =HLOOKUP(AR$7,$J$67:$DK$121,ROWS($A$11:$A38)+2,FALSE) -> 1082 | AS38: =HLOOKUP(AS$7,$J$67:$DK$121,ROWS($A$11:$A38)+2,FALSE) -> 977 | AT38: =HLOOKUP(AT$7,$J$67:$DK$121,ROWS($A$11:$A38)+2,FALSE) -> 402 | AU38: =HLOOKUP(AU$7,$J$67:$DK$121,ROWS($A$11:$A38)+2,FALSE) -> 1018 | AV38: =HLOOKUP(AV$7,$J$67:$DK$121,ROWS($A$11:$A38)+2,FALSE) -> 2950 | AW38: =HLOOKUP(AW$7,$J$67:$DK$121,ROWS($A$11:$A38)+2,FALSE) -> 457 | AX38: =HLOOKUP(AX$7,$J$67:$DK$121,ROWS($A$11:$A38)+2,FALSE) -> 0 | AY38: =HLOOKUP(AY$7,$J$67:$DK$121,ROWS($A$11:$A38)+2,FALSE) -> 230 | AZ38: =HLOOKUP(AZ$7,$J$67:$DK$121,ROWS($A$11:$A38)+2,FALSE) -> 191 | BA38: =HLOOKUP(BA$7,$J$67:$DK$121,ROWS($A$11:$A38)+2,FALSE) -> 45 | BB38: =HLOOKUP(BB$7,$J$67:$DK$121,ROWS($A$11:$A38)+2,FALSE) -> 1393 | BC38: =HLOOKUP(BC$7,$J$67:$DK$121,ROWS($A$11:$A38)+2,FALSE) -> 260 | BD38: =HLOOKUP(BD$7,$J$67:$DK$121,ROWS($A$11:$A38)+2,FALSE) -> 87 | BE38: =HLOOKUP(BE$7,$J$67:$DK$121,ROWS($A$11:$A38)+2,FALSE) -> 156 | BF38: =HLOOKUP(BF$7,$J$67:$DK$121,ROWS($A$11:$A38)+2,FALSE) -> 4783 | BG38: =HLOOKUP(BG$7,$J$67:$DK$121,ROWS($A$11:$A38)+2,FALSE) -> 0 | BH38: =HLOOKUP(BH$7,$J$67:$DK$121,ROWS($A$11:$A38)+2,FALSE) -> 750 | BI38: =HLOOKUP(BI$7,$J$67:$DK$121,ROWS($A$11:$A38)+2,FALSE) -> 934 | BJ38: =HLOOKUP(BJ$7,$J$67:$DK$121,ROWS($A$11:$A38)+2,FALSE) -> 0 | BK38: =HLOOKUP(BK$7+0.5,$J$67:$DK$121,ROWS($A$11:$A38)+2,FALSE) -> 4305 | BL38: =HLOOKUP(BL$7+0.5,$J$67:$DK$121,ROWS($A$11:$A38)+2,FALSE) -> 55 | BM38: =HLOOKUP(BM$7+0.5,$J$67:$DK$121,ROWS($A$11:$A38)+2,FALSE) -> 442 | BN38: =HLOOKUP(BN$7+0.5,$J$67:$DK$121,ROWS($A$11:$A38)+2,FALSE) -> 938 | BO38: =HLOOKUP(BO$7+0.5,$J$67:$DK$121,ROWS($A$11:$A38)+2,FALSE) -> 102 | BP38: =HLOOKUP(BP$7+0.5,$J$67:$DK$121,ROWS($A$11:$A38)+2,FALSE) -> 2229 | BQ38: =HLOOKUP(BQ$7+0.5,$J$67:$DK$121,ROWS($A$11:$A38)+2,FALSE) -> 896 | BR38: =HLOOKUP(BR$7+0.5,$J$67:$DK$121,ROWS($A$11:$A38)+2,FALSE) -> 157 | BS38: =HLOOKUP(BS$7+0.5,$J$67:$DK$121,ROWS($A$11:$A38)+2,FALSE) -> 157 | BT38: =HLOOKUP(BT$7+0.5,$J$67:$DK$121,ROWS($A$11:$A38)+2,FALSE) -> 157 | BU38: =HLOOKUP(BU$7+0.5,$J$67:$DK$121,ROWS($A$11:$A38)+2,FALSE) -> 1029 | BV38: =HLOOKUP(BV$7+0.5,$J$67:$DK$121,ROWS($A$11:$A38)+2,FALSE) -> 270 | BW38: =HLOOKUP(BW$7+0.5,$J$67:$DK$121,ROWS($A$11:$A38)+2,FALSE) -> 572 | BX38: =HLOOKUP(BX$7+0.5,$J$67:$DK$121,ROWS($A$11:$A38)+2,FALSE) -> 1349 | BY38: =HLOOKUP(BY$7+0.5,$J$67:$DK$121,ROWS($A$11:$A38)+2,FALSE) -> 371 | BZ38: =HLOOKUP(BZ$7+0.5,$J$67:$DK$121,ROWS($A$11:$A38)+2,FALSE) -> 164 | CA38: =HLOOKUP(CA$7+0.5,$J$67:$DK$121,ROWS($A$11:$A38)+2,FALSE) -> 384 | CB38: =HLOOKUP(CB$7+0.5,$J$67:$DK$121,ROWS($A$11:$A38)+2,FALSE) -> 268 | CC38: =HLOOKUP(CC$7+0.5,$J$67:$DK$121,ROWS($A$11:$A38)+2,FALSE) -> 352 | CD38: =HLOOKUP(CD$7+0.5,$J$67:$DK$121,ROWS($A$11:$A38)+2,FALSE) -> 157 | CE38: =HLOOKUP(CE$7+0.5,$J$67:$DK$121,ROWS($A$11:$A38)+2,FALSE) -> 269 | CF38: =HLOOKUP(CF$7+0.5,$J$67:$DK$121,ROWS($A$11:$A38)+2,FALSE) -> 65 | CG38: =HLOOKUP(CG$7+0.5,$J$67:$DK$121,ROWS($A$11:$A38)+2,FALSE) -> 109 | CH38: =HLOOKUP(CH$7+0.5,$J$67:$DK$121,ROWS($A$11:$A38)+2,FALSE) -> 760 | CI38: =HLOOKUP(CI$7+0.5,$J$67:$DK$121,ROWS($A$11:$A38)+2,FALSE) -> 297 | CJ38: =HLOOKUP(CJ$7+0.5,$J$67:$DK$121,ROWS($A$11:$A38)+2,FALSE) -> 58 | CK38: =HLOOKUP(CK$7+0.5,$J$67:$DK$121,ROWS($A$11:$A38)+2,FALSE) -> 385 | CL38: =HLOOKUP(CL$7+0.5,$J$67:$DK$121,ROWS($A$11:$A38)+2,FALSE) -> N/A | CM38: =HLOOKUP(CM$7+0.5,$J$67:$DK$121,ROWS($A$11:$A38)+2,FALSE) -> 149 | CN38: =HLOOKUP(CN$7+0.5,$J$67:$DK$121,ROWS($A$11:$A38)+2,FALSE) -> 499 | CO38: =HLOOKUP(CO$7+0.5,$J$67:$DK$121,ROWS($A$11:$A38)+2,FALSE) -> 177 | CP38: =HLOOKUP(CP$7+0.5,$J$67:$DK$121,ROWS($A$11:$A38)+2,FALSE) -> 198 | CQ38: =HLOOKUP(CQ$7+0.5,$J$67:$DK$121,ROWS($A$11:$A38)+2,FALSE) -> 178 | CR38: =HLOOKUP(CR$7+0.5,$J$67:$DK$121,ROWS($A$11:$A38)+2,FALSE) -> 371 | CS38: =HLOOKUP(CS$7+0.5,$J$67:$DK$121,ROWS($A$11:$A38)+2,FALSE) -> 808 | CT38: =HLOOKUP(CT$7+0.5,$J$67:$DK$121,ROWS($A$11:$A38)+2,FALSE) -> 604 | CU38: =HLOOKUP(CU$7+0.5,$J$67:$DK$121,ROWS($A$11:$A38)+2,FALSE) -> 332 | CV38: =HLOOKUP(CV$7+0.5,$J$67:$DK$121,ROWS($A$11:$A38)+2,FALSE) -> 948 | CW38: =HLOOKUP(CW$7+0.5,$J$67:$DK$121,ROWS($A$11:$A38)+2,FALSE) -> 1687 | CX38: =HLOOKUP(CX$7+0.5,$J$67:$DK$121,ROWS($A$11:$A38)+2,FALSE) -> 362 | CY38: =HLOOKUP(CY$7+0.5,$J$67:$DK$121,ROWS($A$11:$A38)+2,FALSE) -> 157 | CZ38: =HLOOKUP(CZ$7+0.5,$J$67:$DK$121,ROWS($A$11:$A38)+2,FALSE) -> 304 | DA38: =HLOOKUP(DA$7+0.5,$J$67:$DK$121,ROWS($A$11:$A38)+2,FALSE) -> 142 | DB38: =HLOOKUP(DB$7+0.5,$J$67:$DK$121,ROWS($A$11:$A38)+2,FALSE) -> 40 | DC38: =HLOOKUP(DC$7+0.5,$J$67:$DK$121,ROWS($A$11:$A38)+2,FALSE) -> 612 | DD38: =HLOOKUP(DD$7+0.5,$J$67:$DK$121,ROWS($A$11:$A38)+2,FALSE) -> 261 | DE38: =HLOOKUP(DE$7+0.5,$J$67:$DK$121,ROWS($A$11:$A38)+2,FALSE) -> 135 | DF38: =HLOOKUP(DF$7+0.5,$J$67:$DK$121,ROWS($A$11:$A38)+2,FALSE) -> 153 | DG38: =HLOOKUP(DG$7+0.5,$J$67:$DK$121,ROWS($A$11:$A38)+2,FALSE) -> 1555 | DH38: =HLOOKUP(DH$7+0.5,$J$67:$DK$121,ROWS($A$11:$A38)+2,FALSE) -> 157 | DI38: =HLOOKUP(DI$7+0.5,$J$67:$DK$121,ROWS($A$11:$A38)+2,FALSE) -> 425 | DJ38: =HLOOKUP(DJ$7+0.5,$J$67:$DK$121,ROWS($A$11:$A38)+2,FALSE) -> 387 | DK38: =HLOOKUP(DK$7+0.5,$J$67:$DK$121,ROWS($A$11:$A38)+2,FALSE) -> 157
B39: Nebraska | C39: 1829420 | D39: 2101 | E39: 1540361 | F39: 9074 | G39: 237937 | H39: 9736 | I39: 0.006119361926 | J39: =HLOOKUP(J$7,$J$67:$DK$121,ROWS($A$11:$A39)+2,FALSE) -> 43266 | K39: =HLOOKUP(K$7,$J$67:$DK$121,ROWS($A$11:$A39)+2,FALSE) -> 245 | L39: =HLOOKUP(L$7,$J$67:$DK$121,ROWS($A$11:$A39)+2,FALSE) -> 626 | M39: =HLOOKUP(M$7,$J$67:$DK$121,ROWS($A$11:$A39)+2,FALSE) -> 2406 | N39: =HLOOKUP(N$7,$J$67:$DK$121,ROWS($A$11:$A39)+2,FALSE) -> 363 | O39: =HLOOKUP(O$7,$J$67:$DK$121,ROWS($A$11:$A39)+2,FALSE) -> 3438 | P39: =HLOOKUP(P$7,$J$67:$DK$121,ROWS($A$11:$A39)+2,FALSE) -> 2023 | Q39: =HLOOKUP(Q$7,$J$67:$DK$121,ROWS($A$11:$A39)+2,FALSE) -> 0 | R39: =HLOOKUP(R$7,$J$67:$DK$121,ROWS($A$11:$A39)+2,FALSE) -> 0 | S39: =HLOOKUP(S$7,$J$67:$DK$121,ROWS($A$11:$A39)+2,FALSE) -> 0 | T39: =HLOOKUP(T$7,$J$67:$DK$121,ROWS($A$11:$A39)+2,FALSE) -> 1368 | U39: =HLOOKUP(U$7,$J$67:$DK$121,ROWS($A$11:$A39)+2,FALSE) -> 786 | V39: =HLOOKUP(V$7,$J$67:$DK$121,ROWS($A$11:$A39)+2,FALSE) -> 165 | W39: =HLOOKUP(W$7,$J$67:$DK$121,ROWS($A$11:$A39)+2,FALSE) -> 315 | X39: =HLOOKUP(X$7,$J$67:$DK$121,ROWS($A$11:$A39)+2,FALSE) -> 1193 | Y39: =HLOOKUP(Y$7,$J$67:$DK$121,ROWS($A$11:$A39)+2,FALSE) -> 290 | Z39: =HLOOKUP(Z$7,$J$67:$DK$121,ROWS($A$11:$A39)+2,FALSE) -> 6815 | AA39: =HLOOKUP(AA$7,$J$67:$DK$121,ROWS($A$11:$A39)+2,FALSE) -> 3103 | AB39: =HLOOKUP(AB$7,$J$67:$DK$121,ROWS($A$11:$A39)+2,FALSE) -> 131 | AC39: =HLOOKUP(AC$7,$J$67:$DK$121,ROWS($A$11:$A39)+2,FALSE) -> 411 | AD39: =HLOOKUP(AD$7,$J$67:$DK$121,ROWS($A$11:$A39)+2,FALSE) -> 68 | AE39: =HLOOKUP(AE$7,$J$67:$DK$121,ROWS($A$11:$A39)+2,FALSE) -> 129 | AF39: =HLOOKUP(AF$7,$J$67:$DK$121,ROWS($A$11:$A39)+2,FALSE) -> 195 | AG39: =HLOOKUP(AG$7,$J$67:$DK$121,ROWS($A$11:$A39)+2,FALSE) -> 258 | AH39: =HLOOKUP(AH$7,$J$67:$DK$121,ROWS($A$11:$A39)+2,FALSE) -> 1489 | AI39: =HLOOKUP(AI$7,$J$67:$DK$121,ROWS($A$11:$A39)+2,FALSE) -> 176 | AJ39: =HLOOKUP(AJ$7,$J$67:$DK$121,ROWS($A$11:$A39)+2,FALSE) -> 2223 | AK39: =HLOOKUP(AK$7,$J$67:$DK$121,ROWS($A$11:$A39)+2,FALSE) -> 108 | AL39: =HLOOKUP(AL$7,$J$67:$DK$121,ROWS($A$11:$A39)+2,FALSE) -> N/A | AM39: =HLOOKUP(AM$7,$J$67:$DK$121,ROWS($A$11:$A39)+2,FALSE) -> 233 | AN39: =HLOOKUP(AN$7,$J$67:$DK$121,ROWS($A$11:$A39)+2,FALSE) -> 0 | AO39: =HLOOKUP(AO$7,$J$67:$DK$121,ROWS($A$11:$A39)+2,FALSE) -> 524 | AP39: =HLOOKUP(AP$7,$J$67:$DK$121,ROWS($A$11:$A39)+2,FALSE) -> 158 | AQ39: =HLOOKUP(AQ$7,$J$67:$DK$121,ROWS($A$11:$A39)+2,FALSE) -> 318 | AR39: =HLOOKUP(AR$7,$J$67:$DK$121,ROWS($A$11:$A39)+2,FALSE) -> 874 | AS39: =HLOOKUP(AS$7,$J$67:$DK$121,ROWS($A$11:$A39)+2,FALSE) -> 497 | AT39: =HLOOKUP(AT$7,$J$67:$DK$121,ROWS($A$11:$A39)+2,FALSE) -> 563 | AU39: =HLOOKUP(AU$7,$J$67:$DK$121,ROWS($A$11:$A39)+2,FALSE) -> 587 | AV39: =HLOOKUP(AV$7,$J$67:$DK$121,ROWS($A$11:$A39)+2,FALSE) -> 106 | AW39: =HLOOKUP(AW$7,$J$67:$DK$121,ROWS($A$11:$A39)+2,FALSE) -> 702 | AX39: =HLOOKUP(AX$7,$J$67:$DK$121,ROWS($A$11:$A39)+2,FALSE) -> 0 | AY39: =HLOOKUP(AY$7,$J$67:$DK$121,ROWS($A$11:$A39)+2,FALSE) -> 456 | AZ39: =HLOOKUP(AZ$7,$J$67:$DK$121,ROWS($A$11:$A39)+2,FALSE) -> 2507 | BA39: =HLOOKUP(BA$7,$J$67:$DK$121,ROWS($A$11:$A39)+2,FALSE) -> 232 | BB39: =HLOOKUP(BB$7,$J$67:$DK$121,ROWS($A$11:$A39)+2,FALSE) -> 3130 | BC39: =HLOOKUP(BC$7,$J$67:$DK$121,ROWS($A$11:$A39)+2,FALSE) -> 229 | BD39: =HLOOKUP(BD$7,$J$67:$DK$121,ROWS($A$11:$A39)+2,FALSE) -> 79 | BE39: =HLOOKUP(BE$7,$J$67:$DK$121,ROWS($A$11:$A39)+2,FALSE) -> 1076 | BF39: =HLOOKUP(BF$7,$J$67:$DK$121,ROWS($A$11:$A39)+2,FALSE) -> 1327 | BG39: =HLOOKUP(BG$7,$J$67:$DK$121,ROWS($A$11:$A39)+2,FALSE) -> 111 | BH39: =HLOOKUP(BH$7,$J$67:$DK$121,ROWS($A$11:$A39)+2,FALSE) -> 316 | BI39: =HLOOKUP(BI$7,$J$67:$DK$121,ROWS($A$11:$A39)+2,FALSE) -> 917 | BJ39: =HLOOKUP(BJ$7,$J$67:$DK$121,ROWS($A$11:$A39)+2,FALSE) -> 0 | BK39: =HLOOKUP(BK$7+0.5,$J$67:$DK$121,ROWS($A$11:$A39)+2,FALSE) -> 4512 | BL39: =HLOOKUP(BL$7+0.5,$J$67:$DK$121,ROWS($A$11:$A39)+2,FALSE) -> 275 | BM39: =HLOOKUP(BM$7+0.5,$J$67:$DK$121,ROWS($A$11:$A39)+2,FALSE) -> 531 | BN39: =HLOOKUP(BN$7+0.5,$J$67:$DK$121,ROWS($A$11:$A39)+2,FALSE) -> 1120 | BO39: =HLOOKUP(BO$7+0.5,$J$67:$DK$121,ROWS($A$11:$A39)+2,FALSE) -> 317 | BP39: =HLOOKUP(BP$7+0.5,$J$67:$DK$121,ROWS($A$11:$A39)+2,FALSE) -> 1425 | BQ39: =HLOOKUP(BQ$7+0.5,$J$67:$DK$121,ROWS($A$11:$A39)+2,FALSE) -> 791 | BR39: =HLOOKUP(BR$7+0.5,$J$67:$DK$121,ROWS($A$11:$A39)+2,FALSE) -> 149 | BS39: =HLOOKUP(BS$7+0.5,$J$67:$DK$121,ROWS($A$11:$A39)+2,FALSE) -> 149 | BT39: =HLOOKUP(BT$7+0.5,$J$67:$DK$121,ROWS($A$11:$A39)+2,FALSE) -> 149 | BU39: =HLOOKUP(BU$7+0.5,$J$67:$DK$121,ROWS($A$11:$A39)+2,FALSE) -> 978 | BV39: =HLOOKUP(BV$7+0.5,$J$67:$DK$121,ROWS($A$11:$A39)+2,FALSE) -> 482 | BW39: =HLOOKUP(BW$7+0.5,$J$67:$DK$121,ROWS($A$11:$A39)+2,FALSE) -> 149 | BX39: =HLOOKUP(BX$7+0.5,$J$67:$DK$121,ROWS($A$11:$A39)+2,FALSE) -> 374 | BY39: =HLOOKUP(BY$7+0.5,$J$67:$DK$121,ROWS($A$11:$A39)+2,FALSE) -> 546 | BZ39: =HLOOKUP(BZ$7+0.5,$J$67:$DK$121,ROWS($A$11:$A39)+2,FALSE) -> 214 | CA39: =HLOOKUP(CA$7+0.5,$J$67:$DK$121,ROWS($A$11:$A39)+2,FALSE) -> 2803 | CB39: =HLOOKUP(CB$7+0.5,$J$67:$DK$121,ROWS($A$11:$A39)+2,FALSE) -> 822 | CC39: =HLOOKUP(CC$7+0.5,$J$67:$DK$121,ROWS($A$11:$A39)+2,FALSE) -> 133 | CD39: =HLOOKUP(CD$7+0.5,$J$67:$DK$121,ROWS($A$11:$A39)+2,FALSE) -> 371 | CE39: =HLOOKUP(CE$7+0.5,$J$67:$DK$121,ROWS($A$11:$A39)+2,FALSE) -> 90 | CF39: =HLOOKUP(CF$7+0.5,$J$67:$DK$121,ROWS($A$11:$A39)+2,FALSE) -> 126 | CG39: =HLOOKUP(CG$7+0.5,$J$67:$DK$121,ROWS($A$11:$A39)+2,FALSE) -> 112 | CH39: =HLOOKUP(CH$7+0.5,$J$67:$DK$121,ROWS($A$11:$A39)+2,FALSE) -> 197 | CI39: =HLOOKUP(CI$7+0.5,$J$67:$DK$121,ROWS($A$11:$A39)+2,FALSE) -> 1049 | CJ39: =HLOOKUP(CJ$7+0.5,$J$67:$DK$121,ROWS($A$11:$A39)+2,FALSE) -> 132 | CK39: =HLOOKUP(CK$7+0.5,$J$67:$DK$121,ROWS($A$11:$A39)+2,FALSE) -> 836 | CL39: =HLOOKUP(CL$7+0.5,$J$67:$DK$121,ROWS($A$11:$A39)+2,FALSE) -> 156 | CM39: =HLOOKUP(CM$7+0.5,$J$67:$DK$121,ROWS($A$11:$A39)+2,FALSE) -> N/A | CN39: =HLOOKUP(CN$7+0.5,$J$67:$DK$121,ROWS($A$11:$A39)+2,FALSE) -> 178 | CO39: =HLOOKUP(CO$7+0.5,$J$67:$DK$121,ROWS($A$11:$A39)+2,FALSE) -> 149 | CP39: =HLOOKUP(CP$7+0.5,$J$67:$DK$121,ROWS($A$11:$A39)+2,FALSE) -> 363 | CQ39: =HLOOKUP(CQ$7+0.5,$J$67:$DK$121,ROWS($A$11:$A39)+2,FALSE) -> 187 | CR39: =HLOOKUP(CR$7+0.5,$J$67:$DK$121,ROWS($A$11:$A39)+2,FALSE) -> 246 | CS39: =HLOOKUP(CS$7+0.5,$J$67:$DK$121,ROWS($A$11:$A39)+2,FALSE) -> 414 | CT39: =HLOOKUP(CT$7+0.5,$J$67:$DK$121,ROWS($A$11:$A39)+2,FALSE) -> 492 | CU39: =HLOOKUP(CU$7+0.5,$J$67:$DK$121,ROWS($A$11:$A39)+2,FALSE) -> 373 | CV39: =HLOOKUP(CV$7+0.5,$J$67:$DK$121,ROWS($A$11:$A39)+2,FALSE) -> 408 | CW39: =HLOOKUP(CW$7+0.5,$J$67:$DK$121,ROWS($A$11:$A39)+2,FALSE) -> 113 | CX39: =HLOOKUP(CX$7+0.5,$J$67:$DK$121,ROWS($A$11:$A39)+2,FALSE) -> 528 | CY39: =HLOOKUP(CY$7+0.5,$J$67:$DK$121,ROWS($A$11:$A39)+2,FALSE) -> 149 | CZ39: =HLOOKUP(CZ$7+0.5,$J$67:$DK$121,ROWS($A$11:$A39)+2,FALSE) -> 381 | DA39: =HLOOKUP(DA$7+0.5,$J$67:$DK$121,ROWS($A$11:$A39)+2,FALSE) -> 677 | DB39: =HLOOKUP(DB$7+0.5,$J$67:$DK$121,ROWS($A$11:$A39)+2,FALSE) -> 184 | DC39: =HLOOKUP(DC$7+0.5,$J$67:$DK$121,ROWS($A$11:$A39)+2,FALSE) -> 1218 | DD39: =HLOOKUP(DD$7+0.5,$J$67:$DK$121,ROWS($A$11:$A39)+2,FALSE) -> 230 | DE39: =HLOOKUP(DE$7+0.5,$J$67:$DK$121,ROWS($A$11:$A39)+2,FALSE) -> 131 | DF39: =HLOOKUP(DF$7+0.5,$J$67:$DK$121,ROWS($A$11:$A39)+2,FALSE) -> 758 | DG39: =HLOOKUP(DG$7+0.5,$J$67:$DK$121,ROWS($A$11:$A39)+2,FALSE) -> 673 | DH39: =HLOOKUP(DH$7+0.5,$J$67:$DK$121,ROWS($A$11:$A39)+2,FALSE) -> 152 | DI39: =HLOOKUP(DI$7+0.5,$J$67:$DK$121,ROWS($A$11:$A39)+2,FALSE) -> 218 | DJ39: =HLOOKUP(DJ$7+0.5,$J$67:$DK$121,ROWS($A$11:$A39)+2,FALSE) -> 371 | DK39: =HLOOKUP(DK$7+0.5,$J$67:$DK$121,ROWS($A$11:$A39)+2,FALSE) -> 149
B40: Nevada | C40: 2725280 | D40: 3005 | E40: 2105070 | F40: 21984 | G40: 481496 | H40: 19389 | I40: 0.01757835014 | J40: =HLOOKUP(J$7,$J$67:$DK$121,ROWS($A$11:$A40)+2,FALSE) -> 124285 | K40: =HLOOKUP(K$7,$J$67:$DK$121,ROWS($A$11:$A40)+2,FALSE) -> 761 | L40: =HLOOKUP(L$7,$J$67:$DK$121,ROWS($A$11:$A40)+2,FALSE) -> 2161 | M40: =HLOOKUP(M$7,$J$67:$DK$121,ROWS($A$11:$A40)+2,FALSE) -> 8748 | N40: =HLOOKUP(N$7,$J$67:$DK$121,ROWS($A$11:$A40)+2,FALSE) -> 353 | O40: =HLOOKUP(O$7,$J$67:$DK$121,ROWS($A$11:$A40)+2,FALSE) -> 49978 | P40: =HLOOKUP(P$7,$J$67:$DK$121,ROWS($A$11:$A40)+2,FALSE) -> 6402 | Q40: =HLOOKUP(Q$7,$J$67:$DK$121,ROWS($A$11:$A40)+2,FALSE) -> 143 | R40: =HLOOKUP(R$7,$J$67:$DK$121,ROWS($A$11:$A40)+2,FALSE) -> 373 | S40: =HLOOKUP(S$7,$J$67:$DK$121,ROWS($A$11:$A40)+2,FALSE) -> 468 | T40: =HLOOKUP(T$7,$J$67:$DK$121,ROWS($A$11:$A40)+2,FALSE) -> 3381 | U40: =HLOOKUP(U$7,$J$67:$DK$121,ROWS($A$11:$A40)+2,FALSE) -> 745 | V40: =HLOOKUP(V$7,$J$67:$DK$121,ROWS($A$11:$A40)+2,FALSE) -> 2053 | W40: =HLOOKUP(W$7,$J$67:$DK$121,ROWS($A$11:$A40)+2,FALSE) -> 1503 | X40: =HLOOKUP(X$7,$J$67:$DK$121,ROWS($A$11:$A40)+2,FALSE) -> 2822 | Y40: =HLOOKUP(Y$7,$J$67:$DK$121,ROWS($A$11:$A40)+2,FALSE) -> 362 | Z40: =HLOOKUP(Z$7,$J$67:$DK$121,ROWS($A$11:$A40)+2,FALSE) -> 714 | AA40: =HLOOKUP(AA$7,$J$67:$DK$121,ROWS($A$11:$A40)+2,FALSE) -> 1202 | AB40: =HLOOKUP(AB$7,$J$67:$DK$121,ROWS($A$11:$A40)+2,FALSE) -> 952 | AC40: =HLOOKUP(AC$7,$J$67:$DK$121,ROWS($A$11:$A40)+2,FALSE) -> 421 | AD40: =HLOOKUP(AD$7,$J$67:$DK$121,ROWS($A$11:$A40)+2,FALSE) -> 209 | AE40: =HLOOKUP(AE$7,$J$67:$DK$121,ROWS($A$11:$A40)+2,FALSE) -> 934 | AF40: =HLOOKUP(AF$7,$J$67:$DK$121,ROWS($A$11:$A40)+2,FALSE) -> 318 | AG40: =HLOOKUP(AG$7,$J$67:$DK$121,ROWS($A$11:$A40)+2,FALSE) -> 1235 | AH40: =HLOOKUP(AH$7,$J$67:$DK$121,ROWS($A$11:$A40)+2,FALSE) -> 1157 | AI40: =HLOOKUP(AI$7,$J$67:$DK$121,ROWS($A$11:$A40)+2,FALSE) -> 783 | AJ40: =HLOOKUP(AJ$7,$J$67:$DK$121,ROWS($A$11:$A40)+2,FALSE) -> 694 | AK40: =HLOOKUP(AK$7,$J$67:$DK$121,ROWS($A$11:$A40)+2,FALSE) -> 1086 | AL40: =HLOOKUP(AL$7,$J$67:$DK$121,ROWS($A$11:$A40)+2,FALSE) -> 714 | AM40: =HLOOKUP(AM$7,$J$67:$DK$121,ROWS($A$11:$A40)+2,FALSE) -> N/A | AN40: =HLOOKUP(AN$7,$J$67:$DK$121,ROWS($A$11:$A40)+2,FALSE) -> 175 | AO40: =HLOOKUP(AO$7,$J$67:$DK$121,ROWS($A$11:$A40)+2,FALSE) -> 912 | AP40: =HLOOKUP(AP$7,$J$67:$DK$121,ROWS($A$11:$A40)+2,FALSE) -> 1138 | AQ40: =HLOOKUP(AQ$7,$J$67:$DK$121,ROWS($A$11:$A40)+2,FALSE) -> 3521 | AR40: =HLOOKUP(AR$7,$J$67:$DK$121,ROWS($A$11:$A40)+2,FALSE) -> 767 | AS40: =HLOOKUP(AS$7,$J$67:$DK$121,ROWS($A$11:$A40)+2,FALSE) -> 702 | AT40: =HLOOKUP(AT$7,$J$67:$DK$121,ROWS($A$11:$A40)+2,FALSE) -> 1407 | AU40: =HLOOKUP(AU$7,$J$67:$DK$121,ROWS($A$11:$A40)+2,FALSE) -> 1520 | AV40: =HLOOKUP(AV$7,$J$67:$DK$121,ROWS($A$11:$A40)+2,FALSE) -> 3101 | AW40: =HLOOKUP(AW$7,$J$67:$DK$121,ROWS($A$11:$A40)+2,FALSE) -> 1601 | AX40: =HLOOKUP(AX$7,$J$67:$DK$121,ROWS($A$11:$A40)+2,FALSE) -> 336 | AY40: =HLOOKUP(AY$7,$J$67:$DK$121,ROWS($A$11:$A40)+2,FALSE) -> 480 | AZ40: =HLOOKUP(AZ$7,$J$67:$DK$121,ROWS($A$11:$A40)+2,FALSE) -> 0 | BA40: =HLOOKUP(BA$7,$J$67:$DK$121,ROWS($A$11:$A40)+2,FALSE) -> 1699 | BB40: =HLOOKUP(BB$7,$J$67:$DK$121,ROWS($A$11:$A40)+2,FALSE) -> 5484 | BC40: =HLOOKUP(BC$7,$J$67:$DK$121,ROWS($A$11:$A40)+2,FALSE) -> 4605 | BD40: =HLOOKUP(BD$7,$J$67:$DK$121,ROWS($A$11:$A40)+2,FALSE) -> 121 | BE40: =HLOOKUP(BE$7,$J$67:$DK$121,ROWS($A$11:$A40)+2,FALSE) -> 1135 | BF40: =HLOOKUP(BF$7,$J$67:$DK$121,ROWS($A$11:$A40)+2,FALSE) -> 2997 | BG40: =HLOOKUP(BG$7,$J$67:$DK$121,ROWS($A$11:$A40)+2,FALSE) -> 100 | BH40: =HLOOKUP(BH$7,$J$67:$DK$121,ROWS($A$11:$A40)+2,FALSE) -> 1046 | BI40: =HLOOKUP(BI$7,$J$67:$DK$121,ROWS($A$11:$A40)+2,FALSE) -> 766 | BJ40: =HLOOKUP(BJ$7,$J$67:$DK$121,ROWS($A$11:$A40)+2,FALSE) -> 237 | BK40: =HLOOKUP(BK$7+0.5,$J$67:$DK$121,ROWS($A$11:$A40)+2,FALSE) -> 9956 | BL40: =HLOOKUP(BL$7+0.5,$J$67:$DK$121,ROWS($A$11:$A40)+2,FALSE) -> 724 | BM40: =HLOOKUP(BM$7+0.5,$J$67:$DK$121,ROWS($A$11:$A40)+2,FALSE) -> 1047 | BN40: =HLOOKUP(BN$7+0.5,$J$67:$DK$121,ROWS($A$11:$A40)+2,FALSE) -> 2540 | BO40: =HLOOKUP(BO$7+0.5,$J$67:$DK$121,ROWS($A$11:$A40)+2,FALSE) -> 404 | BP40: =HLOOKUP(BP$7+0.5,$J$67:$DK$121,ROWS($A$11:$A40)+2,FALSE) -> 7637 | BQ40: =HLOOKUP(BQ$7+0.5,$J$67:$DK$121,ROWS($A$11:$A40)+2,FALSE) -> 2736 | BR40: =HLOOKUP(BR$7+0.5,$J$67:$DK$121,ROWS($A$11:$A40)+2,FALSE) -> 181 | BS40: =HLOOKUP(BS$7+0.5,$J$67:$DK$121,ROWS($A$11:$A40)+2,FALSE) -> 521 | BT40: =HLOOKUP(BT$7+0.5,$J$67:$DK$121,ROWS($A$11:$A40)+2,FALSE) -> 759 | BU40: =HLOOKUP(BU$7+0.5,$J$67:$DK$121,ROWS($A$11:$A40)+2,FALSE) -> 1488 | BV40: =HLOOKUP(BV$7+0.5,$J$67:$DK$121,ROWS($A$11:$A40)+2,FALSE) -> 477 | BW40: =HLOOKUP(BW$7+0.5,$J$67:$DK$121,ROWS($A$11:$A40)+2,FALSE) -> 949 | BX40: =HLOOKUP(BX$7+0.5,$J$67:$DK$121,ROWS($A$11:$A40)+2,FALSE) -> 743 | BY40: =HLOOKUP(BY$7+0.5,$J$67:$DK$121,ROWS($A$11:$A40)+2,FALSE) -> 1412 | BZ40: =HLOOKUP(BZ$7+0.5,$J$67:$DK$121,ROWS($A$11:$A40)+2,FALSE) -> 341 | CA40: =HLOOKUP(CA$7+0.5,$J$67:$DK$121,ROWS($A$11:$A40)+2,FALSE) -> 592 | CB40: =HLOOKUP(CB$7+0.5,$J$67:$DK$121,ROWS($A$11:$A40)+2,FALSE) -> 1085 | CC40: =HLOOKUP(CC$7+0.5,$J$67:$DK$121,ROWS($A$11:$A40)+2,FALSE) -> 651 | CD40: =HLOOKUP(CD$7+0.5,$J$67:$DK$121,ROWS($A$11:$A40)+2,FALSE) -> 296 | CE40: =HLOOKUP(CE$7+0.5,$J$67:$DK$121,ROWS($A$11:$A40)+2,FALSE) -> 286 | CF40: =HLOOKUP(CF$7+0.5,$J$67:$DK$121,ROWS($A$11:$A40)+2,FALSE) -> 689 | CG40: =HLOOKUP(CG$7+0.5,$J$67:$DK$121,ROWS($A$11:$A40)+2,FALSE) -> 267 | CH40: =HLOOKUP(CH$7+0.5,$J$67:$DK$121,ROWS($A$11:$A40)+2,FALSE) -> 574 | CI40: =HLOOKUP(CI$7+0.5,$J$67:$DK$121,ROWS($A$11:$A40)+2,FALSE) -> 718 | CJ40: =HLOOKUP(CJ$7+0.5,$J$67:$DK$121,ROWS($A$11:$A40)+2,FALSE) -> 658 | CK40: =HLOOKUP(CK$7+0.5,$J$67:$DK$121,ROWS($A$11:$A40)+2,FALSE) -> 516 | CL40: =HLOOKUP(CL$7+0.5,$J$67:$DK$121,ROWS($A$11:$A40)+2,FALSE) -> 605 | CM40: =HLOOKUP(CM$7+0.5,$J$67:$DK$121,ROWS($A$11:$A40)+2,FALSE) -> 551 | CN40: =HLOOKUP(CN$7+0.5,$J$67:$DK$121,ROWS($A$11:$A40)+2,FALSE) -> N/A | CO40: =HLOOKUP(CO$7+0.5,$J$67:$DK$121,ROWS($A$11:$A40)+2,FALSE) -> 230 | CP40: =HLOOKUP(CP$7+0.5,$J$67:$DK$121,ROWS($A$11:$A40)+2,FALSE) -> 600 | CQ40: =HLOOKUP(CQ$7+0.5,$J$67:$DK$121,ROWS($A$11:$A40)+2,FALSE) -> 665 | CR40: =HLOOKUP(CR$7+0.5,$J$67:$DK$121,ROWS($A$11:$A40)+2,FALSE) -> 1460 | CS40: =HLOOKUP(CS$7+0.5,$J$67:$DK$121,ROWS($A$11:$A40)+2,FALSE) -> 589 | CT40: =HLOOKUP(CT$7+0.5,$J$67:$DK$121,ROWS($A$11:$A40)+2,FALSE) -> 661 | CU40: =HLOOKUP(CU$7+0.5,$J$67:$DK$121,ROWS($A$11:$A40)+2,FALSE) -> 791 | CV40: =HLOOKUP(CV$7+0.5,$J$67:$DK$121,ROWS($A$11:$A40)+2,FALSE) -> 1384 | CW40: =HLOOKUP(CW$7+0.5,$J$67:$DK$121,ROWS($A$11:$A40)+2,FALSE) -> 1186 | CX40: =HLOOKUP(CX$7+0.5,$J$67:$DK$121,ROWS($A$11:$A40)+2,FALSE) -> 1078 | CY40: =HLOOKUP(CY$7+0.5,$J$67:$DK$121,ROWS($A$11:$A40)+2,FALSE) -> 548 | CZ40: =HLOOKUP(CZ$7+0.5,$J$67:$DK$121,ROWS($A$11:$A40)+2,FALSE) -> 403 | DA40: =HLOOKUP(DA$7+0.5,$J$67:$DK$121,ROWS($A$11:$A40)+2,FALSE) -> 200 | DB40: =HLOOKUP(DB$7+0.5,$J$67:$DK$121,ROWS($A$11:$A40)+2,FALSE) -> 822 | DC40: =HLOOKUP(DC$7+0.5,$J$67:$DK$121,ROWS($A$11:$A40)+2,FALSE) -> 1772 | DD40: =HLOOKUP(DD$7+0.5,$J$67:$DK$121,ROWS($A$11:$A40)+2,FALSE) -> 1899 | DE40: =HLOOKUP(DE$7+0.5,$J$67:$DK$121,ROWS($A$11:$A40)+2,FALSE) -> 222 | DF40: =HLOOKUP(DF$7+0.5,$J$67:$DK$121,ROWS($A$11:$A40)+2,FALSE) -> 832 | DG40: =HLOOKUP(DG$7+0.5,$J$67:$DK$121,ROWS($A$11:$A40)+2,FALSE) -> 1103 | DH40: =HLOOKUP(DH$7+0.5,$J$67:$DK$121,ROWS($A$11:$A40)+2,FALSE) -> 161 | DI40: =HLOOKUP(DI$7+0.5,$J$67:$DK$121,ROWS($A$11:$A40)+2,FALSE) -> 666 | DJ40: =HLOOKUP(DJ$7+0.5,$J$67:$DK$121,ROWS($A$11:$A40)+2,FALSE) -> 706 | DK40: =HLOOKUP(DK$7+0.5,$J$67:$DK$121,ROWS($A$11:$A40)+2,FALSE) -> 356
B41: New Hampshire | C41: 1309203 | D41: 1504 | E41: 1127376 | F41: 9730 | G41: 125118 | H41: 9101 | I41: 0.007140245632 | J41: =HLOOKUP(J$7,$J$67:$DK$121,ROWS($A$11:$A41)+2,FALSE) -> 50484 | K41: =HLOOKUP(K$7,$J$67:$DK$121,ROWS($A$11:$A41)+2,FALSE) -> 0 | L41: =HLOOKUP(L$7,$J$67:$DK$121,ROWS($A$11:$A41)+2,FALSE) -> 437 | M41: =HLOOKUP(M$7,$J$67:$DK$121,ROWS($A$11:$A41)+2,FALSE) -> 440 | N41: =HLOOKUP(N$7,$J$67:$DK$121,ROWS($A$11:$A41)+2,FALSE) -> 0 | O41: =HLOOKUP(O$7,$J$67:$DK$121,ROWS($A$11:$A41)+2,FALSE) -> 1514 | P41: =HLOOKUP(P$7,$J$67:$DK$121,ROWS($A$11:$A41)+2,FALSE) -> 572 | Q41: =HLOOKUP(Q$7,$J$67:$DK$121,ROWS($A$11:$A41)+2,FALSE) -> 1345 | R41: =HLOOKUP(R$7,$J$67:$DK$121,ROWS($A$11:$A41)+2,FALSE) -> 0 | S41: =HLOOKUP(S$7,$J$67:$DK$121,ROWS($A$11:$A41)+2,FALSE) -> 101 | T41: =HLOOKUP(T$7,$J$67:$DK$121,ROWS($A$11:$A41)+2,FALSE) -> 2746 | U41: =HLOOKUP(U$7,$J$67:$DK$121,ROWS($A$11:$A41)+2,FALSE) -> 470 | V41: =HLOOKUP(V$7,$J$67:$DK$121,ROWS($A$11:$A41)+2,FALSE) -> 43 | W41: =HLOOKUP(W$7,$J$67:$DK$121,ROWS($A$11:$A41)+2,FALSE) -> 20 | X41: =HLOOKUP(X$7,$J$67:$DK$121,ROWS($A$11:$A41)+2,FALSE) -> 673 | Y41: =HLOOKUP(Y$7,$J$67:$DK$121,ROWS($A$11:$A41)+2,FALSE) -> 297 | Z41: =HLOOKUP(Z$7,$J$67:$DK$121,ROWS($A$11:$A41)+2,FALSE) -> 53 | AA41: =HLOOKUP(AA$7,$J$67:$DK$121,ROWS($A$11:$A41)+2,FALSE) -> 102 | AB41: =HLOOKUP(AB$7,$J$67:$DK$121,ROWS($A$11:$A41)+2,FALSE) -> 284 | AC41: =HLOOKUP(AC$7,$J$67:$DK$121,ROWS($A$11:$A41)+2,FALSE) -> 7 | AD41: =HLOOKUP(AD$7,$J$67:$DK$121,ROWS($A$11:$A41)+2,FALSE) -> 6118 | AE41: =HLOOKUP(AE$7,$J$67:$DK$121,ROWS($A$11:$A41)+2,FALSE) -> 33 | AF41: =HLOOKUP(AF$7,$J$67:$DK$121,ROWS($A$11:$A41)+2,FALSE) -> 18990 | AG41: =HLOOKUP(AG$7,$J$67:$DK$121,ROWS($A$11:$A41)+2,FALSE) -> 426 | AH41: =HLOOKUP(AH$7,$J$67:$DK$121,ROWS($A$11:$A41)+2,FALSE) -> 0 | AI41: =HLOOKUP(AI$7,$J$67:$DK$121,ROWS($A$11:$A41)+2,FALSE) -> 0 | AJ41: =HLOOKUP(AJ$7,$J$67:$DK$121,ROWS($A$11:$A41)+2,FALSE) -> 289 | AK41: =HLOOKUP(AK$7,$J$67:$DK$121,ROWS($A$11:$A41)+2,FALSE) -> 0 | AL41: =HLOOKUP(AL$7,$J$67:$DK$121,ROWS($A$11:$A41)+2,FALSE) -> 110 | AM41: =HLOOKUP(AM$7,$J$67:$DK$121,ROWS($A$11:$A41)+2,FALSE) -> 0 | AN41: =HLOOKUP(AN$7,$J$67:$DK$121,ROWS($A$11:$A41)+2,FALSE) -> N/A | AO41: =HLOOKUP(AO$7,$J$67:$DK$121,ROWS($A$11:$A41)+2,FALSE) -> 591 | AP41: =HLOOKUP(AP$7,$J$67:$DK$121,ROWS($A$11:$A41)+2,FALSE) -> 223 | AQ41: =HLOOKUP(AQ$7,$J$67:$DK$121,ROWS($A$11:$A41)+2,FALSE) -> 2905 | AR41: =HLOOKUP(AR$7,$J$67:$DK$121,ROWS($A$11:$A41)+2,FALSE) -> 1609 | AS41: =HLOOKUP(AS$7,$J$67:$DK$121,ROWS($A$11:$A41)+2,FALSE) -> 0 | AT41: =HLOOKUP(AT$7,$J$67:$DK$121,ROWS($A$11:$A41)+2,FALSE) -> 324 | AU41: =HLOOKUP(AU$7,$J$67:$DK$121,ROWS($A$11:$A41)+2,FALSE) -> 186 | AV41: =HLOOKUP(AV$7,$J$67:$DK$121,ROWS($A$11:$A41)+2,FALSE) -> 208 | AW41: =HLOOKUP(AW$7,$J$67:$DK$121,ROWS($A$11:$A41)+2,FALSE) -> 890 | AX41: =HLOOKUP(AX$7,$J$67:$DK$121,ROWS($A$11:$A41)+2,FALSE) -> 1248 | AY41: =HLOOKUP(AY$7,$J$67:$DK$121,ROWS($A$11:$A41)+2,FALSE) -> 323 | AZ41: =HLOOKUP(AZ$7,$J$67:$DK$121,ROWS($A$11:$A41)+2,FALSE) -> 0 | BA41: =HLOOKUP(BA$7,$J$67:$DK$121,ROWS($A$11:$A41)+2,FALSE) -> 77 | BB41: =HLOOKUP(BB$7,$J$67:$DK$121,ROWS($A$11:$A41)+2,FALSE) -> 2150 | BC41: =HLOOKUP(BC$7,$J$67:$DK$121,ROWS($A$11:$A41)+2,FALSE) -> 557 | BD41: =HLOOKUP(BD$7,$J$67:$DK$121,ROWS($A$11:$A41)+2,FALSE) -> 2960 | BE41: =HLOOKUP(BE$7,$J$67:$DK$121,ROWS($A$11:$A41)+2,FALSE) -> 660 | BF41: =HLOOKUP(BF$7,$J$67:$DK$121,ROWS($A$11:$A41)+2,FALSE) -> 113 | BG41: =HLOOKUP(BG$7,$J$67:$DK$121,ROWS($A$11:$A41)+2,FALSE) -> 80 | BH41: =HLOOKUP(BH$7,$J$67:$DK$121,ROWS($A$11:$A41)+2,FALSE) -> 239 | BI41: =HLOOKUP(BI$7,$J$67:$DK$121,ROWS($A$11:$A41)+2,FALSE) -> 71 | BJ41: =HLOOKUP(BJ$7,$J$67:$DK$121,ROWS($A$11:$A41)+2,FALSE) -> 75 | BK41: =HLOOKUP(BK$7+0.5,$J$67:$DK$121,ROWS($A$11:$A41)+2,FALSE) -> 5282 | BL41: =HLOOKUP(BL$7+0.5,$J$67:$DK$121,ROWS($A$11:$A41)+2,FALSE) -> 181 | BM41: =HLOOKUP(BM$7+0.5,$J$67:$DK$121,ROWS($A$11:$A41)+2,FALSE) -> 378 | BN41: =HLOOKUP(BN$7+0.5,$J$67:$DK$121,ROWS($A$11:$A41)+2,FALSE) -> 413 | BO41: =HLOOKUP(BO$7+0.5,$J$67:$DK$121,ROWS($A$11:$A41)+2,FALSE) -> 181 | BP41: =HLOOKUP(BP$7+0.5,$J$67:$DK$121,ROWS($A$11:$A41)+2,FALSE) -> 935 | BQ41: =HLOOKUP(BQ$7+0.5,$J$67:$DK$121,ROWS($A$11:$A41)+2,FALSE) -> 637 | BR41: =HLOOKUP(BR$7+0.5,$J$67:$DK$121,ROWS($A$11:$A41)+2,FALSE) -> 478 | BS41: =HLOOKUP(BS$7+0.5,$J$67:$DK$121,ROWS($A$11:$A41)+2,FALSE) -> 181 | BT41: =HLOOKUP(BT$7+0.5,$J$67:$DK$121,ROWS($A$11:$A41)+2,FALSE) -> 131 | BU41: =HLOOKUP(BU$7+0.5,$J$67:$DK$121,ROWS($A$11:$A41)+2,FALSE) -> 1312 | BV41: =HLOOKUP(BV$7+0.5,$J$67:$DK$121,ROWS($A$11:$A41)+2,FALSE) -> 324 | BW41: =HLOOKUP(BW$7+0.5,$J$67:$DK$121,ROWS($A$11:$A41)+2,FALSE) -> 78 | BX41: =HLOOKUP(BX$7+0.5,$J$67:$DK$121,ROWS($A$11:$A41)+2,FALSE) -> 38 | BY41: =HLOOKUP(BY$7+0.5,$J$67:$DK$121,ROWS($A$11:$A41)+2,FALSE) -> 608 | BZ41: =HLOOKUP(BZ$7+0.5,$J$67:$DK$121,ROWS($A$11:$A41)+2,FALSE) -> 365 | CA41: =HLOOKUP(CA$7+0.5,$J$67:$DK$121,ROWS($A$11:$A41)+2,FALSE) -> 89 | CB41: =HLOOKUP(CB$7+0.5,$J$67:$DK$121,ROWS($A$11:$A41)+2,FALSE) -> 161 | CC41: =HLOOKUP(CC$7+0.5,$J$67:$DK$121,ROWS($A$11:$A41)+2,FALSE) -> 250 | CD41: =HLOOKUP(CD$7+0.5,$J$67:$DK$121,ROWS($A$11:$A41)+2,FALSE) -> 13 | CE41: =HLOOKUP(CE$7+0.5,$J$67:$DK$121,ROWS($A$11:$A41)+2,FALSE) -> 1749 | CF41: =HLOOKUP(CF$7+0.5,$J$67:$DK$121,ROWS($A$11:$A41)+2,FALSE) -> 57 | CG41: =HLOOKUP(CG$7+0.5,$J$67:$DK$121,ROWS($A$11:$A41)+2,FALSE) -> 3350 | CH41: =HLOOKUP(CH$7+0.5,$J$67:$DK$121,ROWS($A$11:$A41)+2,FALSE) -> 441 | CI41: =HLOOKUP(CI$7+0.5,$J$67:$DK$121,ROWS($A$11:$A41)+2,FALSE) -> 181 | CJ41: =HLOOKUP(CJ$7+0.5,$J$67:$DK$121,ROWS($A$11:$A41)+2,FALSE) -> 181 | CK41: =HLOOKUP(CK$7+0.5,$J$67:$DK$121,ROWS($A$11:$A41)+2,FALSE) -> 262 | CL41: =HLOOKUP(CL$7+0.5,$J$67:$DK$121,ROWS($A$11:$A41)+2,FALSE) -> 181 | CM41: =HLOOKUP(CM$7+0.5,$J$67:$DK$121,ROWS($A$11:$A41)+2,FALSE) -> 136 | CN41: =HLOOKUP(CN$7+0.5,$J$67:$DK$121,ROWS($A$11:$A41)+2,FALSE) -> 181 | CO41: =HLOOKUP(CO$7+0.5,$J$67:$DK$121,ROWS($A$11:$A41)+2,FALSE) -> N/A | CP41: =HLOOKUP(CP$7+0.5,$J$67:$DK$121,ROWS($A$11:$A41)+2,FALSE) -> 330 | CQ41: =HLOOKUP(CQ$7+0.5,$J$67:$DK$121,ROWS($A$11:$A41)+2,FALSE) -> 279 | CR41: =HLOOKUP(CR$7+0.5,$J$67:$DK$121,ROWS($A$11:$A41)+2,FALSE) -> 1027 | CS41: =HLOOKUP(CS$7+0.5,$J$67:$DK$121,ROWS($A$11:$A41)+2,FALSE) -> 1456 | CT41: =HLOOKUP(CT$7+0.5,$J$67:$DK$121,ROWS($A$11:$A41)+2,FALSE) -> 181 | CU41: =HLOOKUP(CU$7+0.5,$J$67:$DK$121,ROWS($A$11:$A41)+2,FALSE) -> 240 | CV41: =HLOOKUP(CV$7+0.5,$J$67:$DK$121,ROWS($A$11:$A41)+2,FALSE) -> 266 | CW41: =HLOOKUP(CW$7+0.5,$J$67:$DK$121,ROWS($A$11:$A41)+2,FALSE) -> 299 | CX41: =HLOOKUP(CX$7+0.5,$J$67:$DK$121,ROWS($A$11:$A41)+2,FALSE) -> 561 | CY41: =HLOOKUP(CY$7+0.5,$J$67:$DK$121,ROWS($A$11:$A41)+2,FALSE) -> 819 | CZ41: =HLOOKUP(CZ$7+0.5,$J$67:$DK$121,ROWS($A$11:$A41)+2,FALSE) -> 257 | DA41: =HLOOKUP(DA$7+0.5,$J$67:$DK$121,ROWS($A$11:$A41)+2,FALSE) -> 181 | DB41: =HLOOKUP(DB$7+0.5,$J$67:$DK$121,ROWS($A$11:$A41)+2,FALSE) -> 133 | DC41: =HLOOKUP(DC$7+0.5,$J$67:$DK$121,ROWS($A$11:$A41)+2,FALSE) -> 1715 | DD41: =HLOOKUP(DD$7+0.5,$J$67:$DK$121,ROWS($A$11:$A41)+2,FALSE) -> 762 | DE41: =HLOOKUP(DE$7+0.5,$J$67:$DK$121,ROWS($A$11:$A41)+2,FALSE) -> 1339 | DF41: =HLOOKUP(DF$7+0.5,$J$67:$DK$121,ROWS($A$11:$A41)+2,FALSE) -> 433 | DG41: =HLOOKUP(DG$7+0.5,$J$67:$DK$121,ROWS($A$11:$A41)+2,FALSE) -> 119 | DH41: =HLOOKUP(DH$7+0.5,$J$67:$DK$121,ROWS($A$11:$A41)+2,FALSE) -> 131 | DI41: =HLOOKUP(DI$7+0.5,$J$67:$DK$121,ROWS($A$11:$A41)+2,FALSE) -> 277 | DJ41: =HLOOKUP(DJ$7+0.5,$J$67:$DK$121,ROWS($A$11:$A41)+2,FALSE) -> 120 | DK41: =HLOOKUP(DK$7+0.5,$J$67:$DK$121,ROWS($A$11:$A41)+2,FALSE) -> 123
B42: New Jersey | C42: 8772744 | D42: 4541 | E42: 7929570 | F42: 23298 | G42: 655465 | H42: 21808 | I42: 0.018418196 | J42: =HLOOKUP(J$7,$J$67:$DK$121,ROWS($A$11:$A42)+2,FALSE) -> 130223 | K42: =HLOOKUP(K$7,$J$67:$DK$121,ROWS($A$11:$A42)+2,FALSE) -> 779 | L42: =HLOOKUP(L$7,$J$67:$DK$121,ROWS($A$11:$A42)+2,FALSE) -> 359 | M42: =HLOOKUP(M$7,$J$67:$DK$121,ROWS($A$11:$A42)+2,FALSE) -> 1328 | N42: =HLOOKUP(N$7,$J$67:$DK$121,ROWS($A$11:$A42)+2,FALSE) -> 57 | O42: =HLOOKUP(O$7,$J$67:$DK$121,ROWS($A$11:$A42)+2,FALSE) -> 4330 | P42: =HLOOKUP(P$7,$J$67:$DK$121,ROWS($A$11:$A42)+2,FALSE) -> 380 | Q42: =HLOOKUP(Q$7,$J$67:$DK$121,ROWS($A$11:$A42)+2,FALSE) -> 3466 | R42: =HLOOKUP(R$7,$J$67:$DK$121,ROWS($A$11:$A42)+2,FALSE) -> 1921 | S42: =HLOOKUP(S$7,$J$67:$DK$121,ROWS($A$11:$A42)+2,FALSE) -> 840 | T42: =HLOOKUP(T$7,$J$67:$DK$121,ROWS($A$11:$A42)+2,FALSE) -> 10649 | U42: =HLOOKUP(U$7,$J$67:$DK$121,ROWS($A$11:$A42)+2,FALSE) -> 3002 | V42: =HLOOKUP(V$7,$J$67:$DK$121,ROWS($A$11:$A42)+2,FALSE) -> 22 | W42: =HLOOKUP(W$7,$J$67:$DK$121,ROWS($A$11:$A42)+2,FALSE) -> 113 | X42: =HLOOKUP(X$7,$J$67:$DK$121,ROWS($A$11:$A42)+2,FALSE) -> 2052 | Y42: =HLOOKUP(Y$7,$J$67:$DK$121,ROWS($A$11:$A42)+2,FALSE) -> 1039 | Z42: =HLOOKUP(Z$7,$J$67:$DK$121,ROWS($A$11:$A42)+2,FALSE) -> 357 | AA42: =HLOOKUP(AA$7,$J$67:$DK$121,ROWS($A$11:$A42)+2,FALSE) -> 426 | AB42: =HLOOKUP(AB$7,$J$67:$DK$121,ROWS($A$11:$A42)+2,FALSE) -> 631 | AC42: =HLOOKUP(AC$7,$J$67:$DK$121,ROWS($A$11:$A42)+2,FALSE) -> 339 | AD42: =HLOOKUP(AD$7,$J$67:$DK$121,ROWS($A$11:$A42)+2,FALSE) -> 430 | AE42: =HLOOKUP(AE$7,$J$67:$DK$121,ROWS($A$11:$A42)+2,FALSE) -> 3474 | AF42: =HLOOKUP(AF$7,$J$67:$DK$121,ROWS($A$11:$A42)+2,FALSE) -> 4907 | AG42: =HLOOKUP(AG$7,$J$67:$DK$121,ROWS($A$11:$A42)+2,FALSE) -> 324 | AH42: =HLOOKUP(AH$7,$J$67:$DK$121,ROWS($A$11:$A42)+2,FALSE) -> 570 | AI42: =HLOOKUP(AI$7,$J$67:$DK$121,ROWS($A$11:$A42)+2,FALSE) -> 106 | AJ42: =HLOOKUP(AJ$7,$J$67:$DK$121,ROWS($A$11:$A42)+2,FALSE) -> 384 | AK42: =HLOOKUP(AK$7,$J$67:$DK$121,ROWS($A$11:$A42)+2,FALSE) -> 67 | AL42: =HLOOKUP(AL$7,$J$67:$DK$121,ROWS($A$11:$A42)+2,FALSE) -> 35 | AM42: =HLOOKUP(AM$7,$J$67:$DK$121,ROWS($A$11:$A42)+2,FALSE) -> 908 | AN42: =HLOOKUP(AN$7,$J$67:$DK$121,ROWS($A$11:$A42)+2,FALSE) -> 126 | AO42: =HLOOKUP(AO$7,$J$67:$DK$121,ROWS($A$11:$A42)+2,FALSE) -> N/A | AP42: =HLOOKUP(AP$7,$J$67:$DK$121,ROWS($A$11:$A42)+2,FALSE) -> 45 | AQ42: =HLOOKUP(AQ$7,$J$67:$DK$121,ROWS($A$11:$A42)+2,FALSE) -> 40495 | AR42: =HLOOKUP(AR$7,$J$67:$DK$121,ROWS($A$11:$A42)+2,FALSE) -> 3236 | AS42: =HLOOKUP(AS$7,$J$67:$DK$121,ROWS($A$11:$A42)+2,FALSE) -> 55 | AT42: =HLOOKUP(AT$7,$J$67:$DK$121,ROWS($A$11:$A42)+2,FALSE) -> 1452 | AU42: =HLOOKUP(AU$7,$J$67:$DK$121,ROWS($A$11:$A42)+2,FALSE) -> 1540 | AV42: =HLOOKUP(AV$7,$J$67:$DK$121,ROWS($A$11:$A42)+2,FALSE) -> 760 | AW42: =HLOOKUP(AW$7,$J$67:$DK$121,ROWS($A$11:$A42)+2,FALSE) -> 23597 | AX42: =HLOOKUP(AX$7,$J$67:$DK$121,ROWS($A$11:$A42)+2,FALSE) -> 429 | AY42: =HLOOKUP(AY$7,$J$67:$DK$121,ROWS($A$11:$A42)+2,FALSE) -> 2372 | AZ42: =HLOOKUP(AZ$7,$J$67:$DK$121,ROWS($A$11:$A42)+2,FALSE) -> 581 | BA42: =HLOOKUP(BA$7,$J$67:$DK$121,ROWS($A$11:$A42)+2,FALSE) -> 1400 | BB42: =HLOOKUP(BB$7,$J$67:$DK$121,ROWS($A$11:$A42)+2,FALSE) -> 2509 | BC42: =HLOOKUP(BC$7,$J$67:$DK$121,ROWS($A$11:$A42)+2,FALSE) -> 425 | BD42: =HLOOKUP(BD$7,$J$67:$DK$121,ROWS($A$11:$A42)+2,FALSE) -> 35 | BE42: =HLOOKUP(BE$7,$J$67:$DK$121,ROWS($A$11:$A42)+2,FALSE) -> 5024 | BF42: =HLOOKUP(BF$7,$J$67:$DK$121,ROWS($A$11:$A42)+2,FALSE) -> 1847 | BG42: =HLOOKUP(BG$7,$J$67:$DK$121,ROWS($A$11:$A42)+2,FALSE) -> 297 | BH42: =HLOOKUP(BH$7,$J$67:$DK$121,ROWS($A$11:$A42)+2,FALSE) -> 680 | BI42: =HLOOKUP(BI$7,$J$67:$DK$121,ROWS($A$11:$A42)+2,FALSE) -> 23 | BJ42: =HLOOKUP(BJ$7,$J$67:$DK$121,ROWS($A$11:$A42)+2,FALSE) -> 2574 | BK42: =HLOOKUP(BK$7+0.5,$J$67:$DK$121,ROWS($A$11:$A42)+2,FALSE) -> 7649 | BL42: =HLOOKUP(BL$7+0.5,$J$67:$DK$121,ROWS($A$11:$A42)+2,FALSE) -> 509 | BM42: =HLOOKUP(BM$7+0.5,$J$67:$DK$121,ROWS($A$11:$A42)+2,FALSE) -> 437 | BN42: =HLOOKUP(BN$7+0.5,$J$67:$DK$121,ROWS($A$11:$A42)+2,FALSE) -> 704 | BO42: =HLOOKUP(BO$7+0.5,$J$67:$DK$121,ROWS($A$11:$A42)+2,FALSE) -> 70 | BP42: =HLOOKUP(BP$7+0.5,$J$67:$DK$121,ROWS($A$11:$A42)+2,FALSE) -> 1070 | BQ42: =HLOOKUP(BQ$7+0.5,$J$67:$DK$121,ROWS($A$11:$A42)+2,FALSE) -> 264 | BR42: =HLOOKUP(BR$7+0.5,$J$67:$DK$121,ROWS($A$11:$A42)+2,FALSE) -> 1711 | BS42: =HLOOKUP(BS$7+0.5,$J$67:$DK$121,ROWS($A$11:$A42)+2,FALSE) -> 1383 | BT42: =HLOOKUP(BT$7+0.5,$J$67:$DK$121,ROWS($A$11:$A42)+2,FALSE) -> 637 | BU42: =HLOOKUP(BU$7+0.5,$J$67:$DK$121,ROWS($A$11:$A42)+2,FALSE) -> 2430 | BV42: =HLOOKUP(BV$7+0.5,$J$67:$DK$121,ROWS($A$11:$A42)+2,FALSE) -> 1032 | BW42: =HLOOKUP(BW$7+0.5,$J$67:$DK$121,ROWS($A$11:$A42)+2,FALSE) -> 41 | BX42: =HLOOKUP(BX$7+0.5,$J$67:$DK$121,ROWS($A$11:$A42)+2,FALSE) -> 134 | BY42: =HLOOKUP(BY$7+0.5,$J$67:$DK$121,ROWS($A$11:$A42)+2,FALSE) -> 874 | BZ42: =HLOOKUP(BZ$7+0.5,$J$67:$DK$121,ROWS($A$11:$A42)+2,FALSE) -> 559 | CA42: =HLOOKUP(CA$7+0.5,$J$67:$DK$121,ROWS($A$11:$A42)+2,FALSE) -> 405 | CB42: =HLOOKUP(CB$7+0.5,$J$67:$DK$121,ROWS($A$11:$A42)+2,FALSE) -> 405 | CC42: =HLOOKUP(CC$7+0.5,$J$67:$DK$121,ROWS($A$11:$A42)+2,FALSE) -> 614 | CD42: =HLOOKUP(CD$7+0.5,$J$67:$DK$121,ROWS($A$11:$A42)+2,FALSE) -> 343 | CE42: =HLOOKUP(CE$7+0.5,$J$67:$DK$121,ROWS($A$11:$A42)+2,FALSE) -> 388 | CF42: =HLOOKUP(CF$7+0.5,$J$67:$DK$121,ROWS($A$11:$A42)+2,FALSE) -> 1241 | CG42: =HLOOKUP(CG$7+0.5,$J$67:$DK$121,ROWS($A$11:$A42)+2,FALSE) -> 1730 | CH42: =HLOOKUP(CH$7+0.5,$J$67:$DK$121,ROWS($A$11:$A42)+2,FALSE) -> 191 | CI42: =HLOOKUP(CI$7+0.5,$J$67:$DK$121,ROWS($A$11:$A42)+2,FALSE) -> 429 | CJ42: =HLOOKUP(CJ$7+0.5,$J$67:$DK$121,ROWS($A$11:$A42)+2,FALSE) -> 165 | CK42: =HLOOKUP(CK$7+0.5,$J$67:$DK$121,ROWS($A$11:$A42)+2,FALSE) -> 363 | CL42: =HLOOKUP(CL$7+0.5,$J$67:$DK$121,ROWS($A$11:$A42)+2,FALSE) -> 112 | CM42: =HLOOKUP(CM$7+0.5,$J$67:$DK$121,ROWS($A$11:$A42)+2,FALSE) -> 58 | CN42: =HLOOKUP(CN$7+0.5,$J$67:$DK$121,ROWS($A$11:$A42)+2,FALSE) -> 526 | CO42: =HLOOKUP(CO$7+0.5,$J$67:$DK$121,ROWS($A$11:$A42)+2,FALSE) -> 219 | CP42: =HLOOKUP(CP$7+0.5,$J$67:$DK$121,ROWS($A$11:$A42)+2,FALSE) -> N/A | CQ42: =HLOOKUP(CQ$7+0.5,$J$67:$DK$121,ROWS($A$11:$A42)+2,FALSE) -> 75 | CR42: =HLOOKUP(CR$7+0.5,$J$67:$DK$121,ROWS($A$11:$A42)+2,FALSE) -> 4293 | CS42: =HLOOKUP(CS$7+0.5,$J$67:$DK$121,ROWS($A$11:$A42)+2,FALSE) -> 1238 | CT42: =HLOOKUP(CT$7+0.5,$J$67:$DK$121,ROWS($A$11:$A42)+2,FALSE) -> 93 | CU42: =HLOOKUP(CU$7+0.5,$J$67:$DK$121,ROWS($A$11:$A42)+2,FALSE) -> 596 | CV42: =HLOOKUP(CV$7+0.5,$J$67:$DK$121,ROWS($A$11:$A42)+2,FALSE) -> 1537 | CW42: =HLOOKUP(CW$7+0.5,$J$67:$DK$121,ROWS($A$11:$A42)+2,FALSE) -> 587 | CX42: =HLOOKUP(CX$7+0.5,$J$67:$DK$121,ROWS($A$11:$A42)+2,FALSE) -> 2976 | CY42: =HLOOKUP(CY$7+0.5,$J$67:$DK$121,ROWS($A$11:$A42)+2,FALSE) -> 410 | CZ42: =HLOOKUP(CZ$7+0.5,$J$67:$DK$121,ROWS($A$11:$A42)+2,FALSE) -> 1386 | DA42: =HLOOKUP(DA$7+0.5,$J$67:$DK$121,ROWS($A$11:$A42)+2,FALSE) -> 644 | DB42: =HLOOKUP(DB$7+0.5,$J$67:$DK$121,ROWS($A$11:$A42)+2,FALSE) -> 612 | DC42: =HLOOKUP(DC$7+0.5,$J$67:$DK$121,ROWS($A$11:$A42)+2,FALSE) -> 1335 | DD42: =HLOOKUP(DD$7+0.5,$J$67:$DK$121,ROWS($A$11:$A42)+2,FALSE) -> 341 | DE42: =HLOOKUP(DE$7+0.5,$J$67:$DK$121,ROWS($A$11:$A42)+2,FALSE) -> 57 | DF42: =HLOOKUP(DF$7+0.5,$J$67:$DK$121,ROWS($A$11:$A42)+2,FALSE) -> 1899 | DG42: =HLOOKUP(DG$7+0.5,$J$67:$DK$121,ROWS($A$11:$A42)+2,FALSE) -> 1244 | DH42: =HLOOKUP(DH$7+0.5,$J$67:$DK$121,ROWS($A$11:$A42)+2,FALSE) -> 201 | DI42: =HLOOKUP(DI$7+0.5,$J$67:$DK$121,ROWS($A$11:$A42)+2,FALSE) -> 457 | DJ42: =HLOOKUP(DJ$7+0.5,$J$67:$DK$121,ROWS($A$11:$A42)+2,FALSE) -> 30 | DK42: =HLOOKUP(DK$7+0.5,$J$67:$DK$121,ROWS($A$11:$A42)+2,FALSE) -> 1462
B43: New Mexico | C43: 2060595 | D43: 2119 | E43: 1769341 | F43: 11461 | G43: 226243 | H43: 12069 | I43: 0.007735548973 | J43: =HLOOKUP(J$7,$J$67:$DK$121,ROWS($A$11:$A43)+2,FALSE) -> 54693 | K43: =HLOOKUP(K$7,$J$67:$DK$121,ROWS($A$11:$A43)+2,FALSE) -> 787 | L43: =HLOOKUP(L$7,$J$67:$DK$121,ROWS($A$11:$A43)+2,FALSE) -> 320 | M43: =HLOOKUP(M$7,$J$67:$DK$121,ROWS($A$11:$A43)+2,FALSE) -> 6391 | N43: =HLOOKUP(N$7,$J$67:$DK$121,ROWS($A$11:$A43)+2,FALSE) -> 410 | O43: =HLOOKUP(O$7,$J$67:$DK$121,ROWS($A$11:$A43)+2,FALSE) -> 4536 | P43: =HLOOKUP(P$7,$J$67:$DK$121,ROWS($A$11:$A43)+2,FALSE) -> 4780 | Q43: =HLOOKUP(Q$7,$J$67:$DK$121,ROWS($A$11:$A43)+2,FALSE) -> 280 | R43: =HLOOKUP(R$7,$J$67:$DK$121,ROWS($A$11:$A43)+2,FALSE) -> 100 | S43: =HLOOKUP(S$7,$J$67:$DK$121,ROWS($A$11:$A43)+2,FALSE) -> 25 | T43: =HLOOKUP(T$7,$J$67:$DK$121,ROWS($A$11:$A43)+2,FALSE) -> 4707 | U43: =HLOOKUP(U$7,$J$67:$DK$121,ROWS($A$11:$A43)+2,FALSE) -> 192 | V43: =HLOOKUP(V$7,$J$67:$DK$121,ROWS($A$11:$A43)+2,FALSE) -> 168 | W43: =HLOOKUP(W$7,$J$67:$DK$121,ROWS($A$11:$A43)+2,FALSE) -> 355 | X43: =HLOOKUP(X$7,$J$67:$DK$121,ROWS($A$11:$A43)+2,FALSE) -> 790 | Y43: =HLOOKUP(Y$7,$J$67:$DK$121,ROWS($A$11:$A43)+2,FALSE) -> 660 | Z43: =HLOOKUP(Z$7,$J$67:$DK$121,ROWS($A$11:$A43)+2,FALSE) -> 384 | AA43: =HLOOKUP(AA$7,$J$67:$DK$121,ROWS($A$11:$A43)+2,FALSE) -> 672 | AB43: =HLOOKUP(AB$7,$J$67:$DK$121,ROWS($A$11:$A43)+2,FALSE) -> 159 | AC43: =HLOOKUP(AC$7,$J$67:$DK$121,ROWS($A$11:$A43)+2,FALSE) -> 790 | AD43: =HLOOKUP(AD$7,$J$67:$DK$121,ROWS($A$11:$A43)+2,FALSE) -> 57 | AE43: =HLOOKUP(AE$7,$J$67:$DK$121,ROWS($A$11:$A43)+2,FALSE) -> 505 | AF43: =HLOOKUP(AF$7,$J$67:$DK$121,ROWS($A$11:$A43)+2,FALSE) -> 303 | AG43: =HLOOKUP(AG$7,$J$67:$DK$121,ROWS($A$11:$A43)+2,FALSE) -> 602 | AH43: =HLOOKUP(AH$7,$J$67:$DK$121,ROWS($A$11:$A43)+2,FALSE) -> 284 | AI43: =HLOOKUP(AI$7,$J$67:$DK$121,ROWS($A$11:$A43)+2,FALSE) -> 451 | AJ43: =HLOOKUP(AJ$7,$J$67:$DK$121,ROWS($A$11:$A43)+2,FALSE) -> 1216 | AK43: =HLOOKUP(AK$7,$J$67:$DK$121,ROWS($A$11:$A43)+2,FALSE) -> 139 | AL43: =HLOOKUP(AL$7,$J$67:$DK$121,ROWS($A$11:$A43)+2,FALSE) -> 194 | AM43: =HLOOKUP(AM$7,$J$67:$DK$121,ROWS($A$11:$A43)+2,FALSE) -> 604 | AN43: =HLOOKUP(AN$7,$J$67:$DK$121,ROWS($A$11:$A43)+2,FALSE) -> 268 | AO43: =HLOOKUP(AO$7,$J$67:$DK$121,ROWS($A$11:$A43)+2,FALSE) -> 252 | AP43: =HLOOKUP(AP$7,$J$67:$DK$121,ROWS($A$11:$A43)+2,FALSE) -> N/A | AQ43: =HLOOKUP(AQ$7,$J$67:$DK$121,ROWS($A$11:$A43)+2,FALSE) -> 1111 | AR43: =HLOOKUP(AR$7,$J$67:$DK$121,ROWS($A$11:$A43)+2,FALSE) -> 335 | AS43: =HLOOKUP(AS$7,$J$67:$DK$121,ROWS($A$11:$A43)+2,FALSE) -> 41 | AT43: =HLOOKUP(AT$7,$J$67:$DK$121,ROWS($A$11:$A43)+2,FALSE) -> 1178 | AU43: =HLOOKUP(AU$7,$J$67:$DK$121,ROWS($A$11:$A43)+2,FALSE) -> 1076 | AV43: =HLOOKUP(AV$7,$J$67:$DK$121,ROWS($A$11:$A43)+2,FALSE) -> 932 | AW43: =HLOOKUP(AW$7,$J$67:$DK$121,ROWS($A$11:$A43)+2,FALSE) -> 822 | AX43: =HLOOKUP(AX$7,$J$67:$DK$121,ROWS($A$11:$A43)+2,FALSE) -> 0 | AY43: =HLOOKUP(AY$7,$J$67:$DK$121,ROWS($A$11:$A43)+2,FALSE) -> 325 | AZ43: =HLOOKUP(AZ$7,$J$67:$DK$121,ROWS($A$11:$A43)+2,FALSE) -> 509 | BA43: =HLOOKUP(BA$7,$J$67:$DK$121,ROWS($A$11:$A43)+2,FALSE) -> 338 | BB43: =HLOOKUP(BB$7,$J$67:$DK$121,ROWS($A$11:$A43)+2,FALSE) -> 11955 | BC43: =HLOOKUP(BC$7,$J$67:$DK$121,ROWS($A$11:$A43)+2,FALSE) -> 1382 | BD43: =HLOOKUP(BD$7,$J$67:$DK$121,ROWS($A$11:$A43)+2,FALSE) -> 81 | BE43: =HLOOKUP(BE$7,$J$67:$DK$121,ROWS($A$11:$A43)+2,FALSE) -> 1560 | BF43: =HLOOKUP(BF$7,$J$67:$DK$121,ROWS($A$11:$A43)+2,FALSE) -> 1251 | BG43: =HLOOKUP(BG$7,$J$67:$DK$121,ROWS($A$11:$A43)+2,FALSE) -> 0 | BH43: =HLOOKUP(BH$7,$J$67:$DK$121,ROWS($A$11:$A43)+2,FALSE) -> 321 | BI43: =HLOOKUP(BI$7,$J$67:$DK$121,ROWS($A$11:$A43)+2,FALSE) -> 95 | BJ43: =HLOOKUP(BJ$7,$J$67:$DK$121,ROWS($A$11:$A43)+2,FALSE) -> 429 | BK43: =HLOOKUP(BK$7+0.5,$J$67:$DK$121,ROWS($A$11:$A43)+2,FALSE) -> 5877 | BL43: =HLOOKUP(BL$7+0.5,$J$67:$DK$121,ROWS($A$11:$A43)+2,FALSE) -> 509 | BM43: =HLOOKUP(BM$7+0.5,$J$67:$DK$121,ROWS($A$11:$A43)+2,FALSE) -> 264 | BN43: =HLOOKUP(BN$7+0.5,$J$67:$DK$121,ROWS($A$11:$A43)+2,FALSE) -> 1673 | BO43: =HLOOKUP(BO$7+0.5,$J$67:$DK$121,ROWS($A$11:$A43)+2,FALSE) -> 286 | BP43: =HLOOKUP(BP$7+0.5,$J$67:$DK$121,ROWS($A$11:$A43)+2,FALSE) -> 1440 | BQ43: =HLOOKUP(BQ$7+0.5,$J$67:$DK$121,ROWS($A$11:$A43)+2,FALSE) -> 1546 | BR43: =HLOOKUP(BR$7+0.5,$J$67:$DK$121,ROWS($A$11:$A43)+2,FALSE) -> 250 | BS43: =HLOOKUP(BS$7+0.5,$J$67:$DK$121,ROWS($A$11:$A43)+2,FALSE) -> 136 | BT43: =HLOOKUP(BT$7+0.5,$J$67:$DK$121,ROWS($A$11:$A43)+2,FALSE) -> 51 | BU43: =HLOOKUP(BU$7+0.5,$J$67:$DK$121,ROWS($A$11:$A43)+2,FALSE) -> 2184 | BV43: =HLOOKUP(BV$7+0.5,$J$67:$DK$121,ROWS($A$11:$A43)+2,FALSE) -> 184 | BW43: =HLOOKUP(BW$7+0.5,$J$67:$DK$121,ROWS($A$11:$A43)+2,FALSE) -> 127 | BX43: =HLOOKUP(BX$7+0.5,$J$67:$DK$121,ROWS($A$11:$A43)+2,FALSE) -> 352 | BY43: =HLOOKUP(BY$7+0.5,$J$67:$DK$121,ROWS($A$11:$A43)+2,FALSE) -> 530 | BZ43: =HLOOKUP(BZ$7+0.5,$J$67:$DK$121,ROWS($A$11:$A43)+2,FALSE) -> 524 | CA43: =HLOOKUP(CA$7+0.5,$J$67:$DK$121,ROWS($A$11:$A43)+2,FALSE) -> 331 | CB43: =HLOOKUP(CB$7+0.5,$J$67:$DK$121,ROWS($A$11:$A43)+2,FALSE) -> 537 | CC43: =HLOOKUP(CC$7+0.5,$J$67:$DK$121,ROWS($A$11:$A43)+2,FALSE) -> 160 | CD43: =HLOOKUP(CD$7+0.5,$J$67:$DK$121,ROWS($A$11:$A43)+2,FALSE) -> 883 | CE43: =HLOOKUP(CE$7+0.5,$J$67:$DK$121,ROWS($A$11:$A43)+2,FALSE) -> 80 | CF43: =HLOOKUP(CF$7+0.5,$J$67:$DK$121,ROWS($A$11:$A43)+2,FALSE) -> 355 | CG43: =HLOOKUP(CG$7+0.5,$J$67:$DK$121,ROWS($A$11:$A43)+2,FALSE) -> 298 | CH43: =HLOOKUP(CH$7+0.5,$J$67:$DK$121,ROWS($A$11:$A43)+2,FALSE) -> 490 | CI43: =HLOOKUP(CI$7+0.5,$J$67:$DK$121,ROWS($A$11:$A43)+2,FALSE) -> 428 | CJ43: =HLOOKUP(CJ$7+0.5,$J$67:$DK$121,ROWS($A$11:$A43)+2,FALSE) -> 630 | CK43: =HLOOKUP(CK$7+0.5,$J$67:$DK$121,ROWS($A$11:$A43)+2,FALSE) -> 793 | CL43: =HLOOKUP(CL$7+0.5,$J$67:$DK$121,ROWS($A$11:$A43)+2,FALSE) -> 162 | CM43: =HLOOKUP(CM$7+0.5,$J$67:$DK$121,ROWS($A$11:$A43)+2,FALSE) -> 220 | CN43: =HLOOKUP(CN$7+0.5,$J$67:$DK$121,ROWS($A$11:$A43)+2,FALSE) -> 853 | CO43: =HLOOKUP(CO$7+0.5,$J$67:$DK$121,ROWS($A$11:$A43)+2,FALSE) -> 259 | CP43: =HLOOKUP(CP$7+0.5,$J$67:$DK$121,ROWS($A$11:$A43)+2,FALSE) -> 271 | CQ43: =HLOOKUP(CQ$7+0.5,$J$67:$DK$121,ROWS($A$11:$A43)+2,FALSE) -> N/A | CR43: =HLOOKUP(CR$7+0.5,$J$67:$DK$121,ROWS($A$11:$A43)+2,FALSE) -> 618 | CS43: =HLOOKUP(CS$7+0.5,$J$67:$DK$121,ROWS($A$11:$A43)+2,FALSE) -> 373 | CT43: =HLOOKUP(CT$7+0.5,$J$67:$DK$121,ROWS($A$11:$A43)+2,FALSE) -> 82 | CU43: =HLOOKUP(CU$7+0.5,$J$67:$DK$121,ROWS($A$11:$A43)+2,FALSE) -> 1049 | CV43: =HLOOKUP(CV$7+0.5,$J$67:$DK$121,ROWS($A$11:$A43)+2,FALSE) -> 568 | CW43: =HLOOKUP(CW$7+0.5,$J$67:$DK$121,ROWS($A$11:$A43)+2,FALSE) -> 481 | CX43: =HLOOKUP(CX$7+0.5,$J$67:$DK$121,ROWS($A$11:$A43)+2,FALSE) -> 666 | CY43: =HLOOKUP(CY$7+0.5,$J$67:$DK$121,ROWS($A$11:$A43)+2,FALSE) -> 185 | CZ43: =HLOOKUP(CZ$7+0.5,$J$67:$DK$121,ROWS($A$11:$A43)+2,FALSE) -> 260 | DA43: =HLOOKUP(DA$7+0.5,$J$67:$DK$121,ROWS($A$11:$A43)+2,FALSE) -> 547 | DB43: =HLOOKUP(DB$7+0.5,$J$67:$DK$121,ROWS($A$11:$A43)+2,FALSE) -> 274 | DC43: =HLOOKUP(DC$7+0.5,$J$67:$DK$121,ROWS($A$11:$A43)+2,FALSE) -> 2917 | DD43: =HLOOKUP(DD$7+0.5,$J$67:$DK$121,ROWS($A$11:$A43)+2,FALSE) -> 889 | DE43: =HLOOKUP(DE$7+0.5,$J$67:$DK$121,ROWS($A$11:$A43)+2,FALSE) -> 103 | DF43: =HLOOKUP(DF$7+0.5,$J$67:$DK$121,ROWS($A$11:$A43)+2,FALSE) -> 1330 | DG43: =HLOOKUP(DG$7+0.5,$J$67:$DK$121,ROWS($A$11:$A43)+2,FALSE) -> 575 | DH43: =HLOOKUP(DH$7+0.5,$J$67:$DK$121,ROWS($A$11:$A43)+2,FALSE) -> 185 | DI43: =HLOOKUP(DI$7+0.5,$J$67:$DK$121,ROWS($A$11:$A43)+2,FALSE) -> 514 | DJ43: =HLOOKUP(DJ$7+0.5,$J$67:$DK$121,ROWS($A$11:$A43)+2,FALSE) -> 100 | DK43: =HLOOKUP(DK$7+0.5,$J$67:$DK$121,ROWS($A$11:$A43)+2,FALSE) -> 466
B44: New York | C44: 19352153 | D44: 6112 | E44: 17202134 | F44: 34343 | G44: 1723117 | H44: 30910 | I44: 0.03819516587 | J44: =HLOOKUP(J$7,$J$67:$DK$121,ROWS($A$11:$A44)+2,FALSE) -> 270053 | K44: =HLOOKUP(K$7,$J$67:$DK$121,ROWS($A$11:$A44)+2,FALSE) -> 1364 | L44: =HLOOKUP(L$7,$J$67:$DK$121,ROWS($A$11:$A44)+2,FALSE) -> 4002 | M44: =HLOOKUP(M$7,$J$67:$DK$121,ROWS($A$11:$A44)+2,FALSE) -> 4146 | N44: =HLOOKUP(N$7,$J$67:$DK$121,ROWS($A$11:$A44)+2,FALSE) -> 247 | O44: =HLOOKUP(O$7,$J$67:$DK$121,ROWS($A$11:$A44)+2,FALSE) -> 24623 | P44: =HLOOKUP(P$7,$J$67:$DK$121,ROWS($A$11:$A44)+2,FALSE) -> 3596 | Q44: =HLOOKUP(Q$7,$J$67:$DK$121,ROWS($A$11:$A44)+2,FALSE) -> 14595 | R44: =HLOOKUP(R$7,$J$67:$DK$121,ROWS($A$11:$A44)+2,FALSE) -> 477 | S44: =HLOOKUP(S$7,$J$67:$DK$121,ROWS($A$11:$A44)+2,FALSE) -> 3936 | T44: =HLOOKUP(T$7,$J$67:$DK$121,ROWS($A$11:$A44)+2,FALSE) -> 27392 | U44: =HLOOKUP(U$7,$J$67:$DK$121,ROWS($A$11:$A44)+2,FALSE) -> 7592 | V44: =HLOOKUP(V$7,$J$67:$DK$121,ROWS($A$11:$A44)+2,FALSE) -> 1598 | W44: =HLOOKUP(W$7,$J$67:$DK$121,ROWS($A$11:$A44)+2,FALSE) -> 607 | X44: =HLOOKUP(X$7,$J$67:$DK$121,ROWS($A$11:$A44)+2,FALSE) -> 8017 | Y44: =HLOOKUP(Y$7,$J$67:$DK$121,ROWS($A$11:$A44)+2,FALSE) -> 3040 | Z44: =HLOOKUP(Z$7,$J$67:$DK$121,ROWS($A$11:$A44)+2,FALSE) -> 955 | AA44: =HLOOKUP(AA$7,$J$67:$DK$121,ROWS($A$11:$A44)+2,FALSE) -> 1437 | AB44: =HLOOKUP(AB$7,$J$67:$DK$121,ROWS($A$11:$A44)+2,FALSE) -> 1753 | AC44: =HLOOKUP(AC$7,$J$67:$DK$121,ROWS($A$11:$A44)+2,FALSE) -> 1083 | AD44: =HLOOKUP(AD$7,$J$67:$DK$121,ROWS($A$11:$A44)+2,FALSE) -> 1345 | AE44: =HLOOKUP(AE$7,$J$67:$DK$121,ROWS($A$11:$A44)+2,FALSE) -> 7321 | AF44: =HLOOKUP(AF$7,$J$67:$DK$121,ROWS($A$11:$A44)+2,FALSE) -> 15073 | AG44: =HLOOKUP(AG$7,$J$67:$DK$121,ROWS($A$11:$A44)+2,FALSE) -> 5191 | AH44: =HLOOKUP(AH$7,$J$67:$DK$121,ROWS($A$11:$A44)+2,FALSE) -> 1059 | AI44: =HLOOKUP(AI$7,$J$67:$DK$121,ROWS($A$11:$A44)+2,FALSE) -> 773 | AJ44: =HLOOKUP(AJ$7,$J$67:$DK$121,ROWS($A$11:$A44)+2,FALSE) -> 3310 | AK44: =HLOOKUP(AK$7,$J$67:$DK$121,ROWS($A$11:$A44)+2,FALSE) -> 421 | AL44: =HLOOKUP(AL$7,$J$67:$DK$121,ROWS($A$11:$A44)+2,FALSE) -> 78 | AM44: =HLOOKUP(AM$7,$J$67:$DK$121,ROWS($A$11:$A44)+2,FALSE) -> 600 | AN44: =HLOOKUP(AN$7,$J$67:$DK$121,ROWS($A$11:$A44)+2,FALSE) -> 2760 | AO44: =HLOOKUP(AO$7,$J$67:$DK$121,ROWS($A$11:$A44)+2,FALSE) -> 42574 | AP44: =HLOOKUP(AP$7,$J$67:$DK$121,ROWS($A$11:$A44)+2,FALSE) -> 646 | AQ44: =HLOOKUP(AQ$7,$J$67:$DK$121,ROWS($A$11:$A44)+2,FALSE) -> N/A | AR44: =HLOOKUP(AR$7,$J$67:$DK$121,ROWS($A$11:$A44)+2,FALSE) -> 10544 | AS44: =HLOOKUP(AS$7,$J$67:$DK$121,ROWS($A$11:$A44)+2,FALSE) -> 77 | AT44: =HLOOKUP(AT$7,$J$67:$DK$121,ROWS($A$11:$A44)+2,FALSE) -> 4625 | AU44: =HLOOKUP(AU$7,$J$67:$DK$121,ROWS($A$11:$A44)+2,FALSE) -> 1327 | AV44: =HLOOKUP(AV$7,$J$67:$DK$121,ROWS($A$11:$A44)+2,FALSE) -> 1055 | AW44: =HLOOKUP(AW$7,$J$67:$DK$121,ROWS($A$11:$A44)+2,FALSE) -> 22895 | AX44: =HLOOKUP(AX$7,$J$67:$DK$121,ROWS($A$11:$A44)+2,FALSE) -> 3222 | AY44: =HLOOKUP(AY$7,$J$67:$DK$121,ROWS($A$11:$A44)+2,FALSE) -> 5952 | AZ44: =HLOOKUP(AZ$7,$J$67:$DK$121,ROWS($A$11:$A44)+2,FALSE) -> 0 | BA44: =HLOOKUP(BA$7,$J$67:$DK$121,ROWS($A$11:$A44)+2,FALSE) -> 1279 | BB44: =HLOOKUP(BB$7,$J$67:$DK$121,ROWS($A$11:$A44)+2,FALSE) -> 11231 | BC44: =HLOOKUP(BC$7,$J$67:$DK$121,ROWS($A$11:$A44)+2,FALSE) -> 622 | BD44: =HLOOKUP(BD$7,$J$67:$DK$121,ROWS($A$11:$A44)+2,FALSE) -> 2764 | BE44: =HLOOKUP(BE$7,$J$67:$DK$121,ROWS($A$11:$A44)+2,FALSE) -> 7939 | BF44: =HLOOKUP(BF$7,$J$67:$DK$121,ROWS($A$11:$A44)+2,FALSE) -> 2614 | BG44: =HLOOKUP(BG$7,$J$67:$DK$121,ROWS($A$11:$A44)+2,FALSE) -> 921 | BH44: =HLOOKUP(BH$7,$J$67:$DK$121,ROWS($A$11:$A44)+2,FALSE) -> 979 | BI44: =HLOOKUP(BI$7,$J$67:$DK$121,ROWS($A$11:$A44)+2,FALSE) -> 396 | BJ44: =HLOOKUP(BJ$7,$J$67:$DK$121,ROWS($A$11:$A44)+2,FALSE) -> 7321 | BK44: =HLOOKUP(BK$7+0.5,$J$67:$DK$121,ROWS($A$11:$A44)+2,FALSE) -> 11861 | BL44: =HLOOKUP(BL$7+0.5,$J$67:$DK$121,ROWS($A$11:$A44)+2,FALSE) -> 864 | BM44: =HLOOKUP(BM$7+0.5,$J$67:$DK$121,ROWS($A$11:$A44)+2,FALSE) -> 2016 | BN44: =HLOOKUP(BN$7+0.5,$J$67:$DK$121,ROWS($A$11:$A44)+2,FALSE) -> 2468 | BO44: =HLOOKUP(BO$7+0.5,$J$67:$DK$121,ROWS($A$11:$A44)+2,FALSE) -> 203 | BP44: =HLOOKUP(BP$7+0.5,$J$67:$DK$121,ROWS($A$11:$A44)+2,FALSE) -> 2557 | BQ44: =HLOOKUP(BQ$7+0.5,$J$67:$DK$121,ROWS($A$11:$A44)+2,FALSE) -> 976 | BR44: =HLOOKUP(BR$7+0.5,$J$67:$DK$121,ROWS($A$11:$A44)+2,FALSE) -> 2921 | BS44: =HLOOKUP(BS$7+0.5,$J$67:$DK$121,ROWS($A$11:$A44)+2,FALSE) -> 284 | BT44: =HLOOKUP(BT$7+0.5,$J$67:$DK$121,ROWS($A$11:$A44)+2,FALSE) -> 1392 | BU44: =HLOOKUP(BU$7+0.5,$J$67:$DK$121,ROWS($A$11:$A44)+2,FALSE) -> 3450 | BV44: =HLOOKUP(BV$7+0.5,$J$67:$DK$121,ROWS($A$11:$A44)+2,FALSE) -> 1925 | BW44: =HLOOKUP(BW$7+0.5,$J$67:$DK$121,ROWS($A$11:$A44)+2,FALSE) -> 734 | BX44: =HLOOKUP(BX$7+0.5,$J$67:$DK$121,ROWS($A$11:$A44)+2,FALSE) -> 472 | BY44: =HLOOKUP(BY$7+0.5,$J$67:$DK$121,ROWS($A$11:$A44)+2,FALSE) -> 2204 | BZ44: =HLOOKUP(BZ$7+0.5,$J$67:$DK$121,ROWS($A$11:$A44)+2,FALSE) -> 1128 | CA44: =HLOOKUP(CA$7+0.5,$J$67:$DK$121,ROWS($A$11:$A44)+2,FALSE) -> 658 | CB44: =HLOOKUP(CB$7+0.5,$J$67:$DK$121,ROWS($A$11:$A44)+2,FALSE) -> 906 | CC44: =HLOOKUP(CC$7+0.5,$J$67:$DK$121,ROWS($A$11:$A44)+2,FALSE) -> 808 | CD44: =HLOOKUP(CD$7+0.5,$J$67:$DK$121,ROWS($A$11:$A44)+2,FALSE) -> 465 | CE44: =HLOOKUP(CE$7+0.5,$J$67:$DK$121,ROWS($A$11:$A44)+2,FALSE) -> 536 | CF44: =HLOOKUP(CF$7+0.5,$J$67:$DK$121,ROWS($A$11:$A44)+2,FALSE) -> 1575 | CG44: =HLOOKUP(CG$7+0.5,$J$67:$DK$121,ROWS($A$11:$A44)+2,FALSE) -> 2292 | CH44: =HLOOKUP(CH$7+0.5,$J$67:$DK$121,ROWS($A$11:$A44)+2,FALSE) -> 1445 | CI44: =HLOOKUP(CI$7+0.5,$J$67:$DK$121,ROWS($A$11:$A44)+2,FALSE) -> 631 | CJ44: =HLOOKUP(CJ$7+0.5,$J$67:$DK$121,ROWS($A$11:$A44)+2,FALSE) -> 800 | CK44: =HLOOKUP(CK$7+0.5,$J$67:$DK$121,ROWS($A$11:$A44)+2,FALSE) -> 1260 | CL44: =HLOOKUP(CL$7+0.5,$J$67:$DK$121,ROWS($A$11:$A44)+2,FALSE) -> 424 | CM44: =HLOOKUP(CM$7+0.5,$J$67:$DK$121,ROWS($A$11:$A44)+2,FALSE) -> 108 | CN44: =HLOOKUP(CN$7+0.5,$J$67:$DK$121,ROWS($A$11:$A44)+2,FALSE) -> 382 | CO44: =HLOOKUP(CO$7+0.5,$J$67:$DK$121,ROWS($A$11:$A44)+2,FALSE) -> 1059 | CP44: =HLOOKUP(CP$7+0.5,$J$67:$DK$121,ROWS($A$11:$A44)+2,FALSE) -> 4802 | CQ44: =HLOOKUP(CQ$7+0.5,$J$67:$DK$121,ROWS($A$11:$A44)+2,FALSE) -> 445 | CR44: =HLOOKUP(CR$7+0.5,$J$67:$DK$121,ROWS($A$11:$A44)+2,FALSE) -> N/A | CS44: =HLOOKUP(CS$7+0.5,$J$67:$DK$121,ROWS($A$11:$A44)+2,FALSE) -> 2568 | CT44: =HLOOKUP(CT$7+0.5,$J$67:$DK$121,ROWS($A$11:$A44)+2,FALSE) -> 129 | CU44: =HLOOKUP(CU$7+0.5,$J$67:$DK$121,ROWS($A$11:$A44)+2,FALSE) -> 1103 | CV44: =HLOOKUP(CV$7+0.5,$J$67:$DK$121,ROWS($A$11:$A44)+2,FALSE) -> 652 | CW44: =HLOOKUP(CW$7+0.5,$J$67:$DK$121,ROWS($A$11:$A44)+2,FALSE) -> 716 | CX44: =HLOOKUP(CX$7+0.5,$J$67:$DK$121,ROWS($A$11:$A44)+2,FALSE) -> 3206 | CY44: =HLOOKUP(CY$7+0.5,$J$67:$DK$121,ROWS($A$11:$A44)+2,FALSE) -> 1538 | CZ44: =HLOOKUP(CZ$7+0.5,$J$67:$DK$121,ROWS($A$11:$A44)+2,FALSE) -> 1542 | DA44: =HLOOKUP(DA$7+0.5,$J$67:$DK$121,ROWS($A$11:$A44)+2,FALSE) -> 185 | DB44: =HLOOKUP(DB$7+0.5,$J$67:$DK$121,ROWS($A$11:$A44)+2,FALSE) -> 624 | DC44: =HLOOKUP(DC$7+0.5,$J$67:$DK$121,ROWS($A$11:$A44)+2,FALSE) -> 2384 | DD44: =HLOOKUP(DD$7+0.5,$J$67:$DK$121,ROWS($A$11:$A44)+2,FALSE) -> 489 | DE44: =HLOOKUP(DE$7+0.5,$J$67:$DK$121,ROWS($A$11:$A44)+2,FALSE) -> 1025 | DF44: =HLOOKUP(DF$7+0.5,$J$67:$DK$121,ROWS($A$11:$A44)+2,FALSE) -> 2109 | DG44: =HLOOKUP(DG$7+0.5,$J$67:$DK$121,ROWS($A$11:$A44)+2,FALSE) -> 840 | DH44: =HLOOKUP(DH$7+0.5,$J$67:$DK$121,ROWS($A$11:$A44)+2,FALSE) -> 689 | DI44: =HLOOKUP(DI$7+0.5,$J$67:$DK$121,ROWS($A$11:$A44)+2,FALSE) -> 507 | DJ44: =HLOOKUP(DJ$7+0.5,$J$67:$DK$121,ROWS($A$11:$A44)+2,FALSE) -> 370 | DK44: =HLOOKUP(DK$7+0.5,$J$67:$DK$121,ROWS($A$11:$A44)+2,FALSE) -> 1791
B45: North Carolina | C45: 9640490 | D45: 5097 | E45: 8167830 | F45: 27074 | G45: 1149080 | H45: 24801 | I45: 0.03863305115 | J45: =HLOOKUP(J$7,$J$67:$DK$121,ROWS($A$11:$A45)+2,FALSE) -> 273149 | K45: =HLOOKUP(K$7,$J$67:$DK$121,ROWS($A$11:$A45)+2,FALSE) -> 4329 | L45: =HLOOKUP(L$7,$J$67:$DK$121,ROWS($A$11:$A45)+2,FALSE) -> 1458 | M45: =HLOOKUP(M$7,$J$67:$DK$121,ROWS($A$11:$A45)+2,FALSE) -> 3493 | N45: =HLOOKUP(N$7,$J$67:$DK$121,ROWS($A$11:$A45)+2,FALSE) -> 861 | O45: =HLOOKUP(O$7,$J$67:$DK$121,ROWS($A$11:$A45)+2,FALSE) -> 13883 | P45: =HLOOKUP(P$7,$J$67:$DK$121,ROWS($A$11:$A45)+2,FALSE) -> 4790 | Q45: =HLOOKUP(Q$7,$J$67:$DK$121,ROWS($A$11:$A45)+2,FALSE) -> 4914 | R45: =HLOOKUP(R$7,$J$67:$DK$121,ROWS($A$11:$A45)+2,FALSE) -> 2180 | S45: =HLOOKUP(S$7,$J$67:$DK$121,ROWS($A$11:$A45)+2,FALSE) -> 1801 | T45: =HLOOKUP(T$7,$J$67:$DK$121,ROWS($A$11:$A45)+2,FALSE) -> 26365 | U45: =HLOOKUP(U$7,$J$67:$DK$121,ROWS($A$11:$A45)+2,FALSE) -> 16823 | V45: =HLOOKUP(V$7,$J$67:$DK$121,ROWS($A$11:$A45)+2,FALSE) -> 1566 | W45: =HLOOKUP(W$7,$J$67:$DK$121,ROWS($A$11:$A45)+2,FALSE) -> 334 | X45: =HLOOKUP(X$7,$J$67:$DK$121,ROWS($A$11:$A45)+2,FALSE) -> 6378 | Y45: =HLOOKUP(Y$7,$J$67:$DK$121,ROWS($A$11:$A45)+2,FALSE) -> 4532 | Z45: =HLOOKUP(Z$7,$J$67:$DK$121,ROWS($A$11:$A45)+2,FALSE) -> 775 | AA45: =HLOOKUP(AA$7,$J$67:$DK$121,ROWS($A$11:$A45)+2,FALSE) -> 1595 | AB45: =HLOOKUP(AB$7,$J$67:$DK$121,ROWS($A$11:$A45)+2,FALSE) -> 1531 | AC45: =HLOOKUP(AC$7,$J$67:$DK$121,ROWS($A$11:$A45)+2,FALSE) -> 919 | AD45: =HLOOKUP(AD$7,$J$67:$DK$121,ROWS($A$11:$A45)+2,FALSE) -> 1259 | AE45: =HLOOKUP(AE$7,$J$67:$DK$121,ROWS($A$11:$A45)+2,FALSE) -> 9005 | AF45: =HLOOKUP(AF$7,$J$67:$DK$121,ROWS($A$11:$A45)+2,FALSE) -> 3710 | AG45: =HLOOKUP(AG$7,$J$67:$DK$121,ROWS($A$11:$A45)+2,FALSE) -> 6161 | AH45: =HLOOKUP(AH$7,$J$67:$DK$121,ROWS($A$11:$A45)+2,FALSE) -> 1523 | AI45: =HLOOKUP(AI$7,$J$67:$DK$121,ROWS($A$11:$A45)+2,FALSE) -> 2377 | AJ45: =HLOOKUP(AJ$7,$J$67:$DK$121,ROWS($A$11:$A45)+2,FALSE) -> 2623 | AK45: =HLOOKUP(AK$7,$J$67:$DK$121,ROWS($A$11:$A45)+2,FALSE) -> 244 | AL45: =HLOOKUP(AL$7,$J$67:$DK$121,ROWS($A$11:$A45)+2,FALSE) -> 628 | AM45: =HLOOKUP(AM$7,$J$67:$DK$121,ROWS($A$11:$A45)+2,FALSE) -> 1627 | AN45: =HLOOKUP(AN$7,$J$67:$DK$121,ROWS($A$11:$A45)+2,FALSE) -> 754 | AO45: =HLOOKUP(AO$7,$J$67:$DK$121,ROWS($A$11:$A45)+2,FALSE) -> 11468 | AP45: =HLOOKUP(AP$7,$J$67:$DK$121,ROWS($A$11:$A45)+2,FALSE) -> 1138 | AQ45: =HLOOKUP(AQ$7,$J$67:$DK$121,ROWS($A$11:$A45)+2,FALSE) -> 19891 | AR45: =HLOOKUP(AR$7,$J$67:$DK$121,ROWS($A$11:$A45)+2,FALSE) -> N/A | AS45: =HLOOKUP(AS$7,$J$67:$DK$121,ROWS($A$11:$A45)+2,FALSE) -> 206 | AT45: =HLOOKUP(AT$7,$J$67:$DK$121,ROWS($A$11:$A45)+2,FALSE) -> 9337 | AU45: =HLOOKUP(AU$7,$J$67:$DK$121,ROWS($A$11:$A45)+2,FALSE) -> 1263 | AV45: =HLOOKUP(AV$7,$J$67:$DK$121,ROWS($A$11:$A45)+2,FALSE) -> 1333 | AW45: =HLOOKUP(AW$7,$J$67:$DK$121,ROWS($A$11:$A45)+2,FALSE) -> 12179 | AX45: =HLOOKUP(AX$7,$J$67:$DK$121,ROWS($A$11:$A45)+2,FALSE) -> 290 | AY45: =HLOOKUP(AY$7,$J$67:$DK$121,ROWS($A$11:$A45)+2,FALSE) -> 25532 | AZ45: =HLOOKUP(AZ$7,$J$67:$DK$121,ROWS($A$11:$A45)+2,FALSE) -> 351 | BA45: =HLOOKUP(BA$7,$J$67:$DK$121,ROWS($A$11:$A45)+2,FALSE) -> 9230 | BB45: =HLOOKUP(BB$7,$J$67:$DK$121,ROWS($A$11:$A45)+2,FALSE) -> 12638 | BC45: =HLOOKUP(BC$7,$J$67:$DK$121,ROWS($A$11:$A45)+2,FALSE) -> 1189 | BD45: =HLOOKUP(BD$7,$J$67:$DK$121,ROWS($A$11:$A45)+2,FALSE) -> 445 | BE45: =HLOOKUP(BE$7,$J$67:$DK$121,ROWS($A$11:$A45)+2,FALSE) -> 26759 | BF45: =HLOOKUP(BF$7,$J$67:$DK$121,ROWS($A$11:$A45)+2,FALSE) -> 5915 | BG45: =HLOOKUP(BG$7,$J$67:$DK$121,ROWS($A$11:$A45)+2,FALSE) -> 2677 | BH45: =HLOOKUP(BH$7,$J$67:$DK$121,ROWS($A$11:$A45)+2,FALSE) -> 2266 | BI45: =HLOOKUP(BI$7,$J$67:$DK$121,ROWS($A$11:$A45)+2,FALSE) -> 604 | BJ45: =HLOOKUP(BJ$7,$J$67:$DK$121,ROWS($A$11:$A45)+2,FALSE) -> 2025 | BK45: =HLOOKUP(BK$7+0.5,$J$67:$DK$121,ROWS($A$11:$A45)+2,FALSE) -> 13136 | BL45: =HLOOKUP(BL$7+0.5,$J$67:$DK$121,ROWS($A$11:$A45)+2,FALSE) -> 1544 | BM45: =HLOOKUP(BM$7+0.5,$J$67:$DK$121,ROWS($A$11:$A45)+2,FALSE) -> 925 | BN45: =HLOOKUP(BN$7+0.5,$J$67:$DK$121,ROWS($A$11:$A45)+2,FALSE) -> 1189 | BO45: =HLOOKUP(BO$7+0.5,$J$67:$DK$121,ROWS($A$11:$A45)+2,FALSE) -> 649 | BP45: =HLOOKUP(BP$7+0.5,$J$67:$DK$121,ROWS($A$11:$A45)+2,FALSE) -> 2813 | BQ45: =HLOOKUP(BQ$7+0.5,$J$67:$DK$121,ROWS($A$11:$A45)+2,FALSE) -> 2047 | BR45: =HLOOKUP(BR$7+0.5,$J$67:$DK$121,ROWS($A$11:$A45)+2,FALSE) -> 1990 | BS45: =HLOOKUP(BS$7+0.5,$J$67:$DK$121,ROWS($A$11:$A45)+2,FALSE) -> 1732 | BT45: =HLOOKUP(BT$7+0.5,$J$67:$DK$121,ROWS($A$11:$A45)+2,FALSE) -> 687 | BU45: =HLOOKUP(BU$7+0.5,$J$67:$DK$121,ROWS($A$11:$A45)+2,FALSE) -> 3750 | BV45: =HLOOKUP(BV$7+0.5,$J$67:$DK$121,ROWS($A$11:$A45)+2,FALSE) -> 2851 | BW45: =HLOOKUP(BW$7+0.5,$J$67:$DK$121,ROWS($A$11:$A45)+2,FALSE) -> 921 | BX45: =HLOOKUP(BX$7+0.5,$J$67:$DK$121,ROWS($A$11:$A45)+2,FALSE) -> 256 | BY45: =HLOOKUP(BY$7+0.5,$J$67:$DK$121,ROWS($A$11:$A45)+2,FALSE) -> 2177 | BZ45: =HLOOKUP(BZ$7+0.5,$J$67:$DK$121,ROWS($A$11:$A45)+2,FALSE) -> 2259 | CA45: =HLOOKUP(CA$7+0.5,$J$67:$DK$121,ROWS($A$11:$A45)+2,FALSE) -> 524 | CB45: =HLOOKUP(CB$7+0.5,$J$67:$DK$121,ROWS($A$11:$A45)+2,FALSE) -> 748 | CC45: =HLOOKUP(CC$7+0.5,$J$67:$DK$121,ROWS($A$11:$A45)+2,FALSE) -> 794 | CD45: =HLOOKUP(CD$7+0.5,$J$67:$DK$121,ROWS($A$11:$A45)+2,FALSE) -> 758 | CE45: =HLOOKUP(CE$7+0.5,$J$67:$DK$121,ROWS($A$11:$A45)+2,FALSE) -> 972 | CF45: =HLOOKUP(CF$7+0.5,$J$67:$DK$121,ROWS($A$11:$A45)+2,FALSE) -> 2221 | CG45: =HLOOKUP(CG$7+0.5,$J$67:$DK$121,ROWS($A$11:$A45)+2,FALSE) -> 1158 | CH45: =HLOOKUP(CH$7+0.5,$J$67:$DK$121,ROWS($A$11:$A45)+2,FALSE) -> 2547 | CI45: =HLOOKUP(CI$7+0.5,$J$67:$DK$121,ROWS($A$11:$A45)+2,FALSE) -> 838 | CJ45: =HLOOKUP(CJ$7+0.5,$J$67:$DK$121,ROWS($A$11:$A45)+2,FALSE) -> 1092 | CK45: =HLOOKUP(CK$7+0.5,$J$67:$DK$121,ROWS($A$11:$A45)+2,FALSE) -> 1742 | CL45: =HLOOKUP(CL$7+0.5,$J$67:$DK$121,ROWS($A$11:$A45)+2,FALSE) -> 306 | CM45: =HLOOKUP(CM$7+0.5,$J$67:$DK$121,ROWS($A$11:$A45)+2,FALSE) -> 628 | CN45: =HLOOKUP(CN$7+0.5,$J$67:$DK$121,ROWS($A$11:$A45)+2,FALSE) -> 807 | CO45: =HLOOKUP(CO$7+0.5,$J$67:$DK$121,ROWS($A$11:$A45)+2,FALSE) -> 525 | CP45: =HLOOKUP(CP$7+0.5,$J$67:$DK$121,ROWS($A$11:$A45)+2,FALSE) -> 4262 | CQ45: =HLOOKUP(CQ$7+0.5,$J$67:$DK$121,ROWS($A$11:$A45)+2,FALSE) -> 705 | CR45: =HLOOKUP(CR$7+0.5,$J$67:$DK$121,ROWS($A$11:$A45)+2,FALSE) -> 3951 | CS45: =HLOOKUP(CS$7+0.5,$J$67:$DK$121,ROWS($A$11:$A45)+2,FALSE) -> N/A | CT45: =HLOOKUP(CT$7+0.5,$J$67:$DK$121,ROWS($A$11:$A45)+2,FALSE) -> 232 | CU45: =HLOOKUP(CU$7+0.5,$J$67:$DK$121,ROWS($A$11:$A45)+2,FALSE) -> 2484 | CV45: =HLOOKUP(CV$7+0.5,$J$67:$DK$121,ROWS($A$11:$A45)+2,FALSE) -> 753 | CW45: =HLOOKUP(CW$7+0.5,$J$67:$DK$121,ROWS($A$11:$A45)+2,FALSE) -> 772 | CX45: =HLOOKUP(CX$7+0.5,$J$67:$DK$121,ROWS($A$11:$A45)+2,FALSE) -> 2356 | CY45: =HLOOKUP(CY$7+0.5,$J$67:$DK$121,ROWS($A$11:$A45)+2,FALSE) -> 198 | CZ45: =HLOOKUP(CZ$7+0.5,$J$67:$DK$121,ROWS($A$11:$A45)+2,FALSE) -> 4732 | DA45: =HLOOKUP(DA$7+0.5,$J$67:$DK$121,ROWS($A$11:$A45)+2,FALSE) -> 186 | DB45: =HLOOKUP(DB$7+0.5,$J$67:$DK$121,ROWS($A$11:$A45)+2,FALSE) -> 2122 | DC45: =HLOOKUP(DC$7+0.5,$J$67:$DK$121,ROWS($A$11:$A45)+2,FALSE) -> 2381 | DD45: =HLOOKUP(DD$7+0.5,$J$67:$DK$121,ROWS($A$11:$A45)+2,FALSE) -> 1040 | DE45: =HLOOKUP(DE$7+0.5,$J$67:$DK$121,ROWS($A$11:$A45)+2,FALSE) -> 291 | DF45: =HLOOKUP(DF$7+0.5,$J$67:$DK$121,ROWS($A$11:$A45)+2,FALSE) -> 4229 | DG45: =HLOOKUP(DG$7+0.5,$J$67:$DK$121,ROWS($A$11:$A45)+2,FALSE) -> 2630 | DH45: =HLOOKUP(DH$7+0.5,$J$67:$DK$121,ROWS($A$11:$A45)+2,FALSE) -> 985 | DI45: =HLOOKUP(DI$7+0.5,$J$67:$DK$121,ROWS($A$11:$A45)+2,FALSE) -> 980 | DJ45: =HLOOKUP(DJ$7+0.5,$J$67:$DK$121,ROWS($A$11:$A45)+2,FALSE) -> 687 | DK45: =HLOOKUP(DK$7+0.5,$J$67:$DK$121,ROWS($A$11:$A45)+2,FALSE) -> 1218
B46: North Dakota | C46: 689838 | D46: 1379 | E46: 563978 | F46: 6361 | G46: 84294 | H46: 5380 | I46: 0.005404686759 | J46: =HLOOKUP(J$7,$J$67:$DK$121,ROWS($A$11:$A46)+2,FALSE) -> 38213 | K46: =HLOOKUP(K$7,$J$67:$DK$121,ROWS($A$11:$A46)+2,FALSE) -> 83 | L46: =HLOOKUP(L$7,$J$67:$DK$121,ROWS($A$11:$A46)+2,FALSE) -> 70 | M46: =HLOOKUP(M$7,$J$67:$DK$121,ROWS($A$11:$A46)+2,FALSE) -> 1571 | N46: =HLOOKUP(N$7,$J$67:$DK$121,ROWS($A$11:$A46)+2,FALSE) -> 0 | O46: =HLOOKUP(O$7,$J$67:$DK$121,ROWS($A$11:$A46)+2,FALSE) -> 999 | P46: =HLOOKUP(P$7,$J$67:$DK$121,ROWS($A$11:$A46)+2,FALSE) -> 546 | Q46: =HLOOKUP(Q$7,$J$67:$DK$121,ROWS($A$11:$A46)+2,FALSE) -> 65 | R46: =HLOOKUP(R$7,$J$67:$DK$121,ROWS($A$11:$A46)+2,FALSE) -> 0 | S46: =HLOOKUP(S$7,$J$67:$DK$121,ROWS($A$11:$A46)+2,FALSE) -> 70 | T46: =HLOOKUP(T$7,$J$67:$DK$121,ROWS($A$11:$A46)+2,FALSE) -> 950 | U46: =HLOOKUP(U$7,$J$67:$DK$121,ROWS($A$11:$A46)+2,FALSE) -> 98 | V46: =HLOOKUP(V$7,$J$67:$DK$121,ROWS($A$11:$A46)+2,FALSE) -> 160 | W46: =HLOOKUP(W$7,$J$67:$DK$121,ROWS($A$11:$A46)+2,FALSE) -> 540 | X46: =HLOOKUP(X$7,$J$67:$DK$121,ROWS($A$11:$A46)+2,FALSE) -> 799 | Y46: =HLOOKUP(Y$7,$J$67:$DK$121,ROWS($A$11:$A46)+2,FALSE) -> 55 | Z46: =HLOOKUP(Z$7,$J$67:$DK$121,ROWS($A$11:$A46)+2,FALSE) -> 458 | AA46: =HLOOKUP(AA$7,$J$67:$DK$121,ROWS($A$11:$A46)+2,FALSE) -> 161 | AB46: =HLOOKUP(AB$7,$J$67:$DK$121,ROWS($A$11:$A46)+2,FALSE) -> 22 | AC46: =HLOOKUP(AC$7,$J$67:$DK$121,ROWS($A$11:$A46)+2,FALSE) -> 18 | AD46: =HLOOKUP(AD$7,$J$67:$DK$121,ROWS($A$11:$A46)+2,FALSE) -> 98 | AE46: =HLOOKUP(AE$7,$J$67:$DK$121,ROWS($A$11:$A46)+2,FALSE) -> 232 | AF46: =HLOOKUP(AF$7,$J$67:$DK$121,ROWS($A$11:$A46)+2,FALSE) -> 187 | AG46: =HLOOKUP(AG$7,$J$67:$DK$121,ROWS($A$11:$A46)+2,FALSE) -> 757 | AH46: =HLOOKUP(AH$7,$J$67:$DK$121,ROWS($A$11:$A46)+2,FALSE) -> 15257 | AI46: =HLOOKUP(AI$7,$J$67:$DK$121,ROWS($A$11:$A46)+2,FALSE) -> 72 | AJ46: =HLOOKUP(AJ$7,$J$67:$DK$121,ROWS($A$11:$A46)+2,FALSE) -> 1490 | AK46: =HLOOKUP(AK$7,$J$67:$DK$121,ROWS($A$11:$A46)+2,FALSE) -> 1776 | AL46: =HLOOKUP(AL$7,$J$67:$DK$121,ROWS($A$11:$A46)+2,FALSE) -> 950 | AM46: =HLOOKUP(AM$7,$J$67:$DK$121,ROWS($A$11:$A46)+2,FALSE) -> 854 | AN46: =HLOOKUP(AN$7,$J$67:$DK$121,ROWS($A$11:$A46)+2,FALSE) -> 0 | AO46: =HLOOKUP(AO$7,$J$67:$DK$121,ROWS($A$11:$A46)+2,FALSE) -> 140 | AP46: =HLOOKUP(AP$7,$J$67:$DK$121,ROWS($A$11:$A46)+2,FALSE) -> 161 | AQ46: =HLOOKUP(AQ$7,$J$67:$DK$121,ROWS($A$11:$A46)+2,FALSE) -> 331 | AR46: =HLOOKUP(AR$7,$J$67:$DK$121,ROWS($A$11:$A46)+2,FALSE) -> 231 | AS46: =HLOOKUP(AS$7,$J$67:$DK$121,ROWS($A$11:$A46)+2,FALSE) -> N/A | AT46: =HLOOKUP(AT$7,$J$67:$DK$121,ROWS($A$11:$A46)+2,FALSE) -> 6 | AU46: =HLOOKUP(AU$7,$J$67:$DK$121,ROWS($A$11:$A46)+2,FALSE) -> 280 | AV46: =HLOOKUP(AV$7,$J$67:$DK$121,ROWS($A$11:$A46)+2,FALSE) -> 724 | AW46: =HLOOKUP(AW$7,$J$67:$DK$121,ROWS($A$11:$A46)+2,FALSE) -> 114 | AX46: =HLOOKUP(AX$7,$J$67:$DK$121,ROWS($A$11:$A46)+2,FALSE) -> 244 | AY46: =HLOOKUP(AY$7,$J$67:$DK$121,ROWS($A$11:$A46)+2,FALSE) -> 14 | AZ46: =HLOOKUP(AZ$7,$J$67:$DK$121,ROWS($A$11:$A46)+2,FALSE) -> 1754 | BA46: =HLOOKUP(BA$7,$J$67:$DK$121,ROWS($A$11:$A46)+2,FALSE) -> 746 | BB46: =HLOOKUP(BB$7,$J$67:$DK$121,ROWS($A$11:$A46)+2,FALSE) -> 1414 | BC46: =HLOOKUP(BC$7,$J$67:$DK$121,ROWS($A$11:$A46)+2,FALSE) -> 43 | BD46: =HLOOKUP(BD$7,$J$67:$DK$121,ROWS($A$11:$A46)+2,FALSE) -> 758 | BE46: =HLOOKUP(BE$7,$J$67:$DK$121,ROWS($A$11:$A46)+2,FALSE) -> 403 | BF46: =HLOOKUP(BF$7,$J$67:$DK$121,ROWS($A$11:$A46)+2,FALSE) -> 1604 | BG46: =HLOOKUP(BG$7,$J$67:$DK$121,ROWS($A$11:$A46)+2,FALSE) -> 0 | BH46: =HLOOKUP(BH$7,$J$67:$DK$121,ROWS($A$11:$A46)+2,FALSE) -> 543 | BI46: =HLOOKUP(BI$7,$J$67:$DK$121,ROWS($A$11:$A46)+2,FALSE) -> 365 | BJ46: =HLOOKUP(BJ$7,$J$67:$DK$121,ROWS($A$11:$A46)+2,FALSE) -> 0 | BK46: =HLOOKUP(BK$7+0.5,$J$67:$DK$121,ROWS($A$11:$A46)+2,FALSE) -> 3616 | BL46: =HLOOKUP(BL$7+0.5,$J$67:$DK$121,ROWS($A$11:$A46)+2,FALSE) -> 142 | BM46: =HLOOKUP(BM$7+0.5,$J$67:$DK$121,ROWS($A$11:$A46)+2,FALSE) -> 105 | BN46: =HLOOKUP(BN$7+0.5,$J$67:$DK$121,ROWS($A$11:$A46)+2,FALSE) -> 788 | BO46: =HLOOKUP(BO$7+0.5,$J$67:$DK$121,ROWS($A$11:$A46)+2,FALSE) -> 141 | BP46: =HLOOKUP(BP$7+0.5,$J$67:$DK$121,ROWS($A$11:$A46)+2,FALSE) -> 460 | BQ46: =HLOOKUP(BQ$7+0.5,$J$67:$DK$121,ROWS($A$11:$A46)+2,FALSE) -> 293 | BR46: =HLOOKUP(BR$7+0.5,$J$67:$DK$121,ROWS($A$11:$A46)+2,FALSE) -> 100 | BS46: =HLOOKUP(BS$7+0.5,$J$67:$DK$121,ROWS($A$11:$A46)+2,FALSE) -> 141 | BT46: =HLOOKUP(BT$7+0.5,$J$67:$DK$121,ROWS($A$11:$A46)+2,FALSE) -> 112 | BU46: =HLOOKUP(BU$7+0.5,$J$67:$DK$121,ROWS($A$11:$A46)+2,FALSE) -> 860 | BV46: =HLOOKUP(BV$7+0.5,$J$67:$DK$121,ROWS($A$11:$A46)+2,FALSE) -> 154 | BW46: =HLOOKUP(BW$7+0.5,$J$67:$DK$121,ROWS($A$11:$A46)+2,FALSE) -> 148 | BX46: =HLOOKUP(BX$7+0.5,$J$67:$DK$121,ROWS($A$11:$A46)+2,FALSE) -> 521 | BY46: =HLOOKUP(BY$7+0.5,$J$67:$DK$121,ROWS($A$11:$A46)+2,FALSE) -> 523 | BZ46: =HLOOKUP(BZ$7+0.5,$J$67:$DK$121,ROWS($A$11:$A46)+2,FALSE) -> 77 | CA46: =HLOOKUP(CA$7+0.5,$J$67:$DK$121,ROWS($A$11:$A46)+2,FALSE) -> 316 | CB46: =HLOOKUP(CB$7+0.5,$J$67:$DK$121,ROWS($A$11:$A46)+2,FALSE) -> 122 | CC46: =HLOOKUP(CC$7+0.5,$J$67:$DK$121,ROWS($A$11:$A46)+2,FALSE) -> 44 | CD46: =HLOOKUP(CD$7+0.5,$J$67:$DK$121,ROWS($A$11:$A46)+2,FALSE) -> 27 | CE46: =HLOOKUP(CE$7+0.5,$J$67:$DK$121,ROWS($A$11:$A46)+2,FALSE) -> 176 | CF46: =HLOOKUP(CF$7+0.5,$J$67:$DK$121,ROWS($A$11:$A46)+2,FALSE) -> 311 | CG46: =HLOOKUP(CG$7+0.5,$J$67:$DK$121,ROWS($A$11:$A46)+2,FALSE) -> 281 | CH46: =HLOOKUP(CH$7+0.5,$J$67:$DK$121,ROWS($A$11:$A46)+2,FALSE) -> 571 | CI46: =HLOOKUP(CI$7+0.5,$J$67:$DK$121,ROWS($A$11:$A46)+2,FALSE) -> 2266 | CJ46: =HLOOKUP(CJ$7+0.5,$J$67:$DK$121,ROWS($A$11:$A46)+2,FALSE) -> 109 | CK46: =HLOOKUP(CK$7+0.5,$J$67:$DK$121,ROWS($A$11:$A46)+2,FALSE) -> 1346 | CL46: =HLOOKUP(CL$7+0.5,$J$67:$DK$121,ROWS($A$11:$A46)+2,FALSE) -> 709 | CM46: =HLOOKUP(CM$7+0.5,$J$67:$DK$121,ROWS($A$11:$A46)+2,FALSE) -> 764 | CN46: =HLOOKUP(CN$7+0.5,$J$67:$DK$121,ROWS($A$11:$A46)+2,FALSE) -> 572 | CO46: =HLOOKUP(CO$7+0.5,$J$67:$DK$121,ROWS($A$11:$A46)+2,FALSE) -> 141 | CP46: =HLOOKUP(CP$7+0.5,$J$67:$DK$121,ROWS($A$11:$A46)+2,FALSE) -> 231 | CQ46: =HLOOKUP(CQ$7+0.5,$J$67:$DK$121,ROWS($A$11:$A46)+2,FALSE) -> 228 | CR46: =HLOOKUP(CR$7+0.5,$J$67:$DK$121,ROWS($A$11:$A46)+2,FALSE) -> 331 | CS46: =HLOOKUP(CS$7+0.5,$J$67:$DK$121,ROWS($A$11:$A46)+2,FALSE) -> 243 | CT46: =HLOOKUP(CT$7+0.5,$J$67:$DK$121,ROWS($A$11:$A46)+2,FALSE) -> N/A | CU46: =HLOOKUP(CU$7+0.5,$J$67:$DK$121,ROWS($A$11:$A46)+2,FALSE) -> 14 | CV46: =HLOOKUP(CV$7+0.5,$J$67:$DK$121,ROWS($A$11:$A46)+2,FALSE) -> 260 | CW46: =HLOOKUP(CW$7+0.5,$J$67:$DK$121,ROWS($A$11:$A46)+2,FALSE) -> 529 | CX46: =HLOOKUP(CX$7+0.5,$J$67:$DK$121,ROWS($A$11:$A46)+2,FALSE) -> 157 | CY46: =HLOOKUP(CY$7+0.5,$J$67:$DK$121,ROWS($A$11:$A46)+2,FALSE) -> 255 | CZ46: =HLOOKUP(CZ$7+0.5,$J$67:$DK$121,ROWS($A$11:$A46)+2,FALSE) -> 28 | DA46: =HLOOKUP(DA$7+0.5,$J$67:$DK$121,ROWS($A$11:$A46)+2,FALSE) -> 822 | DB46: =HLOOKUP(DB$7+0.5,$J$67:$DK$121,ROWS($A$11:$A46)+2,FALSE) -> 694 | DC46: =HLOOKUP(DC$7+0.5,$J$67:$DK$121,ROWS($A$11:$A46)+2,FALSE) -> 756 | DD46: =HLOOKUP(DD$7+0.5,$J$67:$DK$121,ROWS($A$11:$A46)+2,FALSE) -> 60 | DE46: =HLOOKUP(DE$7+0.5,$J$67:$DK$121,ROWS($A$11:$A46)+2,FALSE) -> 1014 | DF46: =HLOOKUP(DF$7+0.5,$J$67:$DK$121,ROWS($A$11:$A46)+2,FALSE) -> 309 | DG46: =HLOOKUP(DG$7+0.5,$J$67:$DK$121,ROWS($A$11:$A46)+2,FALSE) -> 796 | DH46: =HLOOKUP(DH$7+0.5,$J$67:$DK$121,ROWS($A$11:$A46)+2,FALSE) -> 141 | DI46: =HLOOKUP(DI$7+0.5,$J$67:$DK$121,ROWS($A$11:$A46)+2,FALSE) -> 327 | DJ46: =HLOOKUP(DJ$7+0.5,$J$67:$DK$121,ROWS($A$11:$A46)+2,FALSE) -> 269 | DK46: =HLOOKUP(DK$7+0.5,$J$67:$DK$121,ROWS($A$11:$A46)+2,FALSE) -> 141
